Workbook

Sheet Parameter
D1: Startparameter
B3: Aktuelles Jahr | C3: Alter | D3: =IF(D5>0,"Jahre bis Rente","Jahre in Rente") -> Jahre bis Rente | G3: Einnahmen | H3: Konsum | I3: Cashflow | L3: Cash Bestand | M3: Investments neu | N3: Bilanzsumme | O3: Vermögen | P3: Cash verfügbar
B5: 2020 | C5: =Alter+B5-YEAR(NOW()) -> 28 | D5: =ABS(Renteneintritt-C5) -> 39 | G5: =SUMIF(Simulation_Tab[Datum],Parameter!$B$5-1,Simulation_Tab[Einnahmen Summe]) -> 0 | H5: =SUMIF(Simulation_Tab[Datum],Parameter!$B$5-1,Simulation_Tab[Ausgaben Summe]) -> 0 | I5: =SUMIF(Simulation_Tab[Datum],Parameter!$B$5-1,Simulation_Tab[[freier Cashflow ]]) -> 0 | L5: =IFERROR(INDEX(Simulation_Tab[Cash],MATCH($B$5-1,Simulation_Tab[Suchjahr],0),1),0) -> 0 | M5: =SUM(Start!$D$33:$D$34) -> 0 | N5: =Start!$M$16 -> 0 | O5: =SUM(Start!$Q$11:$Q$13) -> 0 | P5: =Start!$I$34 -> 5400 | T5: StartJahr | U5: =YEAR(NOW()) -> 2020
B8: Persönliche Daten | G8: Geburt Kinder | L8: Renten
B9: Alter | D9: 28 | G9: Geburtsjahr Kind 1 | I9: 2023 | L9: Durchschnittsgehalt Brutto DE | N9: 40500
B10: Renteneintritt | D10: 67 | G10: Geburtsjahr Kind 2 | I10: 2026 | L10: Steigerung Durchschnittsgehalt | N10: 0.015
B11: Aktuelle Rentenpunkte | D11: 6 | G11: Geburtsjahr Kind 3 | L11: Rentenwert je Punkt | N11: 34
G12: Geburtsjahr Kind 4 | L12: Steigerung Rentenwert | N12: 0.015
B13: Konsumausgaben | G13: Geburtsjahr Kind 5
B14: Konsum aktuell p.a. | D14: 20000 | G14: Geburtsjahr Kind 6 | L14: Immobilien
B15: Konsum Steigerung p.a. | D15: 0.05 | G15: Geburtsjahr Kind 7 | L15: Wertsteigerung | N15: 0.02
B16: Konsum im Alter | D16: 0.8 | G16: Geburtsjahr Kind 8 | L16: Mietensteigerung | N16: 0.03
B17: NettoKosten Kind p.M. | D17: 400 | L17: Kostensteigung | N17: 0.02
B18: Steigerungsrate Kosten Kinder | D18: 0.05 | G18: Finanzielle Eigenständigkeit
G19: Alter Kind 1 | I19: 25 | L19: ETF
B20: Einnahmen | G20: Alter Kind 2 | I20: 24 | L20: Entnahmerate für fin. Freiheit | N20: 0.03
B21: Nettogehalt aktuell p.a. | D21: 30000 | G21: Alter Kind 3
B22: Gehaltssteigerung p.a. (20 Jahre) | D22: 0.06 | G22: Alter Kind 4
B23: Gehaltssteigerung p.a. (bis Rente) | D23: 0.03 | G23: Alter Kind 5
G24: Alter Kind 6
B25: Wertpapiere & Cash | G25: Alter Kind 7
B26: Cash | D26: 5000 | G26: Alter Kind 8
B27: Wert Aktien | D27: 400
B28: Wert Immobilien (abbezahlt) | D28: 0
B29: Startvermögen | D29: =SUM(D26:D28) -> 5400

Sheet Start
D1: Start
B3: Aktuelles Jahr | C3: Alter | D3: =IF(D5>0,"Jahre bis Rente","Jahre in Rente") -> Jahre bis Rente | G3: Einnahmen | H3: Konsum | I3: Cashflow | L3: Cash Bestand | M3: Investments neu | N3: Bilanzsumme | P3: Vermögen | Q3: Cash verfügbar | R3: =IFERROR(IF(INDEX(Table5[Value],MATCH($B$5-1,Table5[Datumjahr],0),1)<>0,"Achtung Wirtschaftskrise!",""),"") -> 
B5: 2020 | C5: =Alter+B5-YEAR(NOW()) -> 28 | D5: =ABS(Renteneintritt-C5) -> 39 | G5: =SUMIF(Simulation_Tab[Datum],Parameter!$B$5-1,Simulation_Tab[Einnahmen Summe]) -> 0 | H5: =SUMIF(Simulation_Tab[Datum],Parameter!$B$5-1,Simulation_Tab[Ausgaben Summe]) -> 0 | I5: =SUMIF(Simulation_Tab[Datum],Parameter!$B$5-1,Simulation_Tab[[freier Cashflow ]]) -> 0 | L5: =IFERROR(INDEX(Simulation_Tab[Cash],MATCH($B$5-1,Simulation_Tab[Suchjahr],0),1),0) -> 0 | M5: =SUM(Start!$D$33:$D$34)*-1 -> 0 | N5: =Start!$M$16 -> 0 | P5: =SUM(Start!$Q$11:$Q$13) -> 0 | Q5: =Start!$I$34 -> 5400 | R5: =IF(AND($I$28>=0,$B$5<>YEAR(NOW())),"Finanzielle Freiheit erreicht!", IF($I$27>=0,"Rentenlücke geschlossen!","")) -> 
B8: ="Gewinn- und Verlustrechnung für "&B5-1 -> Gewinn- und Verlustrechnung für 2019 | L8: ="Bilanz Ende "&B5-1 -> Bilanz Ende 2019
B9: Aufwendung | C9: =$B$5-1 -> 2019 | D9: Veränderung | G9: Ertrag | H9: =$B$5-1 -> 2019 | I9: Veränderung | L9: Aktiva | M9: =$B$5-1 -> 2019 | N9: Vorjahr | P9: Passiva | Q9: =$B$5-1 -> 2019 | R9: Vorjahr
B10: Konsumausgaben | G10: Gehalt | L10: Anlagevermögen | P10: Eigenkapital
B11: Konsum | C11: =IFERROR(INDEX(Simulation_Tab[Konsumausgaben p.M.],MATCH($B$5-1,Simulation_Tab[Suchjahr],0),1)*12,0) -> 0 | D11: =IFERROR(INDEX(Simulation_Tab[Konsumausgaben p.M.],MATCH($B$5-1,Simulation_Tab[Suchjahr],0),1)*12,0)-IFERROR(INDEX(Simulation_Tab[Konsumausgaben p.M.],MATCH($B$5-2,Simulation_Tab[Suchjahr],0),1)*12,0) -> 0 | G11: Nettolohn | H11: =SUMIF(Simulation_Tab[Datum],$B$5-1,Simulation_Tab[Nettolohn]) -> 0 | I11: =SUMIF(Simulation_Tab[Datum],$B$5-1,Simulation_Tab[Nettolohn])-SUMIF(Simulation_Tab[Datum],$B$5-2,Simulation_Tab[Nettolohn]) -> 0 | L11: Immobilien | M11: =IFERROR(INDEX(Simulation_Tab[Immo Wert],MATCH($B$5-1,Simulation_Tab[Suchjahr],0),1),0) -> 0 | N11: =IFERROR(INDEX(Simulation_Tab[Immo Wert],MATCH($B$5-1,Simulation_Tab[Suchjahr],0),1),0)-IFERROR(INDEX(Simulation_Tab[Immo Wert],MATCH($B$5-2,Simulation_Tab[Suchjahr],0),1),0) -> 0 | P11: ETF | Q11: =IFERROR(INDEX(Simulation_Tab[ETF-Wert],MATCH($B$5-1,Simulation_Tab[Suchjahr],0),1),0) -> 0 | R11: =IFERROR(INDEX(Simulation_Tab[ETF-Wert],MATCH($B$5-1,Simulation_Tab[Suchjahr],0),1),0)-IFERROR(INDEX(Simulation_Tab[ETF-Wert],MATCH($B$5-2,Simulation_Tab[Suchjahr],0),1),0) -> 0
B12: Kinder | C12: =IFERROR(INDEX(Simulation_Tab[Ausgaben Kinder],MATCH($B$5-1,Simulation_Tab[Suchjahr],0),1)*12,0) -> 0 | D12: =IFERROR(INDEX(Simulation_Tab[Ausgaben Kinder],MATCH($B$5-1,Simulation_Tab[Suchjahr],0),1)*12,0)-IFERROR(INDEX(Simulation_Tab[Ausgaben Kinder],MATCH($B$5-2,Simulation_Tab[Suchjahr],0),1)*12,0) -> 0 | L12: Umlaufvermögen | P12: Immobilien | Q12: =IFERROR(INDEX(Simulation_Tab[Immo_EK_Bestand],MATCH($B$5-1,Simulation_Tab[Suchjahr],0),1),0) -> 0 | R12: =IFERROR(INDEX(Simulation_Tab[Immo_EK_Bestand],MATCH($B$5-1,Simulation_Tab[Suchjahr],0),1),0)-IFERROR(INDEX(Simulation_Tab[Immo_EK_Bestand],MATCH($B$5-2,Simulation_Tab[Suchjahr],0),1),0) -> 0
B13: Finanzierung aus Vermietung | G13: Vermietung | L13: Cash | M13: =IFERROR(INDEX(Simulation_Tab[Cash],MATCH($B$5-1,Simulation_Tab[Suchjahr],0),1),0) -> 0 | N13: =IFERROR(INDEX(Simulation_Tab[Cash],MATCH($B$5-1,Simulation_Tab[Suchjahr],0),1),0)-IFERROR(INDEX(Simulation_Tab[Cash],MATCH($B$5-2,Simulation_Tab[Suchjahr],0),1),0) -> 0 | P13: Cash | Q13: =IFERROR(INDEX(Simulation_Tab[Cash],MATCH($B$5-1,Simulation_Tab[Suchjahr],0),1),0) -> 0 | R13: =IFERROR(INDEX(Simulation_Tab[Cash],MATCH($B$5-1,Simulation_Tab[Suchjahr],0),1),0)-IFERROR(INDEX(Simulation_Tab[Cash],MATCH($B$5-2,Simulation_Tab[Suchjahr],0),1),0) -> 0
B14: Zinsen | C14: =IFERROR(INDEX(Simulation_Tab[Zinsen],MATCH($B$5-1,Simulation_Tab[Suchjahr],0))*12,0) -> 0 | D14: =IFERROR(INDEX(Simulation_Tab[Zinsen],MATCH($B$5-1,Simulation_Tab[Suchjahr],0))*12,0)-IFERROR(INDEX(Simulation_Tab[Zinsen],MATCH($B$5-2,Simulation_Tab[Suchjahr],0))*12,0) -> 0 | G14: Mieten | H14: =SUMIF(Simulation_Tab[Datum],$B$5-1,Simulation_Tab[Miete]) -> 0 | I14: =SUMIF(Simulation_Tab[Datum],$B$5-1,Simulation_Tab[Miete])-SUMIF(Simulation_Tab[Datum],$B$5-2,Simulation_Tab[Miete]) -> 0 | L14: ETF | M14: =IFERROR(INDEX(Simulation_Tab[ETF-Wert],MATCH(($B$5-1),Simulation_Tab[Suchjahr],0),1),0) -> 0 | N14: =IFERROR(INDEX(Simulation_Tab[ETF-Wert],MATCH(($B$5-1),Simulation_Tab[Suchjahr],0),1),0)-IFERROR(INDEX(Simulation_Tab[ETF-Wert],MATCH(($B$5-2),Simulation_Tab[Suchjahr],0),1),0) -> 0 | P14: Fremdkapital
B15: Tilgung | C15: =IFERROR(INDEX(Simulation_Tab[Tilgung],MATCH($B$5-1,Simulation_Tab[Suchjahr],0),1)*12,0) -> 0 | D15: =IFERROR(INDEX(Simulation_Tab[Tilgung],MATCH($B$5-1,Simulation_Tab[Suchjahr],0),1)*12,0)-IFERROR(INDEX(Simulation_Tab[Tilgung],MATCH($B$5-2,Simulation_Tab[Suchjahr],0),1)*12,0) -> 0 | P15: Bankdarlehen | Q15: =IFERROR(INDEX(Simulation_Tab[Immo_FK_Bestand],MATCH($B$5-1,Simulation_Tab[Suchjahr],0),1),0) -> 0 | R15: =IFERROR(INDEX(Simulation_Tab[Immo_FK_Bestand],MATCH($B$5-1,Simulation_Tab[Suchjahr],0),1),0)-IFERROR(INDEX(Simulation_Tab[Immo_FK_Bestand],MATCH($B$5-2,Simulation_Tab[Suchjahr],0),1),0) -> 0
B16: n.u. Kosten | C16: =IFERROR(INDEX(Simulation_Tab[n.u. Kosten],MATCH($B$5-1,Simulation_Tab[Suchjahr],0),1)*12,0) -> 0 | D16: =IFERROR(INDEX(Simulation_Tab[n.u. Kosten],MATCH($B$5-1,Simulation_Tab[Suchjahr],0),1)*12,0)-IFERROR(INDEX(Simulation_Tab[n.u. Kosten],MATCH($B$5-2,Simulation_Tab[Suchjahr],0),1)*12,0) -> 0 | L16: Summe | M16: =SUM(M10:M15) -> 0 | N16: =SUM(N10:N15) -> 0 | P16: Summe | Q16: =SUM(Q10:Q15) -> 0 | R16: =SUM(R10:R15) -> 0
B17: Wertpapierhandel | G17: Wertpapierhandel
B18: Verlust | C18: =IF(IFERROR(SUMIFS(Simulation_Tab[ETF_VK_Gewinn],Simulation_Tab[Datum],$B$5-1),0)<0,IFERROR(SUMIFS(Simulation_Tab[ETF_VK_Gewinn],Simulation_Tab[Datum],$B$5-1),0)*-1,0) -> 0 | D18: =IF(IFERROR(SUMIFS(Simulation_Tab[ETF_VK_Gewinn],Simulation_Tab[Datum],$B$5-1),0)<0,IFERROR(SUMIFS(Simulation_Tab[ETF_VK_Gewinn],Simulation_Tab[Datum],$B$5-1),0)*-1,0) -IF(IFERROR(SUMIFS(Simulation_Tab[ETF_VK_Gewinn],Simulation_Tab[Datum],$B$5-2),0)<0,IFERROR(SUMIFS(Simulation_Tab[ETF_VK_Gewinn],Simulation_Tab[Datum],$B$5-2),0)*-1,0) -> 0 | G18: Gewinn | H18: =IF(IFERROR(SUMIFS(Simulation_Tab[ETF_VK_Gewinn],Simulation_Tab[Datum],$B$5-1),0)>70,IFERROR(SUMIFS(Simulation_Tab[ETF_VK_Gewinn],Simulation_Tab[Datum],$B$5-1),0)*-1,0) -> 0 | I18: =IF(IFERROR(SUMIFS(Simulation_Tab[ETF_VK_Gewinn],Simulation_Tab[Datum],$B$5-1),0)>70,IFERROR(SUMIFS(Simulation_Tab[ETF_VK_Gewinn],Simulation_Tab[Datum],$B$5-1),0)*-1,0)- IF(IFERROR(SUMIFS(Simulation_Tab[ETF_VK_Gewinn],Simulation_Tab[Datum],$B$5-2),0)>70,IFERROR(SUMIFS(Simulation_Tab[ETF_VK_Gewinn],Simulation_Tab[Datum],$B$5-2),0)*-1,0) -> 0
B19: Cash | C19: =IF(SUMIF(Simulation_Tab[Datum],$B$5-1,Simulation_Tab[[freier Cashflow ]])>0,SUMIF(Simulation_Tab[Datum],$B$5-1,Simulation_Tab[[freier Cashflow ]]),0) -> 0 | D19: =IF(C19<>0,SUMIF(Simulation_Tab[Datum],$B$5-1,Simulation_Tab[[freier Cashflow ]])-SUMIF(Simulation_Tab[Datum],$B$5-2,Simulation_Tab[[freier Cashflow ]]),0) -> 0 | G19: Cash | H19: =IF(SUMIF(Simulation_Tab[Datum],$B$5-1,Simulation_Tab[[freier Cashflow ]])<0,SUMIF(Simulation_Tab[Datum],$B$5-1,Simulation_Tab[[freier Cashflow ]]),0) -> 0 | I19: =IF(H19<>0,SUMIF(Simulation_Tab[Datum],$B$5-1,Simulation_Tab[[freier Cashflow ]])-SUMIF(Simulation_Tab[Datum],$B$5-2,Simulation_Tab[[freier Cashflow ]]),0) -> 0
B20: Summe | C20: =SUM(C10:C19) -> 0 | D20: =SUM(D10:D19) -> 0 | G20: Summe | H20: =SUM(H10:H19) -> 0 | I20: =SUM(I10:I19) -> 0
B22: Cashflow - Rechnung | G22: Forecast | L22: 10 Jahres Rückblick
B23: Position | D23: =B5-1 -> 2019 | G23: Rentenlücke und finanzielle Freiheit p.a. | L23: Jahr | M23: Gewinn | N23: Vermögen | P23: Jahr | Q23: Gewinn | R23: Vermögen
B24: + Nettolohn | D24: =H11 -> 0 | G24: Rente bei sofortigem Eintritt | I24: =MAX(INDEX(Renten_Tab[Rentenpunkte akk],MATCH(B5,Renten_Tab[Suchjahr],0),1)*INDEX(Renten_Tab[Rentenwert],MATCH(B5,Renten_Tab[Suchjahr],0),1)*12*(1-(67-C5)*0.003*12),0) -> 0 | L24: =B5-1 -> 2019 | M24: =IFERROR(INDEX(Simulation_Tab[Vermögen],MATCH($L24,Simulation_Tab[Suchjahr],0),1)- IFERROR(INDEX(Simulation_Tab[Vermögen],MATCH($L24-1,Simulation_Tab[Suchjahr],0),1), Startvermögen),0) -> 0 | N24: =IFERROR(SUMIF(Simulation_Tab[Suchjahr],$L24,Simulation_Tab[Vermögen]),0) -> 0 | P24: =$B$5-10 -> 2010 | Q24: =VLOOKUP(P24,$L$24:$N$33,2,FALSE) -> 0 | R24: =VLOOKUP(P24,$L$24:$N$33,3,FALSE) -> 0
B25: - Konsum | D25: =-C11 -> 0 | G25: Vss. Rentenwert bei Renteneintritt | I25: =INDEX(Renten_Tab[Rentenpunkte akk],MATCH("R",Renten_Tab[Beruf/Rente],0),1)*INDEX(Renten_Tab[Rentenwert],MATCH("R",Renten_Tab[Beruf/Rente],0),1)*12 -> 47850.50657 | L25: =L24-1 -> 2018 | M25: =IFERROR(INDEX(Simulation_Tab[Vermögen],MATCH($L25,Simulation_Tab[Suchjahr],0),1)- IFERROR(INDEX(Simulation_Tab[Vermögen],MATCH($L25-1,Simulation_Tab[Suchjahr],0),1), Startvermögen),0) -> 0 | N25: =IFERROR(SUMIF(Simulation_Tab[Suchjahr],$L25,Simulation_Tab[Vermögen]),0) -> 0 | P25: =$B$5-9 -> 2011 | Q25: =VLOOKUP(P25,$L$24:$N$33,2,FALSE) -> 0 | R25: =VLOOKUP(P25,$L$24:$N$33,3,FALSE) -> 0
B26: - Kinder | D26: =-C12 -> 0 | G26: Vss. Konsum bei Renteneintritt | I26: =(INDEX(Simulation_Tab[Konsumausgaben p.M.],MATCH($B$5-1+$D$5,Simulation_Tab[Suchjahr],0),1)+INDEX(Simulation_Tab[Ausgaben Kinder],MATCH($B$5-1+$D$5,Simulation_Tab[Suchjahr],0),1))*12 -> 102167.6366 | L26: =L25-1 -> 2017 | M26: =IFERROR(INDEX(Simulation_Tab[Vermögen],MATCH($L26,Simulation_Tab[Suchjahr],0),1)- IFERROR(INDEX(Simulation_Tab[Vermögen],MATCH($L26-1,Simulation_Tab[Suchjahr],0),1), Startvermögen),0) -> 0 | N26: =IFERROR(SUMIF(Simulation_Tab[Suchjahr],$L26,Simulation_Tab[Vermögen]),0) -> 0 | P26: =$B$5-8 -> 2012 | Q26: 0 | R26: 0
B27: Cashflow aus Lebensunterhalt | D27: =SUM(D24:D26) -> 0 | G27: Vss. Rentenlücke/ Überschuss | I27: =$I$25+$D$32+$Q$11*Entnahmerate-$I$26 -> -54317.13006 | L27: =L26-1 -> 2016 | M27: =IFERROR(INDEX(Simulation_Tab[Vermögen],MATCH($L27,Simulation_Tab[Suchjahr],0),1)- IFERROR(INDEX(Simulation_Tab[Vermögen],MATCH($L27-1,Simulation_Tab[Suchjahr],0),1), Startvermögen),0) -> 0 | N27: =IFERROR(SUMIF(Simulation_Tab[Suchjahr],$L27,Simulation_Tab[Vermögen]),0) -> 0 | P27: =$B$5-7 -> 2013 | Q27: 0 | R27: 0
B28: + Miete | D28: =H14 -> 0 | G28: akt. Differenz zu fin. Freiheit | I28: =(+$D$32+$Q$11*Entnahmerate-$C$11-$C$12) -> 0 | L28: 2015 | M28: =IFERROR(INDEX(Simulation_Tab[Vermögen],MATCH($L28,Simulation_Tab[Suchjahr],0),1)- IFERROR(INDEX(Simulation_Tab[Vermögen],MATCH($L28-1,Simulation_Tab[Suchjahr],0),1), Startvermögen),0) -> 0 | N28: =IFERROR(SUMIF(Simulation_Tab[Suchjahr],$L28,Simulation_Tab[Vermögen]),0) -> 0 | P28: =$B$5-6 -> 2014 | Q28: 0 | R28: 0
B29: - Tilgung | D29: =-C14 -> 0 | L29: 2014 | M29: =IFERROR(INDEX(Simulation_Tab[Vermögen],MATCH($L29,Simulation_Tab[Suchjahr],0),1)- IFERROR(INDEX(Simulation_Tab[Vermögen],MATCH($L29-1,Simulation_Tab[Suchjahr],0),1), Startvermögen),0) -> 0 | N29: =IFERROR(SUMIF(Simulation_Tab[Suchjahr],$L29,Simulation_Tab[Vermögen]),0) -> 0 | P29: =$B$5-5 -> 2015 | Q29: 0 | R29: 0
B30: - Zinsen | D30: =-C15 -> 0 | G30: ="Geplante Investments "&B5 -> Geplante Investments 2020 | L30: 2013 | M30: =IFERROR(INDEX(Simulation_Tab[Vermögen],MATCH($L30,Simulation_Tab[Suchjahr],0),1)- IFERROR(INDEX(Simulation_Tab[Vermögen],MATCH($L30-1,Simulation_Tab[Suchjahr],0),1), Startvermögen),0) -> 0 | N30: =IFERROR(SUMIF(Simulation_Tab[Suchjahr],$L30,Simulation_Tab[Vermögen]),0) -> 0 | P30: =$B$5-4 -> 2016 | Q30: 0 | R30: 0
B31: - n.u. Kosten | D31: =-C16 -> 0 | G31: Cash verfügbar | I31: =IF(B5=YEAR(NOW()),Startvermögen,L5) -> 5400 | L31: 2012 | M31: =IFERROR(INDEX(Simulation_Tab[Vermögen],MATCH($L31,Simulation_Tab[Suchjahr],0),1)- IFERROR(INDEX(Simulation_Tab[Vermögen],MATCH($L31-1,Simulation_Tab[Suchjahr],0),1), Startvermögen),0) -> 0 | N31: =IFERROR(SUMIF(Simulation_Tab[Suchjahr],$L31,Simulation_Tab[Vermögen]),0) -> 0 | P31: =$B$5-3 -> 2017 | Q31: 0 | R31: 0
B32: Cashflow aus Immobilien | D32: =SUM(D28:D31) -> 0 | G32: ETFs | I32: =SUM(ETF!L9:L13)*-1 -> 0 | L32: 2011 | M32: =IFERROR(INDEX(Simulation_Tab[Vermögen],MATCH($L32,Simulation_Tab[Suchjahr],0),1)- IFERROR(INDEX(Simulation_Tab[Vermögen],MATCH($L32-1,Simulation_Tab[Suchjahr],0),1), Startvermögen),0) -> 0 | N32: =IFERROR(SUMIF(Simulation_Tab[Suchjahr],$L32,Simulation_Tab[Vermögen]),0) -> 0 | P32: =$B$5-2 -> 2018 | Q32: 0 | R32: 0
B33: - ETF Invest/ + ETF Verkauf | D33: =SUMIF(Simulation_Tab[Datum],$B$5-1,Simulation_Tab[ETF Investment])*-1 -> 0 | G33: Immobilien | I33: =SUMIF(Immobilien!E34:I34,"TRUE",Immobilien!E15:I15)*-1 -> 0 | L33: 2010 | M33: =IFERROR(INDEX(Simulation_Tab[Vermögen],MATCH($L33,Simulation_Tab[Suchjahr],0),1)- IFERROR(INDEX(Simulation_Tab[Vermögen],MATCH($L33-1,Simulation_Tab[Suchjahr],0),1), Startvermögen),0) -> 0 | N33: =IFERROR(SUMIF(Simulation_Tab[Suchjahr],$L33,Simulation_Tab[Vermögen]),0) -> 0 | P33: =$B$5-1 -> 2019 | Q33: 0 | R33: 0
B34: - Immo ink NK | D34: =SUMIF(Simulation_Tab[Datum],$B$5-1,Simulation_Tab[Immo_EK_Kauf])*-1+SUMIF(Simulation_Tab[Datum],$B$5-1,Simulation_Tab[Kaufnebenkosten_EK])*-1 -> 0 | G34: Cash übrig | I34: =I31+I32+I33 -> 5400
B35: Cashflow aus Investitionen | D35: =SUM(D33:D34) -> 0
B36: ="Cashflow in "&D23 -> Cashflow in 2019 | D36: =D27+D32+D35 -> 0
B38: Cashflow Entwicklung | L38: Lücke zur finanziellen Freiheit | V38: Finanzielle Freiheit
L40: Nettolohn | M40: =D24 -> 0 | Q40: Konsum | R40: =SUM(D25:D26) -> 0
B41: Cashflow Lebensunterhalt | C41: =D27 -> 0 | L41: Konsum | M41: =D25+D26 -> 0 | Q41: Cashflow Immobilien | R41: =D32 -> 0
B42: Cashflow Immobilien | C42: =D32 -> 0 | L42: Cashflow aus Immobilien | M42: =D32 -> 0 | Q42: pot. Cash aus ETFs | R42: =Q11*Entnahmerate -> 0
B43: Cashflow Investitionen | C43: =D35 -> 0 | L43: Cashflow aus Investitionen | M43: =D35 -> 0 | Q43: Lücke zu fin. Freiheit | R43: =SUM(R40:R42) -> 0
B44: ="Cashflow "&$D$23 -> Cashflow 2019 | C44: =D36 -> 0 | M44: =SUM(M40:M43) -> 0

Sheet ETF
D1: ETFs
B3: Aktuelles Jahr | C3: Alter | D3: =IF(D5>0,"Jahre bis Rente","Jahre in Rente") -> Jahre bis Rente | E3: Einnahmen | F3: Konsum | G3: Cashflow | H3: Cash Bestand | I3: Investments neu | J3: Bilanzsumme | K3: Vermögen | L3: Cash verfügbar | M3: 2020 | N3: 2020
B5: 2020 | C5: =Alter+B5-YEAR(NOW()) -> 28 | D5: =ABS(Renteneintritt-C5) -> 39 | E5: =SUMIF(Simulation_Tab[Datum],Parameter!$B$5-1,Simulation_Tab[Einnahmen Summe]) -> 0 | F5: =SUMIF(Simulation_Tab[Datum],Parameter!$B$5-1,Simulation_Tab[Ausgaben Summe]) -> 0 | G5: =SUMIF(Simulation_Tab[Datum],Parameter!$B$5-1,Simulation_Tab[[freier Cashflow ]]) -> 0 | H5: =IFERROR(INDEX(Simulation_Tab[Cash],MATCH($B$5-1,Simulation_Tab[Suchjahr],0),1),0) -> 0 | I5: =SUM(Start!$D$33:$D$34) -> 0 | J5: =Start!$M$16 -> 0 | K5: =SUM(Start!$Q$11:$Q$13) -> 0 | L5: =Start!$I$34 -> 5400
C8: Charakteristika | E8: CAGR | F8: Volatilität | G8: Stück Portfolio | H8: akt. Preis | I8: Perf. 1 Jahr | J8: Portfolio Wert | K8: Portf. Perf. total | L8: Kauf/Verkauf* | M8: Ausschüttung** | N8: Anzeige
A9: TRUE | B9: ETF1 | C9: 100 umsatzstärkste Aktien der USA mit Fokus auf Technologiesektor | E9: 0.21 | F9: 0.19 | G9: =SUMIF(Table5[Datumjahr],"<"&ETF!$B$5,Table5[ETF 1]) -> 0 | H9: =IFERROR(INDEX(Table5[ETF1 Kurs],MATCH(($B$5-Parameter!$U$5)*12,Table5[Monat],0),1),100) -> 100 | I9: =IFERROR(H9/INDEX(Table5[ETF1 Kurs],MATCH(($B$5-Parameter!$U$5-1)*12,Table5[Monat],0),1)-1,0) -> 0 | J9: =IFERROR(INDEX(Table5[ETF1 Wert],MATCH(($B$5-YEAR(NOW()))*12,Table5[Monat],0),1),0) -> 0 | K9: =IFERROR(INDEX(Table5[ETF1 Kurs],MATCH(($B$5-Parameter!$U$5+1)*12,Table5[Monat],0),1)/INDEX(Table5[Einstandspreis_ETF1],MATCH(($B$5-Parameter!$U$5+1)*12,Table5[Monat],0),1)-1,0) -> 0 | L9: 0 | M9: =IF(L9<0,L9/J9*-1,0) -> 0 | R9: Nasdaq 100 | S9: https://www.onvista.de/etf/INVESCO-MARKETS-III-PLC-EQQQ-NASDAQ-100-UCITS-ETF-USD-DIS-Fonds-IE0032077012
A10: TRUE | B10: ETF2 | C10: 1600 größte Unternehmen in allen Industrienationen | E10: 0.11 | F10: 0.15 | G10: =SUMIF(Table5[Datumjahr],"<"&ETF!$B$5,Table5[ETF2]) -> 0 | H10: =IFERROR(INDEX(Table5[ETF2 Kurs],MATCH(($B$5-Parameter!$U$5)*12,Table5[Monat],0),1),100) -> 100 | I10: =IFERROR(H10/INDEX(Table5[ETF2 Kurs],MATCH(($B$5-Parameter!$U$5-1)*12,Table5[Monat],0),1)-1,0) -> 0 | J10: =IFERROR(INDEX(Table5[ETF2 Wert],MATCH(($B$5-YEAR(NOW()))*12,Table5[Monat],0),1),0) -> 0 | K10: =IFERROR(INDEX(Table5[ETF2 Kurs],MATCH(($B$5-Parameter!$U$5+1)*12,Table5[Monat],0),1)/INDEX(Table5[Einstandspreis_ETF2],MATCH(($B$5-Parameter!$U$5+1)*12,Table5[Monat],0),1)-1,0) -> 0 | L10: 0 | M10: =IF(L10<0,L10/J10*-1,0) -> 0 | R10: MSCI World | S10: https://www.onvista.de/etf/ISHARES-CORE-MSCI-WORLD-UCITS-ETF-USD-ACC-Fonds-IE00B4L5Y983
A11: TRUE | B11: ETF3 | C11: 30 größte Unternehmen in DE mit Fokus auf den Automobilsektor | E11: 0.07 | F11: 0.2 | G11: =SUMIF(Table5[Datumjahr],"<"&ETF!$B$5,Table5[ETF3]) -> 0 | H11: =IFERROR(INDEX(Table5[ETF3 Kurs],MATCH(($B$5-Parameter!$U$5)*12,Table5[Monat],0),1),100) -> 100 | I11: =IFERROR(H11/INDEX(Table5[ETF3 Kurs],MATCH(($B$5-Parameter!$U$5-1)*12,Table5[Monat],0),1)-1,0) -> 0 | J11: =IFERROR(INDEX(Table5[ETF3 Wert],MATCH(($B$5-YEAR(NOW()))*12,Table5[Monat],0),1),0) -> 0 | K11: =IFERROR(INDEX(Table5[ETF3 Kurs],MATCH(($B$5-Parameter!$U$5+1)*12,Table5[Monat],0),1)/INDEX(Table5[Einstandspreis_ETF3],MATCH(($B$5-Parameter!$U$5+1)*12,Table5[Monat],0),1)-1,0) -> 0 | L11: 0 | M11: 0 | R11: DAX | S11: https://www.onvista.de/etf/COMSTAGE-DAX-UCITS-ETF-I-EUR-DIS-Fonds-LU0378438732
A12: TRUE | B12: ETF4 | C12: 1400 Aktien aus Schwellenländern mit Fokus auf China und Südkorea | E12: 0.04 | F12: 0.16 | G12: =SUMIF(Table5[Datumjahr],"<"&ETF!$B$5,Table5[ETF4]) -> 0 | H12: =IFERROR(INDEX(Table5[ETF4 Kurs],MATCH(($B$5-Parameter!$U$5)*12,Table5[Monat],0),1),100) -> 100 | I12: =IFERROR(H12/INDEX(Table5[ETF4 Kurs],MATCH(($B$5-Parameter!$U$5-1)*12,Table5[Monat],0),1)-1,0) -> 0 | J12: =IFERROR(INDEX(Table5[ETF4 Wert],MATCH(($B$5-YEAR(NOW()))*12,Table5[Monat],0),1),0) -> 0 | K12: =IFERROR(INDEX(Table5[ETF4 Kurs],MATCH(($B$5-Parameter!$U$5+1)*12,Table5[Monat],0),1)/INDEX(Table5[Einstandspreis_ETF4],MATCH(($B$5-Parameter!$U$5+1)*12,Table5[Monat],0),1)-1,0) -> 0 | L12: 0 | M12: 0 | R12: MSCI World EM | S12: https://www.onvista.de/etf/ISHARES-MSCI-EMERGING-MARKETS-UCITS-ETF-USD-DIS-Fonds-IE00B0M63177
A13: TRUE | B13: ETF5 | C13: 600 größte Unternehmen Europas mit Fokus auf UK und Schweiz | E13: 0.07 | F13: 0.17 | G13: =SUMIF(Table5[Datumjahr],"<"&ETF!$B$5,Table5[ETF5]) -> 0 | H13: =IFERROR(INDEX(Table5[ETF5 Kurs],MATCH(($B$5-Parameter!$U$5)*12,Table5[Monat],0),1),100) -> 100 | I13: =IFERROR(H13/INDEX(Table5[ETF5 Kurs],MATCH(($B$5-Parameter!$U$5-1)*12,Table5[Monat],0),1)-1,0) -> 0 | J13: =IFERROR(INDEX(Table5[ETF5 Wert],MATCH(($B$5-YEAR(NOW()))*12,Table5[Monat],0),1),0) -> 0 | K13: =IFERROR(INDEX(Table5[ETF5 Kurs],MATCH(($B$5-Parameter!$U$5+1)*12,Table5[Monat],0),1)/INDEX(Table5[Einstandspreis_ETF5],MATCH(($B$5-Parameter!$U$5+1)*12,Table5[Monat],0),1)-1,0) -> 0 | L13: 0 | M13: 0 | R13: 600 Eurostoxx | S13: https://www.onvista.de/etf/ISHARES-STOXX-EUROPE-600-DE-UCITS-ETF-EUR-DIS-Fonds-DE0002635307
B15: Performance Index ETFs | H15: Portfolioentwicklung
B32: * Betrag verteilt über das kommenden Jahr
B33: **konstante Entnahmerate verteilt über das kommende Jahr in % der Gesamtposition

Sheet Immobilien
D1: Immobilien
B3: Aktuelles Jahr | C3: Alter | D3: =IF(D5>0,"Jahre bis Rente","Jahre in Rente") -> Jahre bis Rente | G3: Einnahmen | H3: Konsum | I3: Cashflow | L3: Cash Bestand | M3: Investments neu | N3: Bilanzsumme | O3: Vermögen | P3: Cash verfügbar | R3: 2020 | S3: 2020
B5: 2020 | C5: =Alter+B5-YEAR(NOW()) -> 28 | D5: =ABS(Renteneintritt-C5) -> 39 | G5: =SUMIF(Simulation_Tab[Datum],Parameter!$B$5-1,Simulation_Tab[Einnahmen Summe]) -> 0 | H5: =SUMIF(Simulation_Tab[Datum],Parameter!$B$5-1,Simulation_Tab[Ausgaben Summe]) -> 0 | I5: =SUMIF(Simulation_Tab[Datum],Parameter!$B$5-1,Simulation_Tab[[freier Cashflow ]]) -> 0 | L5: =IFERROR(INDEX(Simulation_Tab[Cash],MATCH($B$5-1,Simulation_Tab[Suchjahr],0),1),0) -> 0 | M5: =SUM(Start!$D$33:$D$34) -> 0 | N5: =Start!$M$16 -> 0 | O5: =SUM(Start!$Q$11:$Q$13) -> 0 | P5: =Start!$I$34 -> 5400
B8: Expose | G8: Alternative 1 | H8: Alternative 2 | I8: Alternative 3 | L8: Immobilien Bestand
B9: Größe in m2 | G9: =Immo_gen!D3 -> 142 | H9: =Immo_gen!E3 -> 48 | I9: =Immo_gen!F3 -> 144
B10: Preis | G10: =Immo_gen!D4 -> 486000 | H10: =Immo_gen!E4 -> 189000 | I10: =Immo_gen!F4 -> 554000
B11: Lage | G11: =Immo_gen!D5 -> B | H11: =Immo_gen!E5 -> A | I11: =Immo_gen!F5 -> A
B12: Kaufnebenkosten | G12: =Immo_gen!D6 -> 82620 | H12: =Immo_gen!E6 -> 20790 | I12: =Immo_gen!F6 -> 77560
B14: Finanzierung
B15: Eigenkapital | G15: =Immo_gen!D9 -> 126360 | H15: =Immo_gen!E9 -> 22680 | I15: =Immo_gen!F9 -> 155120
B16: Fremdkapital | G16: =Immo_gen!D10 -> 442260 | H16: =Immo_gen!E10 -> 187110 | I16: =Immo_gen!F10 -> 476440
B17: Zinsen p.a. | G17: =Immo_gen!D11 -> 0.0101 | H17: =Immo_gen!E11 -> 0.0107 | I17: =Immo_gen!F11 -> 0.017
B18: Tilgung p.a. | G18: =Immo_gen!D12 -> 0.0344 | H18: =Immo_gen!E12 -> 0.031 | I18: =Immo_gen!F12 -> 0.0304
B19: Annuität p.a. | G19: =Immo_gen!D13 -> 19680.57 | H19: =Immo_gen!E13 -> 7802.487 | I19: =Immo_gen!F13 -> 22583.256
B20: Annuität p.M. | G20: =Immo_gen!D14 -> 1640.0475 | H20: =Immo_gen!E14 -> 650.20725 | I20: =Immo_gen!F14 -> 1881.938
B22: Wirtschaftlichkeit p.M. | L22: Wert und Vermögensentwicklung
B23: Kaltmiete | G23: =Immo_gen!D17 -> 1121.635339 | H23: =Immo_gen!E17 -> 774.4002571 | I23: =Immo_gen!F17 -> 1242.989544
B24: Nicht umlagefähige Kosten | G24: =Immo_gen!D18 -> 112.1635339 | H24: =Immo_gen!E18 -> 46.46401543 | I24: =Immo_gen!F18 -> 111.869059
B25: Instandhaltung (10% Miete) | G25: =Immo_gen!D19 -> 112.1635339 | H25: =Immo_gen!E19 -> 77.44002571 | I25: =Immo_gen!F19 -> 124.2989544
B26: Cashflow p.a. | G26: =Immo_gen!D20 -> -742.7392291 | H26: =Immo_gen!E20 -> 0.2889659888 | I26: =Immo_gen!F20 -> -875.1164693
B28: Hilfe
B29: Miete je m2 | G29: =Immo_gen!D23 -> 7.898840412 | H29: =Immo_gen!E23 -> 16.13333869 | I29: =Immo_gen!F23 -> 8.631871834
B30: Kaufpreis je m2 | G30: =Immo_gen!D24 -> 3422.535211 | H30: =Immo_gen!E24 -> 3937.5 | I30: =Immo_gen!F24 -> 3847.222222
B31: Bruttomietrendite | G31: =Immo_gen!D25 -> 0.02769469972 | H31: =Immo_gen!E25 -> 0.04916827029 | I31: =Immo_gen!F25 -> 0.02692396124
B32: Nettomietrendite | G32: =Immo_gen!D26 -> 0.01893654682 | H32: =Immo_gen!E26 -> 0.03720842076 | I32: =Immo_gen!F26 -> 0.01913018299
B33: Kaufentscheidung
G34: FALSE | H34: FALSE | I34: FALSE

Sheet Simulation (hidden)
D1: GuV aus Lebensstil | J1: ETF | M1: Immo | V1: Übersicht
A2: Suchjahr | B2: Datum | C2: Jahr | D2: Monat | E2: Beruf/Rente | F2: Konsumausgaben p.M. | G2: Ausgaben Kinder | H2: Nettolohn | I2: gesetzliche Rente | J2: ETF Investment | K2: ETF-Wert | L2: ETF_VK_Gewinn | M2: Immo Invest | N2: Immo Wert | O2: Immo_EK_Kauf | P2: Kaufnebenkosten_EK | Q2: Immo_FK_Bestand | R2: Immo_EK_Bestand | S2: Zinsen | T2: Tilgung | U2: n.u. Kosten | V2: Miete | W2: Einnahmen Summe | X2: Ausgaben Summe | Y2: freier Cashflow | Z2: Investitionen inkl Nk | AA2: Cashflow | AB2: Cash | AC2: Vermögen
A3: =IF(Simulation_Tab[[#This Row],[Datum]]<>B4,Simulation_Tab[[#This Row],[Datum]],"") ->  | B3: =Parameter!$U$5+Simulation_Tab[[#This Row],[Jahr]]-1 -> 2020 | C3: =IFERROR(ROUNDDOWN((D3-1)/12,0)+1,"") -> 1 | D3: 1 | E3: =IF((Parameter!$D$10-Parameter!$D$9)>Simulation_Tab[[#This Row],[Jahr]],"B","R") -> B | F3: =IF(Simulation_Tab[[#This Row],[Beruf/Rente]]="B",(Parameter!$D$14/12)*(1+Parameter!$D$15)^(Simulation_Tab[[#This Row],[Jahr]]-1),(Parameter!$D$14*Konsum_Rente/12)*(1+Parameter!$D$15)^(Simulation_Tab[[#This Row],[Jahr]]-1)) -> 1666.666667 | G3: =Konsum_Kids!L2 -> 0 | H3: =IF(Renteneintritt-Alter>Simulation_Tab[[#This Row],[Jahr]],Parameter!$D$21/12*(1+Parameter!$D$22)^(Simulation_Tab[[#This Row],[Jahr]]-1),0) -> 2500 | I3: =IF(Simulation_Tab[[#This Row],[Beruf/Rente]]="R",INDEX(Renten_Tab[Rentenwert],MATCH(Simulation_Tab[[#This Row],[Datum]],Renten_Tab[Suchjahr],0),1)*Rentenpunkte*Zugangsfaktor,0) -> 0 | J3: =SUM(ETF_blind!AB2:AF2) -> 0 | K3: =ETF_blind!U2 -> 0 | L3: =IFERROR(ETF_blind!AV2,0) -> 0 | M3: =IFERROR(INDEX(Table6[Kaufpreis inkl NK],MATCH(Simulation_Tab[[#This Row],[Suchjahr]],Table6[Jahr],0),1),0) -> 0 | N3: =IFERROR(INDEX(Table6[Wert_Bestand],MATCH(Simulation_Tab[[#This Row],[Suchjahr]],Table6[Jahr],0),1),0) -> 0 | O3: =IFERROR(INDEX(Table6[EK_sum],MATCH(Simulation_Tab[[#This Row],[Suchjahr]],Table6[Jahr],0),1)-INDEX(Table6[Kaufnebenkosten],MATCH(Simulation_Tab[[#This Row],[Suchjahr]],Table6[Jahr],0),1),0) -> 0 | P3: =IFERROR(INDEX(Table6[Kaufnebenkosten],MATCH(Simulation_Tab[[#This Row],[Suchjahr]],Table6[Jahr],0),1),0) -> 0 | Q3: =IFERROR(INDEX(Table6[FK_Bestand],MATCH(Simulation_Tab[[#This Row],[Suchjahr]],Table6[Jahr],0),1),0) -> 0 | R3: =IFERROR(INDEX(Table6[EK_Bestand],MATCH(Simulation_Tab[[#This Row],[Suchjahr]],Table6[Jahr],0),1),0) -> 0 | S3: =INDEX(Table68[Zinsen_Bestand],MATCH(Simulation_Tab[[#This Row],[Datum]],Table68[Jahr],0),1)/12 -> 0 | T3: =INDEX(Table68[Tilgung_Bestand],MATCH(Simulation_Tab[[#This Row],[Datum]],Table68[Jahr],0),1)/12 -> 0 | U3: =INDEX(Table6[Kosten_Bestand],MATCH(Simulation_Tab[[#This Row],[Datum]],Table6[Jahr],0),1)/12 -> 0 | V3: =INDEX(Table6[Miete_Bestand],MATCH(Simulation_Tab[[#This Row],[Datum]],Table6[Jahr],0),1)/12 -> 0 | W3: =Simulation_Tab[[#This Row],[Nettolohn]]+Simulation_Tab[[#This Row],[gesetzliche Rente]]+Simulation_Tab[[#This Row],[Miete]]+IF(Simulation_Tab[[#This Row],[ETF_VK_Gewinn]]>0,Simulation_Tab[[#This Row],[ETF_VK_Gewinn]],0) -> 2500 | X3: =_xlfn.AGGREGATE(9,6,Simulation_Tab[[#This Row],[Konsumausgaben p.M.]]:Simulation_Tab[[#This Row],[Ausgaben Kinder]],Simulation_Tab[[#This Row],[Zinsen]:[n.u. Kosten]])+IF(Simulation_Tab[[#This Row],[ETF_VK_Gewinn]]<0,Simulation_Tab[[#This Row],[ETF_VK_Gewinn]],0)*-1 -> 1666.666667 | Y3: =Simulation_Tab[[#This Row],[Einnahmen Summe]]-Simulation_Tab[[#This Row],[Ausgaben Summe]] -> 833.3333333 | Z3: =_xlfn.AGGREGATE(9,6,Simulation_Tab[[#This Row],[Immo_EK_Kauf]],Simulation_Tab[[#This Row],[Kaufnebenkosten_EK]],Simulation_Tab[[#This Row],[ETF Investment]]) -> 0 | AA3: =Simulation_Tab[[#This Row],[freier Cashflow ]]-Simulation_Tab[[#This Row],[Investitionen inkl Nk]] -> 833.3333333 | AB3: =Startvermögen+Simulation_Tab[[#This Row],[Cashflow]] -> 6233.333333 | AC3: =Simulation_Tab[[#This Row],[Cash]]+Simulation_Tab[[#This Row],[Immo_EK_Bestand]]+Simulation_Tab[[#This Row],[ETF-Wert]] -> 6233.333333
A4: =IF(Simulation_Tab[[#This Row],[Datum]]<>B5,Simulation_Tab[[#This Row],[Datum]],"") ->  | B4: =Parameter!$U$5+Simulation_Tab[[#This Row],[Jahr]]-1 -> 2020 | C4: 1 | D4: =D3+1 -> 2 | E4: =IF((Parameter!$D$10-Parameter!$D$9)>Simulation_Tab[[#This Row],[Jahr]],"B","R") -> B | F4: =IF(Simulation_Tab[[#This Row],[Beruf/Rente]]="B",(Parameter!$D$14/12)*(1+Parameter!$D$15)^(Simulation_Tab[[#This Row],[Jahr]]-1),(Parameter!$D$14*Konsum_Rente/12)*(1+Parameter!$D$15)^(Simulation_Tab[[#This Row],[Jahr]]-1)) -> 1666.666667 | G4: =Konsum_Kids!L3 -> 0 | H4: =IF(Renteneintritt-Alter>Simulation_Tab[[#This Row],[Jahr]],Parameter!$D$21/12*(1+Parameter!$D$22)^(Simulation_Tab[[#This Row],[Jahr]]-1),0) -> 2500 | I4: =IF(Simulation_Tab[[#This Row],[Beruf/Rente]]="R",INDEX(Renten_Tab[Rentenwert],MATCH(Simulation_Tab[[#This Row],[Datum]],Renten_Tab[Suchjahr],0),1)*Rentenpunkte*Zugangsfaktor,0) -> 0 | J4: =SUM(ETF_blind!AB3:AF3) -> 0 | K4: =ETF_blind!U3 -> 0 | L4: =IFERROR(ETF_blind!AV3,0) -> 0 | M4: =IFERROR(INDEX(Table6[Kaufpreis inkl NK],MATCH(Simulation_Tab[[#This Row],[Suchjahr]],Table6[Jahr],0),1),0) -> 0 | N4: =IFERROR(INDEX(Table6[Wert_Bestand],MATCH(Simulation_Tab[[#This Row],[Suchjahr]],Table6[Jahr],0),1),0) -> 0 | O4: =IFERROR(INDEX(Table6[EK_sum],MATCH(Simulation_Tab[[#This Row],[Suchjahr]],Table6[Jahr],0),1)-INDEX(Table6[Kaufnebenkosten],MATCH(Simulation_Tab[[#This Row],[Suchjahr]],Table6[Jahr],0),1),0) -> 0 | P4: =IFERROR(INDEX(Table6[Kaufnebenkosten],MATCH(Simulation_Tab[[#This Row],[Suchjahr]],Table6[Jahr],0),1),0) -> 0 | Q4: =IFERROR(INDEX(Table6[FK_Bestand],MATCH(Simulation_Tab[[#This Row],[Suchjahr]],Table6[Jahr],0),1),0) -> 0 | R4: =IFERROR(INDEX(Table6[EK_Bestand],MATCH(Simulation_Tab[[#This Row],[Suchjahr]],Table6[Jahr],0),1),0) -> 0 | S4: =INDEX(Table68[Zinsen_Bestand],MATCH(Simulation_Tab[[#This Row],[Datum]],Table68[Jahr],0),1)/12 -> 0 | T4: =INDEX(Table68[Tilgung_Bestand],MATCH(Simulation_Tab[[#This Row],[Datum]],Table68[Jahr],0),1)/12 -> 0 | U4: =INDEX(Table6[Kosten_Bestand],MATCH(Simulation_Tab[[#This Row],[Datum]],Table6[Jahr],0),1)/12 -> 0 | V4: =INDEX(Table6[Miete_Bestand],MATCH(Simulation_Tab[[#This Row],[Datum]],Table6[Jahr],0),1)/12 -> 0 | W4: =Simulation_Tab[[#This Row],[Nettolohn]]+Simulation_Tab[[#This Row],[gesetzliche Rente]]+Simulation_Tab[[#This Row],[Miete]]+IF(Simulation_Tab[[#This Row],[ETF_VK_Gewinn]]>0,Simulation_Tab[[#This Row],[ETF_VK_Gewinn]],0) -> 2500 | X4: =_xlfn.AGGREGATE(9,6,Simulation_Tab[[#This Row],[Konsumausgaben p.M.]]:Simulation_Tab[[#This Row],[Ausgaben Kinder]],Simulation_Tab[[#This Row],[Zinsen]:[n.u. Kosten]])+IF(Simulation_Tab[[#This Row],[ETF_VK_Gewinn]]<0,Simulation_Tab[[#This Row],[ETF_VK_Gewinn]],0)*-1 -> 1666.666667 | Y4: =Simulation_Tab[[#This Row],[Einnahmen Summe]]-Simulation_Tab[[#This Row],[Ausgaben Summe]] -> 833.3333333 | Z4: =_xlfn.AGGREGATE(9,6,Simulation_Tab[[#This Row],[Immo_EK_Kauf]],Simulation_Tab[[#This Row],[Kaufnebenkosten_EK]],Simulation_Tab[[#This Row],[ETF Investment]]) -> 0 | AA4: =Simulation_Tab[[#This Row],[freier Cashflow ]]-Simulation_Tab[[#This Row],[Investitionen inkl Nk]] -> 833.3333333 | AB4: =AB3+Simulation_Tab[[#This Row],[Cashflow]] -> 7066.666667 | AC4: =Simulation_Tab[[#This Row],[Cash]]+Simulation_Tab[[#This Row],[Immo_EK_Bestand]]+Simulation_Tab[[#This Row],[ETF-Wert]] -> 7066.666667
A5: =IF(Simulation_Tab[[#This Row],[Datum]]<>B6,Simulation_Tab[[#This Row],[Datum]],"") ->  | B5: =Parameter!$U$5+Simulation_Tab[[#This Row],[Jahr]]-1 -> 2020 | C5: 1 | D5: =D4+1 -> 3 | E5: =IF((Parameter!$D$10-Parameter!$D$9)>Simulation_Tab[[#This Row],[Jahr]],"B","R") -> B | F5: =IF(Simulation_Tab[[#This Row],[Beruf/Rente]]="B",(Parameter!$D$14/12)*(1+Parameter!$D$15)^(Simulation_Tab[[#This Row],[Jahr]]-1),(Parameter!$D$14*Konsum_Rente/12)*(1+Parameter!$D$15)^(Simulation_Tab[[#This Row],[Jahr]]-1)) -> 1666.666667 | G5: =Konsum_Kids!L4 -> 0 | H5: =IF(Renteneintritt-Alter>Simulation_Tab[[#This Row],[Jahr]],Parameter!$D$21/12*(1+Parameter!$D$22)^(Simulation_Tab[[#This Row],[Jahr]]-1),0) -> 2500 | I5: =IF(Simulation_Tab[[#This Row],[Beruf/Rente]]="R",INDEX(Renten_Tab[Rentenwert],MATCH(Simulation_Tab[[#This Row],[Datum]],Renten_Tab[Suchjahr],0),1)*Rentenpunkte*Zugangsfaktor,0) -> 0 | J5: =SUM(ETF_blind!AB4:AF4) -> 0 | K5: =ETF_blind!U4 -> 0 | L5: =IFERROR(ETF_blind!AV4,0) -> 0 | M5: =IFERROR(INDEX(Table6[Kaufpreis inkl NK],MATCH(Simulation_Tab[[#This Row],[Suchjahr]],Table6[Jahr],0),1),0) -> 0 | N5: =IFERROR(INDEX(Table6[Wert_Bestand],MATCH(Simulation_Tab[[#This Row],[Suchjahr]],Table6[Jahr],0),1),0) -> 0 | O5: =IFERROR(INDEX(Table6[EK_sum],MATCH(Simulation_Tab[[#This Row],[Suchjahr]],Table6[Jahr],0),1)-INDEX(Table6[Kaufnebenkosten],MATCH(Simulation_Tab[[#This Row],[Suchjahr]],Table6[Jahr],0),1),0) -> 0 | P5: =IFERROR(INDEX(Table6[Kaufnebenkosten],MATCH(Simulation_Tab[[#This Row],[Suchjahr]],Table6[Jahr],0),1),0) -> 0 | Q5: =IFERROR(INDEX(Table6[FK_Bestand],MATCH(Simulation_Tab[[#This Row],[Suchjahr]],Table6[Jahr],0),1),0) -> 0 | R5: =IFERROR(INDEX(Table6[EK_Bestand],MATCH(Simulation_Tab[[#This Row],[Suchjahr]],Table6[Jahr],0),1),0) -> 0 | S5: =INDEX(Table68[Zinsen_Bestand],MATCH(Simulation_Tab[[#This Row],[Datum]],Table68[Jahr],0),1)/12 -> 0 | T5: =INDEX(Table68[Tilgung_Bestand],MATCH(Simulation_Tab[[#This Row],[Datum]],Table68[Jahr],0),1)/12 -> 0 | U5: =INDEX(Table6[Kosten_Bestand],MATCH(Simulation_Tab[[#This Row],[Datum]],Table6[Jahr],0),1)/12 -> 0 | V5: =INDEX(Table6[Miete_Bestand],MATCH(Simulation_Tab[[#This Row],[Datum]],Table6[Jahr],0),1)/12 -> 0 | W5: =Simulation_Tab[[#This Row],[Nettolohn]]+Simulation_Tab[[#This Row],[gesetzliche Rente]]+Simulation_Tab[[#This Row],[Miete]]+IF(Simulation_Tab[[#This Row],[ETF_VK_Gewinn]]>0,Simulation_Tab[[#This Row],[ETF_VK_Gewinn]],0) -> 2500 | X5: =_xlfn.AGGREGATE(9,6,Simulation_Tab[[#This Row],[Konsumausgaben p.M.]]:Simulation_Tab[[#This Row],[Ausgaben Kinder]],Simulation_Tab[[#This Row],[Zinsen]:[n.u. Kosten]])+IF(Simulation_Tab[[#This Row],[ETF_VK_Gewinn]]<0,Simulation_Tab[[#This Row],[ETF_VK_Gewinn]],0)*-1 -> 1666.666667 | Y5: =Simulation_Tab[[#This Row],[Einnahmen Summe]]-Simulation_Tab[[#This Row],[Ausgaben Summe]] -> 833.3333333 | Z5: =_xlfn.AGGREGATE(9,6,Simulation_Tab[[#This Row],[Immo_EK_Kauf]],Simulation_Tab[[#This Row],[Kaufnebenkosten_EK]],Simulation_Tab[[#This Row],[ETF Investment]]) -> 0 | AA5: =Simulation_Tab[[#This Row],[freier Cashflow ]]-Simulation_Tab[[#This Row],[Investitionen inkl Nk]] -> 833.3333333 | AB5: =AB4+Simulation_Tab[[#This Row],[Cashflow]] -> 7900 | AC5: =Simulation_Tab[[#This Row],[Cash]]+Simulation_Tab[[#This Row],[Immo_EK_Bestand]]+Simulation_Tab[[#This Row],[ETF-Wert]] -> 7900
A6: =IF(Simulation_Tab[[#This Row],[Datum]]<>B7,Simulation_Tab[[#This Row],[Datum]],"") ->  | B6: =Parameter!$U$5+Simulation_Tab[[#This Row],[Jahr]]-1 -> 2020 | C6: 1 | D6: 4 | E6: =IF((Parameter!$D$10-Parameter!$D$9)>Simulation_Tab[[#This Row],[Jahr]],"B","R") -> B | F6: =IF(Simulation_Tab[[#This Row],[Beruf/Rente]]="B",(Parameter!$D$14/12)*(1+Parameter!$D$15)^(Simulation_Tab[[#This Row],[Jahr]]-1),(Parameter!$D$14*Konsum_Rente/12)*(1+Parameter!$D$15)^(Simulation_Tab[[#This Row],[Jahr]]-1)) -> 1666.666667 | G6: =Konsum_Kids!L5 -> 0 | H6: =IF(Renteneintritt-Alter>Simulation_Tab[[#This Row],[Jahr]],Parameter!$D$21/12*(1+Parameter!$D$22)^(Simulation_Tab[[#This Row],[Jahr]]-1),0) -> 2500 | I6: =IF(Simulation_Tab[[#This Row],[Beruf/Rente]]="R",INDEX(Renten_Tab[Rentenwert],MATCH(Simulation_Tab[[#This Row],[Datum]],Renten_Tab[Suchjahr],0),1)*Rentenpunkte*Zugangsfaktor,0) -> 0 | J6: =SUM(ETF_blind!AB5:AF5) -> 0 | K6: =ETF_blind!U5 -> 0 | L6: =IFERROR(ETF_blind!AV5,0) -> 0 | M6: =IFERROR(INDEX(Table6[Kaufpreis inkl NK],MATCH(Simulation_Tab[[#This Row],[Suchjahr]],Table6[Jahr],0),1),0) -> 0 | N6: =IFERROR(INDEX(Table6[Wert_Bestand],MATCH(Simulation_Tab[[#This Row],[Suchjahr]],Table6[Jahr],0),1),0) -> 0 | O6: =IFERROR(INDEX(Table6[EK_sum],MATCH(Simulation_Tab[[#This Row],[Suchjahr]],Table6[Jahr],0),1)-INDEX(Table6[Kaufnebenkosten],MATCH(Simulation_Tab[[#This Row],[Suchjahr]],Table6[Jahr],0),1),0) -> 0 | P6: =IFERROR(INDEX(Table6[Kaufnebenkosten],MATCH(Simulation_Tab[[#This Row],[Suchjahr]],Table6[Jahr],0),1),0) -> 0 | Q6: =IFERROR(INDEX(Table6[FK_Bestand],MATCH(Simulation_Tab[[#This Row],[Suchjahr]],Table6[Jahr],0),1),0) -> 0 | R6: =IFERROR(INDEX(Table6[EK_Bestand],MATCH(Simulation_Tab[[#This Row],[Suchjahr]],Table6[Jahr],0),1),0) -> 0 | S6: =INDEX(Table68[Zinsen_Bestand],MATCH(Simulation_Tab[[#This Row],[Datum]],Table68[Jahr],0),1)/12 -> 0 | T6: =INDEX(Table68[Tilgung_Bestand],MATCH(Simulation_Tab[[#This Row],[Datum]],Table68[Jahr],0),1)/12 -> 0 | U6: =INDEX(Table6[Kosten_Bestand],MATCH(Simulation_Tab[[#This Row],[Datum]],Table6[Jahr],0),1)/12 -> 0 | V6: =INDEX(Table6[Miete_Bestand],MATCH(Simulation_Tab[[#This Row],[Datum]],Table6[Jahr],0),1)/12 -> 0 | W6: =Simulation_Tab[[#This Row],[Nettolohn]]+Simulation_Tab[[#This Row],[gesetzliche Rente]]+Simulation_Tab[[#This Row],[Miete]]+IF(Simulation_Tab[[#This Row],[ETF_VK_Gewinn]]>0,Simulation_Tab[[#This Row],[ETF_VK_Gewinn]],0) -> 2500 | X6: =_xlfn.AGGREGATE(9,6,Simulation_Tab[[#This Row],[Konsumausgaben p.M.]]:Simulation_Tab[[#This Row],[Ausgaben Kinder]],Simulation_Tab[[#This Row],[Zinsen]:[n.u. Kosten]])+IF(Simulation_Tab[[#This Row],[ETF_VK_Gewinn]]<0,Simulation_Tab[[#This Row],[ETF_VK_Gewinn]],0)*-1 -> 1666.666667 | Y6: =Simulation_Tab[[#This Row],[Einnahmen Summe]]-Simulation_Tab[[#This Row],[Ausgaben Summe]] -> 833.3333333 | Z6: =_xlfn.AGGREGATE(9,6,Simulation_Tab[[#This Row],[Immo_EK_Kauf]],Simulation_Tab[[#This Row],[Kaufnebenkosten_EK]],Simulation_Tab[[#This Row],[ETF Investment]]) -> 0 | AA6: =Simulation_Tab[[#This Row],[freier Cashflow ]]-Simulation_Tab[[#This Row],[Investitionen inkl Nk]] -> 833.3333333 | AB6: =AB5+Simulation_Tab[[#This Row],[Cashflow]] -> 8733.333333 | AC6: =Simulation_Tab[[#This Row],[Cash]]+Simulation_Tab[[#This Row],[Immo_EK_Bestand]]+Simulation_Tab[[#This Row],[ETF-Wert]] -> 8733.333333
A7: =IF(Simulation_Tab[[#This Row],[Datum]]<>B8,Simulation_Tab[[#This Row],[Datum]],"") ->  | B7: =Parameter!$U$5+Simulation_Tab[[#This Row],[Jahr]]-1 -> 2020 | C7: 1 | D7: 5 | E7: =IF((Parameter!$D$10-Parameter!$D$9)>Simulation_Tab[[#This Row],[Jahr]],"B","R") -> B | F7: =IF(Simulation_Tab[[#This Row],[Beruf/Rente]]="B",(Parameter!$D$14/12)*(1+Parameter!$D$15)^(Simulation_Tab[[#This Row],[Jahr]]-1),(Parameter!$D$14*Konsum_Rente/12)*(1+Parameter!$D$15)^(Simulation_Tab[[#This Row],[Jahr]]-1)) -> 1666.666667 | G7: =Konsum_Kids!L6 -> 0 | H7: =IF(Renteneintritt-Alter>Simulation_Tab[[#This Row],[Jahr]],Parameter!$D$21/12*(1+Parameter!$D$22)^(Simulation_Tab[[#This Row],[Jahr]]-1),0) -> 2500 | I7: =IF(Simulation_Tab[[#This Row],[Beruf/Rente]]="R",INDEX(Renten_Tab[Rentenwert],MATCH(Simulation_Tab[[#This Row],[Datum]],Renten_Tab[Suchjahr],0),1)*Rentenpunkte*Zugangsfaktor,0) -> 0 | J7: =SUM(ETF_blind!AB6:AF6) -> 0 | K7: =ETF_blind!U6 -> 0 | L7: =IFERROR(ETF_blind!AV6,0) -> 0 | M7: =IFERROR(INDEX(Table6[Kaufpreis inkl NK],MATCH(Simulation_Tab[[#This Row],[Suchjahr]],Table6[Jahr],0),1),0) -> 0 | N7: =IFERROR(INDEX(Table6[Wert_Bestand],MATCH(Simulation_Tab[[#This Row],[Suchjahr]],Table6[Jahr],0),1),0) -> 0 | O7: =IFERROR(INDEX(Table6[EK_sum],MATCH(Simulation_Tab[[#This Row],[Suchjahr]],Table6[Jahr],0),1)-INDEX(Table6[Kaufnebenkosten],MATCH(Simulation_Tab[[#This Row],[Suchjahr]],Table6[Jahr],0),1),0) -> 0 | P7: =IFERROR(INDEX(Table6[Kaufnebenkosten],MATCH(Simulation_Tab[[#This Row],[Suchjahr]],Table6[Jahr],0),1),0) -> 0 | Q7: =IFERROR(INDEX(Table6[FK_Bestand],MATCH(Simulation_Tab[[#This Row],[Suchjahr]],Table6[Jahr],0),1),0) -> 0 | R7: =IFERROR(INDEX(Table6[EK_Bestand],MATCH(Simulation_Tab[[#This Row],[Suchjahr]],Table6[Jahr],0),1),0) -> 0 | S7: =INDEX(Table68[Zinsen_Bestand],MATCH(Simulation_Tab[[#This Row],[Datum]],Table68[Jahr],0),1)/12 -> 0 | T7: =INDEX(Table68[Tilgung_Bestand],MATCH(Simulation_Tab[[#This Row],[Datum]],Table68[Jahr],0),1)/12 -> 0 | U7: =INDEX(Table6[Kosten_Bestand],MATCH(Simulation_Tab[[#This Row],[Datum]],Table6[Jahr],0),1)/12 -> 0 | V7: =INDEX(Table6[Miete_Bestand],MATCH(Simulation_Tab[[#This Row],[Datum]],Table6[Jahr],0),1)/12 -> 0 | W7: =Simulation_Tab[[#This Row],[Nettolohn]]+Simulation_Tab[[#This Row],[gesetzliche Rente]]+Simulation_Tab[[#This Row],[Miete]]+IF(Simulation_Tab[[#This Row],[ETF_VK_Gewinn]]>0,Simulation_Tab[[#This Row],[ETF_VK_Gewinn]],0) -> 2500 | X7: =_xlfn.AGGREGATE(9,6,Simulation_Tab[[#This Row],[Konsumausgaben p.M.]]:Simulation_Tab[[#This Row],[Ausgaben Kinder]],Simulation_Tab[[#This Row],[Zinsen]:[n.u. Kosten]])+IF(Simulation_Tab[[#This Row],[ETF_VK_Gewinn]]<0,Simulation_Tab[[#This Row],[ETF_VK_Gewinn]],0)*-1 -> 1666.666667 | Y7: =Simulation_Tab[[#This Row],[Einnahmen Summe]]-Simulation_Tab[[#This Row],[Ausgaben Summe]] -> 833.3333333 | Z7: =_xlfn.AGGREGATE(9,6,Simulation_Tab[[#This Row],[Immo_EK_Kauf]],Simulation_Tab[[#This Row],[Kaufnebenkosten_EK]],Simulation_Tab[[#This Row],[ETF Investment]]) -> 0 | AA7: =Simulation_Tab[[#This Row],[freier Cashflow ]]-Simulation_Tab[[#This Row],[Investitionen inkl Nk]] -> 833.3333333 | AB7: =AB6+Simulation_Tab[[#This Row],[Cashflow]] -> 9566.666667 | AC7: =Simulation_Tab[[#This Row],[Cash]]+Simulation_Tab[[#This Row],[Immo_EK_Bestand]]+Simulation_Tab[[#This Row],[ETF-Wert]] -> 9566.666667
A8: =IF(Simulation_Tab[[#This Row],[Datum]]<>B9,Simulation_Tab[[#This Row],[Datum]],"") ->  | B8: =Parameter!$U$5+Simulation_Tab[[#This Row],[Jahr]]-1 -> 2020 | C8: 1 | D8: 6 | E8: =IF((Parameter!$D$10-Parameter!$D$9)>Simulation_Tab[[#This Row],[Jahr]],"B","R") -> B | F8: =IF(Simulation_Tab[[#This Row],[Beruf/Rente]]="B",(Parameter!$D$14/12)*(1+Parameter!$D$15)^(Simulation_Tab[[#This Row],[Jahr]]-1),(Parameter!$D$14*Konsum_Rente/12)*(1+Parameter!$D$15)^(Simulation_Tab[[#This Row],[Jahr]]-1)) -> 1666.666667 | G8: =Konsum_Kids!L7 -> 0 | H8: =IF(Renteneintritt-Alter>Simulation_Tab[[#This Row],[Jahr]],Parameter!$D$21/12*(1+Parameter!$D$22)^(Simulation_Tab[[#This Row],[Jahr]]-1),0) -> 2500 | I8: =IF(Simulation_Tab[[#This Row],[Beruf/Rente]]="R",INDEX(Renten_Tab[Rentenwert],MATCH(Simulation_Tab[[#This Row],[Datum]],Renten_Tab[Suchjahr],0),1)*Rentenpunkte*Zugangsfaktor,0) -> 0 | J8: =SUM(ETF_blind!AB7:AF7) -> 0 | K8: =ETF_blind!U7 -> 0 | L8: =IFERROR(ETF_blind!AV7,0) -> 0 | M8: =IFERROR(INDEX(Table6[Kaufpreis inkl NK],MATCH(Simulation_Tab[[#This Row],[Suchjahr]],Table6[Jahr],0),1),0) -> 0 | N8: =IFERROR(INDEX(Table6[Wert_Bestand],MATCH(Simulation_Tab[[#This Row],[Suchjahr]],Table6[Jahr],0),1),0) -> 0 | O8: =IFERROR(INDEX(Table6[EK_sum],MATCH(Simulation_Tab[[#This Row],[Suchjahr]],Table6[Jahr],0),1)-INDEX(Table6[Kaufnebenkosten],MATCH(Simulation_Tab[[#This Row],[Suchjahr]],Table6[Jahr],0),1),0) -> 0 | P8: =IFERROR(INDEX(Table6[Kaufnebenkosten],MATCH(Simulation_Tab[[#This Row],[Suchjahr]],Table6[Jahr],0),1),0) -> 0 | Q8: =IFERROR(INDEX(Table6[FK_Bestand],MATCH(Simulation_Tab[[#This Row],[Suchjahr]],Table6[Jahr],0),1),0) -> 0 | R8: =IFERROR(INDEX(Table6[EK_Bestand],MATCH(Simulation_Tab[[#This Row],[Suchjahr]],Table6[Jahr],0),1),0) -> 0 | S8: =INDEX(Table68[Zinsen_Bestand],MATCH(Simulation_Tab[[#This Row],[Datum]],Table68[Jahr],0),1)/12 -> 0 | T8: =INDEX(Table68[Tilgung_Bestand],MATCH(Simulation_Tab[[#This Row],[Datum]],Table68[Jahr],0),1)/12 -> 0 | U8: =INDEX(Table6[Kosten_Bestand],MATCH(Simulation_Tab[[#This Row],[Datum]],Table6[Jahr],0),1)/12 -> 0 | V8: =INDEX(Table6[Miete_Bestand],MATCH(Simulation_Tab[[#This Row],[Datum]],Table6[Jahr],0),1)/12 -> 0 | W8: =Simulation_Tab[[#This Row],[Nettolohn]]+Simulation_Tab[[#This Row],[gesetzliche Rente]]+Simulation_Tab[[#This Row],[Miete]]+IF(Simulation_Tab[[#This Row],[ETF_VK_Gewinn]]>0,Simulation_Tab[[#This Row],[ETF_VK_Gewinn]],0) -> 2500 | X8: =_xlfn.AGGREGATE(9,6,Simulation_Tab[[#This Row],[Konsumausgaben p.M.]]:Simulation_Tab[[#This Row],[Ausgaben Kinder]],Simulation_Tab[[#This Row],[Zinsen]:[n.u. Kosten]])+IF(Simulation_Tab[[#This Row],[ETF_VK_Gewinn]]<0,Simulation_Tab[[#This Row],[ETF_VK_Gewinn]],0)*-1 -> 1666.666667 | Y8: =Simulation_Tab[[#This Row],[Einnahmen Summe]]-Simulation_Tab[[#This Row],[Ausgaben Summe]] -> 833.3333333 | Z8: =_xlfn.AGGREGATE(9,6,Simulation_Tab[[#This Row],[Immo_EK_Kauf]],Simulation_Tab[[#This Row],[Kaufnebenkosten_EK]],Simulation_Tab[[#This Row],[ETF Investment]]) -> 0 | AA8: =Simulation_Tab[[#This Row],[freier Cashflow ]]-Simulation_Tab[[#This Row],[Investitionen inkl Nk]] -> 833.3333333 | AB8: =AB7+Simulation_Tab[[#This Row],[Cashflow]] -> 10400 | AC8: =Simulation_Tab[[#This Row],[Cash]]+Simulation_Tab[[#This Row],[Immo_EK_Bestand]]+Simulation_Tab[[#This Row],[ETF-Wert]] -> 10400
A9: =IF(Simulation_Tab[[#This Row],[Datum]]<>B10,Simulation_Tab[[#This Row],[Datum]],"") ->  | B9: =Parameter!$U$5+Simulation_Tab[[#This Row],[Jahr]]-1 -> 2020 | C9: 1 | D9: 7 | E9: =IF((Parameter!$D$10-Parameter!$D$9)>Simulation_Tab[[#This Row],[Jahr]],"B","R") -> B | F9: =IF(Simulation_Tab[[#This Row],[Beruf/Rente]]="B",(Parameter!$D$14/12)*(1+Parameter!$D$15)^(Simulation_Tab[[#This Row],[Jahr]]-1),(Parameter!$D$14*Konsum_Rente/12)*(1+Parameter!$D$15)^(Simulation_Tab[[#This Row],[Jahr]]-1)) -> 1666.666667 | G9: =Konsum_Kids!L8 -> 0 | H9: =IF(Renteneintritt-Alter>Simulation_Tab[[#This Row],[Jahr]],Parameter!$D$21/12*(1+Parameter!$D$22)^(Simulation_Tab[[#This Row],[Jahr]]-1),0) -> 2500 | I9: =IF(Simulation_Tab[[#This Row],[Beruf/Rente]]="R",INDEX(Renten_Tab[Rentenwert],MATCH(Simulation_Tab[[#This Row],[Datum]],Renten_Tab[Suchjahr],0),1)*Rentenpunkte*Zugangsfaktor,0) -> 0 | J9: =SUM(ETF_blind!AB8:AF8) -> 0 | K9: =ETF_blind!U8 -> 0 | L9: =IFERROR(ETF_blind!AV8,0) -> 0 | M9: =IFERROR(INDEX(Table6[Kaufpreis inkl NK],MATCH(Simulation_Tab[[#This Row],[Suchjahr]],Table6[Jahr],0),1),0) -> 0 | N9: =IFERROR(INDEX(Table6[Wert_Bestand],MATCH(Simulation_Tab[[#This Row],[Suchjahr]],Table6[Jahr],0),1),0) -> 0 | O9: =IFERROR(INDEX(Table6[EK_sum],MATCH(Simulation_Tab[[#This Row],[Suchjahr]],Table6[Jahr],0),1)-INDEX(Table6[Kaufnebenkosten],MATCH(Simulation_Tab[[#This Row],[Suchjahr]],Table6[Jahr],0),1),0) -> 0 | P9: =IFERROR(INDEX(Table6[Kaufnebenkosten],MATCH(Simulation_Tab[[#This Row],[Suchjahr]],Table6[Jahr],0),1),0) -> 0 | Q9: =IFERROR(INDEX(Table6[FK_Bestand],MATCH(Simulation_Tab[[#This Row],[Suchjahr]],Table6[Jahr],0),1),0) -> 0 | R9: =IFERROR(INDEX(Table6[EK_Bestand],MATCH(Simulation_Tab[[#This Row],[Suchjahr]],Table6[Jahr],0),1),0) -> 0 | S9: =INDEX(Table68[Zinsen_Bestand],MATCH(Simulation_Tab[[#This Row],[Datum]],Table68[Jahr],0),1)/12 -> 0 | T9: =INDEX(Table68[Tilgung_Bestand],MATCH(Simulation_Tab[[#This Row],[Datum]],Table68[Jahr],0),1)/12 -> 0 | U9: =INDEX(Table6[Kosten_Bestand],MATCH(Simulation_Tab[[#This Row],[Datum]],Table6[Jahr],0),1)/12 -> 0 | V9: =INDEX(Table6[Miete_Bestand],MATCH(Simulation_Tab[[#This Row],[Datum]],Table6[Jahr],0),1)/12 -> 0 | W9: =Simulation_Tab[[#This Row],[Nettolohn]]+Simulation_Tab[[#This Row],[gesetzliche Rente]]+Simulation_Tab[[#This Row],[Miete]]+IF(Simulation_Tab[[#This Row],[ETF_VK_Gewinn]]>0,Simulation_Tab[[#This Row],[ETF_VK_Gewinn]],0) -> 2500 | X9: =_xlfn.AGGREGATE(9,6,Simulation_Tab[[#This Row],[Konsumausgaben p.M.]]:Simulation_Tab[[#This Row],[Ausgaben Kinder]],Simulation_Tab[[#This Row],[Zinsen]:[n.u. Kosten]])+IF(Simulation_Tab[[#This Row],[ETF_VK_Gewinn]]<0,Simulation_Tab[[#This Row],[ETF_VK_Gewinn]],0)*-1 -> 1666.666667 | Y9: =Simulation_Tab[[#This Row],[Einnahmen Summe]]-Simulation_Tab[[#This Row],[Ausgaben Summe]] -> 833.3333333 | Z9: =_xlfn.AGGREGATE(9,6,Simulation_Tab[[#This Row],[Immo_EK_Kauf]],Simulation_Tab[[#This Row],[Kaufnebenkosten_EK]],Simulation_Tab[[#This Row],[ETF Investment]]) -> 0 | AA9: =Simulation_Tab[[#This Row],[freier Cashflow ]]-Simulation_Tab[[#This Row],[Investitionen inkl Nk]] -> 833.3333333 | AB9: =AB8+Simulation_Tab[[#This Row],[Cashflow]] -> 11233.33333 | AC9: =Simulation_Tab[[#This Row],[Cash]]+Simulation_Tab[[#This Row],[Immo_EK_Bestand]]+Simulation_Tab[[#This Row],[ETF-Wert]] -> 11233.33333
A10: =IF(Simulation_Tab[[#This Row],[Datum]]<>B11,Simulation_Tab[[#This Row],[Datum]],"") ->  | B10: =Parameter!$U$5+Simulation_Tab[[#This Row],[Jahr]]-1 -> 2020 | C10: 1 | D10: 8 | E10: =IF((Parameter!$D$10-Parameter!$D$9)>Simulation_Tab[[#This Row],[Jahr]],"B","R") -> B | F10: =IF(Simulation_Tab[[#This Row],[Beruf/Rente]]="B",(Parameter!$D$14/12)*(1+Parameter!$D$15)^(Simulation_Tab[[#This Row],[Jahr]]-1),(Parameter!$D$14*Konsum_Rente/12)*(1+Parameter!$D$15)^(Simulation_Tab[[#This Row],[Jahr]]-1)) -> 1666.666667 | G10: =Konsum_Kids!L9 -> 0 | H10: =IF(Renteneintritt-Alter>Simulation_Tab[[#This Row],[Jahr]],Parameter!$D$21/12*(1+Parameter!$D$22)^(Simulation_Tab[[#This Row],[Jahr]]-1),0) -> 2500 | I10: =IF(Simulation_Tab[[#This Row],[Beruf/Rente]]="R",INDEX(Renten_Tab[Rentenwert],MATCH(Simulation_Tab[[#This Row],[Datum]],Renten_Tab[Suchjahr],0),1)*Rentenpunkte*Zugangsfaktor,0) -> 0 | J10: =SUM(ETF_blind!AB9:AF9) -> 0 | K10: =ETF_blind!U9 -> 0 | L10: =IFERROR(ETF_blind!AV9,0) -> 0 | M10: =IFERROR(INDEX(Table6[Kaufpreis inkl NK],MATCH(Simulation_Tab[[#This Row],[Suchjahr]],Table6[Jahr],0),1),0) -> 0 | N10: =IFERROR(INDEX(Table6[Wert_Bestand],MATCH(Simulation_Tab[[#This Row],[Suchjahr]],Table6[Jahr],0),1),0) -> 0 | O10: =IFERROR(INDEX(Table6[EK_sum],MATCH(Simulation_Tab[[#This Row],[Suchjahr]],Table6[Jahr],0),1)-INDEX(Table6[Kaufnebenkosten],MATCH(Simulation_Tab[[#This Row],[Suchjahr]],Table6[Jahr],0),1),0) -> 0 | P10: =IFERROR(INDEX(Table6[Kaufnebenkosten],MATCH(Simulation_Tab[[#This Row],[Suchjahr]],Table6[Jahr],0),1),0) -> 0 | Q10: =IFERROR(INDEX(Table6[FK_Bestand],MATCH(Simulation_Tab[[#This Row],[Suchjahr]],Table6[Jahr],0),1),0) -> 0 | R10: =IFERROR(INDEX(Table6[EK_Bestand],MATCH(Simulation_Tab[[#This Row],[Suchjahr]],Table6[Jahr],0),1),0) -> 0 | S10: =INDEX(Table68[Zinsen_Bestand],MATCH(Simulation_Tab[[#This Row],[Datum]],Table68[Jahr],0),1)/12 -> 0 | T10: =INDEX(Table68[Tilgung_Bestand],MATCH(Simulation_Tab[[#This Row],[Datum]],Table68[Jahr],0),1)/12 -> 0 | U10: =INDEX(Table6[Kosten_Bestand],MATCH(Simulation_Tab[[#This Row],[Datum]],Table6[Jahr],0),1)/12 -> 0 | V10: =INDEX(Table6[Miete_Bestand],MATCH(Simulation_Tab[[#This Row],[Datum]],Table6[Jahr],0),1)/12 -> 0 | W10: =Simulation_Tab[[#This Row],[Nettolohn]]+Simulation_Tab[[#This Row],[gesetzliche Rente]]+Simulation_Tab[[#This Row],[Miete]]+IF(Simulation_Tab[[#This Row],[ETF_VK_Gewinn]]>0,Simulation_Tab[[#This Row],[ETF_VK_Gewinn]],0) -> 2500 | X10: =_xlfn.AGGREGATE(9,6,Simulation_Tab[[#This Row],[Konsumausgaben p.M.]]:Simulation_Tab[[#This Row],[Ausgaben Kinder]],Simulation_Tab[[#This Row],[Zinsen]:[n.u. Kosten]])+IF(Simulation_Tab[[#This Row],[ETF_VK_Gewinn]]<0,Simulation_Tab[[#This Row],[ETF_VK_Gewinn]],0)*-1 -> 1666.666667 | Y10: =Simulation_Tab[[#This Row],[Einnahmen Summe]]-Simulation_Tab[[#This Row],[Ausgaben Summe]] -> 833.3333333 | Z10: =_xlfn.AGGREGATE(9,6,Simulation_Tab[[#This Row],[Immo_EK_Kauf]],Simulation_Tab[[#This Row],[Kaufnebenkosten_EK]],Simulation_Tab[[#This Row],[ETF Investment]]) -> 0 | AA10: =Simulation_Tab[[#This Row],[freier Cashflow ]]-Simulation_Tab[[#This Row],[Investitionen inkl Nk]] -> 833.3333333 | AB10: =AB9+Simulation_Tab[[#This Row],[Cashflow]] -> 12066.66667 | AC10: =Simulation_Tab[[#This Row],[Cash]]+Simulation_Tab[[#This Row],[Immo_EK_Bestand]]+Simulation_Tab[[#This Row],[ETF-Wert]] -> 12066.66667
A11: =IF(Simulation_Tab[[#This Row],[Datum]]<>B12,Simulation_Tab[[#This Row],[Datum]],"") ->  | B11: =Parameter!$U$5+Simulation_Tab[[#This Row],[Jahr]]-1 -> 2020 | C11: 1 | D11: 9 | E11: =IF((Parameter!$D$10-Parameter!$D$9)>Simulation_Tab[[#This Row],[Jahr]],"B","R") -> B | F11: =IF(Simulation_Tab[[#This Row],[Beruf/Rente]]="B",(Parameter!$D$14/12)*(1+Parameter!$D$15)^(Simulation_Tab[[#This Row],[Jahr]]-1),(Parameter!$D$14*Konsum_Rente/12)*(1+Parameter!$D$15)^(Simulation_Tab[[#This Row],[Jahr]]-1)) -> 1666.666667 | G11: =Konsum_Kids!L10 -> 0 | H11: =IF(Renteneintritt-Alter>Simulation_Tab[[#This Row],[Jahr]],Parameter!$D$21/12*(1+Parameter!$D$22)^(Simulation_Tab[[#This Row],[Jahr]]-1),0) -> 2500 | I11: =IF(Simulation_Tab[[#This Row],[Beruf/Rente]]="R",INDEX(Renten_Tab[Rentenwert],MATCH(Simulation_Tab[[#This Row],[Datum]],Renten_Tab[Suchjahr],0),1)*Rentenpunkte*Zugangsfaktor,0) -> 0 | J11: =SUM(ETF_blind!AB10:AF10) -> 0 | K11: =ETF_blind!U10 -> 0 | L11: =IFERROR(ETF_blind!AV10,0) -> 0 | M11: =IFERROR(INDEX(Table6[Kaufpreis inkl NK],MATCH(Simulation_Tab[[#This Row],[Suchjahr]],Table6[Jahr],0),1),0) -> 0 | N11: =IFERROR(INDEX(Table6[Wert_Bestand],MATCH(Simulation_Tab[[#This Row],[Suchjahr]],Table6[Jahr],0),1),0) -> 0 | O11: =IFERROR(INDEX(Table6[EK_sum],MATCH(Simulation_Tab[[#This Row],[Suchjahr]],Table6[Jahr],0),1)-INDEX(Table6[Kaufnebenkosten],MATCH(Simulation_Tab[[#This Row],[Suchjahr]],Table6[Jahr],0),1),0) -> 0 | P11: =IFERROR(INDEX(Table6[Kaufnebenkosten],MATCH(Simulation_Tab[[#This Row],[Suchjahr]],Table6[Jahr],0),1),0) -> 0 | Q11: =IFERROR(INDEX(Table6[FK_Bestand],MATCH(Simulation_Tab[[#This Row],[Suchjahr]],Table6[Jahr],0),1),0) -> 0 | R11: =IFERROR(INDEX(Table6[EK_Bestand],MATCH(Simulation_Tab[[#This Row],[Suchjahr]],Table6[Jahr],0),1),0) -> 0 | S11: =INDEX(Table68[Zinsen_Bestand],MATCH(Simulation_Tab[[#This Row],[Datum]],Table68[Jahr],0),1)/12 -> 0 | T11: =INDEX(Table68[Tilgung_Bestand],MATCH(Simulation_Tab[[#This Row],[Datum]],Table68[Jahr],0),1)/12 -> 0 | U11: =INDEX(Table6[Kosten_Bestand],MATCH(Simulation_Tab[[#This Row],[Datum]],Table6[Jahr],0),1)/12 -> 0 | V11: =INDEX(Table6[Miete_Bestand],MATCH(Simulation_Tab[[#This Row],[Datum]],Table6[Jahr],0),1)/12 -> 0 | W11: =Simulation_Tab[[#This Row],[Nettolohn]]+Simulation_Tab[[#This Row],[gesetzliche Rente]]+Simulation_Tab[[#This Row],[Miete]]+IF(Simulation_Tab[[#This Row],[ETF_VK_Gewinn]]>0,Simulation_Tab[[#This Row],[ETF_VK_Gewinn]],0) -> 2500 | X11: =_xlfn.AGGREGATE(9,6,Simulation_Tab[[#This Row],[Konsumausgaben p.M.]]:Simulation_Tab[[#This Row],[Ausgaben Kinder]],Simulation_Tab[[#This Row],[Zinsen]:[n.u. Kosten]])+IF(Simulation_Tab[[#This Row],[ETF_VK_Gewinn]]<0,Simulation_Tab[[#This Row],[ETF_VK_Gewinn]],0)*-1 -> 1666.666667 | Y11: =Simulation_Tab[[#This Row],[Einnahmen Summe]]-Simulation_Tab[[#This Row],[Ausgaben Summe]] -> 833.3333333 | Z11: =_xlfn.AGGREGATE(9,6,Simulation_Tab[[#This Row],[Immo_EK_Kauf]],Simulation_Tab[[#This Row],[Kaufnebenkosten_EK]],Simulation_Tab[[#This Row],[ETF Investment]]) -> 0 | AA11: =Simulation_Tab[[#This Row],[freier Cashflow ]]-Simulation_Tab[[#This Row],[Investitionen inkl Nk]] -> 833.3333333 | AB11: =AB10+Simulation_Tab[[#This Row],[Cashflow]] -> 12900 | AC11: =Simulation_Tab[[#This Row],[Cash]]+Simulation_Tab[[#This Row],[Immo_EK_Bestand]]+Simulation_Tab[[#This Row],[ETF-Wert]] -> 12900
A12: =IF(Simulation_Tab[[#This Row],[Datum]]<>B13,Simulation_Tab[[#This Row],[Datum]],"") ->  | B12: =Parameter!$U$5+Simulation_Tab[[#This Row],[Jahr]]-1 -> 2020 | C12: 1 | D12: 10 | E12: =IF((Parameter!$D$10-Parameter!$D$9)>Simulation_Tab[[#This Row],[Jahr]],"B","R") -> B | F12: =IF(Simulation_Tab[[#This Row],[Beruf/Rente]]="B",(Parameter!$D$14/12)*(1+Parameter!$D$15)^(Simulation_Tab[[#This Row],[Jahr]]-1),(Parameter!$D$14*Konsum_Rente/12)*(1+Parameter!$D$15)^(Simulation_Tab[[#This Row],[Jahr]]-1)) -> 1666.666667 | G12: =Konsum_Kids!L11 -> 0 | H12: =IF(Renteneintritt-Alter>Simulation_Tab[[#This Row],[Jahr]],Parameter!$D$21/12*(1+Parameter!$D$22)^(Simulation_Tab[[#This Row],[Jahr]]-1),0) -> 2500 | I12: =IF(Simulation_Tab[[#This Row],[Beruf/Rente]]="R",INDEX(Renten_Tab[Rentenwert],MATCH(Simulation_Tab[[#This Row],[Datum]],Renten_Tab[Suchjahr],0),1)*Rentenpunkte*Zugangsfaktor,0) -> 0 | J12: =SUM(ETF_blind!AB11:AF11) -> 0 | K12: =ETF_blind!U11 -> 0 | L12: =IFERROR(ETF_blind!AV11,0) -> 0 | M12: =IFERROR(INDEX(Table6[Kaufpreis inkl NK],MATCH(Simulation_Tab[[#This Row],[Suchjahr]],Table6[Jahr],0),1),0) -> 0 | N12: =IFERROR(INDEX(Table6[Wert_Bestand],MATCH(Simulation_Tab[[#This Row],[Suchjahr]],Table6[Jahr],0),1),0) -> 0 | O12: =IFERROR(INDEX(Table6[EK_sum],MATCH(Simulation_Tab[[#This Row],[Suchjahr]],Table6[Jahr],0),1)-INDEX(Table6[Kaufnebenkosten],MATCH(Simulation_Tab[[#This Row],[Suchjahr]],Table6[Jahr],0),1),0) -> 0 | P12: =IFERROR(INDEX(Table6[Kaufnebenkosten],MATCH(Simulation_Tab[[#This Row],[Suchjahr]],Table6[Jahr],0),1),0) -> 0 | Q12: =IFERROR(INDEX(Table6[FK_Bestand],MATCH(Simulation_Tab[[#This Row],[Suchjahr]],Table6[Jahr],0),1),0) -> 0 | R12: =IFERROR(INDEX(Table6[EK_Bestand],MATCH(Simulation_Tab[[#This Row],[Suchjahr]],Table6[Jahr],0),1),0) -> 0 | S12: =INDEX(Table68[Zinsen_Bestand],MATCH(Simulation_Tab[[#This Row],[Datum]],Table68[Jahr],0),1)/12 -> 0 | T12: =INDEX(Table68[Tilgung_Bestand],MATCH(Simulation_Tab[[#This Row],[Datum]],Table68[Jahr],0),1)/12 -> 0 | U12: =INDEX(Table6[Kosten_Bestand],MATCH(Simulation_Tab[[#This Row],[Datum]],Table6[Jahr],0),1)/12 -> 0 | V12: =INDEX(Table6[Miete_Bestand],MATCH(Simulation_Tab[[#This Row],[Datum]],Table6[Jahr],0),1)/12 -> 0 | W12: =Simulation_Tab[[#This Row],[Nettolohn]]+Simulation_Tab[[#This Row],[gesetzliche Rente]]+Simulation_Tab[[#This Row],[Miete]]+IF(Simulation_Tab[[#This Row],[ETF_VK_Gewinn]]>0,Simulation_Tab[[#This Row],[ETF_VK_Gewinn]],0) -> 2500 | X12: =_xlfn.AGGREGATE(9,6,Simulation_Tab[[#This Row],[Konsumausgaben p.M.]]:Simulation_Tab[[#This Row],[Ausgaben Kinder]],Simulation_Tab[[#This Row],[Zinsen]:[n.u. Kosten]])+IF(Simulation_Tab[[#This Row],[ETF_VK_Gewinn]]<0,Simulation_Tab[[#This Row],[ETF_VK_Gewinn]],0)*-1 -> 1666.666667 | Y12: =Simulation_Tab[[#This Row],[Einnahmen Summe]]-Simulation_Tab[[#This Row],[Ausgaben Summe]] -> 833.3333333 | Z12: =_xlfn.AGGREGATE(9,6,Simulation_Tab[[#This Row],[Immo_EK_Kauf]],Simulation_Tab[[#This Row],[Kaufnebenkosten_EK]],Simulation_Tab[[#This Row],[ETF Investment]]) -> 0 | AA12: =Simulation_Tab[[#This Row],[freier Cashflow ]]-Simulation_Tab[[#This Row],[Investitionen inkl Nk]] -> 833.3333333 | AB12: =AB11+Simulation_Tab[[#This Row],[Cashflow]] -> 13733.33333 | AC12: =Simulation_Tab[[#This Row],[Cash]]+Simulation_Tab[[#This Row],[Immo_EK_Bestand]]+Simulation_Tab[[#This Row],[ETF-Wert]] -> 13733.33333
A13: =IF(Simulation_Tab[[#This Row],[Datum]]<>B14,Simulation_Tab[[#This Row],[Datum]],"") ->  | B13: =Parameter!$U$5+Simulation_Tab[[#This Row],[Jahr]]-1 -> 2020 | C13: 1 | D13: 11 | E13: =IF((Parameter!$D$10-Parameter!$D$9)>Simulation_Tab[[#This Row],[Jahr]],"B","R") -> B | F13: =IF(Simulation_Tab[[#This Row],[Beruf/Rente]]="B",(Parameter!$D$14/12)*(1+Parameter!$D$15)^(Simulation_Tab[[#This Row],[Jahr]]-1),(Parameter!$D$14*Konsum_Rente/12)*(1+Parameter!$D$15)^(Simulation_Tab[[#This Row],[Jahr]]-1)) -> 1666.666667 | G13: =Konsum_Kids!L12 -> 0 | H13: =IF(Renteneintritt-Alter>Simulation_Tab[[#This Row],[Jahr]],Parameter!$D$21/12*(1+Parameter!$D$22)^(Simulation_Tab[[#This Row],[Jahr]]-1),0) -> 2500 | I13: =IF(Simulation_Tab[[#This Row],[Beruf/Rente]]="R",INDEX(Renten_Tab[Rentenwert],MATCH(Simulation_Tab[[#This Row],[Datum]],Renten_Tab[Suchjahr],0),1)*Rentenpunkte*Zugangsfaktor,0) -> 0 | J13: =SUM(ETF_blind!AB12:AF12) -> 0 | K13: =ETF_blind!U12 -> 0 | L13: =IFERROR(ETF_blind!AV12,0) -> 0 | M13: =IFERROR(INDEX(Table6[Kaufpreis inkl NK],MATCH(Simulation_Tab[[#This Row],[Suchjahr]],Table6[Jahr],0),1),0) -> 0 | N13: =IFERROR(INDEX(Table6[Wert_Bestand],MATCH(Simulation_Tab[[#This Row],[Suchjahr]],Table6[Jahr],0),1),0) -> 0 | O13: =IFERROR(INDEX(Table6[EK_sum],MATCH(Simulation_Tab[[#This Row],[Suchjahr]],Table6[Jahr],0),1)-INDEX(Table6[Kaufnebenkosten],MATCH(Simulation_Tab[[#This Row],[Suchjahr]],Table6[Jahr],0),1),0) -> 0 | P13: =IFERROR(INDEX(Table6[Kaufnebenkosten],MATCH(Simulation_Tab[[#This Row],[Suchjahr]],Table6[Jahr],0),1),0) -> 0 | Q13: =IFERROR(INDEX(Table6[FK_Bestand],MATCH(Simulation_Tab[[#This Row],[Suchjahr]],Table6[Jahr],0),1),0) -> 0 | R13: =IFERROR(INDEX(Table6[EK_Bestand],MATCH(Simulation_Tab[[#This Row],[Suchjahr]],Table6[Jahr],0),1),0) -> 0 | S13: =INDEX(Table68[Zinsen_Bestand],MATCH(Simulation_Tab[[#This Row],[Datum]],Table68[Jahr],0),1)/12 -> 0 | T13: =INDEX(Table68[Tilgung_Bestand],MATCH(Simulation_Tab[[#This Row],[Datum]],Table68[Jahr],0),1)/12 -> 0 | U13: =INDEX(Table6[Kosten_Bestand],MATCH(Simulation_Tab[[#This Row],[Datum]],Table6[Jahr],0),1)/12 -> 0 | V13: =INDEX(Table6[Miete_Bestand],MATCH(Simulation_Tab[[#This Row],[Datum]],Table6[Jahr],0),1)/12 -> 0 | W13: =Simulation_Tab[[#This Row],[Nettolohn]]+Simulation_Tab[[#This Row],[gesetzliche Rente]]+Simulation_Tab[[#This Row],[Miete]]+IF(Simulation_Tab[[#This Row],[ETF_VK_Gewinn]]>0,Simulation_Tab[[#This Row],[ETF_VK_Gewinn]],0) -> 2500 | X13: =_xlfn.AGGREGATE(9,6,Simulation_Tab[[#This Row],[Konsumausgaben p.M.]]:Simulation_Tab[[#This Row],[Ausgaben Kinder]],Simulation_Tab[[#This Row],[Zinsen]:[n.u. Kosten]])+IF(Simulation_Tab[[#This Row],[ETF_VK_Gewinn]]<0,Simulation_Tab[[#This Row],[ETF_VK_Gewinn]],0)*-1 -> 1666.666667 | Y13: =Simulation_Tab[[#This Row],[Einnahmen Summe]]-Simulation_Tab[[#This Row],[Ausgaben Summe]] -> 833.3333333 | Z13: =_xlfn.AGGREGATE(9,6,Simulation_Tab[[#This Row],[Immo_EK_Kauf]],Simulation_Tab[[#This Row],[Kaufnebenkosten_EK]],Simulation_Tab[[#This Row],[ETF Investment]]) -> 0 | AA13: =Simulation_Tab[[#This Row],[freier Cashflow ]]-Simulation_Tab[[#This Row],[Investitionen inkl Nk]] -> 833.3333333 | AB13: =AB12+Simulation_Tab[[#This Row],[Cashflow]] -> 14566.66667 | AC13: =Simulation_Tab[[#This Row],[Cash]]+Simulation_Tab[[#This Row],[Immo_EK_Bestand]]+Simulation_Tab[[#This Row],[ETF-Wert]] -> 14566.66667
A14: =IF(Simulation_Tab[[#This Row],[Datum]]<>B15,Simulation_Tab[[#This Row],[Datum]],"") -> 2020 | B14: =Parameter!$U$5+Simulation_Tab[[#This Row],[Jahr]]-1 -> 2020 | C14: 1 | D14: 12 | E14: =IF((Parameter!$D$10-Parameter!$D$9)>Simulation_Tab[[#This Row],[Jahr]],"B","R") -> B | F14: =IF(Simulation_Tab[[#This Row],[Beruf/Rente]]="B",(Parameter!$D$14/12)*(1+Parameter!$D$15)^(Simulation_Tab[[#This Row],[Jahr]]-1),(Parameter!$D$14*Konsum_Rente/12)*(1+Parameter!$D$15)^(Simulation_Tab[[#This Row],[Jahr]]-1)) -> 1666.666667 | G14: =Konsum_Kids!L13 -> 0 | H14: =IF(Renteneintritt-Alter>Simulation_Tab[[#This Row],[Jahr]],Parameter!$D$21/12*(1+Parameter!$D$22)^(Simulation_Tab[[#This Row],[Jahr]]-1),0) -> 2500 | I14: =IF(Simulation_Tab[[#This Row],[Beruf/Rente]]="R",INDEX(Renten_Tab[Rentenwert],MATCH(Simulation_Tab[[#This Row],[Datum]],Renten_Tab[Suchjahr],0),1)*Rentenpunkte*Zugangsfaktor,0) -> 0 | J14: =SUM(ETF_blind!AB13:AF13) -> 0 | K14: =ETF_blind!U13 -> 0 | L14: =IFERROR(ETF_blind!AV13,0) -> 0 | M14: =IFERROR(INDEX(Table6[Kaufpreis inkl NK],MATCH(Simulation_Tab[[#This Row],[Suchjahr]],Table6[Jahr],0),1),0) -> 0 | N14: =IFERROR(INDEX(Table6[Wert_Bestand],MATCH(Simulation_Tab[[#This Row],[Suchjahr]],Table6[Jahr],0),1),0) -> 0 | O14: =IFERROR(INDEX(Table6[EK_sum],MATCH(Simulation_Tab[[#This Row],[Suchjahr]],Table6[Jahr],0),1)-INDEX(Table6[Kaufnebenkosten],MATCH(Simulation_Tab[[#This Row],[Suchjahr]],Table6[Jahr],0),1),0) -> 0 | P14: =IFERROR(INDEX(Table6[Kaufnebenkosten],MATCH(Simulation_Tab[[#This Row],[Suchjahr]],Table6[Jahr],0),1),0) -> 0 | Q14: =IFERROR(INDEX(Table6[FK_Bestand],MATCH(Simulation_Tab[[#This Row],[Suchjahr]],Table6[Jahr],0),1),0) -> 0 | R14: =IFERROR(INDEX(Table6[EK_Bestand],MATCH(Simulation_Tab[[#This Row],[Suchjahr]],Table6[Jahr],0),1),0) -> 0 | S14: =INDEX(Table68[Zinsen_Bestand],MATCH(Simulation_Tab[[#This Row],[Datum]],Table68[Jahr],0),1)/12 -> 0 | T14: =INDEX(Table68[Tilgung_Bestand],MATCH(Simulation_Tab[[#This Row],[Datum]],Table68[Jahr],0),1)/12 -> 0 | U14: =INDEX(Table6[Kosten_Bestand],MATCH(Simulation_Tab[[#This Row],[Datum]],Table6[Jahr],0),1)/12 -> 0 | V14: =INDEX(Table6[Miete_Bestand],MATCH(Simulation_Tab[[#This Row],[Datum]],Table6[Jahr],0),1)/12 -> 0 | W14: =Simulation_Tab[[#This Row],[Nettolohn]]+Simulation_Tab[[#This Row],[gesetzliche Rente]]+Simulation_Tab[[#This Row],[Miete]]+IF(Simulation_Tab[[#This Row],[ETF_VK_Gewinn]]>0,Simulation_Tab[[#This Row],[ETF_VK_Gewinn]],0) -> 2500 | X14: =_xlfn.AGGREGATE(9,6,Simulation_Tab[[#This Row],[Konsumausgaben p.M.]]:Simulation_Tab[[#This Row],[Ausgaben Kinder]],Simulation_Tab[[#This Row],[Zinsen]:[n.u. Kosten]])+IF(Simulation_Tab[[#This Row],[ETF_VK_Gewinn]]<0,Simulation_Tab[[#This Row],[ETF_VK_Gewinn]],0)*-1 -> 1666.666667 | Y14: =Simulation_Tab[[#This Row],[Einnahmen Summe]]-Simulation_Tab[[#This Row],[Ausgaben Summe]] -> 833.3333333 | Z14: =_xlfn.AGGREGATE(9,6,Simulation_Tab[[#This Row],[Immo_EK_Kauf]],Simulation_Tab[[#This Row],[Kaufnebenkosten_EK]],Simulation_Tab[[#This Row],[ETF Investment]]) -> 0 | AA14: =Simulation_Tab[[#This Row],[freier Cashflow ]]-Simulation_Tab[[#This Row],[Investitionen inkl Nk]] -> 833.3333333 | AB14: =AB13+Simulation_Tab[[#This Row],[Cashflow]] -> 15400 | AC14: =Simulation_Tab[[#This Row],[Cash]]+Simulation_Tab[[#This Row],[Immo_EK_Bestand]]+Simulation_Tab[[#This Row],[ETF-Wert]] -> 15400
A15: =IF(Simulation_Tab[[#This Row],[Datum]]<>B16,Simulation_Tab[[#This Row],[Datum]],"") ->  | B15: =Parameter!$U$5+Simulation_Tab[[#This Row],[Jahr]]-1 -> 2021 | C15: 2 | D15: 13 | E15: =IF((Parameter!$D$10-Parameter!$D$9)>Simulation_Tab[[#This Row],[Jahr]],"B","R") -> B | F15: =IF(Simulation_Tab[[#This Row],[Beruf/Rente]]="B",(Parameter!$D$14/12)*(1+Parameter!$D$15)^(Simulation_Tab[[#This Row],[Jahr]]-1),(Parameter!$D$14*Konsum_Rente/12)*(1+Parameter!$D$15)^(Simulation_Tab[[#This Row],[Jahr]]-1)) -> 1750 | G15: =Konsum_Kids!L14 -> 0 | H15: =IF(Renteneintritt-Alter>Simulation_Tab[[#This Row],[Jahr]],Parameter!$D$21/12*(1+Parameter!$D$22)^(Simulation_Tab[[#This Row],[Jahr]]-1),0) -> 2650 | I15: =IF(Simulation_Tab[[#This Row],[Beruf/Rente]]="R",INDEX(Renten_Tab[Rentenwert],MATCH(Simulation_Tab[[#This Row],[Datum]],Renten_Tab[Suchjahr],0),1)*Rentenpunkte*Zugangsfaktor,0) -> 0 | J15: =SUM(ETF_blind!AB14:AF14) -> 0 | K15: =ETF_blind!U14 -> 0 | L15: =IFERROR(ETF_blind!AV14,0) -> 0 | M15: =IFERROR(INDEX(Table6[Kaufpreis inkl NK],MATCH(Simulation_Tab[[#This Row],[Suchjahr]],Table6[Jahr],0),1),0) -> 0 | N15: =IFERROR(INDEX(Table6[Wert_Bestand],MATCH(Simulation_Tab[[#This Row],[Suchjahr]],Table6[Jahr],0),1),0) -> 0 | O15: =IFERROR(INDEX(Table6[EK_sum],MATCH(Simulation_Tab[[#This Row],[Suchjahr]],Table6[Jahr],0),1)-INDEX(Table6[Kaufnebenkosten],MATCH(Simulation_Tab[[#This Row],[Suchjahr]],Table6[Jahr],0),1),0) -> 0 | P15: =IFERROR(INDEX(Table6[Kaufnebenkosten],MATCH(Simulation_Tab[[#This Row],[Suchjahr]],Table6[Jahr],0),1),0) -> 0 | Q15: =IFERROR(INDEX(Table6[FK_Bestand],MATCH(Simulation_Tab[[#This Row],[Suchjahr]],Table6[Jahr],0),1),0) -> 0 | R15: =IFERROR(INDEX(Table6[EK_Bestand],MATCH(Simulation_Tab[[#This Row],[Suchjahr]],Table6[Jahr],0),1),0) -> 0 | S15: =INDEX(Table68[Zinsen_Bestand],MATCH(Simulation_Tab[[#This Row],[Datum]],Table68[Jahr],0),1)/12 -> 0 | T15: =INDEX(Table68[Tilgung_Bestand],MATCH(Simulation_Tab[[#This Row],[Datum]],Table68[Jahr],0),1)/12 -> 0 | U15: =INDEX(Table6[Kosten_Bestand],MATCH(Simulation_Tab[[#This Row],[Datum]],Table6[Jahr],0),1)/12 -> 0 | V15: =INDEX(Table6[Miete_Bestand],MATCH(Simulation_Tab[[#This Row],[Datum]],Table6[Jahr],0),1)/12 -> 0 | W15: =Simulation_Tab[[#This Row],[Nettolohn]]+Simulation_Tab[[#This Row],[gesetzliche Rente]]+Simulation_Tab[[#This Row],[Miete]]+IF(Simulation_Tab[[#This Row],[ETF_VK_Gewinn]]>0,Simulation_Tab[[#This Row],[ETF_VK_Gewinn]],0) -> 2650 | X15: =_xlfn.AGGREGATE(9,6,Simulation_Tab[[#This Row],[Konsumausgaben p.M.]]:Simulation_Tab[[#This Row],[Ausgaben Kinder]],Simulation_Tab[[#This Row],[Zinsen]:[n.u. Kosten]])+IF(Simulation_Tab[[#This Row],[ETF_VK_Gewinn]]<0,Simulation_Tab[[#This Row],[ETF_VK_Gewinn]],0)*-1 -> 1750 | Y15: =Simulation_Tab[[#This Row],[Einnahmen Summe]]-Simulation_Tab[[#This Row],[Ausgaben Summe]] -> 900 | Z15: =_xlfn.AGGREGATE(9,6,Simulation_Tab[[#This Row],[Immo_EK_Kauf]],Simulation_Tab[[#This Row],[Kaufnebenkosten_EK]],Simulation_Tab[[#This Row],[ETF Investment]]) -> 0 | AA15: =Simulation_Tab[[#This Row],[freier Cashflow ]]-Simulation_Tab[[#This Row],[Investitionen inkl Nk]] -> 900 | AB15: =AB14+Simulation_Tab[[#This Row],[Cashflow]] -> 16300 | AC15: =Simulation_Tab[[#This Row],[Cash]]+Simulation_Tab[[#This Row],[Immo_EK_Bestand]]+Simulation_Tab[[#This Row],[ETF-Wert]] -> 16300
A16: =IF(Simulation_Tab[[#This Row],[Datum]]<>B17,Simulation_Tab[[#This Row],[Datum]],"") ->  | B16: =Parameter!$U$5+Simulation_Tab[[#This Row],[Jahr]]-1 -> 2021 | C16: 2 | D16: 14 | E16: =IF((Parameter!$D$10-Parameter!$D$9)>Simulation_Tab[[#This Row],[Jahr]],"B","R") -> B | F16: =IF(Simulation_Tab[[#This Row],[Beruf/Rente]]="B",(Parameter!$D$14/12)*(1+Parameter!$D$15)^(Simulation_Tab[[#This Row],[Jahr]]-1),(Parameter!$D$14*Konsum_Rente/12)*(1+Parameter!$D$15)^(Simulation_Tab[[#This Row],[Jahr]]-1)) -> 1750 | G16: =Konsum_Kids!L15 -> 0 | H16: =IF(Renteneintritt-Alter>Simulation_Tab[[#This Row],[Jahr]],Parameter!$D$21/12*(1+Parameter!$D$22)^(Simulation_Tab[[#This Row],[Jahr]]-1),0) -> 2650 | I16: =IF(Simulation_Tab[[#This Row],[Beruf/Rente]]="R",INDEX(Renten_Tab[Rentenwert],MATCH(Simulation_Tab[[#This Row],[Datum]],Renten_Tab[Suchjahr],0),1)*Rentenpunkte*Zugangsfaktor,0) -> 0 | J16: =SUM(ETF_blind!AB15:AF15) -> 0 | K16: =ETF_blind!U15 -> 0 | L16: =IFERROR(ETF_blind!AV15,0) -> 0 | M16: =IFERROR(INDEX(Table6[Kaufpreis inkl NK],MATCH(Simulation_Tab[[#This Row],[Suchjahr]],Table6[Jahr],0),1),0) -> 0 | N16: =IFERROR(INDEX(Table6[Wert_Bestand],MATCH(Simulation_Tab[[#This Row],[Suchjahr]],Table6[Jahr],0),1),0) -> 0 | O16: =IFERROR(INDEX(Table6[EK_sum],MATCH(Simulation_Tab[[#This Row],[Suchjahr]],Table6[Jahr],0),1)-INDEX(Table6[Kaufnebenkosten],MATCH(Simulation_Tab[[#This Row],[Suchjahr]],Table6[Jahr],0),1),0) -> 0 | P16: =IFERROR(INDEX(Table6[Kaufnebenkosten],MATCH(Simulation_Tab[[#This Row],[Suchjahr]],Table6[Jahr],0),1),0) -> 0 | Q16: =IFERROR(INDEX(Table6[FK_Bestand],MATCH(Simulation_Tab[[#This Row],[Suchjahr]],Table6[Jahr],0),1),0) -> 0 | R16: =IFERROR(INDEX(Table6[EK_Bestand],MATCH(Simulation_Tab[[#This Row],[Suchjahr]],Table6[Jahr],0),1),0) -> 0 | S16: =INDEX(Table68[Zinsen_Bestand],MATCH(Simulation_Tab[[#This Row],[Datum]],Table68[Jahr],0),1)/12 -> 0 | T16: =INDEX(Table68[Tilgung_Bestand],MATCH(Simulation_Tab[[#This Row],[Datum]],Table68[Jahr],0),1)/12 -> 0 | U16: =INDEX(Table6[Kosten_Bestand],MATCH(Simulation_Tab[[#This Row],[Datum]],Table6[Jahr],0),1)/12 -> 0 | V16: =INDEX(Table6[Miete_Bestand],MATCH(Simulation_Tab[[#This Row],[Datum]],Table6[Jahr],0),1)/12 -> 0 | W16: =Simulation_Tab[[#This Row],[Nettolohn]]+Simulation_Tab[[#This Row],[gesetzliche Rente]]+Simulation_Tab[[#This Row],[Miete]]+IF(Simulation_Tab[[#This Row],[ETF_VK_Gewinn]]>0,Simulation_Tab[[#This Row],[ETF_VK_Gewinn]],0) -> 2650 | X16: =_xlfn.AGGREGATE(9,6,Simulation_Tab[[#This Row],[Konsumausgaben p.M.]]:Simulation_Tab[[#This Row],[Ausgaben Kinder]],Simulation_Tab[[#This Row],[Zinsen]:[n.u. Kosten]])+IF(Simulation_Tab[[#This Row],[ETF_VK_Gewinn]]<0,Simulation_Tab[[#This Row],[ETF_VK_Gewinn]],0)*-1 -> 1750 | Y16: =Simulation_Tab[[#This Row],[Einnahmen Summe]]-Simulation_Tab[[#This Row],[Ausgaben Summe]] -> 900 | Z16: =_xlfn.AGGREGATE(9,6,Simulation_Tab[[#This Row],[Immo_EK_Kauf]],Simulation_Tab[[#This Row],[Kaufnebenkosten_EK]],Simulation_Tab[[#This Row],[ETF Investment]]) -> 0 | AA16: =Simulation_Tab[[#This Row],[freier Cashflow ]]-Simulation_Tab[[#This Row],[Investitionen inkl Nk]] -> 900 | AB16: =AB15+Simulation_Tab[[#This Row],[Cashflow]] -> 17200 | AC16: =Simulation_Tab[[#This Row],[Cash]]+Simulation_Tab[[#This Row],[Immo_EK_Bestand]]+Simulation_Tab[[#This Row],[ETF-Wert]] -> 17200
A17: =IF(Simulation_Tab[[#This Row],[Datum]]<>B18,Simulation_Tab[[#This Row],[Datum]],"") ->  | B17: =Parameter!$U$5+Simulation_Tab[[#This Row],[Jahr]]-1 -> 2021 | C17: 2 | D17: 15 | E17: =IF((Parameter!$D$10-Parameter!$D$9)>Simulation_Tab[[#This Row],[Jahr]],"B","R") -> B | F17: =IF(Simulation_Tab[[#This Row],[Beruf/Rente]]="B",(Parameter!$D$14/12)*(1+Parameter!$D$15)^(Simulation_Tab[[#This Row],[Jahr]]-1),(Parameter!$D$14*Konsum_Rente/12)*(1+Parameter!$D$15)^(Simulation_Tab[[#This Row],[Jahr]]-1)) -> 1750 | G17: =Konsum_Kids!L16 -> 0 | H17: =IF(Renteneintritt-Alter>Simulation_Tab[[#This Row],[Jahr]],Parameter!$D$21/12*(1+Parameter!$D$22)^(Simulation_Tab[[#This Row],[Jahr]]-1),0) -> 2650 | I17: =IF(Simulation_Tab[[#This Row],[Beruf/Rente]]="R",INDEX(Renten_Tab[Rentenwert],MATCH(Simulation_Tab[[#This Row],[Datum]],Renten_Tab[Suchjahr],0),1)*Rentenpunkte*Zugangsfaktor,0) -> 0 | J17: =SUM(ETF_blind!AB16:AF16) -> 0 | K17: =ETF_blind!U16 -> 0 | L17: =IFERROR(ETF_blind!AV16,0) -> 0 | M17: =IFERROR(INDEX(Table6[Kaufpreis inkl NK],MATCH(Simulation_Tab[[#This Row],[Suchjahr]],Table6[Jahr],0),1),0) -> 0 | N17: =IFERROR(INDEX(Table6[Wert_Bestand],MATCH(Simulation_Tab[[#This Row],[Suchjahr]],Table6[Jahr],0),1),0) -> 0 | O17: =IFERROR(INDEX(Table6[EK_sum],MATCH(Simulation_Tab[[#This Row],[Suchjahr]],Table6[Jahr],0),1)-INDEX(Table6[Kaufnebenkosten],MATCH(Simulation_Tab[[#This Row],[Suchjahr]],Table6[Jahr],0),1),0) -> 0 | P17: =IFERROR(INDEX(Table6[Kaufnebenkosten],MATCH(Simulation_Tab[[#This Row],[Suchjahr]],Table6[Jahr],0),1),0) -> 0 | Q17: =IFERROR(INDEX(Table6[FK_Bestand],MATCH(Simulation_Tab[[#This Row],[Suchjahr]],Table6[Jahr],0),1),0) -> 0 | R17: =IFERROR(INDEX(Table6[EK_Bestand],MATCH(Simulation_Tab[[#This Row],[Suchjahr]],Table6[Jahr],0),1),0) -> 0 | S17: =INDEX(Table68[Zinsen_Bestand],MATCH(Simulation_Tab[[#This Row],[Datum]],Table68[Jahr],0),1)/12 -> 0 | T17: =INDEX(Table68[Tilgung_Bestand],MATCH(Simulation_Tab[[#This Row],[Datum]],Table68[Jahr],0),1)/12 -> 0 | U17: =INDEX(Table6[Kosten_Bestand],MATCH(Simulation_Tab[[#This Row],[Datum]],Table6[Jahr],0),1)/12 -> 0 | V17: =INDEX(Table6[Miete_Bestand],MATCH(Simulation_Tab[[#This Row],[Datum]],Table6[Jahr],0),1)/12 -> 0 | W17: =Simulation_Tab[[#This Row],[Nettolohn]]+Simulation_Tab[[#This Row],[gesetzliche Rente]]+Simulation_Tab[[#This Row],[Miete]]+IF(Simulation_Tab[[#This Row],[ETF_VK_Gewinn]]>0,Simulation_Tab[[#This Row],[ETF_VK_Gewinn]],0) -> 2650 | X17: =_xlfn.AGGREGATE(9,6,Simulation_Tab[[#This Row],[Konsumausgaben p.M.]]:Simulation_Tab[[#This Row],[Ausgaben Kinder]],Simulation_Tab[[#This Row],[Zinsen]:[n.u. Kosten]])+IF(Simulation_Tab[[#This Row],[ETF_VK_Gewinn]]<0,Simulation_Tab[[#This Row],[ETF_VK_Gewinn]],0)*-1 -> 1750 | Y17: =Simulation_Tab[[#This Row],[Einnahmen Summe]]-Simulation_Tab[[#This Row],[Ausgaben Summe]] -> 900 | Z17: =_xlfn.AGGREGATE(9,6,Simulation_Tab[[#This Row],[Immo_EK_Kauf]],Simulation_Tab[[#This Row],[Kaufnebenkosten_EK]],Simulation_Tab[[#This Row],[ETF Investment]]) -> 0 | AA17: =Simulation_Tab[[#This Row],[freier Cashflow ]]-Simulation_Tab[[#This Row],[Investitionen inkl Nk]] -> 900 | AB17: =AB16+Simulation_Tab[[#This Row],[Cashflow]] -> 18100 | AC17: =Simulation_Tab[[#This Row],[Cash]]+Simulation_Tab[[#This Row],[Immo_EK_Bestand]]+Simulation_Tab[[#This Row],[ETF-Wert]] -> 18100
A18: =IF(Simulation_Tab[[#This Row],[Datum]]<>B19,Simulation_Tab[[#This Row],[Datum]],"") ->  | B18: =Parameter!$U$5+Simulation_Tab[[#This Row],[Jahr]]-1 -> 2021 | C18: 2 | D18: 16 | E18: =IF((Parameter!$D$10-Parameter!$D$9)>Simulation_Tab[[#This Row],[Jahr]],"B","R") -> B | F18: =IF(Simulation_Tab[[#This Row],[Beruf/Rente]]="B",(Parameter!$D$14/12)*(1+Parameter!$D$15)^(Simulation_Tab[[#This Row],[Jahr]]-1),(Parameter!$D$14*Konsum_Rente/12)*(1+Parameter!$D$15)^(Simulation_Tab[[#This Row],[Jahr]]-1)) -> 1750 | G18: =Konsum_Kids!L17 -> 0 | H18: =IF(Renteneintritt-Alter>Simulation_Tab[[#This Row],[Jahr]],Parameter!$D$21/12*(1+Parameter!$D$22)^(Simulation_Tab[[#This Row],[Jahr]]-1),0) -> 2650 | I18: =IF(Simulation_Tab[[#This Row],[Beruf/Rente]]="R",INDEX(Renten_Tab[Rentenwert],MATCH(Simulation_Tab[[#This Row],[Datum]],Renten_Tab[Suchjahr],0),1)*Rentenpunkte*Zugangsfaktor,0) -> 0 | J18: =SUM(ETF_blind!AB17:AF17) -> 0 | K18: =ETF_blind!U17 -> 0 | L18: =IFERROR(ETF_blind!AV17,0) -> 0 | M18: =IFERROR(INDEX(Table6[Kaufpreis inkl NK],MATCH(Simulation_Tab[[#This Row],[Suchjahr]],Table6[Jahr],0),1),0) -> 0 | N18: =IFERROR(INDEX(Table6[Wert_Bestand],MATCH(Simulation_Tab[[#This Row],[Suchjahr]],Table6[Jahr],0),1),0) -> 0 | O18: =IFERROR(INDEX(Table6[EK_sum],MATCH(Simulation_Tab[[#This Row],[Suchjahr]],Table6[Jahr],0),1)-INDEX(Table6[Kaufnebenkosten],MATCH(Simulation_Tab[[#This Row],[Suchjahr]],Table6[Jahr],0),1),0) -> 0 | P18: =IFERROR(INDEX(Table6[Kaufnebenkosten],MATCH(Simulation_Tab[[#This Row],[Suchjahr]],Table6[Jahr],0),1),0) -> 0 | Q18: =IFERROR(INDEX(Table6[FK_Bestand],MATCH(Simulation_Tab[[#This Row],[Suchjahr]],Table6[Jahr],0),1),0) -> 0 | R18: =IFERROR(INDEX(Table6[EK_Bestand],MATCH(Simulation_Tab[[#This Row],[Suchjahr]],Table6[Jahr],0),1),0) -> 0 | S18: =INDEX(Table68[Zinsen_Bestand],MATCH(Simulation_Tab[[#This Row],[Datum]],Table68[Jahr],0),1)/12 -> 0 | T18: =INDEX(Table68[Tilgung_Bestand],MATCH(Simulation_Tab[[#This Row],[Datum]],Table68[Jahr],0),1)/12 -> 0 | U18: =INDEX(Table6[Kosten_Bestand],MATCH(Simulation_Tab[[#This Row],[Datum]],Table6[Jahr],0),1)/12 -> 0 | V18: =INDEX(Table6[Miete_Bestand],MATCH(Simulation_Tab[[#This Row],[Datum]],Table6[Jahr],0),1)/12 -> 0 | W18: =Simulation_Tab[[#This Row],[Nettolohn]]+Simulation_Tab[[#This Row],[gesetzliche Rente]]+Simulation_Tab[[#This Row],[Miete]]+IF(Simulation_Tab[[#This Row],[ETF_VK_Gewinn]]>0,Simulation_Tab[[#This Row],[ETF_VK_Gewinn]],0) -> 2650 | X18: =_xlfn.AGGREGATE(9,6,Simulation_Tab[[#This Row],[Konsumausgaben p.M.]]:Simulation_Tab[[#This Row],[Ausgaben Kinder]],Simulation_Tab[[#This Row],[Zinsen]:[n.u. Kosten]])+IF(Simulation_Tab[[#This Row],[ETF_VK_Gewinn]]<0,Simulation_Tab[[#This Row],[ETF_VK_Gewinn]],0)*-1 -> 1750 | Y18: =Simulation_Tab[[#This Row],[Einnahmen Summe]]-Simulation_Tab[[#This Row],[Ausgaben Summe]] -> 900 | Z18: =_xlfn.AGGREGATE(9,6,Simulation_Tab[[#This Row],[Immo_EK_Kauf]],Simulation_Tab[[#This Row],[Kaufnebenkosten_EK]],Simulation_Tab[[#This Row],[ETF Investment]]) -> 0 | AA18: =Simulation_Tab[[#This Row],[freier Cashflow ]]-Simulation_Tab[[#This Row],[Investitionen inkl Nk]] -> 900 | AB18: =AB17+Simulation_Tab[[#This Row],[Cashflow]] -> 19000 | AC18: =Simulation_Tab[[#This Row],[Cash]]+Simulation_Tab[[#This Row],[Immo_EK_Bestand]]+Simulation_Tab[[#This Row],[ETF-Wert]] -> 19000
A19: =IF(Simulation_Tab[[#This Row],[Datum]]<>B20,Simulation_Tab[[#This Row],[Datum]],"") ->  | B19: =Parameter!$U$5+Simulation_Tab[[#This Row],[Jahr]]-1 -> 2021 | C19: 2 | D19: 17 | E19: =IF((Parameter!$D$10-Parameter!$D$9)>Simulation_Tab[[#This Row],[Jahr]],"B","R") -> B | F19: =IF(Simulation_Tab[[#This Row],[Beruf/Rente]]="B",(Parameter!$D$14/12)*(1+Parameter!$D$15)^(Simulation_Tab[[#This Row],[Jahr]]-1),(Parameter!$D$14*Konsum_Rente/12)*(1+Parameter!$D$15)^(Simulation_Tab[[#This Row],[Jahr]]-1)) -> 1750 | G19: =Konsum_Kids!L18 -> 0 | H19: =IF(Renteneintritt-Alter>Simulation_Tab[[#This Row],[Jahr]],Parameter!$D$21/12*(1+Parameter!$D$22)^(Simulation_Tab[[#This Row],[Jahr]]-1),0) -> 2650 | I19: =IF(Simulation_Tab[[#This Row],[Beruf/Rente]]="R",INDEX(Renten_Tab[Rentenwert],MATCH(Simulation_Tab[[#This Row],[Datum]],Renten_Tab[Suchjahr],0),1)*Rentenpunkte*Zugangsfaktor,0) -> 0 | J19: =SUM(ETF_blind!AB18:AF18) -> 0 | K19: =ETF_blind!U18 -> 0 | L19: =IFERROR(ETF_blind!AV18,0) -> 0 | M19: =IFERROR(INDEX(Table6[Kaufpreis inkl NK],MATCH(Simulation_Tab[[#This Row],[Suchjahr]],Table6[Jahr],0),1),0) -> 0 | N19: =IFERROR(INDEX(Table6[Wert_Bestand],MATCH(Simulation_Tab[[#This Row],[Suchjahr]],Table6[Jahr],0),1),0) -> 0 | O19: =IFERROR(INDEX(Table6[EK_sum],MATCH(Simulation_Tab[[#This Row],[Suchjahr]],Table6[Jahr],0),1)-INDEX(Table6[Kaufnebenkosten],MATCH(Simulation_Tab[[#This Row],[Suchjahr]],Table6[Jahr],0),1),0) -> 0 | P19: =IFERROR(INDEX(Table6[Kaufnebenkosten],MATCH(Simulation_Tab[[#This Row],[Suchjahr]],Table6[Jahr],0),1),0) -> 0 | Q19: =IFERROR(INDEX(Table6[FK_Bestand],MATCH(Simulation_Tab[[#This Row],[Suchjahr]],Table6[Jahr],0),1),0) -> 0 | R19: =IFERROR(INDEX(Table6[EK_Bestand],MATCH(Simulation_Tab[[#This Row],[Suchjahr]],Table6[Jahr],0),1),0) -> 0 | S19: =INDEX(Table68[Zinsen_Bestand],MATCH(Simulation_Tab[[#This Row],[Datum]],Table68[Jahr],0),1)/12 -> 0 | T19: =INDEX(Table68[Tilgung_Bestand],MATCH(Simulation_Tab[[#This Row],[Datum]],Table68[Jahr],0),1)/12 -> 0 | U19: =INDEX(Table6[Kosten_Bestand],MATCH(Simulation_Tab[[#This Row],[Datum]],Table6[Jahr],0),1)/12 -> 0 | V19: =INDEX(Table6[Miete_Bestand],MATCH(Simulation_Tab[[#This Row],[Datum]],Table6[Jahr],0),1)/12 -> 0 | W19: =Simulation_Tab[[#This Row],[Nettolohn]]+Simulation_Tab[[#This Row],[gesetzliche Rente]]+Simulation_Tab[[#This Row],[Miete]]+IF(Simulation_Tab[[#This Row],[ETF_VK_Gewinn]]>0,Simulation_Tab[[#This Row],[ETF_VK_Gewinn]],0) -> 2650 | X19: =_xlfn.AGGREGATE(9,6,Simulation_Tab[[#This Row],[Konsumausgaben p.M.]]:Simulation_Tab[[#This Row],[Ausgaben Kinder]],Simulation_Tab[[#This Row],[Zinsen]:[n.u. Kosten]])+IF(Simulation_Tab[[#This Row],[ETF_VK_Gewinn]]<0,Simulation_Tab[[#This Row],[ETF_VK_Gewinn]],0)*-1 -> 1750 | Y19: =Simulation_Tab[[#This Row],[Einnahmen Summe]]-Simulation_Tab[[#This Row],[Ausgaben Summe]] -> 900 | Z19: =_xlfn.AGGREGATE(9,6,Simulation_Tab[[#This Row],[Immo_EK_Kauf]],Simulation_Tab[[#This Row],[Kaufnebenkosten_EK]],Simulation_Tab[[#This Row],[ETF Investment]]) -> 0 | AA19: =Simulation_Tab[[#This Row],[freier Cashflow ]]-Simulation_Tab[[#This Row],[Investitionen inkl Nk]] -> 900 | AB19: =AB18+Simulation_Tab[[#This Row],[Cashflow]] -> 19900 | AC19: =Simulation_Tab[[#This Row],[Cash]]+Simulation_Tab[[#This Row],[Immo_EK_Bestand]]+Simulation_Tab[[#This Row],[ETF-Wert]] -> 19900
A20: =IF(Simulation_Tab[[#This Row],[Datum]]<>B21,Simulation_Tab[[#This Row],[Datum]],"") ->  | B20: =Parameter!$U$5+Simulation_Tab[[#This Row],[Jahr]]-1 -> 2021 | C20: 2 | D20: 18 | E20: =IF((Parameter!$D$10-Parameter!$D$9)>Simulation_Tab[[#This Row],[Jahr]],"B","R") -> B | F20: =IF(Simulation_Tab[[#This Row],[Beruf/Rente]]="B",(Parameter!$D$14/12)*(1+Parameter!$D$15)^(Simulation_Tab[[#This Row],[Jahr]]-1),(Parameter!$D$14*Konsum_Rente/12)*(1+Parameter!$D$15)^(Simulation_Tab[[#This Row],[Jahr]]-1)) -> 1750 | G20: =Konsum_Kids!L19 -> 0 | H20: =IF(Renteneintritt-Alter>Simulation_Tab[[#This Row],[Jahr]],Parameter!$D$21/12*(1+Parameter!$D$22)^(Simulation_Tab[[#This Row],[Jahr]]-1),0) -> 2650 | I20: =IF(Simulation_Tab[[#This Row],[Beruf/Rente]]="R",INDEX(Renten_Tab[Rentenwert],MATCH(Simulation_Tab[[#This Row],[Datum]],Renten_Tab[Suchjahr],0),1)*Rentenpunkte*Zugangsfaktor,0) -> 0 | J20: =SUM(ETF_blind!AB19:AF19) -> 0 | K20: =ETF_blind!U19 -> 0 | L20: =IFERROR(ETF_blind!AV19,0) -> 0 | M20: =IFERROR(INDEX(Table6[Kaufpreis inkl NK],MATCH(Simulation_Tab[[#This Row],[Suchjahr]],Table6[Jahr],0),1),0) -> 0 | N20: =IFERROR(INDEX(Table6[Wert_Bestand],MATCH(Simulation_Tab[[#This Row],[Suchjahr]],Table6[Jahr],0),1),0) -> 0 | O20: =IFERROR(INDEX(Table6[EK_sum],MATCH(Simulation_Tab[[#This Row],[Suchjahr]],Table6[Jahr],0),1)-INDEX(Table6[Kaufnebenkosten],MATCH(Simulation_Tab[[#This Row],[Suchjahr]],Table6[Jahr],0),1),0) -> 0 | P20: =IFERROR(INDEX(Table6[Kaufnebenkosten],MATCH(Simulation_Tab[[#This Row],[Suchjahr]],Table6[Jahr],0),1),0) -> 0 | Q20: =IFERROR(INDEX(Table6[FK_Bestand],MATCH(Simulation_Tab[[#This Row],[Suchjahr]],Table6[Jahr],0),1),0) -> 0 | R20: =IFERROR(INDEX(Table6[EK_Bestand],MATCH(Simulation_Tab[[#This Row],[Suchjahr]],Table6[Jahr],0),1),0) -> 0 | S20: =INDEX(Table68[Zinsen_Bestand],MATCH(Simulation_Tab[[#This Row],[Datum]],Table68[Jahr],0),1)/12 -> 0 | T20: =INDEX(Table68[Tilgung_Bestand],MATCH(Simulation_Tab[[#This Row],[Datum]],Table68[Jahr],0),1)/12 -> 0 | U20: =INDEX(Table6[Kosten_Bestand],MATCH(Simulation_Tab[[#This Row],[Datum]],Table6[Jahr],0),1)/12 -> 0 | V20: =INDEX(Table6[Miete_Bestand],MATCH(Simulation_Tab[[#This Row],[Datum]],Table6[Jahr],0),1)/12 -> 0 | W20: =Simulation_Tab[[#This Row],[Nettolohn]]+Simulation_Tab[[#This Row],[gesetzliche Rente]]+Simulation_Tab[[#This Row],[Miete]]+IF(Simulation_Tab[[#This Row],[ETF_VK_Gewinn]]>0,Simulation_Tab[[#This Row],[ETF_VK_Gewinn]],0) -> 2650 | X20: =_xlfn.AGGREGATE(9,6,Simulation_Tab[[#This Row],[Konsumausgaben p.M.]]:Simulation_Tab[[#This Row],[Ausgaben Kinder]],Simulation_Tab[[#This Row],[Zinsen]:[n.u. Kosten]])+IF(Simulation_Tab[[#This Row],[ETF_VK_Gewinn]]<0,Simulation_Tab[[#This Row],[ETF_VK_Gewinn]],0)*-1 -> 1750 | Y20: =Simulation_Tab[[#This Row],[Einnahmen Summe]]-Simulation_Tab[[#This Row],[Ausgaben Summe]] -> 900 | Z20: =_xlfn.AGGREGATE(9,6,Simulation_Tab[[#This Row],[Immo_EK_Kauf]],Simulation_Tab[[#This Row],[Kaufnebenkosten_EK]],Simulation_Tab[[#This Row],[ETF Investment]]) -> 0 | AA20: =Simulation_Tab[[#This Row],[freier Cashflow ]]-Simulation_Tab[[#This Row],[Investitionen inkl Nk]] -> 900 | AB20: =AB19+Simulation_Tab[[#This Row],[Cashflow]] -> 20800 | AC20: =Simulation_Tab[[#This Row],[Cash]]+Simulation_Tab[[#This Row],[Immo_EK_Bestand]]+Simulation_Tab[[#This Row],[ETF-Wert]] -> 20800
A21: =IF(Simulation_Tab[[#This Row],[Datum]]<>B22,Simulation_Tab[[#This Row],[Datum]],"") ->  | B21: =Parameter!$U$5+Simulation_Tab[[#This Row],[Jahr]]-1 -> 2021 | C21: 2 | D21: 19 | E21: =IF((Parameter!$D$10-Parameter!$D$9)>Simulation_Tab[[#This Row],[Jahr]],"B","R") -> B | F21: =IF(Simulation_Tab[[#This Row],[Beruf/Rente]]="B",(Parameter!$D$14/12)*(1+Parameter!$D$15)^(Simulation_Tab[[#This Row],[Jahr]]-1),(Parameter!$D$14*Konsum_Rente/12)*(1+Parameter!$D$15)^(Simulation_Tab[[#This Row],[Jahr]]-1)) -> 1750 | G21: =Konsum_Kids!L20 -> 0 | H21: =IF(Renteneintritt-Alter>Simulation_Tab[[#This Row],[Jahr]],Parameter!$D$21/12*(1+Parameter!$D$22)^(Simulation_Tab[[#This Row],[Jahr]]-1),0) -> 2650 | I21: =IF(Simulation_Tab[[#This Row],[Beruf/Rente]]="R",INDEX(Renten_Tab[Rentenwert],MATCH(Simulation_Tab[[#This Row],[Datum]],Renten_Tab[Suchjahr],0),1)*Rentenpunkte*Zugangsfaktor,0) -> 0 | J21: =SUM(ETF_blind!AB20:AF20) -> 0 | K21: =ETF_blind!U20 -> 0 | L21: =IFERROR(ETF_blind!AV20,0) -> 0 | M21: =IFERROR(INDEX(Table6[Kaufpreis inkl NK],MATCH(Simulation_Tab[[#This Row],[Suchjahr]],Table6[Jahr],0),1),0) -> 0 | N21: =IFERROR(INDEX(Table6[Wert_Bestand],MATCH(Simulation_Tab[[#This Row],[Suchjahr]],Table6[Jahr],0),1),0) -> 0 | O21: =IFERROR(INDEX(Table6[EK_sum],MATCH(Simulation_Tab[[#This Row],[Suchjahr]],Table6[Jahr],0),1)-INDEX(Table6[Kaufnebenkosten],MATCH(Simulation_Tab[[#This Row],[Suchjahr]],Table6[Jahr],0),1),0) -> 0 | P21: =IFERROR(INDEX(Table6[Kaufnebenkosten],MATCH(Simulation_Tab[[#This Row],[Suchjahr]],Table6[Jahr],0),1),0) -> 0 | Q21: =IFERROR(INDEX(Table6[FK_Bestand],MATCH(Simulation_Tab[[#This Row],[Suchjahr]],Table6[Jahr],0),1),0) -> 0 | R21: =IFERROR(INDEX(Table6[EK_Bestand],MATCH(Simulation_Tab[[#This Row],[Suchjahr]],Table6[Jahr],0),1),0) -> 0 | S21: =INDEX(Table68[Zinsen_Bestand],MATCH(Simulation_Tab[[#This Row],[Datum]],Table68[Jahr],0),1)/12 -> 0 | T21: =INDEX(Table68[Tilgung_Bestand],MATCH(Simulation_Tab[[#This Row],[Datum]],Table68[Jahr],0),1)/12 -> 0 | U21: =INDEX(Table6[Kosten_Bestand],MATCH(Simulation_Tab[[#This Row],[Datum]],Table6[Jahr],0),1)/12 -> 0 | V21: =INDEX(Table6[Miete_Bestand],MATCH(Simulation_Tab[[#This Row],[Datum]],Table6[Jahr],0),1)/12 -> 0 | W21: =Simulation_Tab[[#This Row],[Nettolohn]]+Simulation_Tab[[#This Row],[gesetzliche Rente]]+Simulation_Tab[[#This Row],[Miete]]+IF(Simulation_Tab[[#This Row],[ETF_VK_Gewinn]]>0,Simulation_Tab[[#This Row],[ETF_VK_Gewinn]],0) -> 2650 | X21: =_xlfn.AGGREGATE(9,6,Simulation_Tab[[#This Row],[Konsumausgaben p.M.]]:Simulation_Tab[[#This Row],[Ausgaben Kinder]],Simulation_Tab[[#This Row],[Zinsen]:[n.u. Kosten]])+IF(Simulation_Tab[[#This Row],[ETF_VK_Gewinn]]<0,Simulation_Tab[[#This Row],[ETF_VK_Gewinn]],0)*-1 -> 1750 | Y21: =Simulation_Tab[[#This Row],[Einnahmen Summe]]-Simulation_Tab[[#This Row],[Ausgaben Summe]] -> 900 | Z21: =_xlfn.AGGREGATE(9,6,Simulation_Tab[[#This Row],[Immo_EK_Kauf]],Simulation_Tab[[#This Row],[Kaufnebenkosten_EK]],Simulation_Tab[[#This Row],[ETF Investment]]) -> 0 | AA21: =Simulation_Tab[[#This Row],[freier Cashflow ]]-Simulation_Tab[[#This Row],[Investitionen inkl Nk]] -> 900 | AB21: =AB20+Simulation_Tab[[#This Row],[Cashflow]] -> 21700 | AC21: =Simulation_Tab[[#This Row],[Cash]]+Simulation_Tab[[#This Row],[Immo_EK_Bestand]]+Simulation_Tab[[#This Row],[ETF-Wert]] -> 21700
A22: =IF(Simulation_Tab[[#This Row],[Datum]]<>B23,Simulation_Tab[[#This Row],[Datum]],"") ->  | B22: =Parameter!$U$5+Simulation_Tab[[#This Row],[Jahr]]-1 -> 2021 | C22: 2 | D22: 20 | E22: =IF((Parameter!$D$10-Parameter!$D$9)>Simulation_Tab[[#This Row],[Jahr]],"B","R") -> B | F22: =IF(Simulation_Tab[[#This Row],[Beruf/Rente]]="B",(Parameter!$D$14/12)*(1+Parameter!$D$15)^(Simulation_Tab[[#This Row],[Jahr]]-1),(Parameter!$D$14*Konsum_Rente/12)*(1+Parameter!$D$15)^(Simulation_Tab[[#This Row],[Jahr]]-1)) -> 1750 | G22: =Konsum_Kids!L21 -> 0 | H22: =IF(Renteneintritt-Alter>Simulation_Tab[[#This Row],[Jahr]],Parameter!$D$21/12*(1+Parameter!$D$22)^(Simulation_Tab[[#This Row],[Jahr]]-1),0) -> 2650 | I22: =IF(Simulation_Tab[[#This Row],[Beruf/Rente]]="R",INDEX(Renten_Tab[Rentenwert],MATCH(Simulation_Tab[[#This Row],[Datum]],Renten_Tab[Suchjahr],0),1)*Rentenpunkte*Zugangsfaktor,0) -> 0 | J22: =SUM(ETF_blind!AB21:AF21) -> 0 | K22: =ETF_blind!U21 -> 0 | L22: =IFERROR(ETF_blind!AV21,0) -> 0 | M22: =IFERROR(INDEX(Table6[Kaufpreis inkl NK],MATCH(Simulation_Tab[[#This Row],[Suchjahr]],Table6[Jahr],0),1),0) -> 0 | N22: =IFERROR(INDEX(Table6[Wert_Bestand],MATCH(Simulation_Tab[[#This Row],[Suchjahr]],Table6[Jahr],0),1),0) -> 0 | O22: =IFERROR(INDEX(Table6[EK_sum],MATCH(Simulation_Tab[[#This Row],[Suchjahr]],Table6[Jahr],0),1)-INDEX(Table6[Kaufnebenkosten],MATCH(Simulation_Tab[[#This Row],[Suchjahr]],Table6[Jahr],0),1),0) -> 0 | P22: =IFERROR(INDEX(Table6[Kaufnebenkosten],MATCH(Simulation_Tab[[#This Row],[Suchjahr]],Table6[Jahr],0),1),0) -> 0 | Q22: =IFERROR(INDEX(Table6[FK_Bestand],MATCH(Simulation_Tab[[#This Row],[Suchjahr]],Table6[Jahr],0),1),0) -> 0 | R22: =IFERROR(INDEX(Table6[EK_Bestand],MATCH(Simulation_Tab[[#This Row],[Suchjahr]],Table6[Jahr],0),1),0) -> 0 | S22: =INDEX(Table68[Zinsen_Bestand],MATCH(Simulation_Tab[[#This Row],[Datum]],Table68[Jahr],0),1)/12 -> 0 | T22: =INDEX(Table68[Tilgung_Bestand],MATCH(Simulation_Tab[[#This Row],[Datum]],Table68[Jahr],0),1)/12 -> 0 | U22: =INDEX(Table6[Kosten_Bestand],MATCH(Simulation_Tab[[#This Row],[Datum]],Table6[Jahr],0),1)/12 -> 0 | V22: =INDEX(Table6[Miete_Bestand],MATCH(Simulation_Tab[[#This Row],[Datum]],Table6[Jahr],0),1)/12 -> 0 | W22: =Simulation_Tab[[#This Row],[Nettolohn]]+Simulation_Tab[[#This Row],[gesetzliche Rente]]+Simulation_Tab[[#This Row],[Miete]]+IF(Simulation_Tab[[#This Row],[ETF_VK_Gewinn]]>0,Simulation_Tab[[#This Row],[ETF_VK_Gewinn]],0) -> 2650 | X22: =_xlfn.AGGREGATE(9,6,Simulation_Tab[[#This Row],[Konsumausgaben p.M.]]:Simulation_Tab[[#This Row],[Ausgaben Kinder]],Simulation_Tab[[#This Row],[Zinsen]:[n.u. Kosten]])+IF(Simulation_Tab[[#This Row],[ETF_VK_Gewinn]]<0,Simulation_Tab[[#This Row],[ETF_VK_Gewinn]],0)*-1 -> 1750 | Y22: =Simulation_Tab[[#This Row],[Einnahmen Summe]]-Simulation_Tab[[#This Row],[Ausgaben Summe]] -> 900 | Z22: =_xlfn.AGGREGATE(9,6,Simulation_Tab[[#This Row],[Immo_EK_Kauf]],Simulation_Tab[[#This Row],[Kaufnebenkosten_EK]],Simulation_Tab[[#This Row],[ETF Investment]]) -> 0 | AA22: =Simulation_Tab[[#This Row],[freier Cashflow ]]-Simulation_Tab[[#This Row],[Investitionen inkl Nk]] -> 900 | AB22: =AB21+Simulation_Tab[[#This Row],[Cashflow]] -> 22600 | AC22: =Simulation_Tab[[#This Row],[Cash]]+Simulation_Tab[[#This Row],[Immo_EK_Bestand]]+Simulation_Tab[[#This Row],[ETF-Wert]] -> 22600
A23: =IF(Simulation_Tab[[#This Row],[Datum]]<>B24,Simulation_Tab[[#This Row],[Datum]],"") ->  | B23: =Parameter!$U$5+Simulation_Tab[[#This Row],[Jahr]]-1 -> 2021 | C23: 2 | D23: 21 | E23: =IF((Parameter!$D$10-Parameter!$D$9)>Simulation_Tab[[#This Row],[Jahr]],"B","R") -> B | F23: =IF(Simulation_Tab[[#This Row],[Beruf/Rente]]="B",(Parameter!$D$14/12)*(1+Parameter!$D$15)^(Simulation_Tab[[#This Row],[Jahr]]-1),(Parameter!$D$14*Konsum_Rente/12)*(1+Parameter!$D$15)^(Simulation_Tab[[#This Row],[Jahr]]-1)) -> 1750 | G23: =Konsum_Kids!L22 -> 0 | H23: =IF(Renteneintritt-Alter>Simulation_Tab[[#This Row],[Jahr]],Parameter!$D$21/12*(1+Parameter!$D$22)^(Simulation_Tab[[#This Row],[Jahr]]-1),0) -> 2650 | I23: =IF(Simulation_Tab[[#This Row],[Beruf/Rente]]="R",INDEX(Renten_Tab[Rentenwert],MATCH(Simulation_Tab[[#This Row],[Datum]],Renten_Tab[Suchjahr],0),1)*Rentenpunkte*Zugangsfaktor,0) -> 0 | J23: =SUM(ETF_blind!AB22:AF22) -> 0 | K23: =ETF_blind!U22 -> 0 | L23: =IFERROR(ETF_blind!AV22,0) -> 0 | M23: =IFERROR(INDEX(Table6[Kaufpreis inkl NK],MATCH(Simulation_Tab[[#This Row],[Suchjahr]],Table6[Jahr],0),1),0) -> 0 | N23: =IFERROR(INDEX(Table6[Wert_Bestand],MATCH(Simulation_Tab[[#This Row],[Suchjahr]],Table6[Jahr],0),1),0) -> 0 | O23: =IFERROR(INDEX(Table6[EK_sum],MATCH(Simulation_Tab[[#This Row],[Suchjahr]],Table6[Jahr],0),1)-INDEX(Table6[Kaufnebenkosten],MATCH(Simulation_Tab[[#This Row],[Suchjahr]],Table6[Jahr],0),1),0) -> 0 | P23: =IFERROR(INDEX(Table6[Kaufnebenkosten],MATCH(Simulation_Tab[[#This Row],[Suchjahr]],Table6[Jahr],0),1),0) -> 0 | Q23: =IFERROR(INDEX(Table6[FK_Bestand],MATCH(Simulation_Tab[[#This Row],[Suchjahr]],Table6[Jahr],0),1),0) -> 0 | R23: =IFERROR(INDEX(Table6[EK_Bestand],MATCH(Simulation_Tab[[#This Row],[Suchjahr]],Table6[Jahr],0),1),0) -> 0 | S23: =INDEX(Table68[Zinsen_Bestand],MATCH(Simulation_Tab[[#This Row],[Datum]],Table68[Jahr],0),1)/12 -> 0 | T23: =INDEX(Table68[Tilgung_Bestand],MATCH(Simulation_Tab[[#This Row],[Datum]],Table68[Jahr],0),1)/12 -> 0 | U23: =INDEX(Table6[Kosten_Bestand],MATCH(Simulation_Tab[[#This Row],[Datum]],Table6[Jahr],0),1)/12 -> 0 | V23: =INDEX(Table6[Miete_Bestand],MATCH(Simulation_Tab[[#This Row],[Datum]],Table6[Jahr],0),1)/12 -> 0 | W23: =Simulation_Tab[[#This Row],[Nettolohn]]+Simulation_Tab[[#This Row],[gesetzliche Rente]]+Simulation_Tab[[#This Row],[Miete]]+IF(Simulation_Tab[[#This Row],[ETF_VK_Gewinn]]>0,Simulation_Tab[[#This Row],[ETF_VK_Gewinn]],0) -> 2650 | X23: =_xlfn.AGGREGATE(9,6,Simulation_Tab[[#This Row],[Konsumausgaben p.M.]]:Simulation_Tab[[#This Row],[Ausgaben Kinder]],Simulation_Tab[[#This Row],[Zinsen]:[n.u. Kosten]])+IF(Simulation_Tab[[#This Row],[ETF_VK_Gewinn]]<0,Simulation_Tab[[#This Row],[ETF_VK_Gewinn]],0)*-1 -> 1750 | Y23: =Simulation_Tab[[#This Row],[Einnahmen Summe]]-Simulation_Tab[[#This Row],[Ausgaben Summe]] -> 900 | Z23: =_xlfn.AGGREGATE(9,6,Simulation_Tab[[#This Row],[Immo_EK_Kauf]],Simulation_Tab[[#This Row],[Kaufnebenkosten_EK]],Simulation_Tab[[#This Row],[ETF Investment]]) -> 0 | AA23: =Simulation_Tab[[#This Row],[freier Cashflow ]]-Simulation_Tab[[#This Row],[Investitionen inkl Nk]] -> 900 | AB23: =AB22+Simulation_Tab[[#This Row],[Cashflow]] -> 23500 | AC23: =Simulation_Tab[[#This Row],[Cash]]+Simulation_Tab[[#This Row],[Immo_EK_Bestand]]+Simulation_Tab[[#This Row],[ETF-Wert]] -> 23500
A24: =IF(Simulation_Tab[[#This Row],[Datum]]<>B25,Simulation_Tab[[#This Row],[Datum]],"") ->  | B24: =Parameter!$U$5+Simulation_Tab[[#This Row],[Jahr]]-1 -> 2021 | C24: 2 | D24: 22 | E24: =IF((Parameter!$D$10-Parameter!$D$9)>Simulation_Tab[[#This Row],[Jahr]],"B","R") -> B | F24: =IF(Simulation_Tab[[#This Row],[Beruf/Rente]]="B",(Parameter!$D$14/12)*(1+Parameter!$D$15)^(Simulation_Tab[[#This Row],[Jahr]]-1),(Parameter!$D$14*Konsum_Rente/12)*(1+Parameter!$D$15)^(Simulation_Tab[[#This Row],[Jahr]]-1)) -> 1750 | G24: =Konsum_Kids!L23 -> 0 | H24: =IF(Renteneintritt-Alter>Simulation_Tab[[#This Row],[Jahr]],Parameter!$D$21/12*(1+Parameter!$D$22)^(Simulation_Tab[[#This Row],[Jahr]]-1),0) -> 2650 | I24: =IF(Simulation_Tab[[#This Row],[Beruf/Rente]]="R",INDEX(Renten_Tab[Rentenwert],MATCH(Simulation_Tab[[#This Row],[Datum]],Renten_Tab[Suchjahr],0),1)*Rentenpunkte*Zugangsfaktor,0) -> 0 | J24: =SUM(ETF_blind!AB23:AF23) -> 0 | K24: =ETF_blind!U23 -> 0 | L24: =IFERROR(ETF_blind!AV23,0) -> 0 | M24: =IFERROR(INDEX(Table6[Kaufpreis inkl NK],MATCH(Simulation_Tab[[#This Row],[Suchjahr]],Table6[Jahr],0),1),0) -> 0 | N24: =IFERROR(INDEX(Table6[Wert_Bestand],MATCH(Simulation_Tab[[#This Row],[Suchjahr]],Table6[Jahr],0),1),0) -> 0 | O24: =IFERROR(INDEX(Table6[EK_sum],MATCH(Simulation_Tab[[#This Row],[Suchjahr]],Table6[Jahr],0),1)-INDEX(Table6[Kaufnebenkosten],MATCH(Simulation_Tab[[#This Row],[Suchjahr]],Table6[Jahr],0),1),0) -> 0 | P24: =IFERROR(INDEX(Table6[Kaufnebenkosten],MATCH(Simulation_Tab[[#This Row],[Suchjahr]],Table6[Jahr],0),1),0) -> 0 | Q24: =IFERROR(INDEX(Table6[FK_Bestand],MATCH(Simulation_Tab[[#This Row],[Suchjahr]],Table6[Jahr],0),1),0) -> 0 | R24: =IFERROR(INDEX(Table6[EK_Bestand],MATCH(Simulation_Tab[[#This Row],[Suchjahr]],Table6[Jahr],0),1),0) -> 0 | S24: =INDEX(Table68[Zinsen_Bestand],MATCH(Simulation_Tab[[#This Row],[Datum]],Table68[Jahr],0),1)/12 -> 0 | T24: =INDEX(Table68[Tilgung_Bestand],MATCH(Simulation_Tab[[#This Row],[Datum]],Table68[Jahr],0),1)/12 -> 0 | U24: =INDEX(Table6[Kosten_Bestand],MATCH(Simulation_Tab[[#This Row],[Datum]],Table6[Jahr],0),1)/12 -> 0 | V24: =INDEX(Table6[Miete_Bestand],MATCH(Simulation_Tab[[#This Row],[Datum]],Table6[Jahr],0),1)/12 -> 0 | W24: =Simulation_Tab[[#This Row],[Nettolohn]]+Simulation_Tab[[#This Row],[gesetzliche Rente]]+Simulation_Tab[[#This Row],[Miete]]+IF(Simulation_Tab[[#This Row],[ETF_VK_Gewinn]]>0,Simulation_Tab[[#This Row],[ETF_VK_Gewinn]],0) -> 2650 | X24: =_xlfn.AGGREGATE(9,6,Simulation_Tab[[#This Row],[Konsumausgaben p.M.]]:Simulation_Tab[[#This Row],[Ausgaben Kinder]],Simulation_Tab[[#This Row],[Zinsen]:[n.u. Kosten]])+IF(Simulation_Tab[[#This Row],[ETF_VK_Gewinn]]<0,Simulation_Tab[[#This Row],[ETF_VK_Gewinn]],0)*-1 -> 1750 | Y24: =Simulation_Tab[[#This Row],[Einnahmen Summe]]-Simulation_Tab[[#This Row],[Ausgaben Summe]] -> 900 | Z24: =_xlfn.AGGREGATE(9,6,Simulation_Tab[[#This Row],[Immo_EK_Kauf]],Simulation_Tab[[#This Row],[Kaufnebenkosten_EK]],Simulation_Tab[[#This Row],[ETF Investment]]) -> 0 | AA24: =Simulation_Tab[[#This Row],[freier Cashflow ]]-Simulation_Tab[[#This Row],[Investitionen inkl Nk]] -> 900 | AB24: =AB23+Simulation_Tab[[#This Row],[Cashflow]] -> 24400 | AC24: =Simulation_Tab[[#This Row],[Cash]]+Simulation_Tab[[#This Row],[Immo_EK_Bestand]]+Simulation_Tab[[#This Row],[ETF-Wert]] -> 24400
A25: =IF(Simulation_Tab[[#This Row],[Datum]]<>B26,Simulation_Tab[[#This Row],[Datum]],"") ->  | B25: =Parameter!$U$5+Simulation_Tab[[#This Row],[Jahr]]-1 -> 2021 | C25: 2 | D25: 23 | E25: =IF((Parameter!$D$10-Parameter!$D$9)>Simulation_Tab[[#This Row],[Jahr]],"B","R") -> B | F25: =IF(Simulation_Tab[[#This Row],[Beruf/Rente]]="B",(Parameter!$D$14/12)*(1+Parameter!$D$15)^(Simulation_Tab[[#This Row],[Jahr]]-1),(Parameter!$D$14*Konsum_Rente/12)*(1+Parameter!$D$15)^(Simulation_Tab[[#This Row],[Jahr]]-1)) -> 1750 | G25: =Konsum_Kids!L24 -> 0 | H25: =IF(Renteneintritt-Alter>Simulation_Tab[[#This Row],[Jahr]],Parameter!$D$21/12*(1+Parameter!$D$22)^(Simulation_Tab[[#This Row],[Jahr]]-1),0) -> 2650 | I25: =IF(Simulation_Tab[[#This Row],[Beruf/Rente]]="R",INDEX(Renten_Tab[Rentenwert],MATCH(Simulation_Tab[[#This Row],[Datum]],Renten_Tab[Suchjahr],0),1)*Rentenpunkte*Zugangsfaktor,0) -> 0 | J25: =SUM(ETF_blind!AB24:AF24) -> 0 | K25: =ETF_blind!U24 -> 0 | L25: =IFERROR(ETF_blind!AV24,0) -> 0 | M25: =IFERROR(INDEX(Table6[Kaufpreis inkl NK],MATCH(Simulation_Tab[[#This Row],[Suchjahr]],Table6[Jahr],0),1),0) -> 0 | N25: =IFERROR(INDEX(Table6[Wert_Bestand],MATCH(Simulation_Tab[[#This Row],[Suchjahr]],Table6[Jahr],0),1),0) -> 0 | O25: =IFERROR(INDEX(Table6[EK_sum],MATCH(Simulation_Tab[[#This Row],[Suchjahr]],Table6[Jahr],0),1)-INDEX(Table6[Kaufnebenkosten],MATCH(Simulation_Tab[[#This Row],[Suchjahr]],Table6[Jahr],0),1),0) -> 0 | P25: =IFERROR(INDEX(Table6[Kaufnebenkosten],MATCH(Simulation_Tab[[#This Row],[Suchjahr]],Table6[Jahr],0),1),0) -> 0 | Q25: =IFERROR(INDEX(Table6[FK_Bestand],MATCH(Simulation_Tab[[#This Row],[Suchjahr]],Table6[Jahr],0),1),0) -> 0 | R25: =IFERROR(INDEX(Table6[EK_Bestand],MATCH(Simulation_Tab[[#This Row],[Suchjahr]],Table6[Jahr],0),1),0) -> 0 | S25: =INDEX(Table68[Zinsen_Bestand],MATCH(Simulation_Tab[[#This Row],[Datum]],Table68[Jahr],0),1)/12 -> 0 | T25: =INDEX(Table68[Tilgung_Bestand],MATCH(Simulation_Tab[[#This Row],[Datum]],Table68[Jahr],0),1)/12 -> 0 | U25: =INDEX(Table6[Kosten_Bestand],MATCH(Simulation_Tab[[#This Row],[Datum]],Table6[Jahr],0),1)/12 -> 0 | V25: =INDEX(Table6[Miete_Bestand],MATCH(Simulation_Tab[[#This Row],[Datum]],Table6[Jahr],0),1)/12 -> 0 | W25: =Simulation_Tab[[#This Row],[Nettolohn]]+Simulation_Tab[[#This Row],[gesetzliche Rente]]+Simulation_Tab[[#This Row],[Miete]]+IF(Simulation_Tab[[#This Row],[ETF_VK_Gewinn]]>0,Simulation_Tab[[#This Row],[ETF_VK_Gewinn]],0) -> 2650 | X25: =_xlfn.AGGREGATE(9,6,Simulation_Tab[[#This Row],[Konsumausgaben p.M.]]:Simulation_Tab[[#This Row],[Ausgaben Kinder]],Simulation_Tab[[#This Row],[Zinsen]:[n.u. Kosten]])+IF(Simulation_Tab[[#This Row],[ETF_VK_Gewinn]]<0,Simulation_Tab[[#This Row],[ETF_VK_Gewinn]],0)*-1 -> 1750 | Y25: =Simulation_Tab[[#This Row],[Einnahmen Summe]]-Simulation_Tab[[#This Row],[Ausgaben Summe]] -> 900 | Z25: =_xlfn.AGGREGATE(9,6,Simulation_Tab[[#This Row],[Immo_EK_Kauf]],Simulation_Tab[[#This Row],[Kaufnebenkosten_EK]],Simulation_Tab[[#This Row],[ETF Investment]]) -> 0 | AA25: =Simulation_Tab[[#This Row],[freier Cashflow ]]-Simulation_Tab[[#This Row],[Investitionen inkl Nk]] -> 900 | AB25: =AB24+Simulation_Tab[[#This Row],[Cashflow]] -> 25300 | AC25: =Simulation_Tab[[#This Row],[Cash]]+Simulation_Tab[[#This Row],[Immo_EK_Bestand]]+Simulation_Tab[[#This Row],[ETF-Wert]] -> 25300
A26: =IF(Simulation_Tab[[#This Row],[Datum]]<>B27,Simulation_Tab[[#This Row],[Datum]],"") -> 2021 | B26: =Parameter!$U$5+Simulation_Tab[[#This Row],[Jahr]]-1 -> 2021 | C26: 2 | D26: 24 | E26: =IF((Parameter!$D$10-Parameter!$D$9)>Simulation_Tab[[#This Row],[Jahr]],"B","R") -> B | F26: =IF(Simulation_Tab[[#This Row],[Beruf/Rente]]="B",(Parameter!$D$14/12)*(1+Parameter!$D$15)^(Simulation_Tab[[#This Row],[Jahr]]-1),(Parameter!$D$14*Konsum_Rente/12)*(1+Parameter!$D$15)^(Simulation_Tab[[#This Row],[Jahr]]-1)) -> 1750 | G26: =Konsum_Kids!L25 -> 0 | H26: =IF(Renteneintritt-Alter>Simulation_Tab[[#This Row],[Jahr]],Parameter!$D$21/12*(1+Parameter!$D$22)^(Simulation_Tab[[#This Row],[Jahr]]-1),0) -> 2650 | I26: =IF(Simulation_Tab[[#This Row],[Beruf/Rente]]="R",INDEX(Renten_Tab[Rentenwert],MATCH(Simulation_Tab[[#This Row],[Datum]],Renten_Tab[Suchjahr],0),1)*Rentenpunkte*Zugangsfaktor,0) -> 0 | J26: =SUM(ETF_blind!AB25:AF25) -> 0 | K26: =ETF_blind!U25 -> 0 | L26: =IFERROR(ETF_blind!AV25,0) -> 0 | M26: =IFERROR(INDEX(Table6[Kaufpreis inkl NK],MATCH(Simulation_Tab[[#This Row],[Suchjahr]],Table6[Jahr],0),1),0) -> 0 | N26: =IFERROR(INDEX(Table6[Wert_Bestand],MATCH(Simulation_Tab[[#This Row],[Suchjahr]],Table6[Jahr],0),1),0) -> 0 | O26: =IFERROR(INDEX(Table6[EK_sum],MATCH(Simulation_Tab[[#This Row],[Suchjahr]],Table6[Jahr],0),1)-INDEX(Table6[Kaufnebenkosten],MATCH(Simulation_Tab[[#This Row],[Suchjahr]],Table6[Jahr],0),1),0) -> 0 | P26: =IFERROR(INDEX(Table6[Kaufnebenkosten],MATCH(Simulation_Tab[[#This Row],[Suchjahr]],Table6[Jahr],0),1),0) -> 0 | Q26: =IFERROR(INDEX(Table6[FK_Bestand],MATCH(Simulation_Tab[[#This Row],[Suchjahr]],Table6[Jahr],0),1),0) -> 0 | R26: =IFERROR(INDEX(Table6[EK_Bestand],MATCH(Simulation_Tab[[#This Row],[Suchjahr]],Table6[Jahr],0),1),0) -> 0 | S26: =INDEX(Table68[Zinsen_Bestand],MATCH(Simulation_Tab[[#This Row],[Datum]],Table68[Jahr],0),1)/12 -> 0 | T26: =INDEX(Table68[Tilgung_Bestand],MATCH(Simulation_Tab[[#This Row],[Datum]],Table68[Jahr],0),1)/12 -> 0 | U26: =INDEX(Table6[Kosten_Bestand],MATCH(Simulation_Tab[[#This Row],[Datum]],Table6[Jahr],0),1)/12 -> 0 | V26: =INDEX(Table6[Miete_Bestand],MATCH(Simulation_Tab[[#This Row],[Datum]],Table6[Jahr],0),1)/12 -> 0 | W26: =Simulation_Tab[[#This Row],[Nettolohn]]+Simulation_Tab[[#This Row],[gesetzliche Rente]]+Simulation_Tab[[#This Row],[Miete]]+IF(Simulation_Tab[[#This Row],[ETF_VK_Gewinn]]>0,Simulation_Tab[[#This Row],[ETF_VK_Gewinn]],0) -> 2650 | X26: =_xlfn.AGGREGATE(9,6,Simulation_Tab[[#This Row],[Konsumausgaben p.M.]]:Simulation_Tab[[#This Row],[Ausgaben Kinder]],Simulation_Tab[[#This Row],[Zinsen]:[n.u. Kosten]])+IF(Simulation_Tab[[#This Row],[ETF_VK_Gewinn]]<0,Simulation_Tab[[#This Row],[ETF_VK_Gewinn]],0)*-1 -> 1750 | Y26: =Simulation_Tab[[#This Row],[Einnahmen Summe]]-Simulation_Tab[[#This Row],[Ausgaben Summe]] -> 900 | Z26: =_xlfn.AGGREGATE(9,6,Simulation_Tab[[#This Row],[Immo_EK_Kauf]],Simulation_Tab[[#This Row],[Kaufnebenkosten_EK]],Simulation_Tab[[#This Row],[ETF Investment]]) -> 0 | AA26: =Simulation_Tab[[#This Row],[freier Cashflow ]]-Simulation_Tab[[#This Row],[Investitionen inkl Nk]] -> 900 | AB26: =AB25+Simulation_Tab[[#This Row],[Cashflow]] -> 26200 | AC26: =Simulation_Tab[[#This Row],[Cash]]+Simulation_Tab[[#This Row],[Immo_EK_Bestand]]+Simulation_Tab[[#This Row],[ETF-Wert]] -> 26200
A27: =IF(Simulation_Tab[[#This Row],[Datum]]<>B28,Simulation_Tab[[#This Row],[Datum]],"") ->  | B27: =Parameter!$U$5+Simulation_Tab[[#This Row],[Jahr]]-1 -> 2022 | C27: 3 | D27: 25 | E27: =IF((Parameter!$D$10-Parameter!$D$9)>Simulation_Tab[[#This Row],[Jahr]],"B","R") -> B | F27: =IF(Simulation_Tab[[#This Row],[Beruf/Rente]]="B",(Parameter!$D$14/12)*(1+Parameter!$D$15)^(Simulation_Tab[[#This Row],[Jahr]]-1),(Parameter!$D$14*Konsum_Rente/12)*(1+Parameter!$D$15)^(Simulation_Tab[[#This Row],[Jahr]]-1)) -> 1837.5 | G27: =Konsum_Kids!L26 -> 0 | H27: =IF(Renteneintritt-Alter>Simulation_Tab[[#This Row],[Jahr]],Parameter!$D$21/12*(1+Parameter!$D$22)^(Simulation_Tab[[#This Row],[Jahr]]-1),0) -> 2809 | I27: =IF(Simulation_Tab[[#This Row],[Beruf/Rente]]="R",INDEX(Renten_Tab[Rentenwert],MATCH(Simulation_Tab[[#This Row],[Datum]],Renten_Tab[Suchjahr],0),1)*Rentenpunkte*Zugangsfaktor,0) -> 0 | J27: =SUM(ETF_blind!AB26:AF26) -> 0 | K27: =ETF_blind!U26 -> 0 | L27: =IFERROR(ETF_blind!AV26,0) -> 0 | M27: =IFERROR(INDEX(Table6[Kaufpreis inkl NK],MATCH(Simulation_Tab[[#This Row],[Suchjahr]],Table6[Jahr],0),1),0) -> 0 | N27: =IFERROR(INDEX(Table6[Wert_Bestand],MATCH(Simulation_Tab[[#This Row],[Suchjahr]],Table6[Jahr],0),1),0) -> 0 | O27: =IFERROR(INDEX(Table6[EK_sum],MATCH(Simulation_Tab[[#This Row],[Suchjahr]],Table6[Jahr],0),1)-INDEX(Table6[Kaufnebenkosten],MATCH(Simulation_Tab[[#This Row],[Suchjahr]],Table6[Jahr],0),1),0) -> 0 | P27: =IFERROR(INDEX(Table6[Kaufnebenkosten],MATCH(Simulation_Tab[[#This Row],[Suchjahr]],Table6[Jahr],0),1),0) -> 0 | Q27: =IFERROR(INDEX(Table6[FK_Bestand],MATCH(Simulation_Tab[[#This Row],[Suchjahr]],Table6[Jahr],0),1),0) -> 0 | R27: =IFERROR(INDEX(Table6[EK_Bestand],MATCH(Simulation_Tab[[#This Row],[Suchjahr]],Table6[Jahr],0),1),0) -> 0 | S27: =INDEX(Table68[Zinsen_Bestand],MATCH(Simulation_Tab[[#This Row],[Datum]],Table68[Jahr],0),1)/12 -> 0 | T27: =INDEX(Table68[Tilgung_Bestand],MATCH(Simulation_Tab[[#This Row],[Datum]],Table68[Jahr],0),1)/12 -> 0 | U27: =INDEX(Table6[Kosten_Bestand],MATCH(Simulation_Tab[[#This Row],[Datum]],Table6[Jahr],0),1)/12 -> 0 | V27: =INDEX(Table6[Miete_Bestand],MATCH(Simulation_Tab[[#This Row],[Datum]],Table6[Jahr],0),1)/12 -> 0 | W27: =Simulation_Tab[[#This Row],[Nettolohn]]+Simulation_Tab[[#This Row],[gesetzliche Rente]]+Simulation_Tab[[#This Row],[Miete]]+IF(Simulation_Tab[[#This Row],[ETF_VK_Gewinn]]>0,Simulation_Tab[[#This Row],[ETF_VK_Gewinn]],0) -> 2809 | X27: =_xlfn.AGGREGATE(9,6,Simulation_Tab[[#This Row],[Konsumausgaben p.M.]]:Simulation_Tab[[#This Row],[Ausgaben Kinder]],Simulation_Tab[[#This Row],[Zinsen]:[n.u. Kosten]])+IF(Simulation_Tab[[#This Row],[ETF_VK_Gewinn]]<0,Simulation_Tab[[#This Row],[ETF_VK_Gewinn]],0)*-1 -> 1837.5 | Y27: =Simulation_Tab[[#This Row],[Einnahmen Summe]]-Simulation_Tab[[#This Row],[Ausgaben Summe]] -> 971.5 | Z27: =_xlfn.AGGREGATE(9,6,Simulation_Tab[[#This Row],[Immo_EK_Kauf]],Simulation_Tab[[#This Row],[Kaufnebenkosten_EK]],Simulation_Tab[[#This Row],[ETF Investment]]) -> 0 | AA27: =Simulation_Tab[[#This Row],[freier Cashflow ]]-Simulation_Tab[[#This Row],[Investitionen inkl Nk]] -> 971.5 | AB27: =AB26+Simulation_Tab[[#This Row],[Cashflow]] -> 27171.5 | AC27: =Simulation_Tab[[#This Row],[Cash]]+Simulation_Tab[[#This Row],[Immo_EK_Bestand]]+Simulation_Tab[[#This Row],[ETF-Wert]] -> 27171.5
A28: =IF(Simulation_Tab[[#This Row],[Datum]]<>B29,Simulation_Tab[[#This Row],[Datum]],"") ->  | B28: =Parameter!$U$5+Simulation_Tab[[#This Row],[Jahr]]-1 -> 2022 | C28: 3 | D28: 26 | E28: =IF((Parameter!$D$10-Parameter!$D$9)>Simulation_Tab[[#This Row],[Jahr]],"B","R") -> B | F28: =IF(Simulation_Tab[[#This Row],[Beruf/Rente]]="B",(Parameter!$D$14/12)*(1+Parameter!$D$15)^(Simulation_Tab[[#This Row],[Jahr]]-1),(Parameter!$D$14*Konsum_Rente/12)*(1+Parameter!$D$15)^(Simulation_Tab[[#This Row],[Jahr]]-1)) -> 1837.5 | G28: =Konsum_Kids!L27 -> 0 | H28: =IF(Renteneintritt-Alter>Simulation_Tab[[#This Row],[Jahr]],Parameter!$D$21/12*(1+Parameter!$D$22)^(Simulation_Tab[[#This Row],[Jahr]]-1),0) -> 2809 | I28: =IF(Simulation_Tab[[#This Row],[Beruf/Rente]]="R",INDEX(Renten_Tab[Rentenwert],MATCH(Simulation_Tab[[#This Row],[Datum]],Renten_Tab[Suchjahr],0),1)*Rentenpunkte*Zugangsfaktor,0) -> 0 | J28: =SUM(ETF_blind!AB27:AF27) -> 0 | K28: =ETF_blind!U27 -> 0 | L28: =IFERROR(ETF_blind!AV27,0) -> 0 | M28: =IFERROR(INDEX(Table6[Kaufpreis inkl NK],MATCH(Simulation_Tab[[#This Row],[Suchjahr]],Table6[Jahr],0),1),0) -> 0 | N28: =IFERROR(INDEX(Table6[Wert_Bestand],MATCH(Simulation_Tab[[#This Row],[Suchjahr]],Table6[Jahr],0),1),0) -> 0 | O28: =IFERROR(INDEX(Table6[EK_sum],MATCH(Simulation_Tab[[#This Row],[Suchjahr]],Table6[Jahr],0),1)-INDEX(Table6[Kaufnebenkosten],MATCH(Simulation_Tab[[#This Row],[Suchjahr]],Table6[Jahr],0),1),0) -> 0 | P28: =IFERROR(INDEX(Table6[Kaufnebenkosten],MATCH(Simulation_Tab[[#This Row],[Suchjahr]],Table6[Jahr],0),1),0) -> 0 | Q28: =IFERROR(INDEX(Table6[FK_Bestand],MATCH(Simulation_Tab[[#This Row],[Suchjahr]],Table6[Jahr],0),1),0) -> 0 | R28: =IFERROR(INDEX(Table6[EK_Bestand],MATCH(Simulation_Tab[[#This Row],[Suchjahr]],Table6[Jahr],0),1),0) -> 0 | S28: =INDEX(Table68[Zinsen_Bestand],MATCH(Simulation_Tab[[#This Row],[Datum]],Table68[Jahr],0),1)/12 -> 0 | T28: =INDEX(Table68[Tilgung_Bestand],MATCH(Simulation_Tab[[#This Row],[Datum]],Table68[Jahr],0),1)/12 -> 0 | U28: =INDEX(Table6[Kosten_Bestand],MATCH(Simulation_Tab[[#This Row],[Datum]],Table6[Jahr],0),1)/12 -> 0 | V28: =INDEX(Table6[Miete_Bestand],MATCH(Simulation_Tab[[#This Row],[Datum]],Table6[Jahr],0),1)/12 -> 0 | W28: =Simulation_Tab[[#This Row],[Nettolohn]]+Simulation_Tab[[#This Row],[gesetzliche Rente]]+Simulation_Tab[[#This Row],[Miete]]+IF(Simulation_Tab[[#This Row],[ETF_VK_Gewinn]]>0,Simulation_Tab[[#This Row],[ETF_VK_Gewinn]],0) -> 2809 | X28: =_xlfn.AGGREGATE(9,6,Simulation_Tab[[#This Row],[Konsumausgaben p.M.]]:Simulation_Tab[[#This Row],[Ausgaben Kinder]],Simulation_Tab[[#This Row],[Zinsen]:[n.u. Kosten]])+IF(Simulation_Tab[[#This Row],[ETF_VK_Gewinn]]<0,Simulation_Tab[[#This Row],[ETF_VK_Gewinn]],0)*-1 -> 1837.5 | Y28: =Simulation_Tab[[#This Row],[Einnahmen Summe]]-Simulation_Tab[[#This Row],[Ausgaben Summe]] -> 971.5 | Z28: =_xlfn.AGGREGATE(9,6,Simulation_Tab[[#This Row],[Immo_EK_Kauf]],Simulation_Tab[[#This Row],[Kaufnebenkosten_EK]],Simulation_Tab[[#This Row],[ETF Investment]]) -> 0 | AA28: =Simulation_Tab[[#This Row],[freier Cashflow ]]-Simulation_Tab[[#This Row],[Investitionen inkl Nk]] -> 971.5 | AB28: =AB27+Simulation_Tab[[#This Row],[Cashflow]] -> 28143 | AC28: =Simulation_Tab[[#This Row],[Cash]]+Simulation_Tab[[#This Row],[Immo_EK_Bestand]]+Simulation_Tab[[#This Row],[ETF-Wert]] -> 28143
A29: =IF(Simulation_Tab[[#This Row],[Datum]]<>B30,Simulation_Tab[[#This Row],[Datum]],"") ->  | B29: =Parameter!$U$5+Simulation_Tab[[#This Row],[Jahr]]-1 -> 2022 | C29: 3 | D29: 27 | E29: =IF((Parameter!$D$10-Parameter!$D$9)>Simulation_Tab[[#This Row],[Jahr]],"B","R") -> B | F29: =IF(Simulation_Tab[[#This Row],[Beruf/Rente]]="B",(Parameter!$D$14/12)*(1+Parameter!$D$15)^(Simulation_Tab[[#This Row],[Jahr]]-1),(Parameter!$D$14*Konsum_Rente/12)*(1+Parameter!$D$15)^(Simulation_Tab[[#This Row],[Jahr]]-1)) -> 1837.5 | G29: =Konsum_Kids!L28 -> 0 | H29: =IF(Renteneintritt-Alter>Simulation_Tab[[#This Row],[Jahr]],Parameter!$D$21/12*(1+Parameter!$D$22)^(Simulation_Tab[[#This Row],[Jahr]]-1),0) -> 2809 | I29: =IF(Simulation_Tab[[#This Row],[Beruf/Rente]]="R",INDEX(Renten_Tab[Rentenwert],MATCH(Simulation_Tab[[#This Row],[Datum]],Renten_Tab[Suchjahr],0),1)*Rentenpunkte*Zugangsfaktor,0) -> 0 | J29: =SUM(ETF_blind!AB28:AF28) -> 0 | K29: =ETF_blind!U28 -> 0 | L29: =IFERROR(ETF_blind!AV28,0) -> 0 | M29: =IFERROR(INDEX(Table6[Kaufpreis inkl NK],MATCH(Simulation_Tab[[#This Row],[Suchjahr]],Table6[Jahr],0),1),0) -> 0 | N29: =IFERROR(INDEX(Table6[Wert_Bestand],MATCH(Simulation_Tab[[#This Row],[Suchjahr]],Table6[Jahr],0),1),0) -> 0 | O29: =IFERROR(INDEX(Table6[EK_sum],MATCH(Simulation_Tab[[#This Row],[Suchjahr]],Table6[Jahr],0),1)-INDEX(Table6[Kaufnebenkosten],MATCH(Simulation_Tab[[#This Row],[Suchjahr]],Table6[Jahr],0),1),0) -> 0 | P29: =IFERROR(INDEX(Table6[Kaufnebenkosten],MATCH(Simulation_Tab[[#This Row],[Suchjahr]],Table6[Jahr],0),1),0) -> 0 | Q29: =IFERROR(INDEX(Table6[FK_Bestand],MATCH(Simulation_Tab[[#This Row],[Suchjahr]],Table6[Jahr],0),1),0) -> 0 | R29: =IFERROR(INDEX(Table6[EK_Bestand],MATCH(Simulation_Tab[[#This Row],[Suchjahr]],Table6[Jahr],0),1),0) -> 0 | S29: =INDEX(Table68[Zinsen_Bestand],MATCH(Simulation_Tab[[#This Row],[Datum]],Table68[Jahr],0),1)/12 -> 0 | T29: =INDEX(Table68[Tilgung_Bestand],MATCH(Simulation_Tab[[#This Row],[Datum]],Table68[Jahr],0),1)/12 -> 0 | U29: =INDEX(Table6[Kosten_Bestand],MATCH(Simulation_Tab[[#This Row],[Datum]],Table6[Jahr],0),1)/12 -> 0 | V29: =INDEX(Table6[Miete_Bestand],MATCH(Simulation_Tab[[#This Row],[Datum]],Table6[Jahr],0),1)/12 -> 0 | W29: =Simulation_Tab[[#This Row],[Nettolohn]]+Simulation_Tab[[#This Row],[gesetzliche Rente]]+Simulation_Tab[[#This Row],[Miete]]+IF(Simulation_Tab[[#This Row],[ETF_VK_Gewinn]]>0,Simulation_Tab[[#This Row],[ETF_VK_Gewinn]],0) -> 2809 | X29: =_xlfn.AGGREGATE(9,6,Simulation_Tab[[#This Row],[Konsumausgaben p.M.]]:Simulation_Tab[[#This Row],[Ausgaben Kinder]],Simulation_Tab[[#This Row],[Zinsen]:[n.u. Kosten]])+IF(Simulation_Tab[[#This Row],[ETF_VK_Gewinn]]<0,Simulation_Tab[[#This Row],[ETF_VK_Gewinn]],0)*-1 -> 1837.5 | Y29: =Simulation_Tab[[#This Row],[Einnahmen Summe]]-Simulation_Tab[[#This Row],[Ausgaben Summe]] -> 971.5 | Z29: =_xlfn.AGGREGATE(9,6,Simulation_Tab[[#This Row],[Immo_EK_Kauf]],Simulation_Tab[[#This Row],[Kaufnebenkosten_EK]],Simulation_Tab[[#This Row],[ETF Investment]]) -> 0 | AA29: =Simulation_Tab[[#This Row],[freier Cashflow ]]-Simulation_Tab[[#This Row],[Investitionen inkl Nk]] -> 971.5 | AB29: =AB28+Simulation_Tab[[#This Row],[Cashflow]] -> 29114.5 | AC29: =Simulation_Tab[[#This Row],[Cash]]+Simulation_Tab[[#This Row],[Immo_EK_Bestand]]+Simulation_Tab[[#This Row],[ETF-Wert]] -> 29114.5
A30: =IF(Simulation_Tab[[#This Row],[Datum]]<>B31,Simulation_Tab[[#This Row],[Datum]],"") ->  | B30: =Parameter!$U$5+Simulation_Tab[[#This Row],[Jahr]]-1 -> 2022 | C30: 3 | D30: 28 | E30: =IF((Parameter!$D$10-Parameter!$D$9)>Simulation_Tab[[#This Row],[Jahr]],"B","R") -> B | F30: =IF(Simulation_Tab[[#This Row],[Beruf/Rente]]="B",(Parameter!$D$14/12)*(1+Parameter!$D$15)^(Simulation_Tab[[#This Row],[Jahr]]-1),(Parameter!$D$14*Konsum_Rente/12)*(1+Parameter!$D$15)^(Simulation_Tab[[#This Row],[Jahr]]-1)) -> 1837.5 | G30: =Konsum_Kids!L29 -> 0 | H30: =IF(Renteneintritt-Alter>Simulation_Tab[[#This Row],[Jahr]],Parameter!$D$21/12*(1+Parameter!$D$22)^(Simulation_Tab[[#This Row],[Jahr]]-1),0) -> 2809 | I30: =IF(Simulation_Tab[[#This Row],[Beruf/Rente]]="R",INDEX(Renten_Tab[Rentenwert],MATCH(Simulation_Tab[[#This Row],[Datum]],Renten_Tab[Suchjahr],0),1)*Rentenpunkte*Zugangsfaktor,0) -> 0 | J30: =SUM(ETF_blind!AB29:AF29) -> 0 | K30: =ETF_blind!U29 -> 0 | L30: =IFERROR(ETF_blind!AV29,0) -> 0 | M30: =IFERROR(INDEX(Table6[Kaufpreis inkl NK],MATCH(Simulation_Tab[[#This Row],[Suchjahr]],Table6[Jahr],0),1),0) -> 0 | N30: =IFERROR(INDEX(Table6[Wert_Bestand],MATCH(Simulation_Tab[[#This Row],[Suchjahr]],Table6[Jahr],0),1),0) -> 0 | O30: =IFERROR(INDEX(Table6[EK_sum],MATCH(Simulation_Tab[[#This Row],[Suchjahr]],Table6[Jahr],0),1)-INDEX(Table6[Kaufnebenkosten],MATCH(Simulation_Tab[[#This Row],[Suchjahr]],Table6[Jahr],0),1),0) -> 0 | P30: =IFERROR(INDEX(Table6[Kaufnebenkosten],MATCH(Simulation_Tab[[#This Row],[Suchjahr]],Table6[Jahr],0),1),0) -> 0 | Q30: =IFERROR(INDEX(Table6[FK_Bestand],MATCH(Simulation_Tab[[#This Row],[Suchjahr]],Table6[Jahr],0),1),0) -> 0 | R30: =IFERROR(INDEX(Table6[EK_Bestand],MATCH(Simulation_Tab[[#This Row],[Suchjahr]],Table6[Jahr],0),1),0) -> 0 | S30: =INDEX(Table68[Zinsen_Bestand],MATCH(Simulation_Tab[[#This Row],[Datum]],Table68[Jahr],0),1)/12 -> 0 | T30: =INDEX(Table68[Tilgung_Bestand],MATCH(Simulation_Tab[[#This Row],[Datum]],Table68[Jahr],0),1)/12 -> 0 | U30: =INDEX(Table6[Kosten_Bestand],MATCH(Simulation_Tab[[#This Row],[Datum]],Table6[Jahr],0),1)/12 -> 0 | V30: =INDEX(Table6[Miete_Bestand],MATCH(Simulation_Tab[[#This Row],[Datum]],Table6[Jahr],0),1)/12 -> 0 | W30: =Simulation_Tab[[#This Row],[Nettolohn]]+Simulation_Tab[[#This Row],[gesetzliche Rente]]+Simulation_Tab[[#This Row],[Miete]]+IF(Simulation_Tab[[#This Row],[ETF_VK_Gewinn]]>0,Simulation_Tab[[#This Row],[ETF_VK_Gewinn]],0) -> 2809 | X30: =_xlfn.AGGREGATE(9,6,Simulation_Tab[[#This Row],[Konsumausgaben p.M.]]:Simulation_Tab[[#This Row],[Ausgaben Kinder]],Simulation_Tab[[#This Row],[Zinsen]:[n.u. Kosten]])+IF(Simulation_Tab[[#This Row],[ETF_VK_Gewinn]]<0,Simulation_Tab[[#This Row],[ETF_VK_Gewinn]],0)*-1 -> 1837.5 | Y30: =Simulation_Tab[[#This Row],[Einnahmen Summe]]-Simulation_Tab[[#This Row],[Ausgaben Summe]] -> 971.5 | Z30: =_xlfn.AGGREGATE(9,6,Simulation_Tab[[#This Row],[Immo_EK_Kauf]],Simulation_Tab[[#This Row],[Kaufnebenkosten_EK]],Simulation_Tab[[#This Row],[ETF Investment]]) -> 0 | AA30: =Simulation_Tab[[#This Row],[freier Cashflow ]]-Simulation_Tab[[#This Row],[Investitionen inkl Nk]] -> 971.5 | AB30: =AB29+Simulation_Tab[[#This Row],[Cashflow]] -> 30086 | AC30: =Simulation_Tab[[#This Row],[Cash]]+Simulation_Tab[[#This Row],[Immo_EK_Bestand]]+Simulation_Tab[[#This Row],[ETF-Wert]] -> 30086
A31: =IF(Simulation_Tab[[#This Row],[Datum]]<>B32,Simulation_Tab[[#This Row],[Datum]],"") ->  | B31: =Parameter!$U$5+Simulation_Tab[[#This Row],[Jahr]]-1 -> 2022 | C31: 3 | D31: 29 | E31: =IF((Parameter!$D$10-Parameter!$D$9)>Simulation_Tab[[#This Row],[Jahr]],"B","R") -> B | F31: =IF(Simulation_Tab[[#This Row],[Beruf/Rente]]="B",(Parameter!$D$14/12)*(1+Parameter!$D$15)^(Simulation_Tab[[#This Row],[Jahr]]-1),(Parameter!$D$14*Konsum_Rente/12)*(1+Parameter!$D$15)^(Simulation_Tab[[#This Row],[Jahr]]-1)) -> 1837.5 | G31: =Konsum_Kids!L30 -> 0 | H31: =IF(Renteneintritt-Alter>Simulation_Tab[[#This Row],[Jahr]],Parameter!$D$21/12*(1+Parameter!$D$22)^(Simulation_Tab[[#This Row],[Jahr]]-1),0) -> 2809 | I31: =IF(Simulation_Tab[[#This Row],[Beruf/Rente]]="R",INDEX(Renten_Tab[Rentenwert],MATCH(Simulation_Tab[[#This Row],[Datum]],Renten_Tab[Suchjahr],0),1)*Rentenpunkte*Zugangsfaktor,0) -> 0 | J31: =SUM(ETF_blind!AB30:AF30) -> 0 | K31: =ETF_blind!U30 -> 0 | L31: =IFERROR(ETF_blind!AV30,0) -> 0 | M31: =IFERROR(INDEX(Table6[Kaufpreis inkl NK],MATCH(Simulation_Tab[[#This Row],[Suchjahr]],Table6[Jahr],0),1),0) -> 0 | N31: =IFERROR(INDEX(Table6[Wert_Bestand],MATCH(Simulation_Tab[[#This Row],[Suchjahr]],Table6[Jahr],0),1),0) -> 0 | O31: =IFERROR(INDEX(Table6[EK_sum],MATCH(Simulation_Tab[[#This Row],[Suchjahr]],Table6[Jahr],0),1)-INDEX(Table6[Kaufnebenkosten],MATCH(Simulation_Tab[[#This Row],[Suchjahr]],Table6[Jahr],0),1),0) -> 0 | P31: =IFERROR(INDEX(Table6[Kaufnebenkosten],MATCH(Simulation_Tab[[#This Row],[Suchjahr]],Table6[Jahr],0),1),0) -> 0 | Q31: =IFERROR(INDEX(Table6[FK_Bestand],MATCH(Simulation_Tab[[#This Row],[Suchjahr]],Table6[Jahr],0),1),0) -> 0 | R31: =IFERROR(INDEX(Table6[EK_Bestand],MATCH(Simulation_Tab[[#This Row],[Suchjahr]],Table6[Jahr],0),1),0) -> 0 | S31: =INDEX(Table68[Zinsen_Bestand],MATCH(Simulation_Tab[[#This Row],[Datum]],Table68[Jahr],0),1)/12 -> 0 | T31: =INDEX(Table68[Tilgung_Bestand],MATCH(Simulation_Tab[[#This Row],[Datum]],Table68[Jahr],0),1)/12 -> 0 | U31: =INDEX(Table6[Kosten_Bestand],MATCH(Simulation_Tab[[#This Row],[Datum]],Table6[Jahr],0),1)/12 -> 0 | V31: =INDEX(Table6[Miete_Bestand],MATCH(Simulation_Tab[[#This Row],[Datum]],Table6[Jahr],0),1)/12 -> 0 | W31: =Simulation_Tab[[#This Row],[Nettolohn]]+Simulation_Tab[[#This Row],[gesetzliche Rente]]+Simulation_Tab[[#This Row],[Miete]]+IF(Simulation_Tab[[#This Row],[ETF_VK_Gewinn]]>0,Simulation_Tab[[#This Row],[ETF_VK_Gewinn]],0) -> 2809 | X31: =_xlfn.AGGREGATE(9,6,Simulation_Tab[[#This Row],[Konsumausgaben p.M.]]:Simulation_Tab[[#This Row],[Ausgaben Kinder]],Simulation_Tab[[#This Row],[Zinsen]:[n.u. Kosten]])+IF(Simulation_Tab[[#This Row],[ETF_VK_Gewinn]]<0,Simulation_Tab[[#This Row],[ETF_VK_Gewinn]],0)*-1 -> 1837.5 | Y31: =Simulation_Tab[[#This Row],[Einnahmen Summe]]-Simulation_Tab[[#This Row],[Ausgaben Summe]] -> 971.5 | Z31: =_xlfn.AGGREGATE(9,6,Simulation_Tab[[#This Row],[Immo_EK_Kauf]],Simulation_Tab[[#This Row],[Kaufnebenkosten_EK]],Simulation_Tab[[#This Row],[ETF Investment]]) -> 0 | AA31: =Simulation_Tab[[#This Row],[freier Cashflow ]]-Simulation_Tab[[#This Row],[Investitionen inkl Nk]] -> 971.5 | AB31: =AB30+Simulation_Tab[[#This Row],[Cashflow]] -> 31057.5 | AC31: =Simulation_Tab[[#This Row],[Cash]]+Simulation_Tab[[#This Row],[Immo_EK_Bestand]]+Simulation_Tab[[#This Row],[ETF-Wert]] -> 31057.5
A32: =IF(Simulation_Tab[[#This Row],[Datum]]<>B33,Simulation_Tab[[#This Row],[Datum]],"") ->  | B32: =Parameter!$U$5+Simulation_Tab[[#This Row],[Jahr]]-1 -> 2022 | C32: 3 | D32: 30 | E32: =IF((Parameter!$D$10-Parameter!$D$9)>Simulation_Tab[[#This Row],[Jahr]],"B","R") -> B | F32: =IF(Simulation_Tab[[#This Row],[Beruf/Rente]]="B",(Parameter!$D$14/12)*(1+Parameter!$D$15)^(Simulation_Tab[[#This Row],[Jahr]]-1),(Parameter!$D$14*Konsum_Rente/12)*(1+Parameter!$D$15)^(Simulation_Tab[[#This Row],[Jahr]]-1)) -> 1837.5 | G32: =Konsum_Kids!L31 -> 0 | H32: =IF(Renteneintritt-Alter>Simulation_Tab[[#This Row],[Jahr]],Parameter!$D$21/12*(1+Parameter!$D$22)^(Simulation_Tab[[#This Row],[Jahr]]-1),0) -> 2809 | I32: =IF(Simulation_Tab[[#This Row],[Beruf/Rente]]="R",INDEX(Renten_Tab[Rentenwert],MATCH(Simulation_Tab[[#This Row],[Datum]],Renten_Tab[Suchjahr],0),1)*Rentenpunkte*Zugangsfaktor,0) -> 0 | J32: =SUM(ETF_blind!AB31:AF31) -> 0 | K32: =ETF_blind!U31 -> 0 | L32: =IFERROR(ETF_blind!AV31,0) -> 0 | M32: =IFERROR(INDEX(Table6[Kaufpreis inkl NK],MATCH(Simulation_Tab[[#This Row],[Suchjahr]],Table6[Jahr],0),1),0) -> 0 | N32: =IFERROR(INDEX(Table6[Wert_Bestand],MATCH(Simulation_Tab[[#This Row],[Suchjahr]],Table6[Jahr],0),1),0) -> 0 | O32: =IFERROR(INDEX(Table6[EK_sum],MATCH(Simulation_Tab[[#This Row],[Suchjahr]],Table6[Jahr],0),1)-INDEX(Table6[Kaufnebenkosten],MATCH(Simulation_Tab[[#This Row],[Suchjahr]],Table6[Jahr],0),1),0) -> 0 | P32: =IFERROR(INDEX(Table6[Kaufnebenkosten],MATCH(Simulation_Tab[[#This Row],[Suchjahr]],Table6[Jahr],0),1),0) -> 0 | Q32: =IFERROR(INDEX(Table6[FK_Bestand],MATCH(Simulation_Tab[[#This Row],[Suchjahr]],Table6[Jahr],0),1),0) -> 0 | R32: =IFERROR(INDEX(Table6[EK_Bestand],MATCH(Simulation_Tab[[#This Row],[Suchjahr]],Table6[Jahr],0),1),0) -> 0 | S32: =INDEX(Table68[Zinsen_Bestand],MATCH(Simulation_Tab[[#This Row],[Datum]],Table68[Jahr],0),1)/12 -> 0 | T32: =INDEX(Table68[Tilgung_Bestand],MATCH(Simulation_Tab[[#This Row],[Datum]],Table68[Jahr],0),1)/12 -> 0 | U32: =INDEX(Table6[Kosten_Bestand],MATCH(Simulation_Tab[[#This Row],[Datum]],Table6[Jahr],0),1)/12 -> 0 | V32: =INDEX(Table6[Miete_Bestand],MATCH(Simulation_Tab[[#This Row],[Datum]],Table6[Jahr],0),1)/12 -> 0 | W32: =Simulation_Tab[[#This Row],[Nettolohn]]+Simulation_Tab[[#This Row],[gesetzliche Rente]]+Simulation_Tab[[#This Row],[Miete]]+IF(Simulation_Tab[[#This Row],[ETF_VK_Gewinn]]>0,Simulation_Tab[[#This Row],[ETF_VK_Gewinn]],0) -> 2809 | X32: =_xlfn.AGGREGATE(9,6,Simulation_Tab[[#This Row],[Konsumausgaben p.M.]]:Simulation_Tab[[#This Row],[Ausgaben Kinder]],Simulation_Tab[[#This Row],[Zinsen]:[n.u. Kosten]])+IF(Simulation_Tab[[#This Row],[ETF_VK_Gewinn]]<0,Simulation_Tab[[#This Row],[ETF_VK_Gewinn]],0)*-1 -> 1837.5 | Y32: =Simulation_Tab[[#This Row],[Einnahmen Summe]]-Simulation_Tab[[#This Row],[Ausgaben Summe]] -> 971.5 | Z32: =_xlfn.AGGREGATE(9,6,Simulation_Tab[[#This Row],[Immo_EK_Kauf]],Simulation_Tab[[#This Row],[Kaufnebenkosten_EK]],Simulation_Tab[[#This Row],[ETF Investment]]) -> 0 | AA32: =Simulation_Tab[[#This Row],[freier Cashflow ]]-Simulation_Tab[[#This Row],[Investitionen inkl Nk]] -> 971.5 | AB32: =AB31+Simulation_Tab[[#This Row],[Cashflow]] -> 32029 | AC32: =Simulation_Tab[[#This Row],[Cash]]+Simulation_Tab[[#This Row],[Immo_EK_Bestand]]+Simulation_Tab[[#This Row],[ETF-Wert]] -> 32029
A33: =IF(Simulation_Tab[[#This Row],[Datum]]<>B34,Simulation_Tab[[#This Row],[Datum]],"") ->  | B33: =Parameter!$U$5+Simulation_Tab[[#This Row],[Jahr]]-1 -> 2022 | C33: 3 | D33: 31 | E33: =IF((Parameter!$D$10-Parameter!$D$9)>Simulation_Tab[[#This Row],[Jahr]],"B","R") -> B | F33: =IF(Simulation_Tab[[#This Row],[Beruf/Rente]]="B",(Parameter!$D$14/12)*(1+Parameter!$D$15)^(Simulation_Tab[[#This Row],[Jahr]]-1),(Parameter!$D$14*Konsum_Rente/12)*(1+Parameter!$D$15)^(Simulation_Tab[[#This Row],[Jahr]]-1)) -> 1837.5 | G33: =Konsum_Kids!L32 -> 0 | H33: =IF(Renteneintritt-Alter>Simulation_Tab[[#This Row],[Jahr]],Parameter!$D$21/12*(1+Parameter!$D$22)^(Simulation_Tab[[#This Row],[Jahr]]-1),0) -> 2809 | I33: =IF(Simulation_Tab[[#This Row],[Beruf/Rente]]="R",INDEX(Renten_Tab[Rentenwert],MATCH(Simulation_Tab[[#This Row],[Datum]],Renten_Tab[Suchjahr],0),1)*Rentenpunkte*Zugangsfaktor,0) -> 0 | J33: =SUM(ETF_blind!AB32:AF32) -> 0 | K33: =ETF_blind!U32 -> 0 | L33: =IFERROR(ETF_blind!AV32,0) -> 0 | M33: =IFERROR(INDEX(Table6[Kaufpreis inkl NK],MATCH(Simulation_Tab[[#This Row],[Suchjahr]],Table6[Jahr],0),1),0) -> 0 | N33: =IFERROR(INDEX(Table6[Wert_Bestand],MATCH(Simulation_Tab[[#This Row],[Suchjahr]],Table6[Jahr],0),1),0) -> 0 | O33: =IFERROR(INDEX(Table6[EK_sum],MATCH(Simulation_Tab[[#This Row],[Suchjahr]],Table6[Jahr],0),1)-INDEX(Table6[Kaufnebenkosten],MATCH(Simulation_Tab[[#This Row],[Suchjahr]],Table6[Jahr],0),1),0) -> 0 | P33: =IFERROR(INDEX(Table6[Kaufnebenkosten],MATCH(Simulation_Tab[[#This Row],[Suchjahr]],Table6[Jahr],0),1),0) -> 0 | Q33: =IFERROR(INDEX(Table6[FK_Bestand],MATCH(Simulation_Tab[[#This Row],[Suchjahr]],Table6[Jahr],0),1),0) -> 0 | R33: =IFERROR(INDEX(Table6[EK_Bestand],MATCH(Simulation_Tab[[#This Row],[Suchjahr]],Table6[Jahr],0),1),0) -> 0 | S33: =INDEX(Table68[Zinsen_Bestand],MATCH(Simulation_Tab[[#This Row],[Datum]],Table68[Jahr],0),1)/12 -> 0 | T33: =INDEX(Table68[Tilgung_Bestand],MATCH(Simulation_Tab[[#This Row],[Datum]],Table68[Jahr],0),1)/12 -> 0 | U33: =INDEX(Table6[Kosten_Bestand],MATCH(Simulation_Tab[[#This Row],[Datum]],Table6[Jahr],0),1)/12 -> 0 | V33: =INDEX(Table6[Miete_Bestand],MATCH(Simulation_Tab[[#This Row],[Datum]],Table6[Jahr],0),1)/12 -> 0 | W33: =Simulation_Tab[[#This Row],[Nettolohn]]+Simulation_Tab[[#This Row],[gesetzliche Rente]]+Simulation_Tab[[#This Row],[Miete]]+IF(Simulation_Tab[[#This Row],[ETF_VK_Gewinn]]>0,Simulation_Tab[[#This Row],[ETF_VK_Gewinn]],0) -> 2809 | X33: =_xlfn.AGGREGATE(9,6,Simulation_Tab[[#This Row],[Konsumausgaben p.M.]]:Simulation_Tab[[#This Row],[Ausgaben Kinder]],Simulation_Tab[[#This Row],[Zinsen]:[n.u. Kosten]])+IF(Simulation_Tab[[#This Row],[ETF_VK_Gewinn]]<0,Simulation_Tab[[#This Row],[ETF_VK_Gewinn]],0)*-1 -> 1837.5 | Y33: =Simulation_Tab[[#This Row],[Einnahmen Summe]]-Simulation_Tab[[#This Row],[Ausgaben Summe]] -> 971.5 | Z33: =_xlfn.AGGREGATE(9,6,Simulation_Tab[[#This Row],[Immo_EK_Kauf]],Simulation_Tab[[#This Row],[Kaufnebenkosten_EK]],Simulation_Tab[[#This Row],[ETF Investment]]) -> 0 | AA33: =Simulation_Tab[[#This Row],[freier Cashflow ]]-Simulation_Tab[[#This Row],[Investitionen inkl Nk]] -> 971.5 | AB33: =AB32+Simulation_Tab[[#This Row],[Cashflow]] -> 33000.5 | AC33: =Simulation_Tab[[#This Row],[Cash]]+Simulation_Tab[[#This Row],[Immo_EK_Bestand]]+Simulation_Tab[[#This Row],[ETF-Wert]] -> 33000.5
A34: =IF(Simulation_Tab[[#This Row],[Datum]]<>B35,Simulation_Tab[[#This Row],[Datum]],"") ->  | B34: =Parameter!$U$5+Simulation_Tab[[#This Row],[Jahr]]-1 -> 2022 | C34: 3 | D34: 32 | E34: =IF((Parameter!$D$10-Parameter!$D$9)>Simulation_Tab[[#This Row],[Jahr]],"B","R") -> B | F34: =IF(Simulation_Tab[[#This Row],[Beruf/Rente]]="B",(Parameter!$D$14/12)*(1+Parameter!$D$15)^(Simulation_Tab[[#This Row],[Jahr]]-1),(Parameter!$D$14*Konsum_Rente/12)*(1+Parameter!$D$15)^(Simulation_Tab[[#This Row],[Jahr]]-1)) -> 1837.5 | G34: =Konsum_Kids!L33 -> 0 | H34: =IF(Renteneintritt-Alter>Simulation_Tab[[#This Row],[Jahr]],Parameter!$D$21/12*(1+Parameter!$D$22)^(Simulation_Tab[[#This Row],[Jahr]]-1),0) -> 2809 | I34: =IF(Simulation_Tab[[#This Row],[Beruf/Rente]]="R",INDEX(Renten_Tab[Rentenwert],MATCH(Simulation_Tab[[#This Row],[Datum]],Renten_Tab[Suchjahr],0),1)*Rentenpunkte*Zugangsfaktor,0) -> 0 | J34: =SUM(ETF_blind!AB33:AF33) -> 0 | K34: =ETF_blind!U33 -> 0 | L34: =IFERROR(ETF_blind!AV33,0) -> 0 | M34: =IFERROR(INDEX(Table6[Kaufpreis inkl NK],MATCH(Simulation_Tab[[#This Row],[Suchjahr]],Table6[Jahr],0),1),0) -> 0 | N34: =IFERROR(INDEX(Table6[Wert_Bestand],MATCH(Simulation_Tab[[#This Row],[Suchjahr]],Table6[Jahr],0),1),0) -> 0 | O34: =IFERROR(INDEX(Table6[EK_sum],MATCH(Simulation_Tab[[#This Row],[Suchjahr]],Table6[Jahr],0),1)-INDEX(Table6[Kaufnebenkosten],MATCH(Simulation_Tab[[#This Row],[Suchjahr]],Table6[Jahr],0),1),0) -> 0 | P34: =IFERROR(INDEX(Table6[Kaufnebenkosten],MATCH(Simulation_Tab[[#This Row],[Suchjahr]],Table6[Jahr],0),1),0) -> 0 | Q34: =IFERROR(INDEX(Table6[FK_Bestand],MATCH(Simulation_Tab[[#This Row],[Suchjahr]],Table6[Jahr],0),1),0) -> 0 | R34: =IFERROR(INDEX(Table6[EK_Bestand],MATCH(Simulation_Tab[[#This Row],[Suchjahr]],Table6[Jahr],0),1),0) -> 0 | S34: =INDEX(Table68[Zinsen_Bestand],MATCH(Simulation_Tab[[#This Row],[Datum]],Table68[Jahr],0),1)/12 -> 0 | T34: =INDEX(Table68[Tilgung_Bestand],MATCH(Simulation_Tab[[#This Row],[Datum]],Table68[Jahr],0),1)/12 -> 0 | U34: =INDEX(Table6[Kosten_Bestand],MATCH(Simulation_Tab[[#This Row],[Datum]],Table6[Jahr],0),1)/12 -> 0 | V34: =INDEX(Table6[Miete_Bestand],MATCH(Simulation_Tab[[#This Row],[Datum]],Table6[Jahr],0),1)/12 -> 0 | W34: =Simulation_Tab[[#This Row],[Nettolohn]]+Simulation_Tab[[#This Row],[gesetzliche Rente]]+Simulation_Tab[[#This Row],[Miete]]+IF(Simulation_Tab[[#This Row],[ETF_VK_Gewinn]]>0,Simulation_Tab[[#This Row],[ETF_VK_Gewinn]],0) -> 2809 | X34: =_xlfn.AGGREGATE(9,6,Simulation_Tab[[#This Row],[Konsumausgaben p.M.]]:Simulation_Tab[[#This Row],[Ausgaben Kinder]],Simulation_Tab[[#This Row],[Zinsen]:[n.u. Kosten]])+IF(Simulation_Tab[[#This Row],[ETF_VK_Gewinn]]<0,Simulation_Tab[[#This Row],[ETF_VK_Gewinn]],0)*-1 -> 1837.5 | Y34: =Simulation_Tab[[#This Row],[Einnahmen Summe]]-Simulation_Tab[[#This Row],[Ausgaben Summe]] -> 971.5 | Z34: =_xlfn.AGGREGATE(9,6,Simulation_Tab[[#This Row],[Immo_EK_Kauf]],Simulation_Tab[[#This Row],[Kaufnebenkosten_EK]],Simulation_Tab[[#This Row],[ETF Investment]]) -> 0 | AA34: =Simulation_Tab[[#This Row],[freier Cashflow ]]-Simulation_Tab[[#This Row],[Investitionen inkl Nk]] -> 971.5 | AB34: =AB33+Simulation_Tab[[#This Row],[Cashflow]] -> 33972 | AC34: =Simulation_Tab[[#This Row],[Cash]]+Simulation_Tab[[#This Row],[Immo_EK_Bestand]]+Simulation_Tab[[#This Row],[ETF-Wert]] -> 33972
A35: =IF(Simulation_Tab[[#This Row],[Datum]]<>B36,Simulation_Tab[[#This Row],[Datum]],"") ->  | B35: =Parameter!$U$5+Simulation_Tab[[#This Row],[Jahr]]-1 -> 2022 | C35: 3 | D35: 33 | E35: =IF((Parameter!$D$10-Parameter!$D$9)>Simulation_Tab[[#This Row],[Jahr]],"B","R") -> B | F35: =IF(Simulation_Tab[[#This Row],[Beruf/Rente]]="B",(Parameter!$D$14/12)*(1+Parameter!$D$15)^(Simulation_Tab[[#This Row],[Jahr]]-1),(Parameter!$D$14*Konsum_Rente/12)*(1+Parameter!$D$15)^(Simulation_Tab[[#This Row],[Jahr]]-1)) -> 1837.5 | G35: =Konsum_Kids!L34 -> 0 | H35: =IF(Renteneintritt-Alter>Simulation_Tab[[#This Row],[Jahr]],Parameter!$D$21/12*(1+Parameter!$D$22)^(Simulation_Tab[[#This Row],[Jahr]]-1),0) -> 2809 | I35: =IF(Simulation_Tab[[#This Row],[Beruf/Rente]]="R",INDEX(Renten_Tab[Rentenwert],MATCH(Simulation_Tab[[#This Row],[Datum]],Renten_Tab[Suchjahr],0),1)*Rentenpunkte*Zugangsfaktor,0) -> 0 | J35: =SUM(ETF_blind!AB34:AF34) -> 0 | K35: =ETF_blind!U34 -> 0 | L35: =IFERROR(ETF_blind!AV34,0) -> 0 | M35: =IFERROR(INDEX(Table6[Kaufpreis inkl NK],MATCH(Simulation_Tab[[#This Row],[Suchjahr]],Table6[Jahr],0),1),0) -> 0 | N35: =IFERROR(INDEX(Table6[Wert_Bestand],MATCH(Simulation_Tab[[#This Row],[Suchjahr]],Table6[Jahr],0),1),0) -> 0 | O35: =IFERROR(INDEX(Table6[EK_sum],MATCH(Simulation_Tab[[#This Row],[Suchjahr]],Table6[Jahr],0),1)-INDEX(Table6[Kaufnebenkosten],MATCH(Simulation_Tab[[#This Row],[Suchjahr]],Table6[Jahr],0),1),0) -> 0 | P35: =IFERROR(INDEX(Table6[Kaufnebenkosten],MATCH(Simulation_Tab[[#This Row],[Suchjahr]],Table6[Jahr],0),1),0) -> 0 | Q35: =IFERROR(INDEX(Table6[FK_Bestand],MATCH(Simulation_Tab[[#This Row],[Suchjahr]],Table6[Jahr],0),1),0) -> 0 | R35: =IFERROR(INDEX(Table6[EK_Bestand],MATCH(Simulation_Tab[[#This Row],[Suchjahr]],Table6[Jahr],0),1),0) -> 0 | S35: =INDEX(Table68[Zinsen_Bestand],MATCH(Simulation_Tab[[#This Row],[Datum]],Table68[Jahr],0),1)/12 -> 0 | T35: =INDEX(Table68[Tilgung_Bestand],MATCH(Simulation_Tab[[#This Row],[Datum]],Table68[Jahr],0),1)/12 -> 0 | U35: =INDEX(Table6[Kosten_Bestand],MATCH(Simulation_Tab[[#This Row],[Datum]],Table6[Jahr],0),1)/12 -> 0 | V35: =INDEX(Table6[Miete_Bestand],MATCH(Simulation_Tab[[#This Row],[Datum]],Table6[Jahr],0),1)/12 -> 0 | W35: =Simulation_Tab[[#This Row],[Nettolohn]]+Simulation_Tab[[#This Row],[gesetzliche Rente]]+Simulation_Tab[[#This Row],[Miete]]+IF(Simulation_Tab[[#This Row],[ETF_VK_Gewinn]]>0,Simulation_Tab[[#This Row],[ETF_VK_Gewinn]],0) -> 2809 | X35: =_xlfn.AGGREGATE(9,6,Simulation_Tab[[#This Row],[Konsumausgaben p.M.]]:Simulation_Tab[[#This Row],[Ausgaben Kinder]],Simulation_Tab[[#This Row],[Zinsen]:[n.u. Kosten]])+IF(Simulation_Tab[[#This Row],[ETF_VK_Gewinn]]<0,Simulation_Tab[[#This Row],[ETF_VK_Gewinn]],0)*-1 -> 1837.5 | Y35: =Simulation_Tab[[#This Row],[Einnahmen Summe]]-Simulation_Tab[[#This Row],[Ausgaben Summe]] -> 971.5 | Z35: =_xlfn.AGGREGATE(9,6,Simulation_Tab[[#This Row],[Immo_EK_Kauf]],Simulation_Tab[[#This Row],[Kaufnebenkosten_EK]],Simulation_Tab[[#This Row],[ETF Investment]]) -> 0 | AA35: =Simulation_Tab[[#This Row],[freier Cashflow ]]-Simulation_Tab[[#This Row],[Investitionen inkl Nk]] -> 971.5 | AB35: =AB34+Simulation_Tab[[#This Row],[Cashflow]] -> 34943.5 | AC35: =Simulation_Tab[[#This Row],[Cash]]+Simulation_Tab[[#This Row],[Immo_EK_Bestand]]+Simulation_Tab[[#This Row],[ETF-Wert]] -> 34943.5
A36: =IF(Simulation_Tab[[#This Row],[Datum]]<>B37,Simulation_Tab[[#This Row],[Datum]],"") ->  | B36: =Parameter!$U$5+Simulation_Tab[[#This Row],[Jahr]]-1 -> 2022 | C36: 3 | D36: 34 | E36: =IF((Parameter!$D$10-Parameter!$D$9)>Simulation_Tab[[#This Row],[Jahr]],"B","R") -> B | F36: =IF(Simulation_Tab[[#This Row],[Beruf/Rente]]="B",(Parameter!$D$14/12)*(1+Parameter!$D$15)^(Simulation_Tab[[#This Row],[Jahr]]-1),(Parameter!$D$14*Konsum_Rente/12)*(1+Parameter!$D$15)^(Simulation_Tab[[#This Row],[Jahr]]-1)) -> 1837.5 | G36: =Konsum_Kids!L35 -> 0 | H36: =IF(Renteneintritt-Alter>Simulation_Tab[[#This Row],[Jahr]],Parameter!$D$21/12*(1+Parameter!$D$22)^(Simulation_Tab[[#This Row],[Jahr]]-1),0) -> 2809 | I36: =IF(Simulation_Tab[[#This Row],[Beruf/Rente]]="R",INDEX(Renten_Tab[Rentenwert],MATCH(Simulation_Tab[[#This Row],[Datum]],Renten_Tab[Suchjahr],0),1)*Rentenpunkte*Zugangsfaktor,0) -> 0 | J36: =SUM(ETF_blind!AB35:AF35) -> 0 | K36: =ETF_blind!U35 -> 0 | L36: =IFERROR(ETF_blind!AV35,0) -> 0 | M36: =IFERROR(INDEX(Table6[Kaufpreis inkl NK],MATCH(Simulation_Tab[[#This Row],[Suchjahr]],Table6[Jahr],0),1),0) -> 0 | N36: =IFERROR(INDEX(Table6[Wert_Bestand],MATCH(Simulation_Tab[[#This Row],[Suchjahr]],Table6[Jahr],0),1),0) -> 0 | O36: =IFERROR(INDEX(Table6[EK_sum],MATCH(Simulation_Tab[[#This Row],[Suchjahr]],Table6[Jahr],0),1)-INDEX(Table6[Kaufnebenkosten],MATCH(Simulation_Tab[[#This Row],[Suchjahr]],Table6[Jahr],0),1),0) -> 0 | P36: =IFERROR(INDEX(Table6[Kaufnebenkosten],MATCH(Simulation_Tab[[#This Row],[Suchjahr]],Table6[Jahr],0),1),0) -> 0 | Q36: =IFERROR(INDEX(Table6[FK_Bestand],MATCH(Simulation_Tab[[#This Row],[Suchjahr]],Table6[Jahr],0),1),0) -> 0 | R36: =IFERROR(INDEX(Table6[EK_Bestand],MATCH(Simulation_Tab[[#This Row],[Suchjahr]],Table6[Jahr],0),1),0) -> 0 | S36: =INDEX(Table68[Zinsen_Bestand],MATCH(Simulation_Tab[[#This Row],[Datum]],Table68[Jahr],0),1)/12 -> 0 | T36: =INDEX(Table68[Tilgung_Bestand],MATCH(Simulation_Tab[[#This Row],[Datum]],Table68[Jahr],0),1)/12 -> 0 | U36: =INDEX(Table6[Kosten_Bestand],MATCH(Simulation_Tab[[#This Row],[Datum]],Table6[Jahr],0),1)/12 -> 0 | V36: =INDEX(Table6[Miete_Bestand],MATCH(Simulation_Tab[[#This Row],[Datum]],Table6[Jahr],0),1)/12 -> 0 | W36: =Simulation_Tab[[#This Row],[Nettolohn]]+Simulation_Tab[[#This Row],[gesetzliche Rente]]+Simulation_Tab[[#This Row],[Miete]]+IF(Simulation_Tab[[#This Row],[ETF_VK_Gewinn]]>0,Simulation_Tab[[#This Row],[ETF_VK_Gewinn]],0) -> 2809 | X36: =_xlfn.AGGREGATE(9,6,Simulation_Tab[[#This Row],[Konsumausgaben p.M.]]:Simulation_Tab[[#This Row],[Ausgaben Kinder]],Simulation_Tab[[#This Row],[Zinsen]:[n.u. Kosten]])+IF(Simulation_Tab[[#This Row],[ETF_VK_Gewinn]]<0,Simulation_Tab[[#This Row],[ETF_VK_Gewinn]],0)*-1 -> 1837.5 | Y36: =Simulation_Tab[[#This Row],[Einnahmen Summe]]-Simulation_Tab[[#This Row],[Ausgaben Summe]] -> 971.5 | Z36: =_xlfn.AGGREGATE(9,6,Simulation_Tab[[#This Row],[Immo_EK_Kauf]],Simulation_Tab[[#This Row],[Kaufnebenkosten_EK]],Simulation_Tab[[#This Row],[ETF Investment]]) -> 0 | AA36: =Simulation_Tab[[#This Row],[freier Cashflow ]]-Simulation_Tab[[#This Row],[Investitionen inkl Nk]] -> 971.5 | AB36: =AB35+Simulation_Tab[[#This Row],[Cashflow]] -> 35915 | AC36: =Simulation_Tab[[#This Row],[Cash]]+Simulation_Tab[[#This Row],[Immo_EK_Bestand]]+Simulation_Tab[[#This Row],[ETF-Wert]] -> 35915
A37: =IF(Simulation_Tab[[#This Row],[Datum]]<>B38,Simulation_Tab[[#This Row],[Datum]],"") ->  | B37: =Parameter!$U$5+Simulation_Tab[[#This Row],[Jahr]]-1 -> 2022 | C37: 3 | D37: 35 | E37: =IF((Parameter!$D$10-Parameter!$D$9)>Simulation_Tab[[#This Row],[Jahr]],"B","R") -> B | F37: =IF(Simulation_Tab[[#This Row],[Beruf/Rente]]="B",(Parameter!$D$14/12)*(1+Parameter!$D$15)^(Simulation_Tab[[#This Row],[Jahr]]-1),(Parameter!$D$14*Konsum_Rente/12)*(1+Parameter!$D$15)^(Simulation_Tab[[#This Row],[Jahr]]-1)) -> 1837.5 | G37: =Konsum_Kids!L36 -> 0 | H37: =IF(Renteneintritt-Alter>Simulation_Tab[[#This Row],[Jahr]],Parameter!$D$21/12*(1+Parameter!$D$22)^(Simulation_Tab[[#This Row],[Jahr]]-1),0) -> 2809 | I37: =IF(Simulation_Tab[[#This Row],[Beruf/Rente]]="R",INDEX(Renten_Tab[Rentenwert],MATCH(Simulation_Tab[[#This Row],[Datum]],Renten_Tab[Suchjahr],0),1)*Rentenpunkte*Zugangsfaktor,0) -> 0 | J37: =SUM(ETF_blind!AB36:AF36) -> 0 | K37: =ETF_blind!U36 -> 0 | L37: =IFERROR(ETF_blind!AV36,0) -> 0 | M37: =IFERROR(INDEX(Table6[Kaufpreis inkl NK],MATCH(Simulation_Tab[[#This Row],[Suchjahr]],Table6[Jahr],0),1),0) -> 0 | N37: =IFERROR(INDEX(Table6[Wert_Bestand],MATCH(Simulation_Tab[[#This Row],[Suchjahr]],Table6[Jahr],0),1),0) -> 0 | O37: =IFERROR(INDEX(Table6[EK_sum],MATCH(Simulation_Tab[[#This Row],[Suchjahr]],Table6[Jahr],0),1)-INDEX(Table6[Kaufnebenkosten],MATCH(Simulation_Tab[[#This Row],[Suchjahr]],Table6[Jahr],0),1),0) -> 0 | P37: =IFERROR(INDEX(Table6[Kaufnebenkosten],MATCH(Simulation_Tab[[#This Row],[Suchjahr]],Table6[Jahr],0),1),0) -> 0 | Q37: =IFERROR(INDEX(Table6[FK_Bestand],MATCH(Simulation_Tab[[#This Row],[Suchjahr]],Table6[Jahr],0),1),0) -> 0 | R37: =IFERROR(INDEX(Table6[EK_Bestand],MATCH(Simulation_Tab[[#This Row],[Suchjahr]],Table6[Jahr],0),1),0) -> 0 | S37: =INDEX(Table68[Zinsen_Bestand],MATCH(Simulation_Tab[[#This Row],[Datum]],Table68[Jahr],0),1)/12 -> 0 | T37: =INDEX(Table68[Tilgung_Bestand],MATCH(Simulation_Tab[[#This Row],[Datum]],Table68[Jahr],0),1)/12 -> 0 | U37: =INDEX(Table6[Kosten_Bestand],MATCH(Simulation_Tab[[#This Row],[Datum]],Table6[Jahr],0),1)/12 -> 0 | V37: =INDEX(Table6[Miete_Bestand],MATCH(Simulation_Tab[[#This Row],[Datum]],Table6[Jahr],0),1)/12 -> 0 | W37: =Simulation_Tab[[#This Row],[Nettolohn]]+Simulation_Tab[[#This Row],[gesetzliche Rente]]+Simulation_Tab[[#This Row],[Miete]]+IF(Simulation_Tab[[#This Row],[ETF_VK_Gewinn]]>0,Simulation_Tab[[#This Row],[ETF_VK_Gewinn]],0) -> 2809 | X37: =_xlfn.AGGREGATE(9,6,Simulation_Tab[[#This Row],[Konsumausgaben p.M.]]:Simulation_Tab[[#This Row],[Ausgaben Kinder]],Simulation_Tab[[#This Row],[Zinsen]:[n.u. Kosten]])+IF(Simulation_Tab[[#This Row],[ETF_VK_Gewinn]]<0,Simulation_Tab[[#This Row],[ETF_VK_Gewinn]],0)*-1 -> 1837.5 | Y37: =Simulation_Tab[[#This Row],[Einnahmen Summe]]-Simulation_Tab[[#This Row],[Ausgaben Summe]] -> 971.5 | Z37: =_xlfn.AGGREGATE(9,6,Simulation_Tab[[#This Row],[Immo_EK_Kauf]],Simulation_Tab[[#This Row],[Kaufnebenkosten_EK]],Simulation_Tab[[#This Row],[ETF Investment]]) -> 0 | AA37: =Simulation_Tab[[#This Row],[freier Cashflow ]]-Simulation_Tab[[#This Row],[Investitionen inkl Nk]] -> 971.5 | AB37: =AB36+Simulation_Tab[[#This Row],[Cashflow]] -> 36886.5 | AC37: =Simulation_Tab[[#This Row],[Cash]]+Simulation_Tab[[#This Row],[Immo_EK_Bestand]]+Simulation_Tab[[#This Row],[ETF-Wert]] -> 36886.5
A38: =IF(Simulation_Tab[[#This Row],[Datum]]<>B39,Simulation_Tab[[#This Row],[Datum]],"") -> 2022 | B38: =Parameter!$U$5+Simulation_Tab[[#This Row],[Jahr]]-1 -> 2022 | C38: 3 | D38: 36 | E38: =IF((Parameter!$D$10-Parameter!$D$9)>Simulation_Tab[[#This Row],[Jahr]],"B","R") -> B | F38: =IF(Simulation_Tab[[#This Row],[Beruf/Rente]]="B",(Parameter!$D$14/12)*(1+Parameter!$D$15)^(Simulation_Tab[[#This Row],[Jahr]]-1),(Parameter!$D$14*Konsum_Rente/12)*(1+Parameter!$D$15)^(Simulation_Tab[[#This Row],[Jahr]]-1)) -> 1837.5 | G38: =Konsum_Kids!L37 -> 0 | H38: =IF(Renteneintritt-Alter>Simulation_Tab[[#This Row],[Jahr]],Parameter!$D$21/12*(1+Parameter!$D$22)^(Simulation_Tab[[#This Row],[Jahr]]-1),0) -> 2809 | I38: =IF(Simulation_Tab[[#This Row],[Beruf/Rente]]="R",INDEX(Renten_Tab[Rentenwert],MATCH(Simulation_Tab[[#This Row],[Datum]],Renten_Tab[Suchjahr],0),1)*Rentenpunkte*Zugangsfaktor,0) -> 0 | J38: =SUM(ETF_blind!AB37:AF37) -> 0 | K38: =ETF_blind!U37 -> 0 | L38: =IFERROR(ETF_blind!AV37,0) -> 0 | M38: =IFERROR(INDEX(Table6[Kaufpreis inkl NK],MATCH(Simulation_Tab[[#This Row],[Suchjahr]],Table6[Jahr],0),1),0) -> 0 | N38: =IFERROR(INDEX(Table6[Wert_Bestand],MATCH(Simulation_Tab[[#This Row],[Suchjahr]],Table6[Jahr],0),1),0) -> 0 | O38: =IFERROR(INDEX(Table6[EK_sum],MATCH(Simulation_Tab[[#This Row],[Suchjahr]],Table6[Jahr],0),1)-INDEX(Table6[Kaufnebenkosten],MATCH(Simulation_Tab[[#This Row],[Suchjahr]],Table6[Jahr],0),1),0) -> 0 | P38: =IFERROR(INDEX(Table6[Kaufnebenkosten],MATCH(Simulation_Tab[[#This Row],[Suchjahr]],Table6[Jahr],0),1),0) -> 0 | Q38: =IFERROR(INDEX(Table6[FK_Bestand],MATCH(Simulation_Tab[[#This Row],[Suchjahr]],Table6[Jahr],0),1),0) -> 0 | R38: =IFERROR(INDEX(Table6[EK_Bestand],MATCH(Simulation_Tab[[#This Row],[Suchjahr]],Table6[Jahr],0),1),0) -> 0 | S38: =INDEX(Table68[Zinsen_Bestand],MATCH(Simulation_Tab[[#This Row],[Datum]],Table68[Jahr],0),1)/12 -> 0 | T38: =INDEX(Table68[Tilgung_Bestand],MATCH(Simulation_Tab[[#This Row],[Datum]],Table68[Jahr],0),1)/12 -> 0 | U38: =INDEX(Table6[Kosten_Bestand],MATCH(Simulation_Tab[[#This Row],[Datum]],Table6[Jahr],0),1)/12 -> 0 | V38: =INDEX(Table6[Miete_Bestand],MATCH(Simulation_Tab[[#This Row],[Datum]],Table6[Jahr],0),1)/12 -> 0 | W38: =Simulation_Tab[[#This Row],[Nettolohn]]+Simulation_Tab[[#This Row],[gesetzliche Rente]]+Simulation_Tab[[#This Row],[Miete]]+IF(Simulation_Tab[[#This Row],[ETF_VK_Gewinn]]>0,Simulation_Tab[[#This Row],[ETF_VK_Gewinn]],0) -> 2809 | X38: =_xlfn.AGGREGATE(9,6,Simulation_Tab[[#This Row],[Konsumausgaben p.M.]]:Simulation_Tab[[#This Row],[Ausgaben Kinder]],Simulation_Tab[[#This Row],[Zinsen]:[n.u. Kosten]])+IF(Simulation_Tab[[#This Row],[ETF_VK_Gewinn]]<0,Simulation_Tab[[#This Row],[ETF_VK_Gewinn]],0)*-1 -> 1837.5 | Y38: =Simulation_Tab[[#This Row],[Einnahmen Summe]]-Simulation_Tab[[#This Row],[Ausgaben Summe]] -> 971.5 | Z38: =_xlfn.AGGREGATE(9,6,Simulation_Tab[[#This Row],[Immo_EK_Kauf]],Simulation_Tab[[#This Row],[Kaufnebenkosten_EK]],Simulation_Tab[[#This Row],[ETF Investment]]) -> 0 | AA38: =Simulation_Tab[[#This Row],[freier Cashflow ]]-Simulation_Tab[[#This Row],[Investitionen inkl Nk]] -> 971.5 | AB38: =AB37+Simulation_Tab[[#This Row],[Cashflow]] -> 37858 | AC38: =Simulation_Tab[[#This Row],[Cash]]+Simulation_Tab[[#This Row],[Immo_EK_Bestand]]+Simulation_Tab[[#This Row],[ETF-Wert]] -> 37858
A39: =IF(Simulation_Tab[[#This Row],[Datum]]<>B40,Simulation_Tab[[#This Row],[Datum]],"") ->  | B39: =Parameter!$U$5+Simulation_Tab[[#This Row],[Jahr]]-1 -> 2023 | C39: 4 | D39: 37 | E39: =IF((Parameter!$D$10-Parameter!$D$9)>Simulation_Tab[[#This Row],[Jahr]],"B","R") -> B | F39: =IF(Simulation_Tab[[#This Row],[Beruf/Rente]]="B",(Parameter!$D$14/12)*(1+Parameter!$D$15)^(Simulation_Tab[[#This Row],[Jahr]]-1),(Parameter!$D$14*Konsum_Rente/12)*(1+Parameter!$D$15)^(Simulation_Tab[[#This Row],[Jahr]]-1)) -> 1929.375 | G39: =Konsum_Kids!L38 -> 463.05 | H39: =IF(Renteneintritt-Alter>Simulation_Tab[[#This Row],[Jahr]],Parameter!$D$21/12*(1+Parameter!$D$22)^(Simulation_Tab[[#This Row],[Jahr]]-1),0) -> 2977.54 | I39: =IF(Simulation_Tab[[#This Row],[Beruf/Rente]]="R",INDEX(Renten_Tab[Rentenwert],MATCH(Simulation_Tab[[#This Row],[Datum]],Renten_Tab[Suchjahr],0),1)*Rentenpunkte*Zugangsfaktor,0) -> 0 | J39: =SUM(ETF_blind!AB38:AF38) -> 0 | K39: =ETF_blind!U38 -> 0 | L39: =IFERROR(ETF_blind!AV38,0) -> 0 | M39: =IFERROR(INDEX(Table6[Kaufpreis inkl NK],MATCH(Simulation_Tab[[#This Row],[Suchjahr]],Table6[Jahr],0),1),0) -> 0 | N39: =IFERROR(INDEX(Table6[Wert_Bestand],MATCH(Simulation_Tab[[#This Row],[Suchjahr]],Table6[Jahr],0),1),0) -> 0 | O39: =IFERROR(INDEX(Table6[EK_sum],MATCH(Simulation_Tab[[#This Row],[Suchjahr]],Table6[Jahr],0),1)-INDEX(Table6[Kaufnebenkosten],MATCH(Simulation_Tab[[#This Row],[Suchjahr]],Table6[Jahr],0),1),0) -> 0 | P39: =IFERROR(INDEX(Table6[Kaufnebenkosten],MATCH(Simulation_Tab[[#This Row],[Suchjahr]],Table6[Jahr],0),1),0) -> 0 | Q39: =IFERROR(INDEX(Table6[FK_Bestand],MATCH(Simulation_Tab[[#This Row],[Suchjahr]],Table6[Jahr],0),1),0) -> 0 | R39: =IFERROR(INDEX(Table6[EK_Bestand],MATCH(Simulation_Tab[[#This Row],[Suchjahr]],Table6[Jahr],0),1),0) -> 0 | S39: =INDEX(Table68[Zinsen_Bestand],MATCH(Simulation_Tab[[#This Row],[Datum]],Table68[Jahr],0),1)/12 -> 0 | T39: =INDEX(Table68[Tilgung_Bestand],MATCH(Simulation_Tab[[#This Row],[Datum]],Table68[Jahr],0),1)/12 -> 0 | U39: =INDEX(Table6[Kosten_Bestand],MATCH(Simulation_Tab[[#This Row],[Datum]],Table6[Jahr],0),1)/12 -> 0 | V39: =INDEX(Table6[Miete_Bestand],MATCH(Simulation_Tab[[#This Row],[Datum]],Table6[Jahr],0),1)/12 -> 0 | W39: =Simulation_Tab[[#This Row],[Nettolohn]]+Simulation_Tab[[#This Row],[gesetzliche Rente]]+Simulation_Tab[[#This Row],[Miete]]+IF(Simulation_Tab[[#This Row],[ETF_VK_Gewinn]]>0,Simulation_Tab[[#This Row],[ETF_VK_Gewinn]],0) -> 2977.54 | X39: =_xlfn.AGGREGATE(9,6,Simulation_Tab[[#This Row],[Konsumausgaben p.M.]]:Simulation_Tab[[#This Row],[Ausgaben Kinder]],Simulation_Tab[[#This Row],[Zinsen]:[n.u. Kosten]])+IF(Simulation_Tab[[#This Row],[ETF_VK_Gewinn]]<0,Simulation_Tab[[#This Row],[ETF_VK_Gewinn]],0)*-1 -> 2392.425 | Y39: =Simulation_Tab[[#This Row],[Einnahmen Summe]]-Simulation_Tab[[#This Row],[Ausgaben Summe]] -> 585.115 | Z39: =_xlfn.AGGREGATE(9,6,Simulation_Tab[[#This Row],[Immo_EK_Kauf]],Simulation_Tab[[#This Row],[Kaufnebenkosten_EK]],Simulation_Tab[[#This Row],[ETF Investment]]) -> 0 | AA39: =Simulation_Tab[[#This Row],[freier Cashflow ]]-Simulation_Tab[[#This Row],[Investitionen inkl Nk]] -> 585.115 | AB39: =AB38+Simulation_Tab[[#This Row],[Cashflow]] -> 38443.115 | AC39: =Simulation_Tab[[#This Row],[Cash]]+Simulation_Tab[[#This Row],[Immo_EK_Bestand]]+Simulation_Tab[[#This Row],[ETF-Wert]] -> 38443.115
A40: =IF(Simulation_Tab[[#This Row],[Datum]]<>B41,Simulation_Tab[[#This Row],[Datum]],"") ->  | B40: =Parameter!$U$5+Simulation_Tab[[#This Row],[Jahr]]-1 -> 2023 | C40: 4 | D40: 38 | E40: =IF((Parameter!$D$10-Parameter!$D$9)>Simulation_Tab[[#This Row],[Jahr]],"B","R") -> B | F40: =IF(Simulation_Tab[[#This Row],[Beruf/Rente]]="B",(Parameter!$D$14/12)*(1+Parameter!$D$15)^(Simulation_Tab[[#This Row],[Jahr]]-1),(Parameter!$D$14*Konsum_Rente/12)*(1+Parameter!$D$15)^(Simulation_Tab[[#This Row],[Jahr]]-1)) -> 1929.375 | G40: =Konsum_Kids!L39 -> 463.05 | H40: =IF(Renteneintritt-Alter>Simulation_Tab[[#This Row],[Jahr]],Parameter!$D$21/12*(1+Parameter!$D$22)^(Simulation_Tab[[#This Row],[Jahr]]-1),0) -> 2977.54 | I40: =IF(Simulation_Tab[[#This Row],[Beruf/Rente]]="R",INDEX(Renten_Tab[Rentenwert],MATCH(Simulation_Tab[[#This Row],[Datum]],Renten_Tab[Suchjahr],0),1)*Rentenpunkte*Zugangsfaktor,0) -> 0 | J40: =SUM(ETF_blind!AB39:AF39) -> 0 | K40: =ETF_blind!U39 -> 0 | L40: =IFERROR(ETF_blind!AV39,0) -> 0 | M40: =IFERROR(INDEX(Table6[Kaufpreis inkl NK],MATCH(Simulation_Tab[[#This Row],[Suchjahr]],Table6[Jahr],0),1),0) -> 0 | N40: =IFERROR(INDEX(Table6[Wert_Bestand],MATCH(Simulation_Tab[[#This Row],[Suchjahr]],Table6[Jahr],0),1),0) -> 0 | O40: =IFERROR(INDEX(Table6[EK_sum],MATCH(Simulation_Tab[[#This Row],[Suchjahr]],Table6[Jahr],0),1)-INDEX(Table6[Kaufnebenkosten],MATCH(Simulation_Tab[[#This Row],[Suchjahr]],Table6[Jahr],0),1),0) -> 0 | P40: =IFERROR(INDEX(Table6[Kaufnebenkosten],MATCH(Simulation_Tab[[#This Row],[Suchjahr]],Table6[Jahr],0),1),0) -> 0 | Q40: =IFERROR(INDEX(Table6[FK_Bestand],MATCH(Simulation_Tab[[#This Row],[Suchjahr]],Table6[Jahr],0),1),0) -> 0 | R40: =IFERROR(INDEX(Table6[EK_Bestand],MATCH(Simulation_Tab[[#This Row],[Suchjahr]],Table6[Jahr],0),1),0) -> 0 | S40: =INDEX(Table68[Zinsen_Bestand],MATCH(Simulation_Tab[[#This Row],[Datum]],Table68[Jahr],0),1)/12 -> 0 | T40: =INDEX(Table68[Tilgung_Bestand],MATCH(Simulation_Tab[[#This Row],[Datum]],Table68[Jahr],0),1)/12 -> 0 | U40: =INDEX(Table6[Kosten_Bestand],MATCH(Simulation_Tab[[#This Row],[Datum]],Table6[Jahr],0),1)/12 -> 0 | V40: =INDEX(Table6[Miete_Bestand],MATCH(Simulation_Tab[[#This Row],[Datum]],Table6[Jahr],0),1)/12 -> 0 | W40: =Simulation_Tab[[#This Row],[Nettolohn]]+Simulation_Tab[[#This Row],[gesetzliche Rente]]+Simulation_Tab[[#This Row],[Miete]]+IF(Simulation_Tab[[#This Row],[ETF_VK_Gewinn]]>0,Simulation_Tab[[#This Row],[ETF_VK_Gewinn]],0) -> 2977.54 | X40: =_xlfn.AGGREGATE(9,6,Simulation_Tab[[#This Row],[Konsumausgaben p.M.]]:Simulation_Tab[[#This Row],[Ausgaben Kinder]],Simulation_Tab[[#This Row],[Zinsen]:[n.u. Kosten]])+IF(Simulation_Tab[[#This Row],[ETF_VK_Gewinn]]<0,Simulation_Tab[[#This Row],[ETF_VK_Gewinn]],0)*-1 -> 2392.425 | Y40: =Simulation_Tab[[#This Row],[Einnahmen Summe]]-Simulation_Tab[[#This Row],[Ausgaben Summe]] -> 585.115 | Z40: =_xlfn.AGGREGATE(9,6,Simulation_Tab[[#This Row],[Immo_EK_Kauf]],Simulation_Tab[[#This Row],[Kaufnebenkosten_EK]],Simulation_Tab[[#This Row],[ETF Investment]]) -> 0 | AA40: =Simulation_Tab[[#This Row],[freier Cashflow ]]-Simulation_Tab[[#This Row],[Investitionen inkl Nk]] -> 585.115 | AB40: =AB39+Simulation_Tab[[#This Row],[Cashflow]] -> 39028.23 | AC40: =Simulation_Tab[[#This Row],[Cash]]+Simulation_Tab[[#This Row],[Immo_EK_Bestand]]+Simulation_Tab[[#This Row],[ETF-Wert]] -> 39028.23
A41: =IF(Simulation_Tab[[#This Row],[Datum]]<>B42,Simulation_Tab[[#This Row],[Datum]],"") ->  | B41: =Parameter!$U$5+Simulation_Tab[[#This Row],[Jahr]]-1 -> 2023 | C41: 4 | D41: 39 | E41: =IF((Parameter!$D$10-Parameter!$D$9)>Simulation_Tab[[#This Row],[Jahr]],"B","R") -> B | F41: =IF(Simulation_Tab[[#This Row],[Beruf/Rente]]="B",(Parameter!$D$14/12)*(1+Parameter!$D$15)^(Simulation_Tab[[#This Row],[Jahr]]-1),(Parameter!$D$14*Konsum_Rente/12)*(1+Parameter!$D$15)^(Simulation_Tab[[#This Row],[Jahr]]-1)) -> 1929.375 | G41: =Konsum_Kids!L40 -> 463.05 | H41: =IF(Renteneintritt-Alter>Simulation_Tab[[#This Row],[Jahr]],Parameter!$D$21/12*(1+Parameter!$D$22)^(Simulation_Tab[[#This Row],[Jahr]]-1),0) -> 2977.54 | I41: =IF(Simulation_Tab[[#This Row],[Beruf/Rente]]="R",INDEX(Renten_Tab[Rentenwert],MATCH(Simulation_Tab[[#This Row],[Datum]],Renten_Tab[Suchjahr],0),1)*Rentenpunkte*Zugangsfaktor,0) -> 0 | J41: =SUM(ETF_blind!AB40:AF40) -> 0 | K41: =ETF_blind!U40 -> 0 | L41: =IFERROR(ETF_blind!AV40,0) -> 0 | M41: =IFERROR(INDEX(Table6[Kaufpreis inkl NK],MATCH(Simulation_Tab[[#This Row],[Suchjahr]],Table6[Jahr],0),1),0) -> 0 | N41: =IFERROR(INDEX(Table6[Wert_Bestand],MATCH(Simulation_Tab[[#This Row],[Suchjahr]],Table6[Jahr],0),1),0) -> 0 | O41: =IFERROR(INDEX(Table6[EK_sum],MATCH(Simulation_Tab[[#This Row],[Suchjahr]],Table6[Jahr],0),1)-INDEX(Table6[Kaufnebenkosten],MATCH(Simulation_Tab[[#This Row],[Suchjahr]],Table6[Jahr],0),1),0) -> 0 | P41: =IFERROR(INDEX(Table6[Kaufnebenkosten],MATCH(Simulation_Tab[[#This Row],[Suchjahr]],Table6[Jahr],0),1),0) -> 0 | Q41: =IFERROR(INDEX(Table6[FK_Bestand],MATCH(Simulation_Tab[[#This Row],[Suchjahr]],Table6[Jahr],0),1),0) -> 0 | R41: =IFERROR(INDEX(Table6[EK_Bestand],MATCH(Simulation_Tab[[#This Row],[Suchjahr]],Table6[Jahr],0),1),0) -> 0 | S41: =INDEX(Table68[Zinsen_Bestand],MATCH(Simulation_Tab[[#This Row],[Datum]],Table68[Jahr],0),1)/12 -> 0 | T41: =INDEX(Table68[Tilgung_Bestand],MATCH(Simulation_Tab[[#This Row],[Datum]],Table68[Jahr],0),1)/12 -> 0 | U41: =INDEX(Table6[Kosten_Bestand],MATCH(Simulation_Tab[[#This Row],[Datum]],Table6[Jahr],0),1)/12 -> 0 | V41: =INDEX(Table6[Miete_Bestand],MATCH(Simulation_Tab[[#This Row],[Datum]],Table6[Jahr],0),1)/12 -> 0 | W41: =Simulation_Tab[[#This Row],[Nettolohn]]+Simulation_Tab[[#This Row],[gesetzliche Rente]]+Simulation_Tab[[#This Row],[Miete]]+IF(Simulation_Tab[[#This Row],[ETF_VK_Gewinn]]>0,Simulation_Tab[[#This Row],[ETF_VK_Gewinn]],0) -> 2977.54 | X41: =_xlfn.AGGREGATE(9,6,Simulation_Tab[[#This Row],[Konsumausgaben p.M.]]:Simulation_Tab[[#This Row],[Ausgaben Kinder]],Simulation_Tab[[#This Row],[Zinsen]:[n.u. Kosten]])+IF(Simulation_Tab[[#This Row],[ETF_VK_Gewinn]]<0,Simulation_Tab[[#This Row],[ETF_VK_Gewinn]],0)*-1 -> 2392.425 | Y41: =Simulation_Tab[[#This Row],[Einnahmen Summe]]-Simulation_Tab[[#This Row],[Ausgaben Summe]] -> 585.115 | Z41: =_xlfn.AGGREGATE(9,6,Simulation_Tab[[#This Row],[Immo_EK_Kauf]],Simulation_Tab[[#This Row],[Kaufnebenkosten_EK]],Simulation_Tab[[#This Row],[ETF Investment]]) -> 0 | AA41: =Simulation_Tab[[#This Row],[freier Cashflow ]]-Simulation_Tab[[#This Row],[Investitionen inkl Nk]] -> 585.115 | AB41: =AB40+Simulation_Tab[[#This Row],[Cashflow]] -> 39613.345 | AC41: =Simulation_Tab[[#This Row],[Cash]]+Simulation_Tab[[#This Row],[Immo_EK_Bestand]]+Simulation_Tab[[#This Row],[ETF-Wert]] -> 39613.345
A42: =IF(Simulation_Tab[[#This Row],[Datum]]<>B43,Simulation_Tab[[#This Row],[Datum]],"") ->  | B42: =Parameter!$U$5+Simulation_Tab[[#This Row],[Jahr]]-1 -> 2023 | C42: 4 | D42: 40 | E42: =IF((Parameter!$D$10-Parameter!$D$9)>Simulation_Tab[[#This Row],[Jahr]],"B","R") -> B | F42: =IF(Simulation_Tab[[#This Row],[Beruf/Rente]]="B",(Parameter!$D$14/12)*(1+Parameter!$D$15)^(Simulation_Tab[[#This Row],[Jahr]]-1),(Parameter!$D$14*Konsum_Rente/12)*(1+Parameter!$D$15)^(Simulation_Tab[[#This Row],[Jahr]]-1)) -> 1929.375 | G42: =Konsum_Kids!L41 -> 463.05 | H42: =IF(Renteneintritt-Alter>Simulation_Tab[[#This Row],[Jahr]],Parameter!$D$21/12*(1+Parameter!$D$22)^(Simulation_Tab[[#This Row],[Jahr]]-1),0) -> 2977.54 | I42: =IF(Simulation_Tab[[#This Row],[Beruf/Rente]]="R",INDEX(Renten_Tab[Rentenwert],MATCH(Simulation_Tab[[#This Row],[Datum]],Renten_Tab[Suchjahr],0),1)*Rentenpunkte*Zugangsfaktor,0) -> 0 | J42: =SUM(ETF_blind!AB41:AF41) -> 0 | K42: =ETF_blind!U41 -> 0 | L42: =IFERROR(ETF_blind!AV41,0) -> 0 | M42: =IFERROR(INDEX(Table6[Kaufpreis inkl NK],MATCH(Simulation_Tab[[#This Row],[Suchjahr]],Table6[Jahr],0),1),0) -> 0 | N42: =IFERROR(INDEX(Table6[Wert_Bestand],MATCH(Simulation_Tab[[#This Row],[Suchjahr]],Table6[Jahr],0),1),0) -> 0 | O42: =IFERROR(INDEX(Table6[EK_sum],MATCH(Simulation_Tab[[#This Row],[Suchjahr]],Table6[Jahr],0),1)-INDEX(Table6[Kaufnebenkosten],MATCH(Simulation_Tab[[#This Row],[Suchjahr]],Table6[Jahr],0),1),0) -> 0 | P42: =IFERROR(INDEX(Table6[Kaufnebenkosten],MATCH(Simulation_Tab[[#This Row],[Suchjahr]],Table6[Jahr],0),1),0) -> 0 | Q42: =IFERROR(INDEX(Table6[FK_Bestand],MATCH(Simulation_Tab[[#This Row],[Suchjahr]],Table6[Jahr],0),1),0) -> 0 | R42: =IFERROR(INDEX(Table6[EK_Bestand],MATCH(Simulation_Tab[[#This Row],[Suchjahr]],Table6[Jahr],0),1),0) -> 0 | S42: =INDEX(Table68[Zinsen_Bestand],MATCH(Simulation_Tab[[#This Row],[Datum]],Table68[Jahr],0),1)/12 -> 0 | T42: =INDEX(Table68[Tilgung_Bestand],MATCH(Simulation_Tab[[#This Row],[Datum]],Table68[Jahr],0),1)/12 -> 0 | U42: =INDEX(Table6[Kosten_Bestand],MATCH(Simulation_Tab[[#This Row],[Datum]],Table6[Jahr],0),1)/12 -> 0 | V42: =INDEX(Table6[Miete_Bestand],MATCH(Simulation_Tab[[#This Row],[Datum]],Table6[Jahr],0),1)/12 -> 0 | W42: =Simulation_Tab[[#This Row],[Nettolohn]]+Simulation_Tab[[#This Row],[gesetzliche Rente]]+Simulation_Tab[[#This Row],[Miete]]+IF(Simulation_Tab[[#This Row],[ETF_VK_Gewinn]]>0,Simulation_Tab[[#This Row],[ETF_VK_Gewinn]],0) -> 2977.54 | X42: =_xlfn.AGGREGATE(9,6,Simulation_Tab[[#This Row],[Konsumausgaben p.M.]]:Simulation_Tab[[#This Row],[Ausgaben Kinder]],Simulation_Tab[[#This Row],[Zinsen]:[n.u. Kosten]])+IF(Simulation_Tab[[#This Row],[ETF_VK_Gewinn]]<0,Simulation_Tab[[#This Row],[ETF_VK_Gewinn]],0)*-1 -> 2392.425 | Y42: =Simulation_Tab[[#This Row],[Einnahmen Summe]]-Simulation_Tab[[#This Row],[Ausgaben Summe]] -> 585.115 | Z42: =_xlfn.AGGREGATE(9,6,Simulation_Tab[[#This Row],[Immo_EK_Kauf]],Simulation_Tab[[#This Row],[Kaufnebenkosten_EK]],Simulation_Tab[[#This Row],[ETF Investment]]) -> 0 | AA42: =Simulation_Tab[[#This Row],[freier Cashflow ]]-Simulation_Tab[[#This Row],[Investitionen inkl Nk]] -> 585.115 | AB42: =AB41+Simulation_Tab[[#This Row],[Cashflow]] -> 40198.46 | AC42: =Simulation_Tab[[#This Row],[Cash]]+Simulation_Tab[[#This Row],[Immo_EK_Bestand]]+Simulation_Tab[[#This Row],[ETF-Wert]] -> 40198.46
A43: =IF(Simulation_Tab[[#This Row],[Datum]]<>B44,Simulation_Tab[[#This Row],[Datum]],"") ->  | B43: =Parameter!$U$5+Simulation_Tab[[#This Row],[Jahr]]-1 -> 2023 | C43: 4 | D43: 41 | E43: =IF((Parameter!$D$10-Parameter!$D$9)>Simulation_Tab[[#This Row],[Jahr]],"B","R") -> B | F43: =IF(Simulation_Tab[[#This Row],[Beruf/Rente]]="B",(Parameter!$D$14/12)*(1+Parameter!$D$15)^(Simulation_Tab[[#This Row],[Jahr]]-1),(Parameter!$D$14*Konsum_Rente/12)*(1+Parameter!$D$15)^(Simulation_Tab[[#This Row],[Jahr]]-1)) -> 1929.375 | G43: =Konsum_Kids!L42 -> 463.05 | H43: =IF(Renteneintritt-Alter>Simulation_Tab[[#This Row],[Jahr]],Parameter!$D$21/12*(1+Parameter!$D$22)^(Simulation_Tab[[#This Row],[Jahr]]-1),0) -> 2977.54 | I43: =IF(Simulation_Tab[[#This Row],[Beruf/Rente]]="R",INDEX(Renten_Tab[Rentenwert],MATCH(Simulation_Tab[[#This Row],[Datum]],Renten_Tab[Suchjahr],0),1)*Rentenpunkte*Zugangsfaktor,0) -> 0 | J43: =SUM(ETF_blind!AB42:AF42) -> 0 | K43: =ETF_blind!U42 -> 0 | L43: =IFERROR(ETF_blind!AV42,0) -> 0 | M43: =IFERROR(INDEX(Table6[Kaufpreis inkl NK],MATCH(Simulation_Tab[[#This Row],[Suchjahr]],Table6[Jahr],0),1),0) -> 0 | N43: =IFERROR(INDEX(Table6[Wert_Bestand],MATCH(Simulation_Tab[[#This Row],[Suchjahr]],Table6[Jahr],0),1),0) -> 0 | O43: =IFERROR(INDEX(Table6[EK_sum],MATCH(Simulation_Tab[[#This Row],[Suchjahr]],Table6[Jahr],0),1)-INDEX(Table6[Kaufnebenkosten],MATCH(Simulation_Tab[[#This Row],[Suchjahr]],Table6[Jahr],0),1),0) -> 0 | P43: =IFERROR(INDEX(Table6[Kaufnebenkosten],MATCH(Simulation_Tab[[#This Row],[Suchjahr]],Table6[Jahr],0),1),0) -> 0 | Q43: =IFERROR(INDEX(Table6[FK_Bestand],MATCH(Simulation_Tab[[#This Row],[Suchjahr]],Table6[Jahr],0),1),0) -> 0 | R43: =IFERROR(INDEX(Table6[EK_Bestand],MATCH(Simulation_Tab[[#This Row],[Suchjahr]],Table6[Jahr],0),1),0) -> 0 | S43: =INDEX(Table68[Zinsen_Bestand],MATCH(Simulation_Tab[[#This Row],[Datum]],Table68[Jahr],0),1)/12 -> 0 | T43: =INDEX(Table68[Tilgung_Bestand],MATCH(Simulation_Tab[[#This Row],[Datum]],Table68[Jahr],0),1)/12 -> 0 | U43: =INDEX(Table6[Kosten_Bestand],MATCH(Simulation_Tab[[#This Row],[Datum]],Table6[Jahr],0),1)/12 -> 0 | V43: =INDEX(Table6[Miete_Bestand],MATCH(Simulation_Tab[[#This Row],[Datum]],Table6[Jahr],0),1)/12 -> 0 | W43: =Simulation_Tab[[#This Row],[Nettolohn]]+Simulation_Tab[[#This Row],[gesetzliche Rente]]+Simulation_Tab[[#This Row],[Miete]]+IF(Simulation_Tab[[#This Row],[ETF_VK_Gewinn]]>0,Simulation_Tab[[#This Row],[ETF_VK_Gewinn]],0) -> 2977.54 | X43: =_xlfn.AGGREGATE(9,6,Simulation_Tab[[#This Row],[Konsumausgaben p.M.]]:Simulation_Tab[[#This Row],[Ausgaben Kinder]],Simulation_Tab[[#This Row],[Zinsen]:[n.u. Kosten]])+IF(Simulation_Tab[[#This Row],[ETF_VK_Gewinn]]<0,Simulation_Tab[[#This Row],[ETF_VK_Gewinn]],0)*-1 -> 2392.425 | Y43: =Simulation_Tab[[#This Row],[Einnahmen Summe]]-Simulation_Tab[[#This Row],[Ausgaben Summe]] -> 585.115 | Z43: =_xlfn.AGGREGATE(9,6,Simulation_Tab[[#This Row],[Immo_EK_Kauf]],Simulation_Tab[[#This Row],[Kaufnebenkosten_EK]],Simulation_Tab[[#This Row],[ETF Investment]]) -> 0 | AA43: =Simulation_Tab[[#This Row],[freier Cashflow ]]-Simulation_Tab[[#This Row],[Investitionen inkl Nk]] -> 585.115 | AB43: =AB42+Simulation_Tab[[#This Row],[Cashflow]] -> 40783.575 | AC43: =Simulation_Tab[[#This Row],[Cash]]+Simulation_Tab[[#This Row],[Immo_EK_Bestand]]+Simulation_Tab[[#This Row],[ETF-Wert]] -> 40783.575
A44: =IF(Simulation_Tab[[#This Row],[Datum]]<>B45,Simulation_Tab[[#This Row],[Datum]],"") ->  | B44: =Parameter!$U$5+Simulation_Tab[[#This Row],[Jahr]]-1 -> 2023 | C44: 4 | D44: 42 | E44: =IF((Parameter!$D$10-Parameter!$D$9)>Simulation_Tab[[#This Row],[Jahr]],"B","R") -> B | F44: =IF(Simulation_Tab[[#This Row],[Beruf/Rente]]="B",(Parameter!$D$14/12)*(1+Parameter!$D$15)^(Simulation_Tab[[#This Row],[Jahr]]-1),(Parameter!$D$14*Konsum_Rente/12)*(1+Parameter!$D$15)^(Simulation_Tab[[#This Row],[Jahr]]-1)) -> 1929.375 | G44: =Konsum_Kids!L43 -> 463.05 | H44: =IF(Renteneintritt-Alter>Simulation_Tab[[#This Row],[Jahr]],Parameter!$D$21/12*(1+Parameter!$D$22)^(Simulation_Tab[[#This Row],[Jahr]]-1),0) -> 2977.54 | I44: =IF(Simulation_Tab[[#This Row],[Beruf/Rente]]="R",INDEX(Renten_Tab[Rentenwert],MATCH(Simulation_Tab[[#This Row],[Datum]],Renten_Tab[Suchjahr],0),1)*Rentenpunkte*Zugangsfaktor,0) -> 0 | J44: =SUM(ETF_blind!AB43:AF43) -> 0 | K44: =ETF_blind!U43 -> 0 | L44: =IFERROR(ETF_blind!AV43,0) -> 0 | M44: =IFERROR(INDEX(Table6[Kaufpreis inkl NK],MATCH(Simulation_Tab[[#This Row],[Suchjahr]],Table6[Jahr],0),1),0) -> 0 | N44: =IFERROR(INDEX(Table6[Wert_Bestand],MATCH(Simulation_Tab[[#This Row],[Suchjahr]],Table6[Jahr],0),1),0) -> 0 | O44: =IFERROR(INDEX(Table6[EK_sum],MATCH(Simulation_Tab[[#This Row],[Suchjahr]],Table6[Jahr],0),1)-INDEX(Table6[Kaufnebenkosten],MATCH(Simulation_Tab[[#This Row],[Suchjahr]],Table6[Jahr],0),1),0) -> 0 | P44: =IFERROR(INDEX(Table6[Kaufnebenkosten],MATCH(Simulation_Tab[[#This Row],[Suchjahr]],Table6[Jahr],0),1),0) -> 0 | Q44: =IFERROR(INDEX(Table6[FK_Bestand],MATCH(Simulation_Tab[[#This Row],[Suchjahr]],Table6[Jahr],0),1),0) -> 0 | R44: =IFERROR(INDEX(Table6[EK_Bestand],MATCH(Simulation_Tab[[#This Row],[Suchjahr]],Table6[Jahr],0),1),0) -> 0 | S44: =INDEX(Table68[Zinsen_Bestand],MATCH(Simulation_Tab[[#This Row],[Datum]],Table68[Jahr],0),1)/12 -> 0 | T44: =INDEX(Table68[Tilgung_Bestand],MATCH(Simulation_Tab[[#This Row],[Datum]],Table68[Jahr],0),1)/12 -> 0 | U44: =INDEX(Table6[Kosten_Bestand],MATCH(Simulation_Tab[[#This Row],[Datum]],Table6[Jahr],0),1)/12 -> 0 | V44: =INDEX(Table6[Miete_Bestand],MATCH(Simulation_Tab[[#This Row],[Datum]],Table6[Jahr],0),1)/12 -> 0 | W44: =Simulation_Tab[[#This Row],[Nettolohn]]+Simulation_Tab[[#This Row],[gesetzliche Rente]]+Simulation_Tab[[#This Row],[Miete]]+IF(Simulation_Tab[[#This Row],[ETF_VK_Gewinn]]>0,Simulation_Tab[[#This Row],[ETF_VK_Gewinn]],0) -> 2977.54 | X44: =_xlfn.AGGREGATE(9,6,Simulation_Tab[[#This Row],[Konsumausgaben p.M.]]:Simulation_Tab[[#This Row],[Ausgaben Kinder]],Simulation_Tab[[#This Row],[Zinsen]:[n.u. Kosten]])+IF(Simulation_Tab[[#This Row],[ETF_VK_Gewinn]]<0,Simulation_Tab[[#This Row],[ETF_VK_Gewinn]],0)*-1 -> 2392.425 | Y44: =Simulation_Tab[[#This Row],[Einnahmen Summe]]-Simulation_Tab[[#This Row],[Ausgaben Summe]] -> 585.115 | Z44: =_xlfn.AGGREGATE(9,6,Simulation_Tab[[#This Row],[Immo_EK_Kauf]],Simulation_Tab[[#This Row],[Kaufnebenkosten_EK]],Simulation_Tab[[#This Row],[ETF Investment]]) -> 0 | AA44: =Simulation_Tab[[#This Row],[freier Cashflow ]]-Simulation_Tab[[#This Row],[Investitionen inkl Nk]] -> 585.115 | AB44: =AB43+Simulation_Tab[[#This Row],[Cashflow]] -> 41368.69 | AC44: =Simulation_Tab[[#This Row],[Cash]]+Simulation_Tab[[#This Row],[Immo_EK_Bestand]]+Simulation_Tab[[#This Row],[ETF-Wert]] -> 41368.69
A45: =IF(Simulation_Tab[[#This Row],[Datum]]<>B46,Simulation_Tab[[#This Row],[Datum]],"") ->  | B45: =Parameter!$U$5+Simulation_Tab[[#This Row],[Jahr]]-1 -> 2023 | C45: 4 | D45: 43 | E45: =IF((Parameter!$D$10-Parameter!$D$9)>Simulation_Tab[[#This Row],[Jahr]],"B","R") -> B | F45: =IF(Simulation_Tab[[#This Row],[Beruf/Rente]]="B",(Parameter!$D$14/12)*(1+Parameter!$D$15)^(Simulation_Tab[[#This Row],[Jahr]]-1),(Parameter!$D$14*Konsum_Rente/12)*(1+Parameter!$D$15)^(Simulation_Tab[[#This Row],[Jahr]]-1)) -> 1929.375 | G45: =Konsum_Kids!L44 -> 463.05 | H45: =IF(Renteneintritt-Alter>Simulation_Tab[[#This Row],[Jahr]],Parameter!$D$21/12*(1+Parameter!$D$22)^(Simulation_Tab[[#This Row],[Jahr]]-1),0) -> 2977.54 | I45: =IF(Simulation_Tab[[#This Row],[Beruf/Rente]]="R",INDEX(Renten_Tab[Rentenwert],MATCH(Simulation_Tab[[#This Row],[Datum]],Renten_Tab[Suchjahr],0),1)*Rentenpunkte*Zugangsfaktor,0) -> 0 | J45: =SUM(ETF_blind!AB44:AF44) -> 0 | K45: =ETF_blind!U44 -> 0 | L45: =IFERROR(ETF_blind!AV44,0) -> 0 | M45: =IFERROR(INDEX(Table6[Kaufpreis inkl NK],MATCH(Simulation_Tab[[#This Row],[Suchjahr]],Table6[Jahr],0),1),0) -> 0 | N45: =IFERROR(INDEX(Table6[Wert_Bestand],MATCH(Simulation_Tab[[#This Row],[Suchjahr]],Table6[Jahr],0),1),0) -> 0 | O45: =IFERROR(INDEX(Table6[EK_sum],MATCH(Simulation_Tab[[#This Row],[Suchjahr]],Table6[Jahr],0),1)-INDEX(Table6[Kaufnebenkosten],MATCH(Simulation_Tab[[#This Row],[Suchjahr]],Table6[Jahr],0),1),0) -> 0 | P45: =IFERROR(INDEX(Table6[Kaufnebenkosten],MATCH(Simulation_Tab[[#This Row],[Suchjahr]],Table6[Jahr],0),1),0) -> 0 | Q45: =IFERROR(INDEX(Table6[FK_Bestand],MATCH(Simulation_Tab[[#This Row],[Suchjahr]],Table6[Jahr],0),1),0) -> 0 | R45: =IFERROR(INDEX(Table6[EK_Bestand],MATCH(Simulation_Tab[[#This Row],[Suchjahr]],Table6[Jahr],0),1),0) -> 0 | S45: =INDEX(Table68[Zinsen_Bestand],MATCH(Simulation_Tab[[#This Row],[Datum]],Table68[Jahr],0),1)/12 -> 0 | T45: =INDEX(Table68[Tilgung_Bestand],MATCH(Simulation_Tab[[#This Row],[Datum]],Table68[Jahr],0),1)/12 -> 0 | U45: =INDEX(Table6[Kosten_Bestand],MATCH(Simulation_Tab[[#This Row],[Datum]],Table6[Jahr],0),1)/12 -> 0 | V45: =INDEX(Table6[Miete_Bestand],MATCH(Simulation_Tab[[#This Row],[Datum]],Table6[Jahr],0),1)/12 -> 0 | W45: =Simulation_Tab[[#This Row],[Nettolohn]]+Simulation_Tab[[#This Row],[gesetzliche Rente]]+Simulation_Tab[[#This Row],[Miete]]+IF(Simulation_Tab[[#This Row],[ETF_VK_Gewinn]]>0,Simulation_Tab[[#This Row],[ETF_VK_Gewinn]],0) -> 2977.54 | X45: =_xlfn.AGGREGATE(9,6,Simulation_Tab[[#This Row],[Konsumausgaben p.M.]]:Simulation_Tab[[#This Row],[Ausgaben Kinder]],Simulation_Tab[[#This Row],[Zinsen]:[n.u. Kosten]])+IF(Simulation_Tab[[#This Row],[ETF_VK_Gewinn]]<0,Simulation_Tab[[#This Row],[ETF_VK_Gewinn]],0)*-1 -> 2392.425 | Y45: =Simulation_Tab[[#This Row],[Einnahmen Summe]]-Simulation_Tab[[#This Row],[Ausgaben Summe]] -> 585.115 | Z45: =_xlfn.AGGREGATE(9,6,Simulation_Tab[[#This Row],[Immo_EK_Kauf]],Simulation_Tab[[#This Row],[Kaufnebenkosten_EK]],Simulation_Tab[[#This Row],[ETF Investment]]) -> 0 | AA45: =Simulation_Tab[[#This Row],[freier Cashflow ]]-Simulation_Tab[[#This Row],[Investitionen inkl Nk]] -> 585.115 | AB45: =AB44+Simulation_Tab[[#This Row],[Cashflow]] -> 41953.805 | AC45: =Simulation_Tab[[#This Row],[Cash]]+Simulation_Tab[[#This Row],[Immo_EK_Bestand]]+Simulation_Tab[[#This Row],[ETF-Wert]] -> 41953.805
A46: =IF(Simulation_Tab[[#This Row],[Datum]]<>B47,Simulation_Tab[[#This Row],[Datum]],"") ->  | B46: =Parameter!$U$5+Simulation_Tab[[#This Row],[Jahr]]-1 -> 2023 | C46: 4 | D46: 44 | E46: =IF((Parameter!$D$10-Parameter!$D$9)>Simulation_Tab[[#This Row],[Jahr]],"B","R") -> B | F46: =IF(Simulation_Tab[[#This Row],[Beruf/Rente]]="B",(Parameter!$D$14/12)*(1+Parameter!$D$15)^(Simulation_Tab[[#This Row],[Jahr]]-1),(Parameter!$D$14*Konsum_Rente/12)*(1+Parameter!$D$15)^(Simulation_Tab[[#This Row],[Jahr]]-1)) -> 1929.375 | G46: =Konsum_Kids!L45 -> 463.05 | H46: =IF(Renteneintritt-Alter>Simulation_Tab[[#This Row],[Jahr]],Parameter!$D$21/12*(1+Parameter!$D$22)^(Simulation_Tab[[#This Row],[Jahr]]-1),0) -> 2977.54 | I46: =IF(Simulation_Tab[[#This Row],[Beruf/Rente]]="R",INDEX(Renten_Tab[Rentenwert],MATCH(Simulation_Tab[[#This Row],[Datum]],Renten_Tab[Suchjahr],0),1)*Rentenpunkte*Zugangsfaktor,0) -> 0 | J46: =SUM(ETF_blind!AB45:AF45) -> 0 | K46: =ETF_blind!U45 -> 0 | L46: =IFERROR(ETF_blind!AV45,0) -> 0 | M46: =IFERROR(INDEX(Table6[Kaufpreis inkl NK],MATCH(Simulation_Tab[[#This Row],[Suchjahr]],Table6[Jahr],0),1),0) -> 0 | N46: =IFERROR(INDEX(Table6[Wert_Bestand],MATCH(Simulation_Tab[[#This Row],[Suchjahr]],Table6[Jahr],0),1),0) -> 0 | O46: =IFERROR(INDEX(Table6[EK_sum],MATCH(Simulation_Tab[[#This Row],[Suchjahr]],Table6[Jahr],0),1)-INDEX(Table6[Kaufnebenkosten],MATCH(Simulation_Tab[[#This Row],[Suchjahr]],Table6[Jahr],0),1),0) -> 0 | P46: =IFERROR(INDEX(Table6[Kaufnebenkosten],MATCH(Simulation_Tab[[#This Row],[Suchjahr]],Table6[Jahr],0),1),0) -> 0 | Q46: =IFERROR(INDEX(Table6[FK_Bestand],MATCH(Simulation_Tab[[#This Row],[Suchjahr]],Table6[Jahr],0),1),0) -> 0 | R46: =IFERROR(INDEX(Table6[EK_Bestand],MATCH(Simulation_Tab[[#This Row],[Suchjahr]],Table6[Jahr],0),1),0) -> 0 | S46: =INDEX(Table68[Zinsen_Bestand],MATCH(Simulation_Tab[[#This Row],[Datum]],Table68[Jahr],0),1)/12 -> 0 | T46: =INDEX(Table68[Tilgung_Bestand],MATCH(Simulation_Tab[[#This Row],[Datum]],Table68[Jahr],0),1)/12 -> 0 | U46: =INDEX(Table6[Kosten_Bestand],MATCH(Simulation_Tab[[#This Row],[Datum]],Table6[Jahr],0),1)/12 -> 0 | V46: =INDEX(Table6[Miete_Bestand],MATCH(Simulation_Tab[[#This Row],[Datum]],Table6[Jahr],0),1)/12 -> 0 | W46: =Simulation_Tab[[#This Row],[Nettolohn]]+Simulation_Tab[[#This Row],[gesetzliche Rente]]+Simulation_Tab[[#This Row],[Miete]]+IF(Simulation_Tab[[#This Row],[ETF_VK_Gewinn]]>0,Simulation_Tab[[#This Row],[ETF_VK_Gewinn]],0) -> 2977.54 | X46: =_xlfn.AGGREGATE(9,6,Simulation_Tab[[#This Row],[Konsumausgaben p.M.]]:Simulation_Tab[[#This Row],[Ausgaben Kinder]],Simulation_Tab[[#This Row],[Zinsen]:[n.u. Kosten]])+IF(Simulation_Tab[[#This Row],[ETF_VK_Gewinn]]<0,Simulation_Tab[[#This Row],[ETF_VK_Gewinn]],0)*-1 -> 2392.425 | Y46: =Simulation_Tab[[#This Row],[Einnahmen Summe]]-Simulation_Tab[[#This Row],[Ausgaben Summe]] -> 585.115 | Z46: =_xlfn.AGGREGATE(9,6,Simulation_Tab[[#This Row],[Immo_EK_Kauf]],Simulation_Tab[[#This Row],[Kaufnebenkosten_EK]],Simulation_Tab[[#This Row],[ETF Investment]]) -> 0 | AA46: =Simulation_Tab[[#This Row],[freier Cashflow ]]-Simulation_Tab[[#This Row],[Investitionen inkl Nk]] -> 585.115 | AB46: =AB45+Simulation_Tab[[#This Row],[Cashflow]] -> 42538.92 | AC46: =Simulation_Tab[[#This Row],[Cash]]+Simulation_Tab[[#This Row],[Immo_EK_Bestand]]+Simulation_Tab[[#This Row],[ETF-Wert]] -> 42538.92
A47: =IF(Simulation_Tab[[#This Row],[Datum]]<>B48,Simulation_Tab[[#This Row],[Datum]],"") ->  | B47: =Parameter!$U$5+Simulation_Tab[[#This Row],[Jahr]]-1 -> 2023 | C47: 4 | D47: 45 | E47: =IF((Parameter!$D$10-Parameter!$D$9)>Simulation_Tab[[#This Row],[Jahr]],"B","R") -> B | F47: =IF(Simulation_Tab[[#This Row],[Beruf/Rente]]="B",(Parameter!$D$14/12)*(1+Parameter!$D$15)^(Simulation_Tab[[#This Row],[Jahr]]-1),(Parameter!$D$14*Konsum_Rente/12)*(1+Parameter!$D$15)^(Simulation_Tab[[#This Row],[Jahr]]-1)) -> 1929.375 | G47: =Konsum_Kids!L46 -> 463.05 | H47: =IF(Renteneintritt-Alter>Simulation_Tab[[#This Row],[Jahr]],Parameter!$D$21/12*(1+Parameter!$D$22)^(Simulation_Tab[[#This Row],[Jahr]]-1),0) -> 2977.54 | I47: =IF(Simulation_Tab[[#This Row],[Beruf/Rente]]="R",INDEX(Renten_Tab[Rentenwert],MATCH(Simulation_Tab[[#This Row],[Datum]],Renten_Tab[Suchjahr],0),1)*Rentenpunkte*Zugangsfaktor,0) -> 0 | J47: =SUM(ETF_blind!AB46:AF46) -> 0 | K47: =ETF_blind!U46 -> 0 | L47: =IFERROR(ETF_blind!AV46,0) -> 0 | M47: =IFERROR(INDEX(Table6[Kaufpreis inkl NK],MATCH(Simulation_Tab[[#This Row],[Suchjahr]],Table6[Jahr],0),1),0) -> 0 | N47: =IFERROR(INDEX(Table6[Wert_Bestand],MATCH(Simulation_Tab[[#This Row],[Suchjahr]],Table6[Jahr],0),1),0) -> 0 | O47: =IFERROR(INDEX(Table6[EK_sum],MATCH(Simulation_Tab[[#This Row],[Suchjahr]],Table6[Jahr],0),1)-INDEX(Table6[Kaufnebenkosten],MATCH(Simulation_Tab[[#This Row],[Suchjahr]],Table6[Jahr],0),1),0) -> 0 | P47: =IFERROR(INDEX(Table6[Kaufnebenkosten],MATCH(Simulation_Tab[[#This Row],[Suchjahr]],Table6[Jahr],0),1),0) -> 0 | Q47: =IFERROR(INDEX(Table6[FK_Bestand],MATCH(Simulation_Tab[[#This Row],[Suchjahr]],Table6[Jahr],0),1),0) -> 0 | R47: =IFERROR(INDEX(Table6[EK_Bestand],MATCH(Simulation_Tab[[#This Row],[Suchjahr]],Table6[Jahr],0),1),0) -> 0 | S47: =INDEX(Table68[Zinsen_Bestand],MATCH(Simulation_Tab[[#This Row],[Datum]],Table68[Jahr],0),1)/12 -> 0 | T47: =INDEX(Table68[Tilgung_Bestand],MATCH(Simulation_Tab[[#This Row],[Datum]],Table68[Jahr],0),1)/12 -> 0 | U47: =INDEX(Table6[Kosten_Bestand],MATCH(Simulation_Tab[[#This Row],[Datum]],Table6[Jahr],0),1)/12 -> 0 | V47: =INDEX(Table6[Miete_Bestand],MATCH(Simulation_Tab[[#This Row],[Datum]],Table6[Jahr],0),1)/12 -> 0 | W47: =Simulation_Tab[[#This Row],[Nettolohn]]+Simulation_Tab[[#This Row],[gesetzliche Rente]]+Simulation_Tab[[#This Row],[Miete]]+IF(Simulation_Tab[[#This Row],[ETF_VK_Gewinn]]>0,Simulation_Tab[[#This Row],[ETF_VK_Gewinn]],0) -> 2977.54 | X47: =_xlfn.AGGREGATE(9,6,Simulation_Tab[[#This Row],[Konsumausgaben p.M.]]:Simulation_Tab[[#This Row],[Ausgaben Kinder]],Simulation_Tab[[#This Row],[Zinsen]:[n.u. Kosten]])+IF(Simulation_Tab[[#This Row],[ETF_VK_Gewinn]]<0,Simulation_Tab[[#This Row],[ETF_VK_Gewinn]],0)*-1 -> 2392.425 | Y47: =Simulation_Tab[[#This Row],[Einnahmen Summe]]-Simulation_Tab[[#This Row],[Ausgaben Summe]] -> 585.115 | Z47: =_xlfn.AGGREGATE(9,6,Simulation_Tab[[#This Row],[Immo_EK_Kauf]],Simulation_Tab[[#This Row],[Kaufnebenkosten_EK]],Simulation_Tab[[#This Row],[ETF Investment]]) -> 0 | AA47: =Simulation_Tab[[#This Row],[freier Cashflow ]]-Simulation_Tab[[#This Row],[Investitionen inkl Nk]] -> 585.115 | AB47: =AB46+Simulation_Tab[[#This Row],[Cashflow]] -> 43124.035 | AC47: =Simulation_Tab[[#This Row],[Cash]]+Simulation_Tab[[#This Row],[Immo_EK_Bestand]]+Simulation_Tab[[#This Row],[ETF-Wert]] -> 43124.035
A48: =IF(Simulation_Tab[[#This Row],[Datum]]<>B49,Simulation_Tab[[#This Row],[Datum]],"") ->  | B48: =Parameter!$U$5+Simulation_Tab[[#This Row],[Jahr]]-1 -> 2023 | C48: 4 | D48: 46 | E48: =IF((Parameter!$D$10-Parameter!$D$9)>Simulation_Tab[[#This Row],[Jahr]],"B","R") -> B | F48: =IF(Simulation_Tab[[#This Row],[Beruf/Rente]]="B",(Parameter!$D$14/12)*(1+Parameter!$D$15)^(Simulation_Tab[[#This Row],[Jahr]]-1),(Parameter!$D$14*Konsum_Rente/12)*(1+Parameter!$D$15)^(Simulation_Tab[[#This Row],[Jahr]]-1)) -> 1929.375 | G48: =Konsum_Kids!L47 -> 463.05 | H48: =IF(Renteneintritt-Alter>Simulation_Tab[[#This Row],[Jahr]],Parameter!$D$21/12*(1+Parameter!$D$22)^(Simulation_Tab[[#This Row],[Jahr]]-1),0) -> 2977.54 | I48: =IF(Simulation_Tab[[#This Row],[Beruf/Rente]]="R",INDEX(Renten_Tab[Rentenwert],MATCH(Simulation_Tab[[#This Row],[Datum]],Renten_Tab[Suchjahr],0),1)*Rentenpunkte*Zugangsfaktor,0) -> 0 | J48: =SUM(ETF_blind!AB47:AF47) -> 0 | K48: =ETF_blind!U47 -> 0 | L48: =IFERROR(ETF_blind!AV47,0) -> 0 | M48: =IFERROR(INDEX(Table6[Kaufpreis inkl NK],MATCH(Simulation_Tab[[#This Row],[Suchjahr]],Table6[Jahr],0),1),0) -> 0 | N48: =IFERROR(INDEX(Table6[Wert_Bestand],MATCH(Simulation_Tab[[#This Row],[Suchjahr]],Table6[Jahr],0),1),0) -> 0 | O48: =IFERROR(INDEX(Table6[EK_sum],MATCH(Simulation_Tab[[#This Row],[Suchjahr]],Table6[Jahr],0),1)-INDEX(Table6[Kaufnebenkosten],MATCH(Simulation_Tab[[#This Row],[Suchjahr]],Table6[Jahr],0),1),0) -> 0 | P48: =IFERROR(INDEX(Table6[Kaufnebenkosten],MATCH(Simulation_Tab[[#This Row],[Suchjahr]],Table6[Jahr],0),1),0) -> 0 | Q48: =IFERROR(INDEX(Table6[FK_Bestand],MATCH(Simulation_Tab[[#This Row],[Suchjahr]],Table6[Jahr],0),1),0) -> 0 | R48: =IFERROR(INDEX(Table6[EK_Bestand],MATCH(Simulation_Tab[[#This Row],[Suchjahr]],Table6[Jahr],0),1),0) -> 0 | S48: =INDEX(Table68[Zinsen_Bestand],MATCH(Simulation_Tab[[#This Row],[Datum]],Table68[Jahr],0),1)/12 -> 0 | T48: =INDEX(Table68[Tilgung_Bestand],MATCH(Simulation_Tab[[#This Row],[Datum]],Table68[Jahr],0),1)/12 -> 0 | U48: =INDEX(Table6[Kosten_Bestand],MATCH(Simulation_Tab[[#This Row],[Datum]],Table6[Jahr],0),1)/12 -> 0 | V48: =INDEX(Table6[Miete_Bestand],MATCH(Simulation_Tab[[#This Row],[Datum]],Table6[Jahr],0),1)/12 -> 0 | W48: =Simulation_Tab[[#This Row],[Nettolohn]]+Simulation_Tab[[#This Row],[gesetzliche Rente]]+Simulation_Tab[[#This Row],[Miete]]+IF(Simulation_Tab[[#This Row],[ETF_VK_Gewinn]]>0,Simulation_Tab[[#This Row],[ETF_VK_Gewinn]],0) -> 2977.54 | X48: =_xlfn.AGGREGATE(9,6,Simulation_Tab[[#This Row],[Konsumausgaben p.M.]]:Simulation_Tab[[#This Row],[Ausgaben Kinder]],Simulation_Tab[[#This Row],[Zinsen]:[n.u. Kosten]])+IF(Simulation_Tab[[#This Row],[ETF_VK_Gewinn]]<0,Simulation_Tab[[#This Row],[ETF_VK_Gewinn]],0)*-1 -> 2392.425 | Y48: =Simulation_Tab[[#This Row],[Einnahmen Summe]]-Simulation_Tab[[#This Row],[Ausgaben Summe]] -> 585.115 | Z48: =_xlfn.AGGREGATE(9,6,Simulation_Tab[[#This Row],[Immo_EK_Kauf]],Simulation_Tab[[#This Row],[Kaufnebenkosten_EK]],Simulation_Tab[[#This Row],[ETF Investment]]) -> 0 | AA48: =Simulation_Tab[[#This Row],[freier Cashflow ]]-Simulation_Tab[[#This Row],[Investitionen inkl Nk]] -> 585.115 | AB48: =AB47+Simulation_Tab[[#This Row],[Cashflow]] -> 43709.15 | AC48: =Simulation_Tab[[#This Row],[Cash]]+Simulation_Tab[[#This Row],[Immo_EK_Bestand]]+Simulation_Tab[[#This Row],[ETF-Wert]] -> 43709.15
A49: =IF(Simulation_Tab[[#This Row],[Datum]]<>B50,Simulation_Tab[[#This Row],[Datum]],"") ->  | B49: =Parameter!$U$5+Simulation_Tab[[#This Row],[Jahr]]-1 -> 2023 | C49: 4 | D49: 47 | E49: =IF((Parameter!$D$10-Parameter!$D$9)>Simulation_Tab[[#This Row],[Jahr]],"B","R") -> B | F49: =IF(Simulation_Tab[[#This Row],[Beruf/Rente]]="B",(Parameter!$D$14/12)*(1+Parameter!$D$15)^(Simulation_Tab[[#This Row],[Jahr]]-1),(Parameter!$D$14*Konsum_Rente/12)*(1+Parameter!$D$15)^(Simulation_Tab[[#This Row],[Jahr]]-1)) -> 1929.375 | G49: =Konsum_Kids!L48 -> 463.05 | H49: =IF(Renteneintritt-Alter>Simulation_Tab[[#This Row],[Jahr]],Parameter!$D$21/12*(1+Parameter!$D$22)^(Simulation_Tab[[#This Row],[Jahr]]-1),0) -> 2977.54 | I49: =IF(Simulation_Tab[[#This Row],[Beruf/Rente]]="R",INDEX(Renten_Tab[Rentenwert],MATCH(Simulation_Tab[[#This Row],[Datum]],Renten_Tab[Suchjahr],0),1)*Rentenpunkte*Zugangsfaktor,0) -> 0 | J49: =SUM(ETF_blind!AB48:AF48) -> 0 | K49: =ETF_blind!U48 -> 0 | L49: =IFERROR(ETF_blind!AV48,0) -> 0 | M49: =IFERROR(INDEX(Table6[Kaufpreis inkl NK],MATCH(Simulation_Tab[[#This Row],[Suchjahr]],Table6[Jahr],0),1),0) -> 0 | N49: =IFERROR(INDEX(Table6[Wert_Bestand],MATCH(Simulation_Tab[[#This Row],[Suchjahr]],Table6[Jahr],0),1),0) -> 0 | O49: =IFERROR(INDEX(Table6[EK_sum],MATCH(Simulation_Tab[[#This Row],[Suchjahr]],Table6[Jahr],0),1)-INDEX(Table6[Kaufnebenkosten],MATCH(Simulation_Tab[[#This Row],[Suchjahr]],Table6[Jahr],0),1),0) -> 0 | P49: =IFERROR(INDEX(Table6[Kaufnebenkosten],MATCH(Simulation_Tab[[#This Row],[Suchjahr]],Table6[Jahr],0),1),0) -> 0 | Q49: =IFERROR(INDEX(Table6[FK_Bestand],MATCH(Simulation_Tab[[#This Row],[Suchjahr]],Table6[Jahr],0),1),0) -> 0 | R49: =IFERROR(INDEX(Table6[EK_Bestand],MATCH(Simulation_Tab[[#This Row],[Suchjahr]],Table6[Jahr],0),1),0) -> 0 | S49: =INDEX(Table68[Zinsen_Bestand],MATCH(Simulation_Tab[[#This Row],[Datum]],Table68[Jahr],0),1)/12 -> 0 | T49: =INDEX(Table68[Tilgung_Bestand],MATCH(Simulation_Tab[[#This Row],[Datum]],Table68[Jahr],0),1)/12 -> 0 | U49: =INDEX(Table6[Kosten_Bestand],MATCH(Simulation_Tab[[#This Row],[Datum]],Table6[Jahr],0),1)/12 -> 0 | V49: =INDEX(Table6[Miete_Bestand],MATCH(Simulation_Tab[[#This Row],[Datum]],Table6[Jahr],0),1)/12 -> 0 | W49: =Simulation_Tab[[#This Row],[Nettolohn]]+Simulation_Tab[[#This Row],[gesetzliche Rente]]+Simulation_Tab[[#This Row],[Miete]]+IF(Simulation_Tab[[#This Row],[ETF_VK_Gewinn]]>0,Simulation_Tab[[#This Row],[ETF_VK_Gewinn]],0) -> 2977.54 | X49: =_xlfn.AGGREGATE(9,6,Simulation_Tab[[#This Row],[Konsumausgaben p.M.]]:Simulation_Tab[[#This Row],[Ausgaben Kinder]],Simulation_Tab[[#This Row],[Zinsen]:[n.u. Kosten]])+IF(Simulation_Tab[[#This Row],[ETF_VK_Gewinn]]<0,Simulation_Tab[[#This Row],[ETF_VK_Gewinn]],0)*-1 -> 2392.425 | Y49: =Simulation_Tab[[#This Row],[Einnahmen Summe]]-Simulation_Tab[[#This Row],[Ausgaben Summe]] -> 585.115 | Z49: =_xlfn.AGGREGATE(9,6,Simulation_Tab[[#This Row],[Immo_EK_Kauf]],Simulation_Tab[[#This Row],[Kaufnebenkosten_EK]],Simulation_Tab[[#This Row],[ETF Investment]]) -> 0 | AA49: =Simulation_Tab[[#This Row],[freier Cashflow ]]-Simulation_Tab[[#This Row],[Investitionen inkl Nk]] -> 585.115 | AB49: =AB48+Simulation_Tab[[#This Row],[Cashflow]] -> 44294.265 | AC49: =Simulation_Tab[[#This Row],[Cash]]+Simulation_Tab[[#This Row],[Immo_EK_Bestand]]+Simulation_Tab[[#This Row],[ETF-Wert]] -> 44294.265
A50: =IF(Simulation_Tab[[#This Row],[Datum]]<>B51,Simulation_Tab[[#This Row],[Datum]],"") -> 2023 | B50: =Parameter!$U$5+Simulation_Tab[[#This Row],[Jahr]]-1 -> 2023 | C50: 4 | D50: 48 | E50: =IF((Parameter!$D$10-Parameter!$D$9)>Simulation_Tab[[#This Row],[Jahr]],"B","R") -> B | F50: =IF(Simulation_Tab[[#This Row],[Beruf/Rente]]="B",(Parameter!$D$14/12)*(1+Parameter!$D$15)^(Simulation_Tab[[#This Row],[Jahr]]-1),(Parameter!$D$14*Konsum_Rente/12)*(1+Parameter!$D$15)^(Simulation_Tab[[#This Row],[Jahr]]-1)) -> 1929.375 | G50: =Konsum_Kids!L49 -> 463.05 | H50: =IF(Renteneintritt-Alter>Simulation_Tab[[#This Row],[Jahr]],Parameter!$D$21/12*(1+Parameter!$D$22)^(Simulation_Tab[[#This Row],[Jahr]]-1),0) -> 2977.54 | I50: =IF(Simulation_Tab[[#This Row],[Beruf/Rente]]="R",INDEX(Renten_Tab[Rentenwert],MATCH(Simulation_Tab[[#This Row],[Datum]],Renten_Tab[Suchjahr],0),1)*Rentenpunkte*Zugangsfaktor,0) -> 0 | J50: =SUM(ETF_blind!AB49:AF49) -> 0 | K50: =ETF_blind!U49 -> 0 | L50: =IFERROR(ETF_blind!AV49,0) -> 0 | M50: =IFERROR(INDEX(Table6[Kaufpreis inkl NK],MATCH(Simulation_Tab[[#This Row],[Suchjahr]],Table6[Jahr],0),1),0) -> 0 | N50: =IFERROR(INDEX(Table6[Wert_Bestand],MATCH(Simulation_Tab[[#This Row],[Suchjahr]],Table6[Jahr],0),1),0) -> 0 | O50: =IFERROR(INDEX(Table6[EK_sum],MATCH(Simulation_Tab[[#This Row],[Suchjahr]],Table6[Jahr],0),1)-INDEX(Table6[Kaufnebenkosten],MATCH(Simulation_Tab[[#This Row],[Suchjahr]],Table6[Jahr],0),1),0) -> 0 | P50: =IFERROR(INDEX(Table6[Kaufnebenkosten],MATCH(Simulation_Tab[[#This Row],[Suchjahr]],Table6[Jahr],0),1),0) -> 0 | Q50: =IFERROR(INDEX(Table6[FK_Bestand],MATCH(Simulation_Tab[[#This Row],[Suchjahr]],Table6[Jahr],0),1),0) -> 0 | R50: =IFERROR(INDEX(Table6[EK_Bestand],MATCH(Simulation_Tab[[#This Row],[Suchjahr]],Table6[Jahr],0),1),0) -> 0 | S50: =INDEX(Table68[Zinsen_Bestand],MATCH(Simulation_Tab[[#This Row],[Datum]],Table68[Jahr],0),1)/12 -> 0 | T50: =INDEX(Table68[Tilgung_Bestand],MATCH(Simulation_Tab[[#This Row],[Datum]],Table68[Jahr],0),1)/12 -> 0 | U50: =INDEX(Table6[Kosten_Bestand],MATCH(Simulation_Tab[[#This Row],[Datum]],Table6[Jahr],0),1)/12 -> 0 | V50: =INDEX(Table6[Miete_Bestand],MATCH(Simulation_Tab[[#This Row],[Datum]],Table6[Jahr],0),1)/12 -> 0 | W50: =Simulation_Tab[[#This Row],[Nettolohn]]+Simulation_Tab[[#This Row],[gesetzliche Rente]]+Simulation_Tab[[#This Row],[Miete]]+IF(Simulation_Tab[[#This Row],[ETF_VK_Gewinn]]>0,Simulation_Tab[[#This Row],[ETF_VK_Gewinn]],0) -> 2977.54 | X50: =_xlfn.AGGREGATE(9,6,Simulation_Tab[[#This Row],[Konsumausgaben p.M.]]:Simulation_Tab[[#This Row],[Ausgaben Kinder]],Simulation_Tab[[#This Row],[Zinsen]:[n.u. Kosten]])+IF(Simulation_Tab[[#This Row],[ETF_VK_Gewinn]]<0,Simulation_Tab[[#This Row],[ETF_VK_Gewinn]],0)*-1 -> 2392.425 | Y50: =Simulation_Tab[[#This Row],[Einnahmen Summe]]-Simulation_Tab[[#This Row],[Ausgaben Summe]] -> 585.115 | Z50: =_xlfn.AGGREGATE(9,6,Simulation_Tab[[#This Row],[Immo_EK_Kauf]],Simulation_Tab[[#This Row],[Kaufnebenkosten_EK]],Simulation_Tab[[#This Row],[ETF Investment]]) -> 0 | AA50: =Simulation_Tab[[#This Row],[freier Cashflow ]]-Simulation_Tab[[#This Row],[Investitionen inkl Nk]] -> 585.115 | AB50: =AB49+Simulation_Tab[[#This Row],[Cashflow]] -> 44879.38 | AC50: =Simulation_Tab[[#This Row],[Cash]]+Simulation_Tab[[#This Row],[Immo_EK_Bestand]]+Simulation_Tab[[#This Row],[ETF-Wert]] -> 44879.38
A51: =IF(Simulation_Tab[[#This Row],[Datum]]<>B52,Simulation_Tab[[#This Row],[Datum]],"") ->  | B51: =Parameter!$U$5+Simulation_Tab[[#This Row],[Jahr]]-1 -> 2024 | C51: 5 | D51: 49 | E51: =IF((Parameter!$D$10-Parameter!$D$9)>Simulation_Tab[[#This Row],[Jahr]],"B","R") -> B | F51: =IF(Simulation_Tab[[#This Row],[Beruf/Rente]]="B",(Parameter!$D$14/12)*(1+Parameter!$D$15)^(Simulation_Tab[[#This Row],[Jahr]]-1),(Parameter!$D$14*Konsum_Rente/12)*(1+Parameter!$D$15)^(Simulation_Tab[[#This Row],[Jahr]]-1)) -> 2025.84375 | G51: =Konsum_Kids!L50 -> 486.2025 | H51: =IF(Renteneintritt-Alter>Simulation_Tab[[#This Row],[Jahr]],Parameter!$D$21/12*(1+Parameter!$D$22)^(Simulation_Tab[[#This Row],[Jahr]]-1),0) -> 3156.1924 | I51: =IF(Simulation_Tab[[#This Row],[Beruf/Rente]]="R",INDEX(Renten_Tab[Rentenwert],MATCH(Simulation_Tab[[#This Row],[Datum]],Renten_Tab[Suchjahr],0),1)*Rentenpunkte*Zugangsfaktor,0) -> 0 | J51: =SUM(ETF_blind!AB50:AF50) -> 0 | K51: =ETF_blind!U50 -> 0 | L51: =IFERROR(ETF_blind!AV50,0) -> 0 | M51: =IFERROR(INDEX(Table6[Kaufpreis inkl NK],MATCH(Simulation_Tab[[#This Row],[Suchjahr]],Table6[Jahr],0),1),0) -> 0 | N51: =IFERROR(INDEX(Table6[Wert_Bestand],MATCH(Simulation_Tab[[#This Row],[Suchjahr]],Table6[Jahr],0),1),0) -> 0 | O51: =IFERROR(INDEX(Table6[EK_sum],MATCH(Simulation_Tab[[#This Row],[Suchjahr]],Table6[Jahr],0),1)-INDEX(Table6[Kaufnebenkosten],MATCH(Simulation_Tab[[#This Row],[Suchjahr]],Table6[Jahr],0),1),0) -> 0 | P51: =IFERROR(INDEX(Table6[Kaufnebenkosten],MATCH(Simulation_Tab[[#This Row],[Suchjahr]],Table6[Jahr],0),1),0) -> 0 | Q51: =IFERROR(INDEX(Table6[FK_Bestand],MATCH(Simulation_Tab[[#This Row],[Suchjahr]],Table6[Jahr],0),1),0) -> 0 | R51: =IFERROR(INDEX(Table6[EK_Bestand],MATCH(Simulation_Tab[[#This Row],[Suchjahr]],Table6[Jahr],0),1),0) -> 0 | S51: =INDEX(Table68[Zinsen_Bestand],MATCH(Simulation_Tab[[#This Row],[Datum]],Table68[Jahr],0),1)/12 -> 0 | T51: =INDEX(Table68[Tilgung_Bestand],MATCH(Simulation_Tab[[#This Row],[Datum]],Table68[Jahr],0),1)/12 -> 0 | U51: =INDEX(Table6[Kosten_Bestand],MATCH(Simulation_Tab[[#This Row],[Datum]],Table6[Jahr],0),1)/12 -> 0 | V51: =INDEX(Table6[Miete_Bestand],MATCH(Simulation_Tab[[#This Row],[Datum]],Table6[Jahr],0),1)/12 -> 0 | W51: =Simulation_Tab[[#This Row],[Nettolohn]]+Simulation_Tab[[#This Row],[gesetzliche Rente]]+Simulation_Tab[[#This Row],[Miete]]+IF(Simulation_Tab[[#This Row],[ETF_VK_Gewinn]]>0,Simulation_Tab[[#This Row],[ETF_VK_Gewinn]],0) -> 3156.1924 | X51: =_xlfn.AGGREGATE(9,6,Simulation_Tab[[#This Row],[Konsumausgaben p.M.]]:Simulation_Tab[[#This Row],[Ausgaben Kinder]],Simulation_Tab[[#This Row],[Zinsen]:[n.u. Kosten]])+IF(Simulation_Tab[[#This Row],[ETF_VK_Gewinn]]<0,Simulation_Tab[[#This Row],[ETF_VK_Gewinn]],0)*-1 -> 2512.04625 | Y51: =Simulation_Tab[[#This Row],[Einnahmen Summe]]-Simulation_Tab[[#This Row],[Ausgaben Summe]] -> 644.14615 | Z51: =_xlfn.AGGREGATE(9,6,Simulation_Tab[[#This Row],[Immo_EK_Kauf]],Simulation_Tab[[#This Row],[Kaufnebenkosten_EK]],Simulation_Tab[[#This Row],[ETF Investment]]) -> 0 | AA51: =Simulation_Tab[[#This Row],[freier Cashflow ]]-Simulation_Tab[[#This Row],[Investitionen inkl Nk]] -> 644.14615 | AB51: =AB50+Simulation_Tab[[#This Row],[Cashflow]] -> 45523.52615 | AC51: =Simulation_Tab[[#This Row],[Cash]]+Simulation_Tab[[#This Row],[Immo_EK_Bestand]]+Simulation_Tab[[#This Row],[ETF-Wert]] -> 45523.52615
A52: =IF(Simulation_Tab[[#This Row],[Datum]]<>B53,Simulation_Tab[[#This Row],[Datum]],"") ->  | B52: =Parameter!$U$5+Simulation_Tab[[#This Row],[Jahr]]-1 -> 2024 | C52: 5 | D52: 50 | E52: =IF((Parameter!$D$10-Parameter!$D$9)>Simulation_Tab[[#This Row],[Jahr]],"B","R") -> B | F52: =IF(Simulation_Tab[[#This Row],[Beruf/Rente]]="B",(Parameter!$D$14/12)*(1+Parameter!$D$15)^(Simulation_Tab[[#This Row],[Jahr]]-1),(Parameter!$D$14*Konsum_Rente/12)*(1+Parameter!$D$15)^(Simulation_Tab[[#This Row],[Jahr]]-1)) -> 2025.84375 | G52: =Konsum_Kids!L51 -> 486.2025 | H52: =IF(Renteneintritt-Alter>Simulation_Tab[[#This Row],[Jahr]],Parameter!$D$21/12*(1+Parameter!$D$22)^(Simulation_Tab[[#This Row],[Jahr]]-1),0) -> 3156.1924 | I52: =IF(Simulation_Tab[[#This Row],[Beruf/Rente]]="R",INDEX(Renten_Tab[Rentenwert],MATCH(Simulation_Tab[[#This Row],[Datum]],Renten_Tab[Suchjahr],0),1)*Rentenpunkte*Zugangsfaktor,0) -> 0 | J52: =SUM(ETF_blind!AB51:AF51) -> 0 | K52: =ETF_blind!U51 -> 0 | L52: =IFERROR(ETF_blind!AV51,0) -> 0 | M52: =IFERROR(INDEX(Table6[Kaufpreis inkl NK],MATCH(Simulation_Tab[[#This Row],[Suchjahr]],Table6[Jahr],0),1),0) -> 0 | N52: =IFERROR(INDEX(Table6[Wert_Bestand],MATCH(Simulation_Tab[[#This Row],[Suchjahr]],Table6[Jahr],0),1),0) -> 0 | O52: =IFERROR(INDEX(Table6[EK_sum],MATCH(Simulation_Tab[[#This Row],[Suchjahr]],Table6[Jahr],0),1)-INDEX(Table6[Kaufnebenkosten],MATCH(Simulation_Tab[[#This Row],[Suchjahr]],Table6[Jahr],0),1),0) -> 0 | P52: =IFERROR(INDEX(Table6[Kaufnebenkosten],MATCH(Simulation_Tab[[#This Row],[Suchjahr]],Table6[Jahr],0),1),0) -> 0 | Q52: =IFERROR(INDEX(Table6[FK_Bestand],MATCH(Simulation_Tab[[#This Row],[Suchjahr]],Table6[Jahr],0),1),0) -> 0 | R52: =IFERROR(INDEX(Table6[EK_Bestand],MATCH(Simulation_Tab[[#This Row],[Suchjahr]],Table6[Jahr],0),1),0) -> 0 | S52: =INDEX(Table68[Zinsen_Bestand],MATCH(Simulation_Tab[[#This Row],[Datum]],Table68[Jahr],0),1)/12 -> 0 | T52: =INDEX(Table68[Tilgung_Bestand],MATCH(Simulation_Tab[[#This Row],[Datum]],Table68[Jahr],0),1)/12 -> 0 | U52: =INDEX(Table6[Kosten_Bestand],MATCH(Simulation_Tab[[#This Row],[Datum]],Table6[Jahr],0),1)/12 -> 0 | V52: =INDEX(Table6[Miete_Bestand],MATCH(Simulation_Tab[[#This Row],[Datum]],Table6[Jahr],0),1)/12 -> 0 | W52: =Simulation_Tab[[#This Row],[Nettolohn]]+Simulation_Tab[[#This Row],[gesetzliche Rente]]+Simulation_Tab[[#This Row],[Miete]]+IF(Simulation_Tab[[#This Row],[ETF_VK_Gewinn]]>0,Simulation_Tab[[#This Row],[ETF_VK_Gewinn]],0) -> 3156.1924 | X52: =_xlfn.AGGREGATE(9,6,Simulation_Tab[[#This Row],[Konsumausgaben p.M.]]:Simulation_Tab[[#This Row],[Ausgaben Kinder]],Simulation_Tab[[#This Row],[Zinsen]:[n.u. Kosten]])+IF(Simulation_Tab[[#This Row],[ETF_VK_Gewinn]]<0,Simulation_Tab[[#This Row],[ETF_VK_Gewinn]],0)*-1 -> 2512.04625 | Y52: =Simulation_Tab[[#This Row],[Einnahmen Summe]]-Simulation_Tab[[#This Row],[Ausgaben Summe]] -> 644.14615 | Z52: =_xlfn.AGGREGATE(9,6,Simulation_Tab[[#This Row],[Immo_EK_Kauf]],Simulation_Tab[[#This Row],[Kaufnebenkosten_EK]],Simulation_Tab[[#This Row],[ETF Investment]]) -> 0 | AA52: =Simulation_Tab[[#This Row],[freier Cashflow ]]-Simulation_Tab[[#This Row],[Investitionen inkl Nk]] -> 644.14615 | AB52: =AB51+Simulation_Tab[[#This Row],[Cashflow]] -> 46167.6723 | AC52: =Simulation_Tab[[#This Row],[Cash]]+Simulation_Tab[[#This Row],[Immo_EK_Bestand]]+Simulation_Tab[[#This Row],[ETF-Wert]] -> 46167.6723
A53: =IF(Simulation_Tab[[#This Row],[Datum]]<>B54,Simulation_Tab[[#This Row],[Datum]],"") ->  | B53: =Parameter!$U$5+Simulation_Tab[[#This Row],[Jahr]]-1 -> 2024 | C53: 5 | D53: 51 | E53: =IF((Parameter!$D$10-Parameter!$D$9)>Simulation_Tab[[#This Row],[Jahr]],"B","R") -> B | F53: =IF(Simulation_Tab[[#This Row],[Beruf/Rente]]="B",(Parameter!$D$14/12)*(1+Parameter!$D$15)^(Simulation_Tab[[#This Row],[Jahr]]-1),(Parameter!$D$14*Konsum_Rente/12)*(1+Parameter!$D$15)^(Simulation_Tab[[#This Row],[Jahr]]-1)) -> 2025.84375 | G53: =Konsum_Kids!L52 -> 486.2025 | H53: =IF(Renteneintritt-Alter>Simulation_Tab[[#This Row],[Jahr]],Parameter!$D$21/12*(1+Parameter!$D$22)^(Simulation_Tab[[#This Row],[Jahr]]-1),0) -> 3156.1924 | I53: =IF(Simulation_Tab[[#This Row],[Beruf/Rente]]="R",INDEX(Renten_Tab[Rentenwert],MATCH(Simulation_Tab[[#This Row],[Datum]],Renten_Tab[Suchjahr],0),1)*Rentenpunkte*Zugangsfaktor,0) -> 0 | J53: =SUM(ETF_blind!AB52:AF52) -> 0 | K53: =ETF_blind!U52 -> 0 | L53: =IFERROR(ETF_blind!AV52,0) -> 0 | M53: =IFERROR(INDEX(Table6[Kaufpreis inkl NK],MATCH(Simulation_Tab[[#This Row],[Suchjahr]],Table6[Jahr],0),1),0) -> 0 | N53: =IFERROR(INDEX(Table6[Wert_Bestand],MATCH(Simulation_Tab[[#This Row],[Suchjahr]],Table6[Jahr],0),1),0) -> 0 | O53: =IFERROR(INDEX(Table6[EK_sum],MATCH(Simulation_Tab[[#This Row],[Suchjahr]],Table6[Jahr],0),1)-INDEX(Table6[Kaufnebenkosten],MATCH(Simulation_Tab[[#This Row],[Suchjahr]],Table6[Jahr],0),1),0) -> 0 | P53: =IFERROR(INDEX(Table6[Kaufnebenkosten],MATCH(Simulation_Tab[[#This Row],[Suchjahr]],Table6[Jahr],0),1),0) -> 0 | Q53: =IFERROR(INDEX(Table6[FK_Bestand],MATCH(Simulation_Tab[[#This Row],[Suchjahr]],Table6[Jahr],0),1),0) -> 0 | R53: =IFERROR(INDEX(Table6[EK_Bestand],MATCH(Simulation_Tab[[#This Row],[Suchjahr]],Table6[Jahr],0),1),0) -> 0 | S53: =INDEX(Table68[Zinsen_Bestand],MATCH(Simulation_Tab[[#This Row],[Datum]],Table68[Jahr],0),1)/12 -> 0 | T53: =INDEX(Table68[Tilgung_Bestand],MATCH(Simulation_Tab[[#This Row],[Datum]],Table68[Jahr],0),1)/12 -> 0 | U53: =INDEX(Table6[Kosten_Bestand],MATCH(Simulation_Tab[[#This Row],[Datum]],Table6[Jahr],0),1)/12 -> 0 | V53: =INDEX(Table6[Miete_Bestand],MATCH(Simulation_Tab[[#This Row],[Datum]],Table6[Jahr],0),1)/12 -> 0 | W53: =Simulation_Tab[[#This Row],[Nettolohn]]+Simulation_Tab[[#This Row],[gesetzliche Rente]]+Simulation_Tab[[#This Row],[Miete]]+IF(Simulation_Tab[[#This Row],[ETF_VK_Gewinn]]>0,Simulation_Tab[[#This Row],[ETF_VK_Gewinn]],0) -> 3156.1924 | X53: =_xlfn.AGGREGATE(9,6,Simulation_Tab[[#This Row],[Konsumausgaben p.M.]]:Simulation_Tab[[#This Row],[Ausgaben Kinder]],Simulation_Tab[[#This Row],[Zinsen]:[n.u. Kosten]])+IF(Simulation_Tab[[#This Row],[ETF_VK_Gewinn]]<0,Simulation_Tab[[#This Row],[ETF_VK_Gewinn]],0)*-1 -> 2512.04625 | Y53: =Simulation_Tab[[#This Row],[Einnahmen Summe]]-Simulation_Tab[[#This Row],[Ausgaben Summe]] -> 644.14615 | Z53: =_xlfn.AGGREGATE(9,6,Simulation_Tab[[#This Row],[Immo_EK_Kauf]],Simulation_Tab[[#This Row],[Kaufnebenkosten_EK]],Simulation_Tab[[#This Row],[ETF Investment]]) -> 0 | AA53: =Simulation_Tab[[#This Row],[freier Cashflow ]]-Simulation_Tab[[#This Row],[Investitionen inkl Nk]] -> 644.14615 | AB53: =AB52+Simulation_Tab[[#This Row],[Cashflow]] -> 46811.81845 | AC53: =Simulation_Tab[[#This Row],[Cash]]+Simulation_Tab[[#This Row],[Immo_EK_Bestand]]+Simulation_Tab[[#This Row],[ETF-Wert]] -> 46811.81845
A54: =IF(Simulation_Tab[[#This Row],[Datum]]<>B55,Simulation_Tab[[#This Row],[Datum]],"") ->  | B54: =Parameter!$U$5+Simulation_Tab[[#This Row],[Jahr]]-1 -> 2024 | C54: 5 | D54: 52 | E54: =IF((Parameter!$D$10-Parameter!$D$9)>Simulation_Tab[[#This Row],[Jahr]],"B","R") -> B | F54: =IF(Simulation_Tab[[#This Row],[Beruf/Rente]]="B",(Parameter!$D$14/12)*(1+Parameter!$D$15)^(Simulation_Tab[[#This Row],[Jahr]]-1),(Parameter!$D$14*Konsum_Rente/12)*(1+Parameter!$D$15)^(Simulation_Tab[[#This Row],[Jahr]]-1)) -> 2025.84375 | G54: =Konsum_Kids!L53 -> 486.2025 | H54: =IF(Renteneintritt-Alter>Simulation_Tab[[#This Row],[Jahr]],Parameter!$D$21/12*(1+Parameter!$D$22)^(Simulation_Tab[[#This Row],[Jahr]]-1),0) -> 3156.1924 | I54: =IF(Simulation_Tab[[#This Row],[Beruf/Rente]]="R",INDEX(Renten_Tab[Rentenwert],MATCH(Simulation_Tab[[#This Row],[Datum]],Renten_Tab[Suchjahr],0),1)*Rentenpunkte*Zugangsfaktor,0) -> 0 | J54: =SUM(ETF_blind!AB53:AF53) -> 0 | K54: =ETF_blind!U53 -> 0 | L54: =IFERROR(ETF_blind!AV53,0) -> 0 | M54: =IFERROR(INDEX(Table6[Kaufpreis inkl NK],MATCH(Simulation_Tab[[#This Row],[Suchjahr]],Table6[Jahr],0),1),0) -> 0 | N54: =IFERROR(INDEX(Table6[Wert_Bestand],MATCH(Simulation_Tab[[#This Row],[Suchjahr]],Table6[Jahr],0),1),0) -> 0 | O54: =IFERROR(INDEX(Table6[EK_sum],MATCH(Simulation_Tab[[#This Row],[Suchjahr]],Table6[Jahr],0),1)-INDEX(Table6[Kaufnebenkosten],MATCH(Simulation_Tab[[#This Row],[Suchjahr]],Table6[Jahr],0),1),0) -> 0 | P54: =IFERROR(INDEX(Table6[Kaufnebenkosten],MATCH(Simulation_Tab[[#This Row],[Suchjahr]],Table6[Jahr],0),1),0) -> 0 | Q54: =IFERROR(INDEX(Table6[FK_Bestand],MATCH(Simulation_Tab[[#This Row],[Suchjahr]],Table6[Jahr],0),1),0) -> 0 | R54: =IFERROR(INDEX(Table6[EK_Bestand],MATCH(Simulation_Tab[[#This Row],[Suchjahr]],Table6[Jahr],0),1),0) -> 0 | S54: =INDEX(Table68[Zinsen_Bestand],MATCH(Simulation_Tab[[#This Row],[Datum]],Table68[Jahr],0),1)/12 -> 0 | T54: =INDEX(Table68[Tilgung_Bestand],MATCH(Simulation_Tab[[#This Row],[Datum]],Table68[Jahr],0),1)/12 -> 0 | U54: =INDEX(Table6[Kosten_Bestand],MATCH(Simulation_Tab[[#This Row],[Datum]],Table6[Jahr],0),1)/12 -> 0 | V54: =INDEX(Table6[Miete_Bestand],MATCH(Simulation_Tab[[#This Row],[Datum]],Table6[Jahr],0),1)/12 -> 0 | W54: =Simulation_Tab[[#This Row],[Nettolohn]]+Simulation_Tab[[#This Row],[gesetzliche Rente]]+Simulation_Tab[[#This Row],[Miete]]+IF(Simulation_Tab[[#This Row],[ETF_VK_Gewinn]]>0,Simulation_Tab[[#This Row],[ETF_VK_Gewinn]],0) -> 3156.1924 | X54: =_xlfn.AGGREGATE(9,6,Simulation_Tab[[#This Row],[Konsumausgaben p.M.]]:Simulation_Tab[[#This Row],[Ausgaben Kinder]],Simulation_Tab[[#This Row],[Zinsen]:[n.u. Kosten]])+IF(Simulation_Tab[[#This Row],[ETF_VK_Gewinn]]<0,Simulation_Tab[[#This Row],[ETF_VK_Gewinn]],0)*-1 -> 2512.04625 | Y54: =Simulation_Tab[[#This Row],[Einnahmen Summe]]-Simulation_Tab[[#This Row],[Ausgaben Summe]] -> 644.14615 | Z54: =_xlfn.AGGREGATE(9,6,Simulation_Tab[[#This Row],[Immo_EK_Kauf]],Simulation_Tab[[#This Row],[Kaufnebenkosten_EK]],Simulation_Tab[[#This Row],[ETF Investment]]) -> 0 | AA54: =Simulation_Tab[[#This Row],[freier Cashflow ]]-Simulation_Tab[[#This Row],[Investitionen inkl Nk]] -> 644.14615 | AB54: =AB53+Simulation_Tab[[#This Row],[Cashflow]] -> 47455.9646 | AC54: =Simulation_Tab[[#This Row],[Cash]]+Simulation_Tab[[#This Row],[Immo_EK_Bestand]]+Simulation_Tab[[#This Row],[ETF-Wert]] -> 47455.9646
A55: =IF(Simulation_Tab[[#This Row],[Datum]]<>B56,Simulation_Tab[[#This Row],[Datum]],"") ->  | B55: =Parameter!$U$5+Simulation_Tab[[#This Row],[Jahr]]-1 -> 2024 | C55: 5 | D55: 53 | E55: =IF((Parameter!$D$10-Parameter!$D$9)>Simulation_Tab[[#This Row],[Jahr]],"B","R") -> B | F55: =IF(Simulation_Tab[[#This Row],[Beruf/Rente]]="B",(Parameter!$D$14/12)*(1+Parameter!$D$15)^(Simulation_Tab[[#This Row],[Jahr]]-1),(Parameter!$D$14*Konsum_Rente/12)*(1+Parameter!$D$15)^(Simulation_Tab[[#This Row],[Jahr]]-1)) -> 2025.84375 | G55: =Konsum_Kids!L54 -> 486.2025 | H55: =IF(Renteneintritt-Alter>Simulation_Tab[[#This Row],[Jahr]],Parameter!$D$21/12*(1+Parameter!$D$22)^(Simulation_Tab[[#This Row],[Jahr]]-1),0) -> 3156.1924 | I55: =IF(Simulation_Tab[[#This Row],[Beruf/Rente]]="R",INDEX(Renten_Tab[Rentenwert],MATCH(Simulation_Tab[[#This Row],[Datum]],Renten_Tab[Suchjahr],0),1)*Rentenpunkte*Zugangsfaktor,0) -> 0 | J55: =SUM(ETF_blind!AB54:AF54) -> 0 | K55: =ETF_blind!U54 -> 0 | L55: =IFERROR(ETF_blind!AV54,0) -> 0 | M55: =IFERROR(INDEX(Table6[Kaufpreis inkl NK],MATCH(Simulation_Tab[[#This Row],[Suchjahr]],Table6[Jahr],0),1),0) -> 0 | N55: =IFERROR(INDEX(Table6[Wert_Bestand],MATCH(Simulation_Tab[[#This Row],[Suchjahr]],Table6[Jahr],0),1),0) -> 0 | O55: =IFERROR(INDEX(Table6[EK_sum],MATCH(Simulation_Tab[[#This Row],[Suchjahr]],Table6[Jahr],0),1)-INDEX(Table6[Kaufnebenkosten],MATCH(Simulation_Tab[[#This Row],[Suchjahr]],Table6[Jahr],0),1),0) -> 0 | P55: =IFERROR(INDEX(Table6[Kaufnebenkosten],MATCH(Simulation_Tab[[#This Row],[Suchjahr]],Table6[Jahr],0),1),0) -> 0 | Q55: =IFERROR(INDEX(Table6[FK_Bestand],MATCH(Simulation_Tab[[#This Row],[Suchjahr]],Table6[Jahr],0),1),0) -> 0 | R55: =IFERROR(INDEX(Table6[EK_Bestand],MATCH(Simulation_Tab[[#This Row],[Suchjahr]],Table6[Jahr],0),1),0) -> 0 | S55: =INDEX(Table68[Zinsen_Bestand],MATCH(Simulation_Tab[[#This Row],[Datum]],Table68[Jahr],0),1)/12 -> 0 | T55: =INDEX(Table68[Tilgung_Bestand],MATCH(Simulation_Tab[[#This Row],[Datum]],Table68[Jahr],0),1)/12 -> 0 | U55: =INDEX(Table6[Kosten_Bestand],MATCH(Simulation_Tab[[#This Row],[Datum]],Table6[Jahr],0),1)/12 -> 0 | V55: =INDEX(Table6[Miete_Bestand],MATCH(Simulation_Tab[[#This Row],[Datum]],Table6[Jahr],0),1)/12 -> 0 | W55: =Simulation_Tab[[#This Row],[Nettolohn]]+Simulation_Tab[[#This Row],[gesetzliche Rente]]+Simulation_Tab[[#This Row],[Miete]]+IF(Simulation_Tab[[#This Row],[ETF_VK_Gewinn]]>0,Simulation_Tab[[#This Row],[ETF_VK_Gewinn]],0) -> 3156.1924 | X55: =_xlfn.AGGREGATE(9,6,Simulation_Tab[[#This Row],[Konsumausgaben p.M.]]:Simulation_Tab[[#This Row],[Ausgaben Kinder]],Simulation_Tab[[#This Row],[Zinsen]:[n.u. Kosten]])+IF(Simulation_Tab[[#This Row],[ETF_VK_Gewinn]]<0,Simulation_Tab[[#This Row],[ETF_VK_Gewinn]],0)*-1 -> 2512.04625 | Y55: =Simulation_Tab[[#This Row],[Einnahmen Summe]]-Simulation_Tab[[#This Row],[Ausgaben Summe]] -> 644.14615 | Z55: =_xlfn.AGGREGATE(9,6,Simulation_Tab[[#This Row],[Immo_EK_Kauf]],Simulation_Tab[[#This Row],[Kaufnebenkosten_EK]],Simulation_Tab[[#This Row],[ETF Investment]]) -> 0 | AA55: =Simulation_Tab[[#This Row],[freier Cashflow ]]-Simulation_Tab[[#This Row],[Investitionen inkl Nk]] -> 644.14615 | AB55: =AB54+Simulation_Tab[[#This Row],[Cashflow]] -> 48100.11075 | AC55: =Simulation_Tab[[#This Row],[Cash]]+Simulation_Tab[[#This Row],[Immo_EK_Bestand]]+Simulation_Tab[[#This Row],[ETF-Wert]] -> 48100.11075
A56: =IF(Simulation_Tab[[#This Row],[Datum]]<>B57,Simulation_Tab[[#This Row],[Datum]],"") ->  | B56: =Parameter!$U$5+Simulation_Tab[[#This Row],[Jahr]]-1 -> 2024 | C56: 5 | D56: 54 | E56: =IF((Parameter!$D$10-Parameter!$D$9)>Simulation_Tab[[#This Row],[Jahr]],"B","R") -> B | F56: =IF(Simulation_Tab[[#This Row],[Beruf/Rente]]="B",(Parameter!$D$14/12)*(1+Parameter!$D$15)^(Simulation_Tab[[#This Row],[Jahr]]-1),(Parameter!$D$14*Konsum_Rente/12)*(1+Parameter!$D$15)^(Simulation_Tab[[#This Row],[Jahr]]-1)) -> 2025.84375 | G56: =Konsum_Kids!L55 -> 486.2025 | H56: =IF(Renteneintritt-Alter>Simulation_Tab[[#This Row],[Jahr]],Parameter!$D$21/12*(1+Parameter!$D$22)^(Simulation_Tab[[#This Row],[Jahr]]-1),0) -> 3156.1924 | I56: =IF(Simulation_Tab[[#This Row],[Beruf/Rente]]="R",INDEX(Renten_Tab[Rentenwert],MATCH(Simulation_Tab[[#This Row],[Datum]],Renten_Tab[Suchjahr],0),1)*Rentenpunkte*Zugangsfaktor,0) -> 0 | J56: =SUM(ETF_blind!AB55:AF55) -> 0 | K56: =ETF_blind!U55 -> 0 | L56: =IFERROR(ETF_blind!AV55,0) -> 0 | M56: =IFERROR(INDEX(Table6[Kaufpreis inkl NK],MATCH(Simulation_Tab[[#This Row],[Suchjahr]],Table6[Jahr],0),1),0) -> 0 | N56: =IFERROR(INDEX(Table6[Wert_Bestand],MATCH(Simulation_Tab[[#This Row],[Suchjahr]],Table6[Jahr],0),1),0) -> 0 | O56: =IFERROR(INDEX(Table6[EK_sum],MATCH(Simulation_Tab[[#This Row],[Suchjahr]],Table6[Jahr],0),1)-INDEX(Table6[Kaufnebenkosten],MATCH(Simulation_Tab[[#This Row],[Suchjahr]],Table6[Jahr],0),1),0) -> 0 | P56: =IFERROR(INDEX(Table6[Kaufnebenkosten],MATCH(Simulation_Tab[[#This Row],[Suchjahr]],Table6[Jahr],0),1),0) -> 0 | Q56: =IFERROR(INDEX(Table6[FK_Bestand],MATCH(Simulation_Tab[[#This Row],[Suchjahr]],Table6[Jahr],0),1),0) -> 0 | R56: =IFERROR(INDEX(Table6[EK_Bestand],MATCH(Simulation_Tab[[#This Row],[Suchjahr]],Table6[Jahr],0),1),0) -> 0 | S56: =INDEX(Table68[Zinsen_Bestand],MATCH(Simulation_Tab[[#This Row],[Datum]],Table68[Jahr],0),1)/12 -> 0 | T56: =INDEX(Table68[Tilgung_Bestand],MATCH(Simulation_Tab[[#This Row],[Datum]],Table68[Jahr],0),1)/12 -> 0 | U56: =INDEX(Table6[Kosten_Bestand],MATCH(Simulation_Tab[[#This Row],[Datum]],Table6[Jahr],0),1)/12 -> 0 | V56: =INDEX(Table6[Miete_Bestand],MATCH(Simulation_Tab[[#This Row],[Datum]],Table6[Jahr],0),1)/12 -> 0 | W56: =Simulation_Tab[[#This Row],[Nettolohn]]+Simulation_Tab[[#This Row],[gesetzliche Rente]]+Simulation_Tab[[#This Row],[Miete]]+IF(Simulation_Tab[[#This Row],[ETF_VK_Gewinn]]>0,Simulation_Tab[[#This Row],[ETF_VK_Gewinn]],0) -> 3156.1924 | X56: =_xlfn.AGGREGATE(9,6,Simulation_Tab[[#This Row],[Konsumausgaben p.M.]]:Simulation_Tab[[#This Row],[Ausgaben Kinder]],Simulation_Tab[[#This Row],[Zinsen]:[n.u. Kosten]])+IF(Simulation_Tab[[#This Row],[ETF_VK_Gewinn]]<0,Simulation_Tab[[#This Row],[ETF_VK_Gewinn]],0)*-1 -> 2512.04625 | Y56: =Simulation_Tab[[#This Row],[Einnahmen Summe]]-Simulation_Tab[[#This Row],[Ausgaben Summe]] -> 644.14615 | Z56: =_xlfn.AGGREGATE(9,6,Simulation_Tab[[#This Row],[Immo_EK_Kauf]],Simulation_Tab[[#This Row],[Kaufnebenkosten_EK]],Simulation_Tab[[#This Row],[ETF Investment]]) -> 0 | AA56: =Simulation_Tab[[#This Row],[freier Cashflow ]]-Simulation_Tab[[#This Row],[Investitionen inkl Nk]] -> 644.14615 | AB56: =AB55+Simulation_Tab[[#This Row],[Cashflow]] -> 48744.2569 | AC56: =Simulation_Tab[[#This Row],[Cash]]+Simulation_Tab[[#This Row],[Immo_EK_Bestand]]+Simulation_Tab[[#This Row],[ETF-Wert]] -> 48744.2569
A57: =IF(Simulation_Tab[[#This Row],[Datum]]<>B58,Simulation_Tab[[#This Row],[Datum]],"") ->  | B57: =Parameter!$U$5+Simulation_Tab[[#This Row],[Jahr]]-1 -> 2024 | C57: 5 | D57: 55 | E57: =IF((Parameter!$D$10-Parameter!$D$9)>Simulation_Tab[[#This Row],[Jahr]],"B","R") -> B | F57: =IF(Simulation_Tab[[#This Row],[Beruf/Rente]]="B",(Parameter!$D$14/12)*(1+Parameter!$D$15)^(Simulation_Tab[[#This Row],[Jahr]]-1),(Parameter!$D$14*Konsum_Rente/12)*(1+Parameter!$D$15)^(Simulation_Tab[[#This Row],[Jahr]]-1)) -> 2025.84375 | G57: =Konsum_Kids!L56 -> 486.2025 | H57: =IF(Renteneintritt-Alter>Simulation_Tab[[#This Row],[Jahr]],Parameter!$D$21/12*(1+Parameter!$D$22)^(Simulation_Tab[[#This Row],[Jahr]]-1),0) -> 3156.1924 | I57: =IF(Simulation_Tab[[#This Row],[Beruf/Rente]]="R",INDEX(Renten_Tab[Rentenwert],MATCH(Simulation_Tab[[#This Row],[Datum]],Renten_Tab[Suchjahr],0),1)*Rentenpunkte*Zugangsfaktor,0) -> 0 | J57: =SUM(ETF_blind!AB56:AF56) -> 0 | K57: =ETF_blind!U56 -> 0 | L57: =IFERROR(ETF_blind!AV56,0) -> 0 | M57: =IFERROR(INDEX(Table6[Kaufpreis inkl NK],MATCH(Simulation_Tab[[#This Row],[Suchjahr]],Table6[Jahr],0),1),0) -> 0 | N57: =IFERROR(INDEX(Table6[Wert_Bestand],MATCH(Simulation_Tab[[#This Row],[Suchjahr]],Table6[Jahr],0),1),0) -> 0 | O57: =IFERROR(INDEX(Table6[EK_sum],MATCH(Simulation_Tab[[#This Row],[Suchjahr]],Table6[Jahr],0),1)-INDEX(Table6[Kaufnebenkosten],MATCH(Simulation_Tab[[#This Row],[Suchjahr]],Table6[Jahr],0),1),0) -> 0 | P57: =IFERROR(INDEX(Table6[Kaufnebenkosten],MATCH(Simulation_Tab[[#This Row],[Suchjahr]],Table6[Jahr],0),1),0) -> 0 | Q57: =IFERROR(INDEX(Table6[FK_Bestand],MATCH(Simulation_Tab[[#This Row],[Suchjahr]],Table6[Jahr],0),1),0) -> 0 | R57: =IFERROR(INDEX(Table6[EK_Bestand],MATCH(Simulation_Tab[[#This Row],[Suchjahr]],Table6[Jahr],0),1),0) -> 0 | S57: =INDEX(Table68[Zinsen_Bestand],MATCH(Simulation_Tab[[#This Row],[Datum]],Table68[Jahr],0),1)/12 -> 0 | T57: =INDEX(Table68[Tilgung_Bestand],MATCH(Simulation_Tab[[#This Row],[Datum]],Table68[Jahr],0),1)/12 -> 0 | U57: =INDEX(Table6[Kosten_Bestand],MATCH(Simulation_Tab[[#This Row],[Datum]],Table6[Jahr],0),1)/12 -> 0 | V57: =INDEX(Table6[Miete_Bestand],MATCH(Simulation_Tab[[#This Row],[Datum]],Table6[Jahr],0),1)/12 -> 0 | W57: =Simulation_Tab[[#This Row],[Nettolohn]]+Simulation_Tab[[#This Row],[gesetzliche Rente]]+Simulation_Tab[[#This Row],[Miete]]+IF(Simulation_Tab[[#This Row],[ETF_VK_Gewinn]]>0,Simulation_Tab[[#This Row],[ETF_VK_Gewinn]],0) -> 3156.1924 | X57: =_xlfn.AGGREGATE(9,6,Simulation_Tab[[#This Row],[Konsumausgaben p.M.]]:Simulation_Tab[[#This Row],[Ausgaben Kinder]],Simulation_Tab[[#This Row],[Zinsen]:[n.u. Kosten]])+IF(Simulation_Tab[[#This Row],[ETF_VK_Gewinn]]<0,Simulation_Tab[[#This Row],[ETF_VK_Gewinn]],0)*-1 -> 2512.04625 | Y57: =Simulation_Tab[[#This Row],[Einnahmen Summe]]-Simulation_Tab[[#This Row],[Ausgaben Summe]] -> 644.14615 | Z57: =_xlfn.AGGREGATE(9,6,Simulation_Tab[[#This Row],[Immo_EK_Kauf]],Simulation_Tab[[#This Row],[Kaufnebenkosten_EK]],Simulation_Tab[[#This Row],[ETF Investment]]) -> 0 | AA57: =Simulation_Tab[[#This Row],[freier Cashflow ]]-Simulation_Tab[[#This Row],[Investitionen inkl Nk]] -> 644.14615 | AB57: =AB56+Simulation_Tab[[#This Row],[Cashflow]] -> 49388.40305 | AC57: =Simulation_Tab[[#This Row],[Cash]]+Simulation_Tab[[#This Row],[Immo_EK_Bestand]]+Simulation_Tab[[#This Row],[ETF-Wert]] -> 49388.40305
A58: =IF(Simulation_Tab[[#This Row],[Datum]]<>B59,Simulation_Tab[[#This Row],[Datum]],"") ->  | B58: =Parameter!$U$5+Simulation_Tab[[#This Row],[Jahr]]-1 -> 2024 | C58: 5 | D58: 56 | E58: =IF((Parameter!$D$10-Parameter!$D$9)>Simulation_Tab[[#This Row],[Jahr]],"B","R") -> B | F58: =IF(Simulation_Tab[[#This Row],[Beruf/Rente]]="B",(Parameter!$D$14/12)*(1+Parameter!$D$15)^(Simulation_Tab[[#This Row],[Jahr]]-1),(Parameter!$D$14*Konsum_Rente/12)*(1+Parameter!$D$15)^(Simulation_Tab[[#This Row],[Jahr]]-1)) -> 2025.84375 | G58: =Konsum_Kids!L57 -> 486.2025 | H58: =IF(Renteneintritt-Alter>Simulation_Tab[[#This Row],[Jahr]],Parameter!$D$21/12*(1+Parameter!$D$22)^(Simulation_Tab[[#This Row],[Jahr]]-1),0) -> 3156.1924 | I58: =IF(Simulation_Tab[[#This Row],[Beruf/Rente]]="R",INDEX(Renten_Tab[Rentenwert],MATCH(Simulation_Tab[[#This Row],[Datum]],Renten_Tab[Suchjahr],0),1)*Rentenpunkte*Zugangsfaktor,0) -> 0 | J58: =SUM(ETF_blind!AB57:AF57) -> 0 | K58: =ETF_blind!U57 -> 0 | L58: =IFERROR(ETF_blind!AV57,0) -> 0 | M58: =IFERROR(INDEX(Table6[Kaufpreis inkl NK],MATCH(Simulation_Tab[[#This Row],[Suchjahr]],Table6[Jahr],0),1),0) -> 0 | N58: =IFERROR(INDEX(Table6[Wert_Bestand],MATCH(Simulation_Tab[[#This Row],[Suchjahr]],Table6[Jahr],0),1),0) -> 0 | O58: =IFERROR(INDEX(Table6[EK_sum],MATCH(Simulation_Tab[[#This Row],[Suchjahr]],Table6[Jahr],0),1)-INDEX(Table6[Kaufnebenkosten],MATCH(Simulation_Tab[[#This Row],[Suchjahr]],Table6[Jahr],0),1),0) -> 0 | P58: =IFERROR(INDEX(Table6[Kaufnebenkosten],MATCH(Simulation_Tab[[#This Row],[Suchjahr]],Table6[Jahr],0),1),0) -> 0 | Q58: =IFERROR(INDEX(Table6[FK_Bestand],MATCH(Simulation_Tab[[#This Row],[Suchjahr]],Table6[Jahr],0),1),0) -> 0 | R58: =IFERROR(INDEX(Table6[EK_Bestand],MATCH(Simulation_Tab[[#This Row],[Suchjahr]],Table6[Jahr],0),1),0) -> 0 | S58: =INDEX(Table68[Zinsen_Bestand],MATCH(Simulation_Tab[[#This Row],[Datum]],Table68[Jahr],0),1)/12 -> 0 | T58: =INDEX(Table68[Tilgung_Bestand],MATCH(Simulation_Tab[[#This Row],[Datum]],Table68[Jahr],0),1)/12 -> 0 | U58: =INDEX(Table6[Kosten_Bestand],MATCH(Simulation_Tab[[#This Row],[Datum]],Table6[Jahr],0),1)/12 -> 0 | V58: =INDEX(Table6[Miete_Bestand],MATCH(Simulation_Tab[[#This Row],[Datum]],Table6[Jahr],0),1)/12 -> 0 | W58: =Simulation_Tab[[#This Row],[Nettolohn]]+Simulation_Tab[[#This Row],[gesetzliche Rente]]+Simulation_Tab[[#This Row],[Miete]]+IF(Simulation_Tab[[#This Row],[ETF_VK_Gewinn]]>0,Simulation_Tab[[#This Row],[ETF_VK_Gewinn]],0) -> 3156.1924 | X58: =_xlfn.AGGREGATE(9,6,Simulation_Tab[[#This Row],[Konsumausgaben p.M.]]:Simulation_Tab[[#This Row],[Ausgaben Kinder]],Simulation_Tab[[#This Row],[Zinsen]:[n.u. Kosten]])+IF(Simulation_Tab[[#This Row],[ETF_VK_Gewinn]]<0,Simulation_Tab[[#This Row],[ETF_VK_Gewinn]],0)*-1 -> 2512.04625 | Y58: =Simulation_Tab[[#This Row],[Einnahmen Summe]]-Simulation_Tab[[#This Row],[Ausgaben Summe]] -> 644.14615 | Z58: =_xlfn.AGGREGATE(9,6,Simulation_Tab[[#This Row],[Immo_EK_Kauf]],Simulation_Tab[[#This Row],[Kaufnebenkosten_EK]],Simulation_Tab[[#This Row],[ETF Investment]]) -> 0 | AA58: =Simulation_Tab[[#This Row],[freier Cashflow ]]-Simulation_Tab[[#This Row],[Investitionen inkl Nk]] -> 644.14615 | AB58: =AB57+Simulation_Tab[[#This Row],[Cashflow]] -> 50032.5492 | AC58: =Simulation_Tab[[#This Row],[Cash]]+Simulation_Tab[[#This Row],[Immo_EK_Bestand]]+Simulation_Tab[[#This Row],[ETF-Wert]] -> 50032.5492
A59: =IF(Simulation_Tab[[#This Row],[Datum]]<>B60,Simulation_Tab[[#This Row],[Datum]],"") ->  | B59: =Parameter!$U$5+Simulation_Tab[[#This Row],[Jahr]]-1 -> 2024 | C59: 5 | D59: 57 | E59: =IF((Parameter!$D$10-Parameter!$D$9)>Simulation_Tab[[#This Row],[Jahr]],"B","R") -> B | F59: =IF(Simulation_Tab[[#This Row],[Beruf/Rente]]="B",(Parameter!$D$14/12)*(1+Parameter!$D$15)^(Simulation_Tab[[#This Row],[Jahr]]-1),(Parameter!$D$14*Konsum_Rente/12)*(1+Parameter!$D$15)^(Simulation_Tab[[#This Row],[Jahr]]-1)) -> 2025.84375 | G59: =Konsum_Kids!L58 -> 486.2025 | H59: =IF(Renteneintritt-Alter>Simulation_Tab[[#This Row],[Jahr]],Parameter!$D$21/12*(1+Parameter!$D$22)^(Simulation_Tab[[#This Row],[Jahr]]-1),0) -> 3156.1924 | I59: =IF(Simulation_Tab[[#This Row],[Beruf/Rente]]="R",INDEX(Renten_Tab[Rentenwert],MATCH(Simulation_Tab[[#This Row],[Datum]],Renten_Tab[Suchjahr],0),1)*Rentenpunkte*Zugangsfaktor,0) -> 0 | J59: =SUM(ETF_blind!AB58:AF58) -> 0 | K59: =ETF_blind!U58 -> 0 | L59: =IFERROR(ETF_blind!AV58,0) -> 0 | M59: =IFERROR(INDEX(Table6[Kaufpreis inkl NK],MATCH(Simulation_Tab[[#This Row],[Suchjahr]],Table6[Jahr],0),1),0) -> 0 | N59: =IFERROR(INDEX(Table6[Wert_Bestand],MATCH(Simulation_Tab[[#This Row],[Suchjahr]],Table6[Jahr],0),1),0) -> 0 | O59: =IFERROR(INDEX(Table6[EK_sum],MATCH(Simulation_Tab[[#This Row],[Suchjahr]],Table6[Jahr],0),1)-INDEX(Table6[Kaufnebenkosten],MATCH(Simulation_Tab[[#This Row],[Suchjahr]],Table6[Jahr],0),1),0) -> 0 | P59: =IFERROR(INDEX(Table6[Kaufnebenkosten],MATCH(Simulation_Tab[[#This Row],[Suchjahr]],Table6[Jahr],0),1),0) -> 0 | Q59: =IFERROR(INDEX(Table6[FK_Bestand],MATCH(Simulation_Tab[[#This Row],[Suchjahr]],Table6[Jahr],0),1),0) -> 0 | R59: =IFERROR(INDEX(Table6[EK_Bestand],MATCH(Simulation_Tab[[#This Row],[Suchjahr]],Table6[Jahr],0),1),0) -> 0 | S59: =INDEX(Table68[Zinsen_Bestand],MATCH(Simulation_Tab[[#This Row],[Datum]],Table68[Jahr],0),1)/12 -> 0 | T59: =INDEX(Table68[Tilgung_Bestand],MATCH(Simulation_Tab[[#This Row],[Datum]],Table68[Jahr],0),1)/12 -> 0 | U59: =INDEX(Table6[Kosten_Bestand],MATCH(Simulation_Tab[[#This Row],[Datum]],Table6[Jahr],0),1)/12 -> 0 | V59: =INDEX(Table6[Miete_Bestand],MATCH(Simulation_Tab[[#This Row],[Datum]],Table6[Jahr],0),1)/12 -> 0 | W59: =Simulation_Tab[[#This Row],[Nettolohn]]+Simulation_Tab[[#This Row],[gesetzliche Rente]]+Simulation_Tab[[#This Row],[Miete]]+IF(Simulation_Tab[[#This Row],[ETF_VK_Gewinn]]>0,Simulation_Tab[[#This Row],[ETF_VK_Gewinn]],0) -> 3156.1924 | X59: =_xlfn.AGGREGATE(9,6,Simulation_Tab[[#This Row],[Konsumausgaben p.M.]]:Simulation_Tab[[#This Row],[Ausgaben Kinder]],Simulation_Tab[[#This Row],[Zinsen]:[n.u. Kosten]])+IF(Simulation_Tab[[#This Row],[ETF_VK_Gewinn]]<0,Simulation_Tab[[#This Row],[ETF_VK_Gewinn]],0)*-1 -> 2512.04625 | Y59: =Simulation_Tab[[#This Row],[Einnahmen Summe]]-Simulation_Tab[[#This Row],[Ausgaben Summe]] -> 644.14615 | Z59: =_xlfn.AGGREGATE(9,6,Simulation_Tab[[#This Row],[Immo_EK_Kauf]],Simulation_Tab[[#This Row],[Kaufnebenkosten_EK]],Simulation_Tab[[#This Row],[ETF Investment]]) -> 0 | AA59: =Simulation_Tab[[#This Row],[freier Cashflow ]]-Simulation_Tab[[#This Row],[Investitionen inkl Nk]] -> 644.14615 | AB59: =AB58+Simulation_Tab[[#This Row],[Cashflow]] -> 50676.69535 | AC59: =Simulation_Tab[[#This Row],[Cash]]+Simulation_Tab[[#This Row],[Immo_EK_Bestand]]+Simulation_Tab[[#This Row],[ETF-Wert]] -> 50676.69535
A60: =IF(Simulation_Tab[[#This Row],[Datum]]<>B61,Simulation_Tab[[#This Row],[Datum]],"") ->  | B60: =Parameter!$U$5+Simulation_Tab[[#This Row],[Jahr]]-1 -> 2024 | C60: 5 | D60: 58 | E60: =IF((Parameter!$D$10-Parameter!$D$9)>Simulation_Tab[[#This Row],[Jahr]],"B","R") -> B | F60: =IF(Simulation_Tab[[#This Row],[Beruf/Rente]]="B",(Parameter!$D$14/12)*(1+Parameter!$D$15)^(Simulation_Tab[[#This Row],[Jahr]]-1),(Parameter!$D$14*Konsum_Rente/12)*(1+Parameter!$D$15)^(Simulation_Tab[[#This Row],[Jahr]]-1)) -> 2025.84375 | G60: =Konsum_Kids!L59 -> 486.2025 | H60: =IF(Renteneintritt-Alter>Simulation_Tab[[#This Row],[Jahr]],Parameter!$D$21/12*(1+Parameter!$D$22)^(Simulation_Tab[[#This Row],[Jahr]]-1),0) -> 3156.1924 | I60: =IF(Simulation_Tab[[#This Row],[Beruf/Rente]]="R",INDEX(Renten_Tab[Rentenwert],MATCH(Simulation_Tab[[#This Row],[Datum]],Renten_Tab[Suchjahr],0),1)*Rentenpunkte*Zugangsfaktor,0) -> 0 | J60: =SUM(ETF_blind!AB59:AF59) -> 0 | K60: =ETF_blind!U59 -> 0 | L60: =IFERROR(ETF_blind!AV59,0) -> 0 | M60: =IFERROR(INDEX(Table6[Kaufpreis inkl NK],MATCH(Simulation_Tab[[#This Row],[Suchjahr]],Table6[Jahr],0),1),0) -> 0 | N60: =IFERROR(INDEX(Table6[Wert_Bestand],MATCH(Simulation_Tab[[#This Row],[Suchjahr]],Table6[Jahr],0),1),0) -> 0 | O60: =IFERROR(INDEX(Table6[EK_sum],MATCH(Simulation_Tab[[#This Row],[Suchjahr]],Table6[Jahr],0),1)-INDEX(Table6[Kaufnebenkosten],MATCH(Simulation_Tab[[#This Row],[Suchjahr]],Table6[Jahr],0),1),0) -> 0 | P60: =IFERROR(INDEX(Table6[Kaufnebenkosten],MATCH(Simulation_Tab[[#This Row],[Suchjahr]],Table6[Jahr],0),1),0) -> 0 | Q60: =IFERROR(INDEX(Table6[FK_Bestand],MATCH(Simulation_Tab[[#This Row],[Suchjahr]],Table6[Jahr],0),1),0) -> 0 | R60: =IFERROR(INDEX(Table6[EK_Bestand],MATCH(Simulation_Tab[[#This Row],[Suchjahr]],Table6[Jahr],0),1),0) -> 0 | S60: =INDEX(Table68[Zinsen_Bestand],MATCH(Simulation_Tab[[#This Row],[Datum]],Table68[Jahr],0),1)/12 -> 0 | T60: =INDEX(Table68[Tilgung_Bestand],MATCH(Simulation_Tab[[#This Row],[Datum]],Table68[Jahr],0),1)/12 -> 0 | U60: =INDEX(Table6[Kosten_Bestand],MATCH(Simulation_Tab[[#This Row],[Datum]],Table6[Jahr],0),1)/12 -> 0 | V60: =INDEX(Table6[Miete_Bestand],MATCH(Simulation_Tab[[#This Row],[Datum]],Table6[Jahr],0),1)/12 -> 0 | W60: =Simulation_Tab[[#This Row],[Nettolohn]]+Simulation_Tab[[#This Row],[gesetzliche Rente]]+Simulation_Tab[[#This Row],[Miete]]+IF(Simulation_Tab[[#This Row],[ETF_VK_Gewinn]]>0,Simulation_Tab[[#This Row],[ETF_VK_Gewinn]],0) -> 3156.1924 | X60: =_xlfn.AGGREGATE(9,6,Simulation_Tab[[#This Row],[Konsumausgaben p.M.]]:Simulation_Tab[[#This Row],[Ausgaben Kinder]],Simulation_Tab[[#This Row],[Zinsen]:[n.u. Kosten]])+IF(Simulation_Tab[[#This Row],[ETF_VK_Gewinn]]<0,Simulation_Tab[[#This Row],[ETF_VK_Gewinn]],0)*-1 -> 2512.04625 | Y60: =Simulation_Tab[[#This Row],[Einnahmen Summe]]-Simulation_Tab[[#This Row],[Ausgaben Summe]] -> 644.14615 | Z60: =_xlfn.AGGREGATE(9,6,Simulation_Tab[[#This Row],[Immo_EK_Kauf]],Simulation_Tab[[#This Row],[Kaufnebenkosten_EK]],Simulation_Tab[[#This Row],[ETF Investment]]) -> 0 | AA60: =Simulation_Tab[[#This Row],[freier Cashflow ]]-Simulation_Tab[[#This Row],[Investitionen inkl Nk]] -> 644.14615 | AB60: =AB59+Simulation_Tab[[#This Row],[Cashflow]] -> 51320.8415 | AC60: =Simulation_Tab[[#This Row],[Cash]]+Simulation_Tab[[#This Row],[Immo_EK_Bestand]]+Simulation_Tab[[#This Row],[ETF-Wert]] -> 51320.8415
A61: =IF(Simulation_Tab[[#This Row],[Datum]]<>B62,Simulation_Tab[[#This Row],[Datum]],"") ->  | B61: =Parameter!$U$5+Simulation_Tab[[#This Row],[Jahr]]-1 -> 2024 | C61: 5 | D61: 59 | E61: =IF((Parameter!$D$10-Parameter!$D$9)>Simulation_Tab[[#This Row],[Jahr]],"B","R") -> B | F61: =IF(Simulation_Tab[[#This Row],[Beruf/Rente]]="B",(Parameter!$D$14/12)*(1+Parameter!$D$15)^(Simulation_Tab[[#This Row],[Jahr]]-1),(Parameter!$D$14*Konsum_Rente/12)*(1+Parameter!$D$15)^(Simulation_Tab[[#This Row],[Jahr]]-1)) -> 2025.84375 | G61: =Konsum_Kids!L60 -> 486.2025 | H61: =IF(Renteneintritt-Alter>Simulation_Tab[[#This Row],[Jahr]],Parameter!$D$21/12*(1+Parameter!$D$22)^(Simulation_Tab[[#This Row],[Jahr]]-1),0) -> 3156.1924 | I61: =IF(Simulation_Tab[[#This Row],[Beruf/Rente]]="R",INDEX(Renten_Tab[Rentenwert],MATCH(Simulation_Tab[[#This Row],[Datum]],Renten_Tab[Suchjahr],0),1)*Rentenpunkte*Zugangsfaktor,0) -> 0 | J61: =SUM(ETF_blind!AB60:AF60) -> 0 | K61: =ETF_blind!U60 -> 0 | L61: =IFERROR(ETF_blind!AV60,0) -> 0 | M61: =IFERROR(INDEX(Table6[Kaufpreis inkl NK],MATCH(Simulation_Tab[[#This Row],[Suchjahr]],Table6[Jahr],0),1),0) -> 0 | N61: =IFERROR(INDEX(Table6[Wert_Bestand],MATCH(Simulation_Tab[[#This Row],[Suchjahr]],Table6[Jahr],0),1),0) -> 0 | O61: =IFERROR(INDEX(Table6[EK_sum],MATCH(Simulation_Tab[[#This Row],[Suchjahr]],Table6[Jahr],0),1)-INDEX(Table6[Kaufnebenkosten],MATCH(Simulation_Tab[[#This Row],[Suchjahr]],Table6[Jahr],0),1),0) -> 0 | P61: =IFERROR(INDEX(Table6[Kaufnebenkosten],MATCH(Simulation_Tab[[#This Row],[Suchjahr]],Table6[Jahr],0),1),0) -> 0 | Q61: =IFERROR(INDEX(Table6[FK_Bestand],MATCH(Simulation_Tab[[#This Row],[Suchjahr]],Table6[Jahr],0),1),0) -> 0 | R61: =IFERROR(INDEX(Table6[EK_Bestand],MATCH(Simulation_Tab[[#This Row],[Suchjahr]],Table6[Jahr],0),1),0) -> 0 | S61: =INDEX(Table68[Zinsen_Bestand],MATCH(Simulation_Tab[[#This Row],[Datum]],Table68[Jahr],0),1)/12 -> 0 | T61: =INDEX(Table68[Tilgung_Bestand],MATCH(Simulation_Tab[[#This Row],[Datum]],Table68[Jahr],0),1)/12 -> 0 | U61: =INDEX(Table6[Kosten_Bestand],MATCH(Simulation_Tab[[#This Row],[Datum]],Table6[Jahr],0),1)/12 -> 0 | V61: =INDEX(Table6[Miete_Bestand],MATCH(Simulation_Tab[[#This Row],[Datum]],Table6[Jahr],0),1)/12 -> 0 | W61: =Simulation_Tab[[#This Row],[Nettolohn]]+Simulation_Tab[[#This Row],[gesetzliche Rente]]+Simulation_Tab[[#This Row],[Miete]]+IF(Simulation_Tab[[#This Row],[ETF_VK_Gewinn]]>0,Simulation_Tab[[#This Row],[ETF_VK_Gewinn]],0) -> 3156.1924 | X61: =_xlfn.AGGREGATE(9,6,Simulation_Tab[[#This Row],[Konsumausgaben p.M.]]:Simulation_Tab[[#This Row],[Ausgaben Kinder]],Simulation_Tab[[#This Row],[Zinsen]:[n.u. Kosten]])+IF(Simulation_Tab[[#This Row],[ETF_VK_Gewinn]]<0,Simulation_Tab[[#This Row],[ETF_VK_Gewinn]],0)*-1 -> 2512.04625 | Y61: =Simulation_Tab[[#This Row],[Einnahmen Summe]]-Simulation_Tab[[#This Row],[Ausgaben Summe]] -> 644.14615 | Z61: =_xlfn.AGGREGATE(9,6,Simulation_Tab[[#This Row],[Immo_EK_Kauf]],Simulation_Tab[[#This Row],[Kaufnebenkosten_EK]],Simulation_Tab[[#This Row],[ETF Investment]]) -> 0 | AA61: =Simulation_Tab[[#This Row],[freier Cashflow ]]-Simulation_Tab[[#This Row],[Investitionen inkl Nk]] -> 644.14615 | AB61: =AB60+Simulation_Tab[[#This Row],[Cashflow]] -> 51964.98765 | AC61: =Simulation_Tab[[#This Row],[Cash]]+Simulation_Tab[[#This Row],[Immo_EK_Bestand]]+Simulation_Tab[[#This Row],[ETF-Wert]] -> 51964.98765
A62: =IF(Simulation_Tab[[#This Row],[Datum]]<>B63,Simulation_Tab[[#This Row],[Datum]],"") -> 2024 | B62: =Parameter!$U$5+Simulation_Tab[[#This Row],[Jahr]]-1 -> 2024 | C62: 5 | D62: 60 | E62: =IF((Parameter!$D$10-Parameter!$D$9)>Simulation_Tab[[#This Row],[Jahr]],"B","R") -> B | F62: =IF(Simulation_Tab[[#This Row],[Beruf/Rente]]="B",(Parameter!$D$14/12)*(1+Parameter!$D$15)^(Simulation_Tab[[#This Row],[Jahr]]-1),(Parameter!$D$14*Konsum_Rente/12)*(1+Parameter!$D$15)^(Simulation_Tab[[#This Row],[Jahr]]-1)) -> 2025.84375 | G62: =Konsum_Kids!L61 -> 486.2025 | H62: =IF(Renteneintritt-Alter>Simulation_Tab[[#This Row],[Jahr]],Parameter!$D$21/12*(1+Parameter!$D$22)^(Simulation_Tab[[#This Row],[Jahr]]-1),0) -> 3156.1924 | I62: =IF(Simulation_Tab[[#This Row],[Beruf/Rente]]="R",INDEX(Renten_Tab[Rentenwert],MATCH(Simulation_Tab[[#This Row],[Datum]],Renten_Tab[Suchjahr],0),1)*Rentenpunkte*Zugangsfaktor,0) -> 0 | J62: =SUM(ETF_blind!AB61:AF61) -> 0 | K62: =ETF_blind!U61 -> 0 | L62: =IFERROR(ETF_blind!AV61,0) -> 0 | M62: =IFERROR(INDEX(Table6[Kaufpreis inkl NK],MATCH(Simulation_Tab[[#This Row],[Suchjahr]],Table6[Jahr],0),1),0) -> 0 | N62: =IFERROR(INDEX(Table6[Wert_Bestand],MATCH(Simulation_Tab[[#This Row],[Suchjahr]],Table6[Jahr],0),1),0) -> 0 | O62: =IFERROR(INDEX(Table6[EK_sum],MATCH(Simulation_Tab[[#This Row],[Suchjahr]],Table6[Jahr],0),1)-INDEX(Table6[Kaufnebenkosten],MATCH(Simulation_Tab[[#This Row],[Suchjahr]],Table6[Jahr],0),1),0) -> 0 | P62: =IFERROR(INDEX(Table6[Kaufnebenkosten],MATCH(Simulation_Tab[[#This Row],[Suchjahr]],Table6[Jahr],0),1),0) -> 0 | Q62: =IFERROR(INDEX(Table6[FK_Bestand],MATCH(Simulation_Tab[[#This Row],[Suchjahr]],Table6[Jahr],0),1),0) -> 0 | R62: =IFERROR(INDEX(Table6[EK_Bestand],MATCH(Simulation_Tab[[#This Row],[Suchjahr]],Table6[Jahr],0),1),0) -> 0 | S62: =INDEX(Table68[Zinsen_Bestand],MATCH(Simulation_Tab[[#This Row],[Datum]],Table68[Jahr],0),1)/12 -> 0 | T62: =INDEX(Table68[Tilgung_Bestand],MATCH(Simulation_Tab[[#This Row],[Datum]],Table68[Jahr],0),1)/12 -> 0 | U62: =INDEX(Table6[Kosten_Bestand],MATCH(Simulation_Tab[[#This Row],[Datum]],Table6[Jahr],0),1)/12 -> 0 | V62: =INDEX(Table6[Miete_Bestand],MATCH(Simulation_Tab[[#This Row],[Datum]],Table6[Jahr],0),1)/12 -> 0 | W62: =Simulation_Tab[[#This Row],[Nettolohn]]+Simulation_Tab[[#This Row],[gesetzliche Rente]]+Simulation_Tab[[#This Row],[Miete]]+IF(Simulation_Tab[[#This Row],[ETF_VK_Gewinn]]>0,Simulation_Tab[[#This Row],[ETF_VK_Gewinn]],0) -> 3156.1924 | X62: =_xlfn.AGGREGATE(9,6,Simulation_Tab[[#This Row],[Konsumausgaben p.M.]]:Simulation_Tab[[#This Row],[Ausgaben Kinder]],Simulation_Tab[[#This Row],[Zinsen]:[n.u. Kosten]])+IF(Simulation_Tab[[#This Row],[ETF_VK_Gewinn]]<0,Simulation_Tab[[#This Row],[ETF_VK_Gewinn]],0)*-1 -> 2512.04625 | Y62: =Simulation_Tab[[#This Row],[Einnahmen Summe]]-Simulation_Tab[[#This Row],[Ausgaben Summe]] -> 644.14615 | Z62: =_xlfn.AGGREGATE(9,6,Simulation_Tab[[#This Row],[Immo_EK_Kauf]],Simulation_Tab[[#This Row],[Kaufnebenkosten_EK]],Simulation_Tab[[#This Row],[ETF Investment]]) -> 0 | AA62: =Simulation_Tab[[#This Row],[freier Cashflow ]]-Simulation_Tab[[#This Row],[Investitionen inkl Nk]] -> 644.14615 | AB62: =AB61+Simulation_Tab[[#This Row],[Cashflow]] -> 52609.1338 | AC62: =Simulation_Tab[[#This Row],[Cash]]+Simulation_Tab[[#This Row],[Immo_EK_Bestand]]+Simulation_Tab[[#This Row],[ETF-Wert]] -> 52609.1338
A63: =IF(Simulation_Tab[[#This Row],[Datum]]<>B64,Simulation_Tab[[#This Row],[Datum]],"") ->  | B63: =Parameter!$U$5+Simulation_Tab[[#This Row],[Jahr]]-1 -> 2025 | C63: 6 | D63: 61 | E63: =IF((Parameter!$D$10-Parameter!$D$9)>Simulation_Tab[[#This Row],[Jahr]],"B","R") -> B | F63: =IF(Simulation_Tab[[#This Row],[Beruf/Rente]]="B",(Parameter!$D$14/12)*(1+Parameter!$D$15)^(Simulation_Tab[[#This Row],[Jahr]]-1),(Parameter!$D$14*Konsum_Rente/12)*(1+Parameter!$D$15)^(Simulation_Tab[[#This Row],[Jahr]]-1)) -> 2127.135938 | G63: =Konsum_Kids!L62 -> 510.512625 | H63: =IF(Renteneintritt-Alter>Simulation_Tab[[#This Row],[Jahr]],Parameter!$D$21/12*(1+Parameter!$D$22)^(Simulation_Tab[[#This Row],[Jahr]]-1),0) -> 3345.563944 | I63: =IF(Simulation_Tab[[#This Row],[Beruf/Rente]]="R",INDEX(Renten_Tab[Rentenwert],MATCH(Simulation_Tab[[#This Row],[Datum]],Renten_Tab[Suchjahr],0),1)*Rentenpunkte*Zugangsfaktor,0) -> 0 | J63: =SUM(ETF_blind!AB62:AF62) -> 0 | K63: =ETF_blind!U62 -> 0 | L63: =IFERROR(ETF_blind!AV62,0) -> 0 | M63: =IFERROR(INDEX(Table6[Kaufpreis inkl NK],MATCH(Simulation_Tab[[#This Row],[Suchjahr]],Table6[Jahr],0),1),0) -> 0 | N63: =IFERROR(INDEX(Table6[Wert_Bestand],MATCH(Simulation_Tab[[#This Row],[Suchjahr]],Table6[Jahr],0),1),0) -> 0 | O63: =IFERROR(INDEX(Table6[EK_sum],MATCH(Simulation_Tab[[#This Row],[Suchjahr]],Table6[Jahr],0),1)-INDEX(Table6[Kaufnebenkosten],MATCH(Simulation_Tab[[#This Row],[Suchjahr]],Table6[Jahr],0),1),0) -> 0 | P63: =IFERROR(INDEX(Table6[Kaufnebenkosten],MATCH(Simulation_Tab[[#This Row],[Suchjahr]],Table6[Jahr],0),1),0) -> 0 | Q63: =IFERROR(INDEX(Table6[FK_Bestand],MATCH(Simulation_Tab[[#This Row],[Suchjahr]],Table6[Jahr],0),1),0) -> 0 | R63: =IFERROR(INDEX(Table6[EK_Bestand],MATCH(Simulation_Tab[[#This Row],[Suchjahr]],Table6[Jahr],0),1),0) -> 0 | S63: =INDEX(Table68[Zinsen_Bestand],MATCH(Simulation_Tab[[#This Row],[Datum]],Table68[Jahr],0),1)/12 -> 0 | T63: =INDEX(Table68[Tilgung_Bestand],MATCH(Simulation_Tab[[#This Row],[Datum]],Table68[Jahr],0),1)/12 -> 0 | U63: =INDEX(Table6[Kosten_Bestand],MATCH(Simulation_Tab[[#This Row],[Datum]],Table6[Jahr],0),1)/12 -> 0 | V63: =INDEX(Table6[Miete_Bestand],MATCH(Simulation_Tab[[#This Row],[Datum]],Table6[Jahr],0),1)/12 -> 0 | W63: =Simulation_Tab[[#This Row],[Nettolohn]]+Simulation_Tab[[#This Row],[gesetzliche Rente]]+Simulation_Tab[[#This Row],[Miete]]+IF(Simulation_Tab[[#This Row],[ETF_VK_Gewinn]]>0,Simulation_Tab[[#This Row],[ETF_VK_Gewinn]],0) -> 3345.563944 | X63: =_xlfn.AGGREGATE(9,6,Simulation_Tab[[#This Row],[Konsumausgaben p.M.]]:Simulation_Tab[[#This Row],[Ausgaben Kinder]],Simulation_Tab[[#This Row],[Zinsen]:[n.u. Kosten]])+IF(Simulation_Tab[[#This Row],[ETF_VK_Gewinn]]<0,Simulation_Tab[[#This Row],[ETF_VK_Gewinn]],0)*-1 -> 2637.648563 | Y63: =Simulation_Tab[[#This Row],[Einnahmen Summe]]-Simulation_Tab[[#This Row],[Ausgaben Summe]] -> 707.9153815 | Z63: =_xlfn.AGGREGATE(9,6,Simulation_Tab[[#This Row],[Immo_EK_Kauf]],Simulation_Tab[[#This Row],[Kaufnebenkosten_EK]],Simulation_Tab[[#This Row],[ETF Investment]]) -> 0 | AA63: =Simulation_Tab[[#This Row],[freier Cashflow ]]-Simulation_Tab[[#This Row],[Investitionen inkl Nk]] -> 707.9153815 | AB63: =AB62+Simulation_Tab[[#This Row],[Cashflow]] -> 53317.04918 | AC63: =Simulation_Tab[[#This Row],[Cash]]+Simulation_Tab[[#This Row],[Immo_EK_Bestand]]+Simulation_Tab[[#This Row],[ETF-Wert]] -> 53317.04918
A64: =IF(Simulation_Tab[[#This Row],[Datum]]<>B65,Simulation_Tab[[#This Row],[Datum]],"") ->  | B64: =Parameter!$U$5+Simulation_Tab[[#This Row],[Jahr]]-1 -> 2025 | C64: 6 | D64: 62 | E64: =IF((Parameter!$D$10-Parameter!$D$9)>Simulation_Tab[[#This Row],[Jahr]],"B","R") -> B | F64: =IF(Simulation_Tab[[#This Row],[Beruf/Rente]]="B",(Parameter!$D$14/12)*(1+Parameter!$D$15)^(Simulation_Tab[[#This Row],[Jahr]]-1),(Parameter!$D$14*Konsum_Rente/12)*(1+Parameter!$D$15)^(Simulation_Tab[[#This Row],[Jahr]]-1)) -> 2127.135938 | G64: =Konsum_Kids!L63 -> 510.512625 | H64: =IF(Renteneintritt-Alter>Simulation_Tab[[#This Row],[Jahr]],Parameter!$D$21/12*(1+Parameter!$D$22)^(Simulation_Tab[[#This Row],[Jahr]]-1),0) -> 3345.563944 | I64: =IF(Simulation_Tab[[#This Row],[Beruf/Rente]]="R",INDEX(Renten_Tab[Rentenwert],MATCH(Simulation_Tab[[#This Row],[Datum]],Renten_Tab[Suchjahr],0),1)*Rentenpunkte*Zugangsfaktor,0) -> 0 | J64: =SUM(ETF_blind!AB63:AF63) -> 0 | K64: =ETF_blind!U63 -> 0 | L64: =IFERROR(ETF_blind!AV63,0) -> 0 | M64: =IFERROR(INDEX(Table6[Kaufpreis inkl NK],MATCH(Simulation_Tab[[#This Row],[Suchjahr]],Table6[Jahr],0),1),0) -> 0 | N64: =IFERROR(INDEX(Table6[Wert_Bestand],MATCH(Simulation_Tab[[#This Row],[Suchjahr]],Table6[Jahr],0),1),0) -> 0 | O64: =IFERROR(INDEX(Table6[EK_sum],MATCH(Simulation_Tab[[#This Row],[Suchjahr]],Table6[Jahr],0),1)-INDEX(Table6[Kaufnebenkosten],MATCH(Simulation_Tab[[#This Row],[Suchjahr]],Table6[Jahr],0),1),0) -> 0 | P64: =IFERROR(INDEX(Table6[Kaufnebenkosten],MATCH(Simulation_Tab[[#This Row],[Suchjahr]],Table6[Jahr],0),1),0) -> 0 | Q64: =IFERROR(INDEX(Table6[FK_Bestand],MATCH(Simulation_Tab[[#This Row],[Suchjahr]],Table6[Jahr],0),1),0) -> 0 | R64: =IFERROR(INDEX(Table6[EK_Bestand],MATCH(Simulation_Tab[[#This Row],[Suchjahr]],Table6[Jahr],0),1),0) -> 0 | S64: =INDEX(Table68[Zinsen_Bestand],MATCH(Simulation_Tab[[#This Row],[Datum]],Table68[Jahr],0),1)/12 -> 0 | T64: =INDEX(Table68[Tilgung_Bestand],MATCH(Simulation_Tab[[#This Row],[Datum]],Table68[Jahr],0),1)/12 -> 0 | U64: =INDEX(Table6[Kosten_Bestand],MATCH(Simulation_Tab[[#This Row],[Datum]],Table6[Jahr],0),1)/12 -> 0 | V64: =INDEX(Table6[Miete_Bestand],MATCH(Simulation_Tab[[#This Row],[Datum]],Table6[Jahr],0),1)/12 -> 0 | W64: =Simulation_Tab[[#This Row],[Nettolohn]]+Simulation_Tab[[#This Row],[gesetzliche Rente]]+Simulation_Tab[[#This Row],[Miete]]+IF(Simulation_Tab[[#This Row],[ETF_VK_Gewinn]]>0,Simulation_Tab[[#This Row],[ETF_VK_Gewinn]],0) -> 3345.563944 | X64: =_xlfn.AGGREGATE(9,6,Simulation_Tab[[#This Row],[Konsumausgaben p.M.]]:Simulation_Tab[[#This Row],[Ausgaben Kinder]],Simulation_Tab[[#This Row],[Zinsen]:[n.u. Kosten]])+IF(Simulation_Tab[[#This Row],[ETF_VK_Gewinn]]<0,Simulation_Tab[[#This Row],[ETF_VK_Gewinn]],0)*-1 -> 2637.648563 | Y64: =Simulation_Tab[[#This Row],[Einnahmen Summe]]-Simulation_Tab[[#This Row],[Ausgaben Summe]] -> 707.9153815 | Z64: =_xlfn.AGGREGATE(9,6,Simulation_Tab[[#This Row],[Immo_EK_Kauf]],Simulation_Tab[[#This Row],[Kaufnebenkosten_EK]],Simulation_Tab[[#This Row],[ETF Investment]]) -> 0 | AA64: =Simulation_Tab[[#This Row],[freier Cashflow ]]-Simulation_Tab[[#This Row],[Investitionen inkl Nk]] -> 707.9153815 | AB64: =AB63+Simulation_Tab[[#This Row],[Cashflow]] -> 54024.96456 | AC64: =Simulation_Tab[[#This Row],[Cash]]+Simulation_Tab[[#This Row],[Immo_EK_Bestand]]+Simulation_Tab[[#This Row],[ETF-Wert]] -> 54024.96456
A65: =IF(Simulation_Tab[[#This Row],[Datum]]<>B66,Simulation_Tab[[#This Row],[Datum]],"") ->  | B65: =Parameter!$U$5+Simulation_Tab[[#This Row],[Jahr]]-1 -> 2025 | C65: 6 | D65: 63 | E65: =IF((Parameter!$D$10-Parameter!$D$9)>Simulation_Tab[[#This Row],[Jahr]],"B","R") -> B | F65: =IF(Simulation_Tab[[#This Row],[Beruf/Rente]]="B",(Parameter!$D$14/12)*(1+Parameter!$D$15)^(Simulation_Tab[[#This Row],[Jahr]]-1),(Parameter!$D$14*Konsum_Rente/12)*(1+Parameter!$D$15)^(Simulation_Tab[[#This Row],[Jahr]]-1)) -> 2127.135938 | G65: =Konsum_Kids!L64 -> 510.512625 | H65: =IF(Renteneintritt-Alter>Simulation_Tab[[#This Row],[Jahr]],Parameter!$D$21/12*(1+Parameter!$D$22)^(Simulation_Tab[[#This Row],[Jahr]]-1),0) -> 3345.563944 | I65: =IF(Simulation_Tab[[#This Row],[Beruf/Rente]]="R",INDEX(Renten_Tab[Rentenwert],MATCH(Simulation_Tab[[#This Row],[Datum]],Renten_Tab[Suchjahr],0),1)*Rentenpunkte*Zugangsfaktor,0) -> 0 | J65: =SUM(ETF_blind!AB64:AF64) -> 0 | K65: =ETF_blind!U64 -> 0 | L65: =IFERROR(ETF_blind!AV64,0) -> 0 | M65: =IFERROR(INDEX(Table6[Kaufpreis inkl NK],MATCH(Simulation_Tab[[#This Row],[Suchjahr]],Table6[Jahr],0),1),0) -> 0 | N65: =IFERROR(INDEX(Table6[Wert_Bestand],MATCH(Simulation_Tab[[#This Row],[Suchjahr]],Table6[Jahr],0),1),0) -> 0 | O65: =IFERROR(INDEX(Table6[EK_sum],MATCH(Simulation_Tab[[#This Row],[Suchjahr]],Table6[Jahr],0),1)-INDEX(Table6[Kaufnebenkosten],MATCH(Simulation_Tab[[#This Row],[Suchjahr]],Table6[Jahr],0),1),0) -> 0 | P65: =IFERROR(INDEX(Table6[Kaufnebenkosten],MATCH(Simulation_Tab[[#This Row],[Suchjahr]],Table6[Jahr],0),1),0) -> 0 | Q65: =IFERROR(INDEX(Table6[FK_Bestand],MATCH(Simulation_Tab[[#This Row],[Suchjahr]],Table6[Jahr],0),1),0) -> 0 | R65: =IFERROR(INDEX(Table6[EK_Bestand],MATCH(Simulation_Tab[[#This Row],[Suchjahr]],Table6[Jahr],0),1),0) -> 0 | S65: =INDEX(Table68[Zinsen_Bestand],MATCH(Simulation_Tab[[#This Row],[Datum]],Table68[Jahr],0),1)/12 -> 0 | T65: =INDEX(Table68[Tilgung_Bestand],MATCH(Simulation_Tab[[#This Row],[Datum]],Table68[Jahr],0),1)/12 -> 0 | U65: =INDEX(Table6[Kosten_Bestand],MATCH(Simulation_Tab[[#This Row],[Datum]],Table6[Jahr],0),1)/12 -> 0 | V65: =INDEX(Table6[Miete_Bestand],MATCH(Simulation_Tab[[#This Row],[Datum]],Table6[Jahr],0),1)/12 -> 0 | W65: =Simulation_Tab[[#This Row],[Nettolohn]]+Simulation_Tab[[#This Row],[gesetzliche Rente]]+Simulation_Tab[[#This Row],[Miete]]+IF(Simulation_Tab[[#This Row],[ETF_VK_Gewinn]]>0,Simulation_Tab[[#This Row],[ETF_VK_Gewinn]],0) -> 3345.563944 | X65: =_xlfn.AGGREGATE(9,6,Simulation_Tab[[#This Row],[Konsumausgaben p.M.]]:Simulation_Tab[[#This Row],[Ausgaben Kinder]],Simulation_Tab[[#This Row],[Zinsen]:[n.u. Kosten]])+IF(Simulation_Tab[[#This Row],[ETF_VK_Gewinn]]<0,Simulation_Tab[[#This Row],[ETF_VK_Gewinn]],0)*-1 -> 2637.648563 | Y65: =Simulation_Tab[[#This Row],[Einnahmen Summe]]-Simulation_Tab[[#This Row],[Ausgaben Summe]] -> 707.9153815 | Z65: =_xlfn.AGGREGATE(9,6,Simulation_Tab[[#This Row],[Immo_EK_Kauf]],Simulation_Tab[[#This Row],[Kaufnebenkosten_EK]],Simulation_Tab[[#This Row],[ETF Investment]]) -> 0 | AA65: =Simulation_Tab[[#This Row],[freier Cashflow ]]-Simulation_Tab[[#This Row],[Investitionen inkl Nk]] -> 707.9153815 | AB65: =AB64+Simulation_Tab[[#This Row],[Cashflow]] -> 54732.87994 | AC65: =Simulation_Tab[[#This Row],[Cash]]+Simulation_Tab[[#This Row],[Immo_EK_Bestand]]+Simulation_Tab[[#This Row],[ETF-Wert]] -> 54732.87994
A66: =IF(Simulation_Tab[[#This Row],[Datum]]<>B67,Simulation_Tab[[#This Row],[Datum]],"") ->  | B66: =Parameter!$U$5+Simulation_Tab[[#This Row],[Jahr]]-1 -> 2025 | C66: 6 | D66: 64 | E66: =IF((Parameter!$D$10-Parameter!$D$9)>Simulation_Tab[[#This Row],[Jahr]],"B","R") -> B | F66: =IF(Simulation_Tab[[#This Row],[Beruf/Rente]]="B",(Parameter!$D$14/12)*(1+Parameter!$D$15)^(Simulation_Tab[[#This Row],[Jahr]]-1),(Parameter!$D$14*Konsum_Rente/12)*(1+Parameter!$D$15)^(Simulation_Tab[[#This Row],[Jahr]]-1)) -> 2127.135938 | G66: =Konsum_Kids!L65 -> 510.512625 | H66: =IF(Renteneintritt-Alter>Simulation_Tab[[#This Row],[Jahr]],Parameter!$D$21/12*(1+Parameter!$D$22)^(Simulation_Tab[[#This Row],[Jahr]]-1),0) -> 3345.563944 | I66: =IF(Simulation_Tab[[#This Row],[Beruf/Rente]]="R",INDEX(Renten_Tab[Rentenwert],MATCH(Simulation_Tab[[#This Row],[Datum]],Renten_Tab[Suchjahr],0),1)*Rentenpunkte*Zugangsfaktor,0) -> 0 | J66: =SUM(ETF_blind!AB65:AF65) -> 0 | K66: =ETF_blind!U65 -> 0 | L66: =IFERROR(ETF_blind!AV65,0) -> 0 | M66: =IFERROR(INDEX(Table6[Kaufpreis inkl NK],MATCH(Simulation_Tab[[#This Row],[Suchjahr]],Table6[Jahr],0),1),0) -> 0 | N66: =IFERROR(INDEX(Table6[Wert_Bestand],MATCH(Simulation_Tab[[#This Row],[Suchjahr]],Table6[Jahr],0),1),0) -> 0 | O66: =IFERROR(INDEX(Table6[EK_sum],MATCH(Simulation_Tab[[#This Row],[Suchjahr]],Table6[Jahr],0),1)-INDEX(Table6[Kaufnebenkosten],MATCH(Simulation_Tab[[#This Row],[Suchjahr]],Table6[Jahr],0),1),0) -> 0 | P66: =IFERROR(INDEX(Table6[Kaufnebenkosten],MATCH(Simulation_Tab[[#This Row],[Suchjahr]],Table6[Jahr],0),1),0) -> 0 | Q66: =IFERROR(INDEX(Table6[FK_Bestand],MATCH(Simulation_Tab[[#This Row],[Suchjahr]],Table6[Jahr],0),1),0) -> 0 | R66: =IFERROR(INDEX(Table6[EK_Bestand],MATCH(Simulation_Tab[[#This Row],[Suchjahr]],Table6[Jahr],0),1),0) -> 0 | S66: =INDEX(Table68[Zinsen_Bestand],MATCH(Simulation_Tab[[#This Row],[Datum]],Table68[Jahr],0),1)/12 -> 0 | T66: =INDEX(Table68[Tilgung_Bestand],MATCH(Simulation_Tab[[#This Row],[Datum]],Table68[Jahr],0),1)/12 -> 0 | U66: =INDEX(Table6[Kosten_Bestand],MATCH(Simulation_Tab[[#This Row],[Datum]],Table6[Jahr],0),1)/12 -> 0 | V66: =INDEX(Table6[Miete_Bestand],MATCH(Simulation_Tab[[#This Row],[Datum]],Table6[Jahr],0),1)/12 -> 0 | W66: =Simulation_Tab[[#This Row],[Nettolohn]]+Simulation_Tab[[#This Row],[gesetzliche Rente]]+Simulation_Tab[[#This Row],[Miete]]+IF(Simulation_Tab[[#This Row],[ETF_VK_Gewinn]]>0,Simulation_Tab[[#This Row],[ETF_VK_Gewinn]],0) -> 3345.563944 | X66: =_xlfn.AGGREGATE(9,6,Simulation_Tab[[#This Row],[Konsumausgaben p.M.]]:Simulation_Tab[[#This Row],[Ausgaben Kinder]],Simulation_Tab[[#This Row],[Zinsen]:[n.u. Kosten]])+IF(Simulation_Tab[[#This Row],[ETF_VK_Gewinn]]<0,Simulation_Tab[[#This Row],[ETF_VK_Gewinn]],0)*-1 -> 2637.648563 | Y66: =Simulation_Tab[[#This Row],[Einnahmen Summe]]-Simulation_Tab[[#This Row],[Ausgaben Summe]] -> 707.9153815 | Z66: =_xlfn.AGGREGATE(9,6,Simulation_Tab[[#This Row],[Immo_EK_Kauf]],Simulation_Tab[[#This Row],[Kaufnebenkosten_EK]],Simulation_Tab[[#This Row],[ETF Investment]]) -> 0 | AA66: =Simulation_Tab[[#This Row],[freier Cashflow ]]-Simulation_Tab[[#This Row],[Investitionen inkl Nk]] -> 707.9153815 | AB66: =AB65+Simulation_Tab[[#This Row],[Cashflow]] -> 55440.79533 | AC66: =Simulation_Tab[[#This Row],[Cash]]+Simulation_Tab[[#This Row],[Immo_EK_Bestand]]+Simulation_Tab[[#This Row],[ETF-Wert]] -> 55440.79533
A67: =IF(Simulation_Tab[[#This Row],[Datum]]<>B68,Simulation_Tab[[#This Row],[Datum]],"") ->  | B67: =Parameter!$U$5+Simulation_Tab[[#This Row],[Jahr]]-1 -> 2025 | C67: =IFERROR(ROUNDDOWN((D67-1)/12,0)+1,"") -> 6 | D67: 65 | E67: =IF((Parameter!$D$10-Parameter!$D$9)>Simulation_Tab[[#This Row],[Jahr]],"B","R") -> B | F67: =IF(Simulation_Tab[[#This Row],[Beruf/Rente]]="B",(Parameter!$D$14/12)*(1+Parameter!$D$15)^(Simulation_Tab[[#This Row],[Jahr]]-1),(Parameter!$D$14*Konsum_Rente/12)*(1+Parameter!$D$15)^(Simulation_Tab[[#This Row],[Jahr]]-1)) -> 2127.135938 | G67: =Konsum_Kids!L66 -> 510.512625 | H67: =IF(Renteneintritt-Alter>Simulation_Tab[[#This Row],[Jahr]],Parameter!$D$21/12*(1+Parameter!$D$22)^(Simulation_Tab[[#This Row],[Jahr]]-1),0) -> 3345.563944 | I67: =IF(Simulation_Tab[[#This Row],[Beruf/Rente]]="R",INDEX(Renten_Tab[Rentenwert],MATCH(Simulation_Tab[[#This Row],[Datum]],Renten_Tab[Suchjahr],0),1)*Rentenpunkte*Zugangsfaktor,0) -> 0 | J67: =SUM(ETF_blind!AB66:AF66) -> 0 | K67: =ETF_blind!U66 -> 0 | L67: =IFERROR(ETF_blind!AV66,0) -> 0 | M67: =IFERROR(INDEX(Table6[Kaufpreis inkl NK],MATCH(Simulation_Tab[[#This Row],[Suchjahr]],Table6[Jahr],0),1),0) -> 0 | N67: =IFERROR(INDEX(Table6[Wert_Bestand],MATCH(Simulation_Tab[[#This Row],[Suchjahr]],Table6[Jahr],0),1),0) -> 0 | O67: =IFERROR(INDEX(Table6[EK_sum],MATCH(Simulation_Tab[[#This Row],[Suchjahr]],Table6[Jahr],0),1)-INDEX(Table6[Kaufnebenkosten],MATCH(Simulation_Tab[[#This Row],[Suchjahr]],Table6[Jahr],0),1),0) -> 0 | P67: =IFERROR(INDEX(Table6[Kaufnebenkosten],MATCH(Simulation_Tab[[#This Row],[Suchjahr]],Table6[Jahr],0),1),0) -> 0 | Q67: =IFERROR(INDEX(Table6[FK_Bestand],MATCH(Simulation_Tab[[#This Row],[Suchjahr]],Table6[Jahr],0),1),0) -> 0 | R67: =IFERROR(INDEX(Table6[EK_Bestand],MATCH(Simulation_Tab[[#This Row],[Suchjahr]],Table6[Jahr],0),1),0) -> 0 | S67: =INDEX(Table68[Zinsen_Bestand],MATCH(Simulation_Tab[[#This Row],[Datum]],Table68[Jahr],0),1)/12 -> 0 | T67: =INDEX(Table68[Tilgung_Bestand],MATCH(Simulation_Tab[[#This Row],[Datum]],Table68[Jahr],0),1)/12 -> 0 | U67: =INDEX(Table6[Kosten_Bestand],MATCH(Simulation_Tab[[#This Row],[Datum]],Table6[Jahr],0),1)/12 -> 0 | V67: =INDEX(Table6[Miete_Bestand],MATCH(Simulation_Tab[[#This Row],[Datum]],Table6[Jahr],0),1)/12 -> 0 | W67: =Simulation_Tab[[#This Row],[Nettolohn]]+Simulation_Tab[[#This Row],[gesetzliche Rente]]+Simulation_Tab[[#This Row],[Miete]]+IF(Simulation_Tab[[#This Row],[ETF_VK_Gewinn]]>0,Simulation_Tab[[#This Row],[ETF_VK_Gewinn]],0) -> 3345.563944 | X67: =_xlfn.AGGREGATE(9,6,Simulation_Tab[[#This Row],[Konsumausgaben p.M.]]:Simulation_Tab[[#This Row],[Ausgaben Kinder]],Simulation_Tab[[#This Row],[Zinsen]:[n.u. Kosten]])+IF(Simulation_Tab[[#This Row],[ETF_VK_Gewinn]]<0,Simulation_Tab[[#This Row],[ETF_VK_Gewinn]],0)*-1 -> 2637.648563 | Y67: =Simulation_Tab[[#This Row],[Einnahmen Summe]]-Simulation_Tab[[#This Row],[Ausgaben Summe]] -> 707.9153815 | Z67: =_xlfn.AGGREGATE(9,6,Simulation_Tab[[#This Row],[Immo_EK_Kauf]],Simulation_Tab[[#This Row],[Kaufnebenkosten_EK]],Simulation_Tab[[#This Row],[ETF Investment]]) -> 0 | AA67: =Simulation_Tab[[#This Row],[freier Cashflow ]]-Simulation_Tab[[#This Row],[Investitionen inkl Nk]] -> 707.9153815 | AB67: =AB66+Simulation_Tab[[#This Row],[Cashflow]] -> 56148.71071 | AC67: =Simulation_Tab[[#This Row],[Cash]]+Simulation_Tab[[#This Row],[Immo_EK_Bestand]]+Simulation_Tab[[#This Row],[ETF-Wert]] -> 56148.71071
A68: =IF(Simulation_Tab[[#This Row],[Datum]]<>B69,Simulation_Tab[[#This Row],[Datum]],"") ->  | B68: =Parameter!$U$5+Simulation_Tab[[#This Row],[Jahr]]-1 -> 2025 | C68: 6 | D68: 66 | E68: =IF((Parameter!$D$10-Parameter!$D$9)>Simulation_Tab[[#This Row],[Jahr]],"B","R") -> B | F68: =IF(Simulation_Tab[[#This Row],[Beruf/Rente]]="B",(Parameter!$D$14/12)*(1+Parameter!$D$15)^(Simulation_Tab[[#This Row],[Jahr]]-1),(Parameter!$D$14*Konsum_Rente/12)*(1+Parameter!$D$15)^(Simulation_Tab[[#This Row],[Jahr]]-1)) -> 2127.135938 | G68: =Konsum_Kids!L67 -> 510.512625 | H68: =IF(Renteneintritt-Alter>Simulation_Tab[[#This Row],[Jahr]],Parameter!$D$21/12*(1+Parameter!$D$22)^(Simulation_Tab[[#This Row],[Jahr]]-1),0) -> 3345.563944 | I68: =IF(Simulation_Tab[[#This Row],[Beruf/Rente]]="R",INDEX(Renten_Tab[Rentenwert],MATCH(Simulation_Tab[[#This Row],[Datum]],Renten_Tab[Suchjahr],0),1)*Rentenpunkte*Zugangsfaktor,0) -> 0 | J68: =SUM(ETF_blind!AB67:AF67) -> 0 | K68: =ETF_blind!U67 -> 0 | L68: =IFERROR(ETF_blind!AV67,0) -> 0 | M68: =IFERROR(INDEX(Table6[Kaufpreis inkl NK],MATCH(Simulation_Tab[[#This Row],[Suchjahr]],Table6[Jahr],0),1),0) -> 0 | N68: =IFERROR(INDEX(Table6[Wert_Bestand],MATCH(Simulation_Tab[[#This Row],[Suchjahr]],Table6[Jahr],0),1),0) -> 0 | O68: =IFERROR(INDEX(Table6[EK_sum],MATCH(Simulation_Tab[[#This Row],[Suchjahr]],Table6[Jahr],0),1)-INDEX(Table6[Kaufnebenkosten],MATCH(Simulation_Tab[[#This Row],[Suchjahr]],Table6[Jahr],0),1),0) -> 0 | P68: =IFERROR(INDEX(Table6[Kaufnebenkosten],MATCH(Simulation_Tab[[#This Row],[Suchjahr]],Table6[Jahr],0),1),0) -> 0 | Q68: =IFERROR(INDEX(Table6[FK_Bestand],MATCH(Simulation_Tab[[#This Row],[Suchjahr]],Table6[Jahr],0),1),0) -> 0 | R68: =IFERROR(INDEX(Table6[EK_Bestand],MATCH(Simulation_Tab[[#This Row],[Suchjahr]],Table6[Jahr],0),1),0) -> 0 | S68: =INDEX(Table68[Zinsen_Bestand],MATCH(Simulation_Tab[[#This Row],[Datum]],Table68[Jahr],0),1)/12 -> 0 | T68: =INDEX(Table68[Tilgung_Bestand],MATCH(Simulation_Tab[[#This Row],[Datum]],Table68[Jahr],0),1)/12 -> 0 | U68: =INDEX(Table6[Kosten_Bestand],MATCH(Simulation_Tab[[#This Row],[Datum]],Table6[Jahr],0),1)/12 -> 0 | V68: =INDEX(Table6[Miete_Bestand],MATCH(Simulation_Tab[[#This Row],[Datum]],Table6[Jahr],0),1)/12 -> 0 | W68: =Simulation_Tab[[#This Row],[Nettolohn]]+Simulation_Tab[[#This Row],[gesetzliche Rente]]+Simulation_Tab[[#This Row],[Miete]]+IF(Simulation_Tab[[#This Row],[ETF_VK_Gewinn]]>0,Simulation_Tab[[#This Row],[ETF_VK_Gewinn]],0) -> 3345.563944 | X68: =_xlfn.AGGREGATE(9,6,Simulation_Tab[[#This Row],[Konsumausgaben p.M.]]:Simulation_Tab[[#This Row],[Ausgaben Kinder]],Simulation_Tab[[#This Row],[Zinsen]:[n.u. Kosten]])+IF(Simulation_Tab[[#This Row],[ETF_VK_Gewinn]]<0,Simulation_Tab[[#This Row],[ETF_VK_Gewinn]],0)*-1 -> 2637.648563 | Y68: =Simulation_Tab[[#This Row],[Einnahmen Summe]]-Simulation_Tab[[#This Row],[Ausgaben Summe]] -> 707.9153815 | Z68: =_xlfn.AGGREGATE(9,6,Simulation_Tab[[#This Row],[Immo_EK_Kauf]],Simulation_Tab[[#This Row],[Kaufnebenkosten_EK]],Simulation_Tab[[#This Row],[ETF Investment]]) -> 0 | AA68: =Simulation_Tab[[#This Row],[freier Cashflow ]]-Simulation_Tab[[#This Row],[Investitionen inkl Nk]] -> 707.9153815 | AB68: =AB67+Simulation_Tab[[#This Row],[Cashflow]] -> 56856.62609 | AC68: =Simulation_Tab[[#This Row],[Cash]]+Simulation_Tab[[#This Row],[Immo_EK_Bestand]]+Simulation_Tab[[#This Row],[ETF-Wert]] -> 56856.62609
A69: =IF(Simulation_Tab[[#This Row],[Datum]]<>B70,Simulation_Tab[[#This Row],[Datum]],"") ->  | B69: =Parameter!$U$5+Simulation_Tab[[#This Row],[Jahr]]-1 -> 2025 | C69: 6 | D69: =D68+1 -> 67 | E69: =IF((Parameter!$D$10-Parameter!$D$9)>Simulation_Tab[[#This Row],[Jahr]],"B","R") -> B | F69: =IF(Simulation_Tab[[#This Row],[Beruf/Rente]]="B",(Parameter!$D$14/12)*(1+Parameter!$D$15)^(Simulation_Tab[[#This Row],[Jahr]]-1),(Parameter!$D$14*Konsum_Rente/12)*(1+Parameter!$D$15)^(Simulation_Tab[[#This Row],[Jahr]]-1)) -> 2127.135938 | G69: =Konsum_Kids!L68 -> 510.512625 | H69: =IF(Renteneintritt-Alter>Simulation_Tab[[#This Row],[Jahr]],Parameter!$D$21/12*(1+Parameter!$D$22)^(Simulation_Tab[[#This Row],[Jahr]]-1),0) -> 3345.563944 | I69: =IF(Simulation_Tab[[#This Row],[Beruf/Rente]]="R",INDEX(Renten_Tab[Rentenwert],MATCH(Simulation_Tab[[#This Row],[Datum]],Renten_Tab[Suchjahr],0),1)*Rentenpunkte*Zugangsfaktor,0) -> 0 | J69: =SUM(ETF_blind!AB68:AF68) -> 0 | K69: =ETF_blind!U68 -> 0 | L69: =IFERROR(ETF_blind!AV68,0) -> 0 | M69: =IFERROR(INDEX(Table6[Kaufpreis inkl NK],MATCH(Simulation_Tab[[#This Row],[Suchjahr]],Table6[Jahr],0),1),0) -> 0 | N69: =IFERROR(INDEX(Table6[Wert_Bestand],MATCH(Simulation_Tab[[#This Row],[Suchjahr]],Table6[Jahr],0),1),0) -> 0 | O69: =IFERROR(INDEX(Table6[EK_sum],MATCH(Simulation_Tab[[#This Row],[Suchjahr]],Table6[Jahr],0),1)-INDEX(Table6[Kaufnebenkosten],MATCH(Simulation_Tab[[#This Row],[Suchjahr]],Table6[Jahr],0),1),0) -> 0 | P69: =IFERROR(INDEX(Table6[Kaufnebenkosten],MATCH(Simulation_Tab[[#This Row],[Suchjahr]],Table6[Jahr],0),1),0) -> 0 | Q69: =IFERROR(INDEX(Table6[FK_Bestand],MATCH(Simulation_Tab[[#This Row],[Suchjahr]],Table6[Jahr],0),1),0) -> 0 | R69: =IFERROR(INDEX(Table6[EK_Bestand],MATCH(Simulation_Tab[[#This Row],[Suchjahr]],Table6[Jahr],0),1),0) -> 0 | S69: =INDEX(Table68[Zinsen_Bestand],MATCH(Simulation_Tab[[#This Row],[Datum]],Table68[Jahr],0),1)/12 -> 0 | T69: =INDEX(Table68[Tilgung_Bestand],MATCH(Simulation_Tab[[#This Row],[Datum]],Table68[Jahr],0),1)/12 -> 0 | U69: =INDEX(Table6[Kosten_Bestand],MATCH(Simulation_Tab[[#This Row],[Datum]],Table6[Jahr],0),1)/12 -> 0 | V69: =INDEX(Table6[Miete_Bestand],MATCH(Simulation_Tab[[#This Row],[Datum]],Table6[Jahr],0),1)/12 -> 0 | W69: =Simulation_Tab[[#This Row],[Nettolohn]]+Simulation_Tab[[#This Row],[gesetzliche Rente]]+Simulation_Tab[[#This Row],[Miete]]+IF(Simulation_Tab[[#This Row],[ETF_VK_Gewinn]]>0,Simulation_Tab[[#This Row],[ETF_VK_Gewinn]],0) -> 3345.563944 | X69: =_xlfn.AGGREGATE(9,6,Simulation_Tab[[#This Row],[Konsumausgaben p.M.]]:Simulation_Tab[[#This Row],[Ausgaben Kinder]],Simulation_Tab[[#This Row],[Zinsen]:[n.u. Kosten]])+IF(Simulation_Tab[[#This Row],[ETF_VK_Gewinn]]<0,Simulation_Tab[[#This Row],[ETF_VK_Gewinn]],0)*-1 -> 2637.648563 | Y69: =Simulation_Tab[[#This Row],[Einnahmen Summe]]-Simulation_Tab[[#This Row],[Ausgaben Summe]] -> 707.9153815 | Z69: =_xlfn.AGGREGATE(9,6,Simulation_Tab[[#This Row],[Immo_EK_Kauf]],Simulation_Tab[[#This Row],[Kaufnebenkosten_EK]],Simulation_Tab[[#This Row],[ETF Investment]]) -> 0 | AA69: =Simulation_Tab[[#This Row],[freier Cashflow ]]-Simulation_Tab[[#This Row],[Investitionen inkl Nk]] -> 707.9153815 | AB69: =AB68+Simulation_Tab[[#This Row],[Cashflow]] -> 57564.54147 | AC69: =Simulation_Tab[[#This Row],[Cash]]+Simulation_Tab[[#This Row],[Immo_EK_Bestand]]+Simulation_Tab[[#This Row],[ETF-Wert]] -> 57564.54147
A70: =IF(Simulation_Tab[[#This Row],[Datum]]<>B71,Simulation_Tab[[#This Row],[Datum]],"") ->  | B70: =Parameter!$U$5+Simulation_Tab[[#This Row],[Jahr]]-1 -> 2025 | C70: 6 | D70: 68 | E70: =IF((Parameter!$D$10-Parameter!$D$9)>Simulation_Tab[[#This Row],[Jahr]],"B","R") -> B | F70: =IF(Simulation_Tab[[#This Row],[Beruf/Rente]]="B",(Parameter!$D$14/12)*(1+Parameter!$D$15)^(Simulation_Tab[[#This Row],[Jahr]]-1),(Parameter!$D$14*Konsum_Rente/12)*(1+Parameter!$D$15)^(Simulation_Tab[[#This Row],[Jahr]]-1)) -> 2127.135938 | G70: =Konsum_Kids!L69 -> 510.512625 | H70: =IF(Renteneintritt-Alter>Simulation_Tab[[#This Row],[Jahr]],Parameter!$D$21/12*(1+Parameter!$D$22)^(Simulation_Tab[[#This Row],[Jahr]]-1),0) -> 3345.563944 | I70: =IF(Simulation_Tab[[#This Row],[Beruf/Rente]]="R",INDEX(Renten_Tab[Rentenwert],MATCH(Simulation_Tab[[#This Row],[Datum]],Renten_Tab[Suchjahr],0),1)*Rentenpunkte*Zugangsfaktor,0) -> 0 | J70: =SUM(ETF_blind!AB69:AF69) -> 0 | K70: =ETF_blind!U69 -> 0 | L70: =IFERROR(ETF_blind!AV69,0) -> 0 | M70: =IFERROR(INDEX(Table6[Kaufpreis inkl NK],MATCH(Simulation_Tab[[#This Row],[Suchjahr]],Table6[Jahr],0),1),0) -> 0 | N70: =IFERROR(INDEX(Table6[Wert_Bestand],MATCH(Simulation_Tab[[#This Row],[Suchjahr]],Table6[Jahr],0),1),0) -> 0 | O70: =IFERROR(INDEX(Table6[EK_sum],MATCH(Simulation_Tab[[#This Row],[Suchjahr]],Table6[Jahr],0),1)-INDEX(Table6[Kaufnebenkosten],MATCH(Simulation_Tab[[#This Row],[Suchjahr]],Table6[Jahr],0),1),0) -> 0 | P70: =IFERROR(INDEX(Table6[Kaufnebenkosten],MATCH(Simulation_Tab[[#This Row],[Suchjahr]],Table6[Jahr],0),1),0) -> 0 | Q70: =IFERROR(INDEX(Table6[FK_Bestand],MATCH(Simulation_Tab[[#This Row],[Suchjahr]],Table6[Jahr],0),1),0) -> 0 | R70: =IFERROR(INDEX(Table6[EK_Bestand],MATCH(Simulation_Tab[[#This Row],[Suchjahr]],Table6[Jahr],0),1),0) -> 0 | S70: =INDEX(Table68[Zinsen_Bestand],MATCH(Simulation_Tab[[#This Row],[Datum]],Table68[Jahr],0),1)/12 -> 0 | T70: =INDEX(Table68[Tilgung_Bestand],MATCH(Simulation_Tab[[#This Row],[Datum]],Table68[Jahr],0),1)/12 -> 0 | U70: =INDEX(Table6[Kosten_Bestand],MATCH(Simulation_Tab[[#This Row],[Datum]],Table6[Jahr],0),1)/12 -> 0 | V70: =INDEX(Table6[Miete_Bestand],MATCH(Simulation_Tab[[#This Row],[Datum]],Table6[Jahr],0),1)/12 -> 0 | W70: =Simulation_Tab[[#This Row],[Nettolohn]]+Simulation_Tab[[#This Row],[gesetzliche Rente]]+Simulation_Tab[[#This Row],[Miete]]+IF(Simulation_Tab[[#This Row],[ETF_VK_Gewinn]]>0,Simulation_Tab[[#This Row],[ETF_VK_Gewinn]],0) -> 3345.563944 | X70: =_xlfn.AGGREGATE(9,6,Simulation_Tab[[#This Row],[Konsumausgaben p.M.]]:Simulation_Tab[[#This Row],[Ausgaben Kinder]],Simulation_Tab[[#This Row],[Zinsen]:[n.u. Kosten]])+IF(Simulation_Tab[[#This Row],[ETF_VK_Gewinn]]<0,Simulation_Tab[[#This Row],[ETF_VK_Gewinn]],0)*-1 -> 2637.648563 | Y70: =Simulation_Tab[[#This Row],[Einnahmen Summe]]-Simulation_Tab[[#This Row],[Ausgaben Summe]] -> 707.9153815 | Z70: =_xlfn.AGGREGATE(9,6,Simulation_Tab[[#This Row],[Immo_EK_Kauf]],Simulation_Tab[[#This Row],[Kaufnebenkosten_EK]],Simulation_Tab[[#This Row],[ETF Investment]]) -> 0 | AA70: =Simulation_Tab[[#This Row],[freier Cashflow ]]-Simulation_Tab[[#This Row],[Investitionen inkl Nk]] -> 707.9153815 | AB70: =AB69+Simulation_Tab[[#This Row],[Cashflow]] -> 58272.45685 | AC70: =Simulation_Tab[[#This Row],[Cash]]+Simulation_Tab[[#This Row],[Immo_EK_Bestand]]+Simulation_Tab[[#This Row],[ETF-Wert]] -> 58272.45685
A71: =IF(Simulation_Tab[[#This Row],[Datum]]<>B72,Simulation_Tab[[#This Row],[Datum]],"") ->  | B71: =Parameter!$U$5+Simulation_Tab[[#This Row],[Jahr]]-1 -> 2025 | C71: 6 | D71: 69 | E71: =IF((Parameter!$D$10-Parameter!$D$9)>Simulation_Tab[[#This Row],[Jahr]],"B","R") -> B | F71: =IF(Simulation_Tab[[#This Row],[Beruf/Rente]]="B",(Parameter!$D$14/12)*(1+Parameter!$D$15)^(Simulation_Tab[[#This Row],[Jahr]]-1),(Parameter!$D$14*Konsum_Rente/12)*(1+Parameter!$D$15)^(Simulation_Tab[[#This Row],[Jahr]]-1)) -> 2127.135938 | G71: =Konsum_Kids!L70 -> 510.512625 | H71: =IF(Renteneintritt-Alter>Simulation_Tab[[#This Row],[Jahr]],Parameter!$D$21/12*(1+Parameter!$D$22)^(Simulation_Tab[[#This Row],[Jahr]]-1),0) -> 3345.563944 | I71: =IF(Simulation_Tab[[#This Row],[Beruf/Rente]]="R",INDEX(Renten_Tab[Rentenwert],MATCH(Simulation_Tab[[#This Row],[Datum]],Renten_Tab[Suchjahr],0),1)*Rentenpunkte*Zugangsfaktor,0) -> 0 | J71: =SUM(ETF_blind!AB70:AF70) -> 0 | K71: =ETF_blind!U70 -> 0 | L71: =IFERROR(ETF_blind!AV70,0) -> 0 | M71: =IFERROR(INDEX(Table6[Kaufpreis inkl NK],MATCH(Simulation_Tab[[#This Row],[Suchjahr]],Table6[Jahr],0),1),0) -> 0 | N71: =IFERROR(INDEX(Table6[Wert_Bestand],MATCH(Simulation_Tab[[#This Row],[Suchjahr]],Table6[Jahr],0),1),0) -> 0 | O71: =IFERROR(INDEX(Table6[EK_sum],MATCH(Simulation_Tab[[#This Row],[Suchjahr]],Table6[Jahr],0),1)-INDEX(Table6[Kaufnebenkosten],MATCH(Simulation_Tab[[#This Row],[Suchjahr]],Table6[Jahr],0),1),0) -> 0 | P71: =IFERROR(INDEX(Table6[Kaufnebenkosten],MATCH(Simulation_Tab[[#This Row],[Suchjahr]],Table6[Jahr],0),1),0) -> 0 | Q71: =IFERROR(INDEX(Table6[FK_Bestand],MATCH(Simulation_Tab[[#This Row],[Suchjahr]],Table6[Jahr],0),1),0) -> 0 | R71: =IFERROR(INDEX(Table6[EK_Bestand],MATCH(Simulation_Tab[[#This Row],[Suchjahr]],Table6[Jahr],0),1),0) -> 0 | S71: =INDEX(Table68[Zinsen_Bestand],MATCH(Simulation_Tab[[#This Row],[Datum]],Table68[Jahr],0),1)/12 -> 0 | T71: =INDEX(Table68[Tilgung_Bestand],MATCH(Simulation_Tab[[#This Row],[Datum]],Table68[Jahr],0),1)/12 -> 0 | U71: =INDEX(Table6[Kosten_Bestand],MATCH(Simulation_Tab[[#This Row],[Datum]],Table6[Jahr],0),1)/12 -> 0 | V71: =INDEX(Table6[Miete_Bestand],MATCH(Simulation_Tab[[#This Row],[Datum]],Table6[Jahr],0),1)/12 -> 0 | W71: =Simulation_Tab[[#This Row],[Nettolohn]]+Simulation_Tab[[#This Row],[gesetzliche Rente]]+Simulation_Tab[[#This Row],[Miete]]+IF(Simulation_Tab[[#This Row],[ETF_VK_Gewinn]]>0,Simulation_Tab[[#This Row],[ETF_VK_Gewinn]],0) -> 3345.563944 | X71: =_xlfn.AGGREGATE(9,6,Simulation_Tab[[#This Row],[Konsumausgaben p.M.]]:Simulation_Tab[[#This Row],[Ausgaben Kinder]],Simulation_Tab[[#This Row],[Zinsen]:[n.u. Kosten]])+IF(Simulation_Tab[[#This Row],[ETF_VK_Gewinn]]<0,Simulation_Tab[[#This Row],[ETF_VK_Gewinn]],0)*-1 -> 2637.648563 | Y71: =Simulation_Tab[[#This Row],[Einnahmen Summe]]-Simulation_Tab[[#This Row],[Ausgaben Summe]] -> 707.9153815 | Z71: =_xlfn.AGGREGATE(9,6,Simulation_Tab[[#This Row],[Immo_EK_Kauf]],Simulation_Tab[[#This Row],[Kaufnebenkosten_EK]],Simulation_Tab[[#This Row],[ETF Investment]]) -> 0 | AA71: =Simulation_Tab[[#This Row],[freier Cashflow ]]-Simulation_Tab[[#This Row],[Investitionen inkl Nk]] -> 707.9153815 | AB71: =AB70+Simulation_Tab[[#This Row],[Cashflow]] -> 58980.37223 | AC71: =Simulation_Tab[[#This Row],[Cash]]+Simulation_Tab[[#This Row],[Immo_EK_Bestand]]+Simulation_Tab[[#This Row],[ETF-Wert]] -> 58980.37223
A72: =IF(Simulation_Tab[[#This Row],[Datum]]<>B73,Simulation_Tab[[#This Row],[Datum]],"") ->  | B72: =Parameter!$U$5+Simulation_Tab[[#This Row],[Jahr]]-1 -> 2025 | C72: 6 | D72: 70 | E72: =IF((Parameter!$D$10-Parameter!$D$9)>Simulation_Tab[[#This Row],[Jahr]],"B","R") -> B | F72: =IF(Simulation_Tab[[#This Row],[Beruf/Rente]]="B",(Parameter!$D$14/12)*(1+Parameter!$D$15)^(Simulation_Tab[[#This Row],[Jahr]]-1),(Parameter!$D$14*Konsum_Rente/12)*(1+Parameter!$D$15)^(Simulation_Tab[[#This Row],[Jahr]]-1)) -> 2127.135938 | G72: =Konsum_Kids!L71 -> 510.512625 | H72: =IF(Renteneintritt-Alter>Simulation_Tab[[#This Row],[Jahr]],Parameter!$D$21/12*(1+Parameter!$D$22)^(Simulation_Tab[[#This Row],[Jahr]]-1),0) -> 3345.563944 | I72: =IF(Simulation_Tab[[#This Row],[Beruf/Rente]]="R",INDEX(Renten_Tab[Rentenwert],MATCH(Simulation_Tab[[#This Row],[Datum]],Renten_Tab[Suchjahr],0),1)*Rentenpunkte*Zugangsfaktor,0) -> 0 | J72: =SUM(ETF_blind!AB71:AF71) -> 0 | K72: =ETF_blind!U71 -> 0 | L72: =IFERROR(ETF_blind!AV71,0) -> 0 | M72: =IFERROR(INDEX(Table6[Kaufpreis inkl NK],MATCH(Simulation_Tab[[#This Row],[Suchjahr]],Table6[Jahr],0),1),0) -> 0 | N72: =IFERROR(INDEX(Table6[Wert_Bestand],MATCH(Simulation_Tab[[#This Row],[Suchjahr]],Table6[Jahr],0),1),0) -> 0 | O72: =IFERROR(INDEX(Table6[EK_sum],MATCH(Simulation_Tab[[#This Row],[Suchjahr]],Table6[Jahr],0),1)-INDEX(Table6[Kaufnebenkosten],MATCH(Simulation_Tab[[#This Row],[Suchjahr]],Table6[Jahr],0),1),0) -> 0 | P72: =IFERROR(INDEX(Table6[Kaufnebenkosten],MATCH(Simulation_Tab[[#This Row],[Suchjahr]],Table6[Jahr],0),1),0) -> 0 | Q72: =IFERROR(INDEX(Table6[FK_Bestand],MATCH(Simulation_Tab[[#This Row],[Suchjahr]],Table6[Jahr],0),1),0) -> 0 | R72: =IFERROR(INDEX(Table6[EK_Bestand],MATCH(Simulation_Tab[[#This Row],[Suchjahr]],Table6[Jahr],0),1),0) -> 0 | S72: =INDEX(Table68[Zinsen_Bestand],MATCH(Simulation_Tab[[#This Row],[Datum]],Table68[Jahr],0),1)/12 -> 0 | T72: =INDEX(Table68[Tilgung_Bestand],MATCH(Simulation_Tab[[#This Row],[Datum]],Table68[Jahr],0),1)/12 -> 0 | U72: =INDEX(Table6[Kosten_Bestand],MATCH(Simulation_Tab[[#This Row],[Datum]],Table6[Jahr],0),1)/12 -> 0 | V72: =INDEX(Table6[Miete_Bestand],MATCH(Simulation_Tab[[#This Row],[Datum]],Table6[Jahr],0),1)/12 -> 0 | W72: =Simulation_Tab[[#This Row],[Nettolohn]]+Simulation_Tab[[#This Row],[gesetzliche Rente]]+Simulation_Tab[[#This Row],[Miete]]+IF(Simulation_Tab[[#This Row],[ETF_VK_Gewinn]]>0,Simulation_Tab[[#This Row],[ETF_VK_Gewinn]],0) -> 3345.563944 | X72: =_xlfn.AGGREGATE(9,6,Simulation_Tab[[#This Row],[Konsumausgaben p.M.]]:Simulation_Tab[[#This Row],[Ausgaben Kinder]],Simulation_Tab[[#This Row],[Zinsen]:[n.u. Kosten]])+IF(Simulation_Tab[[#This Row],[ETF_VK_Gewinn]]<0,Simulation_Tab[[#This Row],[ETF_VK_Gewinn]],0)*-1 -> 2637.648563 | Y72: =Simulation_Tab[[#This Row],[Einnahmen Summe]]-Simulation_Tab[[#This Row],[Ausgaben Summe]] -> 707.9153815 | Z72: =_xlfn.AGGREGATE(9,6,Simulation_Tab[[#This Row],[Immo_EK_Kauf]],Simulation_Tab[[#This Row],[Kaufnebenkosten_EK]],Simulation_Tab[[#This Row],[ETF Investment]]) -> 0 | AA72: =Simulation_Tab[[#This Row],[freier Cashflow ]]-Simulation_Tab[[#This Row],[Investitionen inkl Nk]] -> 707.9153815 | AB72: =AB71+Simulation_Tab[[#This Row],[Cashflow]] -> 59688.28762 | AC72: =Simulation_Tab[[#This Row],[Cash]]+Simulation_Tab[[#This Row],[Immo_EK_Bestand]]+Simulation_Tab[[#This Row],[ETF-Wert]] -> 59688.28762
A73: =IF(Simulation_Tab[[#This Row],[Datum]]<>B74,Simulation_Tab[[#This Row],[Datum]],"") ->  | B73: =Parameter!$U$5+Simulation_Tab[[#This Row],[Jahr]]-1 -> 2025 | C73: 6 | D73: 71 | E73: =IF((Parameter!$D$10-Parameter!$D$9)>Simulation_Tab[[#This Row],[Jahr]],"B","R") -> B | F73: =IF(Simulation_Tab[[#This Row],[Beruf/Rente]]="B",(Parameter!$D$14/12)*(1+Parameter!$D$15)^(Simulation_Tab[[#This Row],[Jahr]]-1),(Parameter!$D$14*Konsum_Rente/12)*(1+Parameter!$D$15)^(Simulation_Tab[[#This Row],[Jahr]]-1)) -> 2127.135938 | G73: =Konsum_Kids!L72 -> 510.512625 | H73: =IF(Renteneintritt-Alter>Simulation_Tab[[#This Row],[Jahr]],Parameter!$D$21/12*(1+Parameter!$D$22)^(Simulation_Tab[[#This Row],[Jahr]]-1),0) -> 3345.563944 | I73: =IF(Simulation_Tab[[#This Row],[Beruf/Rente]]="R",INDEX(Renten_Tab[Rentenwert],MATCH(Simulation_Tab[[#This Row],[Datum]],Renten_Tab[Suchjahr],0),1)*Rentenpunkte*Zugangsfaktor,0) -> 0 | J73: =SUM(ETF_blind!AB72:AF72) -> 0 | K73: =ETF_blind!U72 -> 0 | L73: =IFERROR(ETF_blind!AV72,0) -> 0 | M73: =IFERROR(INDEX(Table6[Kaufpreis inkl NK],MATCH(Simulation_Tab[[#This Row],[Suchjahr]],Table6[Jahr],0),1),0) -> 0 | N73: =IFERROR(INDEX(Table6[Wert_Bestand],MATCH(Simulation_Tab[[#This Row],[Suchjahr]],Table6[Jahr],0),1),0) -> 0 | O73: =IFERROR(INDEX(Table6[EK_sum],MATCH(Simulation_Tab[[#This Row],[Suchjahr]],Table6[Jahr],0),1)-INDEX(Table6[Kaufnebenkosten],MATCH(Simulation_Tab[[#This Row],[Suchjahr]],Table6[Jahr],0),1),0) -> 0 | P73: =IFERROR(INDEX(Table6[Kaufnebenkosten],MATCH(Simulation_Tab[[#This Row],[Suchjahr]],Table6[Jahr],0),1),0) -> 0 | Q73: =IFERROR(INDEX(Table6[FK_Bestand],MATCH(Simulation_Tab[[#This Row],[Suchjahr]],Table6[Jahr],0),1),0) -> 0 | R73: =IFERROR(INDEX(Table6[EK_Bestand],MATCH(Simulation_Tab[[#This Row],[Suchjahr]],Table6[Jahr],0),1),0) -> 0 | S73: =INDEX(Table68[Zinsen_Bestand],MATCH(Simulation_Tab[[#This Row],[Datum]],Table68[Jahr],0),1)/12 -> 0 | T73: =INDEX(Table68[Tilgung_Bestand],MATCH(Simulation_Tab[[#This Row],[Datum]],Table68[Jahr],0),1)/12 -> 0 | U73: =INDEX(Table6[Kosten_Bestand],MATCH(Simulation_Tab[[#This Row],[Datum]],Table6[Jahr],0),1)/12 -> 0 | V73: =INDEX(Table6[Miete_Bestand],MATCH(Simulation_Tab[[#This Row],[Datum]],Table6[Jahr],0),1)/12 -> 0 | W73: =Simulation_Tab[[#This Row],[Nettolohn]]+Simulation_Tab[[#This Row],[gesetzliche Rente]]+Simulation_Tab[[#This Row],[Miete]]+IF(Simulation_Tab[[#This Row],[ETF_VK_Gewinn]]>0,Simulation_Tab[[#This Row],[ETF_VK_Gewinn]],0) -> 3345.563944 | X73: =_xlfn.AGGREGATE(9,6,Simulation_Tab[[#This Row],[Konsumausgaben p.M.]]:Simulation_Tab[[#This Row],[Ausgaben Kinder]],Simulation_Tab[[#This Row],[Zinsen]:[n.u. Kosten]])+IF(Simulation_Tab[[#This Row],[ETF_VK_Gewinn]]<0,Simulation_Tab[[#This Row],[ETF_VK_Gewinn]],0)*-1 -> 2637.648563 | Y73: =Simulation_Tab[[#This Row],[Einnahmen Summe]]-Simulation_Tab[[#This Row],[Ausgaben Summe]] -> 707.9153815 | Z73: =_xlfn.AGGREGATE(9,6,Simulation_Tab[[#This Row],[Immo_EK_Kauf]],Simulation_Tab[[#This Row],[Kaufnebenkosten_EK]],Simulation_Tab[[#This Row],[ETF Investment]]) -> 0 | AA73: =Simulation_Tab[[#This Row],[freier Cashflow ]]-Simulation_Tab[[#This Row],[Investitionen inkl Nk]] -> 707.9153815 | AB73: =AB72+Simulation_Tab[[#This Row],[Cashflow]] -> 60396.203 | AC73: =Simulation_Tab[[#This Row],[Cash]]+Simulation_Tab[[#This Row],[Immo_EK_Bestand]]+Simulation_Tab[[#This Row],[ETF-Wert]] -> 60396.203
A74: =IF(Simulation_Tab[[#This Row],[Datum]]<>B75,Simulation_Tab[[#This Row],[Datum]],"") -> 2025 | B74: =Parameter!$U$5+Simulation_Tab[[#This Row],[Jahr]]-1 -> 2025 | C74: 6 | D74: 72 | E74: =IF((Parameter!$D$10-Parameter!$D$9)>Simulation_Tab[[#This Row],[Jahr]],"B","R") -> B | F74: =IF(Simulation_Tab[[#This Row],[Beruf/Rente]]="B",(Parameter!$D$14/12)*(1+Parameter!$D$15)^(Simulation_Tab[[#This Row],[Jahr]]-1),(Parameter!$D$14*Konsum_Rente/12)*(1+Parameter!$D$15)^(Simulation_Tab[[#This Row],[Jahr]]-1)) -> 2127.135938 | G74: =Konsum_Kids!L73 -> 510.512625 | H74: =IF(Renteneintritt-Alter>Simulation_Tab[[#This Row],[Jahr]],Parameter!$D$21/12*(1+Parameter!$D$22)^(Simulation_Tab[[#This Row],[Jahr]]-1),0) -> 3345.563944 | I74: =IF(Simulation_Tab[[#This Row],[Beruf/Rente]]="R",INDEX(Renten_Tab[Rentenwert],MATCH(Simulation_Tab[[#This Row],[Datum]],Renten_Tab[Suchjahr],0),1)*Rentenpunkte*Zugangsfaktor,0) -> 0 | J74: =SUM(ETF_blind!AB73:AF73) -> 0 | K74: =ETF_blind!U73 -> 0 | L74: =IFERROR(ETF_blind!AV73,0) -> 0 | M74: =IFERROR(INDEX(Table6[Kaufpreis inkl NK],MATCH(Simulation_Tab[[#This Row],[Suchjahr]],Table6[Jahr],0),1),0) -> 0 | N74: =IFERROR(INDEX(Table6[Wert_Bestand],MATCH(Simulation_Tab[[#This Row],[Suchjahr]],Table6[Jahr],0),1),0) -> 0 | O74: =IFERROR(INDEX(Table6[EK_sum],MATCH(Simulation_Tab[[#This Row],[Suchjahr]],Table6[Jahr],0),1)-INDEX(Table6[Kaufnebenkosten],MATCH(Simulation_Tab[[#This Row],[Suchjahr]],Table6[Jahr],0),1),0) -> 0 | P74: =IFERROR(INDEX(Table6[Kaufnebenkosten],MATCH(Simulation_Tab[[#This Row],[Suchjahr]],Table6[Jahr],0),1),0) -> 0 | Q74: =IFERROR(INDEX(Table6[FK_Bestand],MATCH(Simulation_Tab[[#This Row],[Suchjahr]],Table6[Jahr],0),1),0) -> 0 | R74: =IFERROR(INDEX(Table6[EK_Bestand],MATCH(Simulation_Tab[[#This Row],[Suchjahr]],Table6[Jahr],0),1),0) -> 0 | S74: =INDEX(Table68[Zinsen_Bestand],MATCH(Simulation_Tab[[#This Row],[Datum]],Table68[Jahr],0),1)/12 -> 0 | T74: =INDEX(Table68[Tilgung_Bestand],MATCH(Simulation_Tab[[#This Row],[Datum]],Table68[Jahr],0),1)/12 -> 0 | U74: =INDEX(Table6[Kosten_Bestand],MATCH(Simulation_Tab[[#This Row],[Datum]],Table6[Jahr],0),1)/12 -> 0 | V74: =INDEX(Table6[Miete_Bestand],MATCH(Simulation_Tab[[#This Row],[Datum]],Table6[Jahr],0),1)/12 -> 0 | W74: =Simulation_Tab[[#This Row],[Nettolohn]]+Simulation_Tab[[#This Row],[gesetzliche Rente]]+Simulation_Tab[[#This Row],[Miete]]+IF(Simulation_Tab[[#This Row],[ETF_VK_Gewinn]]>0,Simulation_Tab[[#This Row],[ETF_VK_Gewinn]],0) -> 3345.563944 | X74: =_xlfn.AGGREGATE(9,6,Simulation_Tab[[#This Row],[Konsumausgaben p.M.]]:Simulation_Tab[[#This Row],[Ausgaben Kinder]],Simulation_Tab[[#This Row],[Zinsen]:[n.u. Kosten]])+IF(Simulation_Tab[[#This Row],[ETF_VK_Gewinn]]<0,Simulation_Tab[[#This Row],[ETF_VK_Gewinn]],0)*-1 -> 2637.648563 | Y74: =Simulation_Tab[[#This Row],[Einnahmen Summe]]-Simulation_Tab[[#This Row],[Ausgaben Summe]] -> 707.9153815 | Z74: =_xlfn.AGGREGATE(9,6,Simulation_Tab[[#This Row],[Immo_EK_Kauf]],Simulation_Tab[[#This Row],[Kaufnebenkosten_EK]],Simulation_Tab[[#This Row],[ETF Investment]]) -> 0 | AA74: =Simulation_Tab[[#This Row],[freier Cashflow ]]-Simulation_Tab[[#This Row],[Investitionen inkl Nk]] -> 707.9153815 | AB74: =AB73+Simulation_Tab[[#This Row],[Cashflow]] -> 61104.11838 | AC74: =Simulation_Tab[[#This Row],[Cash]]+Simulation_Tab[[#This Row],[Immo_EK_Bestand]]+Simulation_Tab[[#This Row],[ETF-Wert]] -> 61104.11838
A75: =IF(Simulation_Tab[[#This Row],[Datum]]<>B76,Simulation_Tab[[#This Row],[Datum]],"") ->  | B75: =Parameter!$U$5+Simulation_Tab[[#This Row],[Jahr]]-1 -> 2026 | C75: 7 | D75: 73 | E75: =IF((Parameter!$D$10-Parameter!$D$9)>Simulation_Tab[[#This Row],[Jahr]],"B","R") -> B | F75: =IF(Simulation_Tab[[#This Row],[Beruf/Rente]]="B",(Parameter!$D$14/12)*(1+Parameter!$D$15)^(Simulation_Tab[[#This Row],[Jahr]]-1),(Parameter!$D$14*Konsum_Rente/12)*(1+Parameter!$D$15)^(Simulation_Tab[[#This Row],[Jahr]]-1)) -> 2233.492734 | G75: =Konsum_Kids!L74 -> 1072.076513 | H75: =IF(Renteneintritt-Alter>Simulation_Tab[[#This Row],[Jahr]],Parameter!$D$21/12*(1+Parameter!$D$22)^(Simulation_Tab[[#This Row],[Jahr]]-1),0) -> 3546.297781 | I75: =IF(Simulation_Tab[[#This Row],[Beruf/Rente]]="R",INDEX(Renten_Tab[Rentenwert],MATCH(Simulation_Tab[[#This Row],[Datum]],Renten_Tab[Suchjahr],0),1)*Rentenpunkte*Zugangsfaktor,0) -> 0 | J75: =SUM(ETF_blind!AB74:AF74) -> 0 | K75: =ETF_blind!U74 -> 0 | L75: =IFERROR(ETF_blind!AV74,0) -> 0 | M75: =IFERROR(INDEX(Table6[Kaufpreis inkl NK],MATCH(Simulation_Tab[[#This Row],[Suchjahr]],Table6[Jahr],0),1),0) -> 0 | N75: =IFERROR(INDEX(Table6[Wert_Bestand],MATCH(Simulation_Tab[[#This Row],[Suchjahr]],Table6[Jahr],0),1),0) -> 0 | O75: =IFERROR(INDEX(Table6[EK_sum],MATCH(Simulation_Tab[[#This Row],[Suchjahr]],Table6[Jahr],0),1)-INDEX(Table6[Kaufnebenkosten],MATCH(Simulation_Tab[[#This Row],[Suchjahr]],Table6[Jahr],0),1),0) -> 0 | P75: =IFERROR(INDEX(Table6[Kaufnebenkosten],MATCH(Simulation_Tab[[#This Row],[Suchjahr]],Table6[Jahr],0),1),0) -> 0 | Q75: =IFERROR(INDEX(Table6[FK_Bestand],MATCH(Simulation_Tab[[#This Row],[Suchjahr]],Table6[Jahr],0),1),0) -> 0 | R75: =IFERROR(INDEX(Table6[EK_Bestand],MATCH(Simulation_Tab[[#This Row],[Suchjahr]],Table6[Jahr],0),1),0) -> 0 | S75: =INDEX(Table68[Zinsen_Bestand],MATCH(Simulation_Tab[[#This Row],[Datum]],Table68[Jahr],0),1)/12 -> 0 | T75: =INDEX(Table68[Tilgung_Bestand],MATCH(Simulation_Tab[[#This Row],[Datum]],Table68[Jahr],0),1)/12 -> 0 | U75: =INDEX(Table6[Kosten_Bestand],MATCH(Simulation_Tab[[#This Row],[Datum]],Table6[Jahr],0),1)/12 -> 0 | V75: =INDEX(Table6[Miete_Bestand],MATCH(Simulation_Tab[[#This Row],[Datum]],Table6[Jahr],0),1)/12 -> 0 | W75: =Simulation_Tab[[#This Row],[Nettolohn]]+Simulation_Tab[[#This Row],[gesetzliche Rente]]+Simulation_Tab[[#This Row],[Miete]]+IF(Simulation_Tab[[#This Row],[ETF_VK_Gewinn]]>0,Simulation_Tab[[#This Row],[ETF_VK_Gewinn]],0) -> 3546.297781 | X75: =_xlfn.AGGREGATE(9,6,Simulation_Tab[[#This Row],[Konsumausgaben p.M.]]:Simulation_Tab[[#This Row],[Ausgaben Kinder]],Simulation_Tab[[#This Row],[Zinsen]:[n.u. Kosten]])+IF(Simulation_Tab[[#This Row],[ETF_VK_Gewinn]]<0,Simulation_Tab[[#This Row],[ETF_VK_Gewinn]],0)*-1 -> 3305.569247 | Y75: =Simulation_Tab[[#This Row],[Einnahmen Summe]]-Simulation_Tab[[#This Row],[Ausgaben Summe]] -> 240.7285338 | Z75: =_xlfn.AGGREGATE(9,6,Simulation_Tab[[#This Row],[Immo_EK_Kauf]],Simulation_Tab[[#This Row],[Kaufnebenkosten_EK]],Simulation_Tab[[#This Row],[ETF Investment]]) -> 0 | AA75: =Simulation_Tab[[#This Row],[freier Cashflow ]]-Simulation_Tab[[#This Row],[Investitionen inkl Nk]] -> 240.7285338 | AB75: =AB74+Simulation_Tab[[#This Row],[Cashflow]] -> 61344.84691 | AC75: =Simulation_Tab[[#This Row],[Cash]]+Simulation_Tab[[#This Row],[Immo_EK_Bestand]]+Simulation_Tab[[#This Row],[ETF-Wert]] -> 61344.84691
A76: =IF(Simulation_Tab[[#This Row],[Datum]]<>B77,Simulation_Tab[[#This Row],[Datum]],"") ->  | B76: =Parameter!$U$5+Simulation_Tab[[#This Row],[Jahr]]-1 -> 2026 | C76: 7 | D76: 74 | E76: =IF((Parameter!$D$10-Parameter!$D$9)>Simulation_Tab[[#This Row],[Jahr]],"B","R") -> B | F76: =IF(Simulation_Tab[[#This Row],[Beruf/Rente]]="B",(Parameter!$D$14/12)*(1+Parameter!$D$15)^(Simulation_Tab[[#This Row],[Jahr]]-1),(Parameter!$D$14*Konsum_Rente/12)*(1+Parameter!$D$15)^(Simulation_Tab[[#This Row],[Jahr]]-1)) -> 2233.492734 | G76: =Konsum_Kids!L75 -> 1072.076513 | H76: =IF(Renteneintritt-Alter>Simulation_Tab[[#This Row],[Jahr]],Parameter!$D$21/12*(1+Parameter!$D$22)^(Simulation_Tab[[#This Row],[Jahr]]-1),0) -> 3546.297781 | I76: =IF(Simulation_Tab[[#This Row],[Beruf/Rente]]="R",INDEX(Renten_Tab[Rentenwert],MATCH(Simulation_Tab[[#This Row],[Datum]],Renten_Tab[Suchjahr],0),1)*Rentenpunkte*Zugangsfaktor,0) -> 0 | J76: =SUM(ETF_blind!AB75:AF75) -> 0 | K76: =ETF_blind!U75 -> 0 | L76: =IFERROR(ETF_blind!AV75,0) -> 0 | M76: =IFERROR(INDEX(Table6[Kaufpreis inkl NK],MATCH(Simulation_Tab[[#This Row],[Suchjahr]],Table6[Jahr],0),1),0) -> 0 | N76: =IFERROR(INDEX(Table6[Wert_Bestand],MATCH(Simulation_Tab[[#This Row],[Suchjahr]],Table6[Jahr],0),1),0) -> 0 | O76: =IFERROR(INDEX(Table6[EK_sum],MATCH(Simulation_Tab[[#This Row],[Suchjahr]],Table6[Jahr],0),1)-INDEX(Table6[Kaufnebenkosten],MATCH(Simulation_Tab[[#This Row],[Suchjahr]],Table6[Jahr],0),1),0) -> 0 | P76: =IFERROR(INDEX(Table6[Kaufnebenkosten],MATCH(Simulation_Tab[[#This Row],[Suchjahr]],Table6[Jahr],0),1),0) -> 0 | Q76: =IFERROR(INDEX(Table6[FK_Bestand],MATCH(Simulation_Tab[[#This Row],[Suchjahr]],Table6[Jahr],0),1),0) -> 0 | R76: =IFERROR(INDEX(Table6[EK_Bestand],MATCH(Simulation_Tab[[#This Row],[Suchjahr]],Table6[Jahr],0),1),0) -> 0 | S76: =INDEX(Table68[Zinsen_Bestand],MATCH(Simulation_Tab[[#This Row],[Datum]],Table68[Jahr],0),1)/12 -> 0 | T76: =INDEX(Table68[Tilgung_Bestand],MATCH(Simulation_Tab[[#This Row],[Datum]],Table68[Jahr],0),1)/12 -> 0 | U76: =INDEX(Table6[Kosten_Bestand],MATCH(Simulation_Tab[[#This Row],[Datum]],Table6[Jahr],0),1)/12 -> 0 | V76: =INDEX(Table6[Miete_Bestand],MATCH(Simulation_Tab[[#This Row],[Datum]],Table6[Jahr],0),1)/12 -> 0 | W76: =Simulation_Tab[[#This Row],[Nettolohn]]+Simulation_Tab[[#This Row],[gesetzliche Rente]]+Simulation_Tab[[#This Row],[Miete]]+IF(Simulation_Tab[[#This Row],[ETF_VK_Gewinn]]>0,Simulation_Tab[[#This Row],[ETF_VK_Gewinn]],0) -> 3546.297781 | X76: =_xlfn.AGGREGATE(9,6,Simulation_Tab[[#This Row],[Konsumausgaben p.M.]]:Simulation_Tab[[#This Row],[Ausgaben Kinder]],Simulation_Tab[[#This Row],[Zinsen]:[n.u. Kosten]])+IF(Simulation_Tab[[#This Row],[ETF_VK_Gewinn]]<0,Simulation_Tab[[#This Row],[ETF_VK_Gewinn]],0)*-1 -> 3305.569247 | Y76: =Simulation_Tab[[#This Row],[Einnahmen Summe]]-Simulation_Tab[[#This Row],[Ausgaben Summe]] -> 240.7285338 | Z76: =_xlfn.AGGREGATE(9,6,Simulation_Tab[[#This Row],[Immo_EK_Kauf]],Simulation_Tab[[#This Row],[Kaufnebenkosten_EK]],Simulation_Tab[[#This Row],[ETF Investment]]) -> 0 | AA76: =Simulation_Tab[[#This Row],[freier Cashflow ]]-Simulation_Tab[[#This Row],[Investitionen inkl Nk]] -> 240.7285338 | AB76: =AB75+Simulation_Tab[[#This Row],[Cashflow]] -> 61585.57545 | AC76: =Simulation_Tab[[#This Row],[Cash]]+Simulation_Tab[[#This Row],[Immo_EK_Bestand]]+Simulation_Tab[[#This Row],[ETF-Wert]] -> 61585.57545
A77: =IF(Simulation_Tab[[#This Row],[Datum]]<>B78,Simulation_Tab[[#This Row],[Datum]],"") ->  | B77: =Parameter!$U$5+Simulation_Tab[[#This Row],[Jahr]]-1 -> 2026 | C77: 7 | D77: 75 | E77: =IF((Parameter!$D$10-Parameter!$D$9)>Simulation_Tab[[#This Row],[Jahr]],"B","R") -> B | F77: =IF(Simulation_Tab[[#This Row],[Beruf/Rente]]="B",(Parameter!$D$14/12)*(1+Parameter!$D$15)^(Simulation_Tab[[#This Row],[Jahr]]-1),(Parameter!$D$14*Konsum_Rente/12)*(1+Parameter!$D$15)^(Simulation_Tab[[#This Row],[Jahr]]-1)) -> 2233.492734 | G77: =Konsum_Kids!L76 -> 1072.076513 | H77: =IF(Renteneintritt-Alter>Simulation_Tab[[#This Row],[Jahr]],Parameter!$D$21/12*(1+Parameter!$D$22)^(Simulation_Tab[[#This Row],[Jahr]]-1),0) -> 3546.297781 | I77: =IF(Simulation_Tab[[#This Row],[Beruf/Rente]]="R",INDEX(Renten_Tab[Rentenwert],MATCH(Simulation_Tab[[#This Row],[Datum]],Renten_Tab[Suchjahr],0),1)*Rentenpunkte*Zugangsfaktor,0) -> 0 | J77: =SUM(ETF_blind!AB76:AF76) -> 0 | K77: =ETF_blind!U76 -> 0 | L77: =IFERROR(ETF_blind!AV76,0) -> 0 | M77: =IFERROR(INDEX(Table6[Kaufpreis inkl NK],MATCH(Simulation_Tab[[#This Row],[Suchjahr]],Table6[Jahr],0),1),0) -> 0 | N77: =IFERROR(INDEX(Table6[Wert_Bestand],MATCH(Simulation_Tab[[#This Row],[Suchjahr]],Table6[Jahr],0),1),0) -> 0 | O77: =IFERROR(INDEX(Table6[EK_sum],MATCH(Simulation_Tab[[#This Row],[Suchjahr]],Table6[Jahr],0),1)-INDEX(Table6[Kaufnebenkosten],MATCH(Simulation_Tab[[#This Row],[Suchjahr]],Table6[Jahr],0),1),0) -> 0 | P77: =IFERROR(INDEX(Table6[Kaufnebenkosten],MATCH(Simulation_Tab[[#This Row],[Suchjahr]],Table6[Jahr],0),1),0) -> 0 | Q77: =IFERROR(INDEX(Table6[FK_Bestand],MATCH(Simulation_Tab[[#This Row],[Suchjahr]],Table6[Jahr],0),1),0) -> 0 | R77: =IFERROR(INDEX(Table6[EK_Bestand],MATCH(Simulation_Tab[[#This Row],[Suchjahr]],Table6[Jahr],0),1),0) -> 0 | S77: =INDEX(Table68[Zinsen_Bestand],MATCH(Simulation_Tab[[#This Row],[Datum]],Table68[Jahr],0),1)/12 -> 0 | T77: =INDEX(Table68[Tilgung_Bestand],MATCH(Simulation_Tab[[#This Row],[Datum]],Table68[Jahr],0),1)/12 -> 0 | U77: =INDEX(Table6[Kosten_Bestand],MATCH(Simulation_Tab[[#This Row],[Datum]],Table6[Jahr],0),1)/12 -> 0 | V77: =INDEX(Table6[Miete_Bestand],MATCH(Simulation_Tab[[#This Row],[Datum]],Table6[Jahr],0),1)/12 -> 0 | W77: =Simulation_Tab[[#This Row],[Nettolohn]]+Simulation_Tab[[#This Row],[gesetzliche Rente]]+Simulation_Tab[[#This Row],[Miete]]+IF(Simulation_Tab[[#This Row],[ETF_VK_Gewinn]]>0,Simulation_Tab[[#This Row],[ETF_VK_Gewinn]],0) -> 3546.297781 | X77: =_xlfn.AGGREGATE(9,6,Simulation_Tab[[#This Row],[Konsumausgaben p.M.]]:Simulation_Tab[[#This Row],[Ausgaben Kinder]],Simulation_Tab[[#This Row],[Zinsen]:[n.u. Kosten]])+IF(Simulation_Tab[[#This Row],[ETF_VK_Gewinn]]<0,Simulation_Tab[[#This Row],[ETF_VK_Gewinn]],0)*-1 -> 3305.569247 | Y77: =Simulation_Tab[[#This Row],[Einnahmen Summe]]-Simulation_Tab[[#This Row],[Ausgaben Summe]] -> 240.7285338 | Z77: =_xlfn.AGGREGATE(9,6,Simulation_Tab[[#This Row],[Immo_EK_Kauf]],Simulation_Tab[[#This Row],[Kaufnebenkosten_EK]],Simulation_Tab[[#This Row],[ETF Investment]]) -> 0 | AA77: =Simulation_Tab[[#This Row],[freier Cashflow ]]-Simulation_Tab[[#This Row],[Investitionen inkl Nk]] -> 240.7285338 | AB77: =AB76+Simulation_Tab[[#This Row],[Cashflow]] -> 61826.30398 | AC77: =Simulation_Tab[[#This Row],[Cash]]+Simulation_Tab[[#This Row],[Immo_EK_Bestand]]+Simulation_Tab[[#This Row],[ETF-Wert]] -> 61826.30398
A78: =IF(Simulation_Tab[[#This Row],[Datum]]<>B79,Simulation_Tab[[#This Row],[Datum]],"") ->  | B78: =Parameter!$U$5+Simulation_Tab[[#This Row],[Jahr]]-1 -> 2026 | C78: 7 | D78: 76 | E78: =IF((Parameter!$D$10-Parameter!$D$9)>Simulation_Tab[[#This Row],[Jahr]],"B","R") -> B | F78: =IF(Simulation_Tab[[#This Row],[Beruf/Rente]]="B",(Parameter!$D$14/12)*(1+Parameter!$D$15)^(Simulation_Tab[[#This Row],[Jahr]]-1),(Parameter!$D$14*Konsum_Rente/12)*(1+Parameter!$D$15)^(Simulation_Tab[[#This Row],[Jahr]]-1)) -> 2233.492734 | G78: =Konsum_Kids!L77 -> 1072.076513 | H78: =IF(Renteneintritt-Alter>Simulation_Tab[[#This Row],[Jahr]],Parameter!$D$21/12*(1+Parameter!$D$22)^(Simulation_Tab[[#This Row],[Jahr]]-1),0) -> 3546.297781 | I78: =IF(Simulation_Tab[[#This Row],[Beruf/Rente]]="R",INDEX(Renten_Tab[Rentenwert],MATCH(Simulation_Tab[[#This Row],[Datum]],Renten_Tab[Suchjahr],0),1)*Rentenpunkte*Zugangsfaktor,0) -> 0 | J78: =SUM(ETF_blind!AB77:AF77) -> 0 | K78: =ETF_blind!U77 -> 0 | L78: =IFERROR(ETF_blind!AV77,0) -> 0 | M78: =IFERROR(INDEX(Table6[Kaufpreis inkl NK],MATCH(Simulation_Tab[[#This Row],[Suchjahr]],Table6[Jahr],0),1),0) -> 0 | N78: =IFERROR(INDEX(Table6[Wert_Bestand],MATCH(Simulation_Tab[[#This Row],[Suchjahr]],Table6[Jahr],0),1),0) -> 0 | O78: =IFERROR(INDEX(Table6[EK_sum],MATCH(Simulation_Tab[[#This Row],[Suchjahr]],Table6[Jahr],0),1)-INDEX(Table6[Kaufnebenkosten],MATCH(Simulation_Tab[[#This Row],[Suchjahr]],Table6[Jahr],0),1),0) -> 0 | P78: =IFERROR(INDEX(Table6[Kaufnebenkosten],MATCH(Simulation_Tab[[#This Row],[Suchjahr]],Table6[Jahr],0),1),0) -> 0 | Q78: =IFERROR(INDEX(Table6[FK_Bestand],MATCH(Simulation_Tab[[#This Row],[Suchjahr]],Table6[Jahr],0),1),0) -> 0 | R78: =IFERROR(INDEX(Table6[EK_Bestand],MATCH(Simulation_Tab[[#This Row],[Suchjahr]],Table6[Jahr],0),1),0) -> 0 | S78: =INDEX(Table68[Zinsen_Bestand],MATCH(Simulation_Tab[[#This Row],[Datum]],Table68[Jahr],0),1)/12 -> 0 | T78: =INDEX(Table68[Tilgung_Bestand],MATCH(Simulation_Tab[[#This Row],[Datum]],Table68[Jahr],0),1)/12 -> 0 | U78: =INDEX(Table6[Kosten_Bestand],MATCH(Simulation_Tab[[#This Row],[Datum]],Table6[Jahr],0),1)/12 -> 0 | V78: =INDEX(Table6[Miete_Bestand],MATCH(Simulation_Tab[[#This Row],[Datum]],Table6[Jahr],0),1)/12 -> 0 | W78: =Simulation_Tab[[#This Row],[Nettolohn]]+Simulation_Tab[[#This Row],[gesetzliche Rente]]+Simulation_Tab[[#This Row],[Miete]]+IF(Simulation_Tab[[#This Row],[ETF_VK_Gewinn]]>0,Simulation_Tab[[#This Row],[ETF_VK_Gewinn]],0) -> 3546.297781 | X78: =_xlfn.AGGREGATE(9,6,Simulation_Tab[[#This Row],[Konsumausgaben p.M.]]:Simulation_Tab[[#This Row],[Ausgaben Kinder]],Simulation_Tab[[#This Row],[Zinsen]:[n.u. Kosten]])+IF(Simulation_Tab[[#This Row],[ETF_VK_Gewinn]]<0,Simulation_Tab[[#This Row],[ETF_VK_Gewinn]],0)*-1 -> 3305.569247 | Y78: =Simulation_Tab[[#This Row],[Einnahmen Summe]]-Simulation_Tab[[#This Row],[Ausgaben Summe]] -> 240.7285338 | Z78: =_xlfn.AGGREGATE(9,6,Simulation_Tab[[#This Row],[Immo_EK_Kauf]],Simulation_Tab[[#This Row],[Kaufnebenkosten_EK]],Simulation_Tab[[#This Row],[ETF Investment]]) -> 0 | AA78: =Simulation_Tab[[#This Row],[freier Cashflow ]]-Simulation_Tab[[#This Row],[Investitionen inkl Nk]] -> 240.7285338 | AB78: =AB77+Simulation_Tab[[#This Row],[Cashflow]] -> 62067.03251 | AC78: =Simulation_Tab[[#This Row],[Cash]]+Simulation_Tab[[#This Row],[Immo_EK_Bestand]]+Simulation_Tab[[#This Row],[ETF-Wert]] -> 62067.03251
A79: =IF(Simulation_Tab[[#This Row],[Datum]]<>B80,Simulation_Tab[[#This Row],[Datum]],"") ->  | B79: =Parameter!$U$5+Simulation_Tab[[#This Row],[Jahr]]-1 -> 2026 | C79: 7 | D79: 77 | E79: =IF((Parameter!$D$10-Parameter!$D$9)>Simulation_Tab[[#This Row],[Jahr]],"B","R") -> B | F79: =IF(Simulation_Tab[[#This Row],[Beruf/Rente]]="B",(Parameter!$D$14/12)*(1+Parameter!$D$15)^(Simulation_Tab[[#This Row],[Jahr]]-1),(Parameter!$D$14*Konsum_Rente/12)*(1+Parameter!$D$15)^(Simulation_Tab[[#This Row],[Jahr]]-1)) -> 2233.492734 | G79: =Konsum_Kids!L78 -> 1072.076513 | H79: =IF(Renteneintritt-Alter>Simulation_Tab[[#This Row],[Jahr]],Parameter!$D$21/12*(1+Parameter!$D$22)^(Simulation_Tab[[#This Row],[Jahr]]-1),0) -> 3546.297781 | I79: =IF(Simulation_Tab[[#This Row],[Beruf/Rente]]="R",INDEX(Renten_Tab[Rentenwert],MATCH(Simulation_Tab[[#This Row],[Datum]],Renten_Tab[Suchjahr],0),1)*Rentenpunkte*Zugangsfaktor,0) -> 0 | J79: =SUM(ETF_blind!AB78:AF78) -> 0 | K79: =ETF_blind!U78 -> 0 | L79: =IFERROR(ETF_blind!AV78,0) -> 0 | M79: =IFERROR(INDEX(Table6[Kaufpreis inkl NK],MATCH(Simulation_Tab[[#This Row],[Suchjahr]],Table6[Jahr],0),1),0) -> 0 | N79: =IFERROR(INDEX(Table6[Wert_Bestand],MATCH(Simulation_Tab[[#This Row],[Suchjahr]],Table6[Jahr],0),1),0) -> 0 | O79: =IFERROR(INDEX(Table6[EK_sum],MATCH(Simulation_Tab[[#This Row],[Suchjahr]],Table6[Jahr],0),1)-INDEX(Table6[Kaufnebenkosten],MATCH(Simulation_Tab[[#This Row],[Suchjahr]],Table6[Jahr],0),1),0) -> 0 | P79: =IFERROR(INDEX(Table6[Kaufnebenkosten],MATCH(Simulation_Tab[[#This Row],[Suchjahr]],Table6[Jahr],0),1),0) -> 0 | Q79: =IFERROR(INDEX(Table6[FK_Bestand],MATCH(Simulation_Tab[[#This Row],[Suchjahr]],Table6[Jahr],0),1),0) -> 0 | R79: =IFERROR(INDEX(Table6[EK_Bestand],MATCH(Simulation_Tab[[#This Row],[Suchjahr]],Table6[Jahr],0),1),0) -> 0 | S79: =INDEX(Table68[Zinsen_Bestand],MATCH(Simulation_Tab[[#This Row],[Datum]],Table68[Jahr],0),1)/12 -> 0 | T79: =INDEX(Table68[Tilgung_Bestand],MATCH(Simulation_Tab[[#This Row],[Datum]],Table68[Jahr],0),1)/12 -> 0 | U79: =INDEX(Table6[Kosten_Bestand],MATCH(Simulation_Tab[[#This Row],[Datum]],Table6[Jahr],0),1)/12 -> 0 | V79: =INDEX(Table6[Miete_Bestand],MATCH(Simulation_Tab[[#This Row],[Datum]],Table6[Jahr],0),1)/12 -> 0 | W79: =Simulation_Tab[[#This Row],[Nettolohn]]+Simulation_Tab[[#This Row],[gesetzliche Rente]]+Simulation_Tab[[#This Row],[Miete]]+IF(Simulation_Tab[[#This Row],[ETF_VK_Gewinn]]>0,Simulation_Tab[[#This Row],[ETF_VK_Gewinn]],0) -> 3546.297781 | X79: =_xlfn.AGGREGATE(9,6,Simulation_Tab[[#This Row],[Konsumausgaben p.M.]]:Simulation_Tab[[#This Row],[Ausgaben Kinder]],Simulation_Tab[[#This Row],[Zinsen]:[n.u. Kosten]])+IF(Simulation_Tab[[#This Row],[ETF_VK_Gewinn]]<0,Simulation_Tab[[#This Row],[ETF_VK_Gewinn]],0)*-1 -> 3305.569247 | Y79: =Simulation_Tab[[#This Row],[Einnahmen Summe]]-Simulation_Tab[[#This Row],[Ausgaben Summe]] -> 240.7285338 | Z79: =_xlfn.AGGREGATE(9,6,Simulation_Tab[[#This Row],[Immo_EK_Kauf]],Simulation_Tab[[#This Row],[Kaufnebenkosten_EK]],Simulation_Tab[[#This Row],[ETF Investment]]) -> 0 | AA79: =Simulation_Tab[[#This Row],[freier Cashflow ]]-Simulation_Tab[[#This Row],[Investitionen inkl Nk]] -> 240.7285338 | AB79: =AB78+Simulation_Tab[[#This Row],[Cashflow]] -> 62307.76105 | AC79: =Simulation_Tab[[#This Row],[Cash]]+Simulation_Tab[[#This Row],[Immo_EK_Bestand]]+Simulation_Tab[[#This Row],[ETF-Wert]] -> 62307.76105
A80: =IF(Simulation_Tab[[#This Row],[Datum]]<>B81,Simulation_Tab[[#This Row],[Datum]],"") ->  | B80: =Parameter!$U$5+Simulation_Tab[[#This Row],[Jahr]]-1 -> 2026 | C80: 7 | D80: 78 | E80: =IF((Parameter!$D$10-Parameter!$D$9)>Simulation_Tab[[#This Row],[Jahr]],"B","R") -> B | F80: =IF(Simulation_Tab[[#This Row],[Beruf/Rente]]="B",(Parameter!$D$14/12)*(1+Parameter!$D$15)^(Simulation_Tab[[#This Row],[Jahr]]-1),(Parameter!$D$14*Konsum_Rente/12)*(1+Parameter!$D$15)^(Simulation_Tab[[#This Row],[Jahr]]-1)) -> 2233.492734 | G80: =Konsum_Kids!L79 -> 1072.076513 | H80: =IF(Renteneintritt-Alter>Simulation_Tab[[#This Row],[Jahr]],Parameter!$D$21/12*(1+Parameter!$D$22)^(Simulation_Tab[[#This Row],[Jahr]]-1),0) -> 3546.297781 | I80: =IF(Simulation_Tab[[#This Row],[Beruf/Rente]]="R",INDEX(Renten_Tab[Rentenwert],MATCH(Simulation_Tab[[#This Row],[Datum]],Renten_Tab[Suchjahr],0),1)*Rentenpunkte*Zugangsfaktor,0) -> 0 | J80: =SUM(ETF_blind!AB79:AF79) -> 0 | K80: =ETF_blind!U79 -> 0 | L80: =IFERROR(ETF_blind!AV79,0) -> 0 | M80: =IFERROR(INDEX(Table6[Kaufpreis inkl NK],MATCH(Simulation_Tab[[#This Row],[Suchjahr]],Table6[Jahr],0),1),0) -> 0 | N80: =IFERROR(INDEX(Table6[Wert_Bestand],MATCH(Simulation_Tab[[#This Row],[Suchjahr]],Table6[Jahr],0),1),0) -> 0 | O80: =IFERROR(INDEX(Table6[EK_sum],MATCH(Simulation_Tab[[#This Row],[Suchjahr]],Table6[Jahr],0),1)-INDEX(Table6[Kaufnebenkosten],MATCH(Simulation_Tab[[#This Row],[Suchjahr]],Table6[Jahr],0),1),0) -> 0 | P80: =IFERROR(INDEX(Table6[Kaufnebenkosten],MATCH(Simulation_Tab[[#This Row],[Suchjahr]],Table6[Jahr],0),1),0) -> 0 | Q80: =IFERROR(INDEX(Table6[FK_Bestand],MATCH(Simulation_Tab[[#This Row],[Suchjahr]],Table6[Jahr],0),1),0) -> 0 | R80: =IFERROR(INDEX(Table6[EK_Bestand],MATCH(Simulation_Tab[[#This Row],[Suchjahr]],Table6[Jahr],0),1),0) -> 0 | S80: =INDEX(Table68[Zinsen_Bestand],MATCH(Simulation_Tab[[#This Row],[Datum]],Table68[Jahr],0),1)/12 -> 0 | T80: =INDEX(Table68[Tilgung_Bestand],MATCH(Simulation_Tab[[#This Row],[Datum]],Table68[Jahr],0),1)/12 -> 0 | U80: =INDEX(Table6[Kosten_Bestand],MATCH(Simulation_Tab[[#This Row],[Datum]],Table6[Jahr],0),1)/12 -> 0 | V80: =INDEX(Table6[Miete_Bestand],MATCH(Simulation_Tab[[#This Row],[Datum]],Table6[Jahr],0),1)/12 -> 0 | W80: =Simulation_Tab[[#This Row],[Nettolohn]]+Simulation_Tab[[#This Row],[gesetzliche Rente]]+Simulation_Tab[[#This Row],[Miete]]+IF(Simulation_Tab[[#This Row],[ETF_VK_Gewinn]]>0,Simulation_Tab[[#This Row],[ETF_VK_Gewinn]],0) -> 3546.297781 | X80: =_xlfn.AGGREGATE(9,6,Simulation_Tab[[#This Row],[Konsumausgaben p.M.]]:Simulation_Tab[[#This Row],[Ausgaben Kinder]],Simulation_Tab[[#This Row],[Zinsen]:[n.u. Kosten]])+IF(Simulation_Tab[[#This Row],[ETF_VK_Gewinn]]<0,Simulation_Tab[[#This Row],[ETF_VK_Gewinn]],0)*-1 -> 3305.569247 | Y80: =Simulation_Tab[[#This Row],[Einnahmen Summe]]-Simulation_Tab[[#This Row],[Ausgaben Summe]] -> 240.7285338 | Z80: =_xlfn.AGGREGATE(9,6,Simulation_Tab[[#This Row],[Immo_EK_Kauf]],Simulation_Tab[[#This Row],[Kaufnebenkosten_EK]],Simulation_Tab[[#This Row],[ETF Investment]]) -> 0 | AA80: =Simulation_Tab[[#This Row],[freier Cashflow ]]-Simulation_Tab[[#This Row],[Investitionen inkl Nk]] -> 240.7285338 | AB80: =AB79+Simulation_Tab[[#This Row],[Cashflow]] -> 62548.48958 | AC80: =Simulation_Tab[[#This Row],[Cash]]+Simulation_Tab[[#This Row],[Immo_EK_Bestand]]+Simulation_Tab[[#This Row],[ETF-Wert]] -> 62548.48958
A81: =IF(Simulation_Tab[[#This Row],[Datum]]<>B82,Simulation_Tab[[#This Row],[Datum]],"") ->  | B81: =Parameter!$U$5+Simulation_Tab[[#This Row],[Jahr]]-1 -> 2026 | C81: 7 | D81: 79 | E81: =IF((Parameter!$D$10-Parameter!$D$9)>Simulation_Tab[[#This Row],[Jahr]],"B","R") -> B | F81: =IF(Simulation_Tab[[#This Row],[Beruf/Rente]]="B",(Parameter!$D$14/12)*(1+Parameter!$D$15)^(Simulation_Tab[[#This Row],[Jahr]]-1),(Parameter!$D$14*Konsum_Rente/12)*(1+Parameter!$D$15)^(Simulation_Tab[[#This Row],[Jahr]]-1)) -> 2233.492734 | G81: =Konsum_Kids!L80 -> 1072.076513 | H81: =IF(Renteneintritt-Alter>Simulation_Tab[[#This Row],[Jahr]],Parameter!$D$21/12*(1+Parameter!$D$22)^(Simulation_Tab[[#This Row],[Jahr]]-1),0) -> 3546.297781 | I81: =IF(Simulation_Tab[[#This Row],[Beruf/Rente]]="R",INDEX(Renten_Tab[Rentenwert],MATCH(Simulation_Tab[[#This Row],[Datum]],Renten_Tab[Suchjahr],0),1)*Rentenpunkte*Zugangsfaktor,0) -> 0 | J81: =SUM(ETF_blind!AB80:AF80) -> 0 | K81: =ETF_blind!U80 -> 0 | L81: =IFERROR(ETF_blind!AV80,0) -> 0 | M81: =IFERROR(INDEX(Table6[Kaufpreis inkl NK],MATCH(Simulation_Tab[[#This Row],[Suchjahr]],Table6[Jahr],0),1),0) -> 0 | N81: =IFERROR(INDEX(Table6[Wert_Bestand],MATCH(Simulation_Tab[[#This Row],[Suchjahr]],Table6[Jahr],0),1),0) -> 0 | O81: =IFERROR(INDEX(Table6[EK_sum],MATCH(Simulation_Tab[[#This Row],[Suchjahr]],Table6[Jahr],0),1)-INDEX(Table6[Kaufnebenkosten],MATCH(Simulation_Tab[[#This Row],[Suchjahr]],Table6[Jahr],0),1),0) -> 0 | P81: =IFERROR(INDEX(Table6[Kaufnebenkosten],MATCH(Simulation_Tab[[#This Row],[Suchjahr]],Table6[Jahr],0),1),0) -> 0 | Q81: =IFERROR(INDEX(Table6[FK_Bestand],MATCH(Simulation_Tab[[#This Row],[Suchjahr]],Table6[Jahr],0),1),0) -> 0 | R81: =IFERROR(INDEX(Table6[EK_Bestand],MATCH(Simulation_Tab[[#This Row],[Suchjahr]],Table6[Jahr],0),1),0) -> 0 | S81: =INDEX(Table68[Zinsen_Bestand],MATCH(Simulation_Tab[[#This Row],[Datum]],Table68[Jahr],0),1)/12 -> 0 | T81: =INDEX(Table68[Tilgung_Bestand],MATCH(Simulation_Tab[[#This Row],[Datum]],Table68[Jahr],0),1)/12 -> 0 | U81: =INDEX(Table6[Kosten_Bestand],MATCH(Simulation_Tab[[#This Row],[Datum]],Table6[Jahr],0),1)/12 -> 0 | V81: =INDEX(Table6[Miete_Bestand],MATCH(Simulation_Tab[[#This Row],[Datum]],Table6[Jahr],0),1)/12 -> 0 | W81: =Simulation_Tab[[#This Row],[Nettolohn]]+Simulation_Tab[[#This Row],[gesetzliche Rente]]+Simulation_Tab[[#This Row],[Miete]]+IF(Simulation_Tab[[#This Row],[ETF_VK_Gewinn]]>0,Simulation_Tab[[#This Row],[ETF_VK_Gewinn]],0) -> 3546.297781 | X81: =_xlfn.AGGREGATE(9,6,Simulation_Tab[[#This Row],[Konsumausgaben p.M.]]:Simulation_Tab[[#This Row],[Ausgaben Kinder]],Simulation_Tab[[#This Row],[Zinsen]:[n.u. Kosten]])+IF(Simulation_Tab[[#This Row],[ETF_VK_Gewinn]]<0,Simulation_Tab[[#This Row],[ETF_VK_Gewinn]],0)*-1 -> 3305.569247 | Y81: =Simulation_Tab[[#This Row],[Einnahmen Summe]]-Simulation_Tab[[#This Row],[Ausgaben Summe]] -> 240.7285338 | Z81: =_xlfn.AGGREGATE(9,6,Simulation_Tab[[#This Row],[Immo_EK_Kauf]],Simulation_Tab[[#This Row],[Kaufnebenkosten_EK]],Simulation_Tab[[#This Row],[ETF Investment]]) -> 0 | AA81: =Simulation_Tab[[#This Row],[freier Cashflow ]]-Simulation_Tab[[#This Row],[Investitionen inkl Nk]] -> 240.7285338 | AB81: =AB80+Simulation_Tab[[#This Row],[Cashflow]] -> 62789.21811 | AC81: =Simulation_Tab[[#This Row],[Cash]]+Simulation_Tab[[#This Row],[Immo_EK_Bestand]]+Simulation_Tab[[#This Row],[ETF-Wert]] -> 62789.21811
A82: =IF(Simulation_Tab[[#This Row],[Datum]]<>B83,Simulation_Tab[[#This Row],[Datum]],"") ->  | B82: =Parameter!$U$5+Simulation_Tab[[#This Row],[Jahr]]-1 -> 2026 | C82: 7 | D82: 80 | E82: =IF((Parameter!$D$10-Parameter!$D$9)>Simulation_Tab[[#This Row],[Jahr]],"B","R") -> B | F82: =IF(Simulation_Tab[[#This Row],[Beruf/Rente]]="B",(Parameter!$D$14/12)*(1+Parameter!$D$15)^(Simulation_Tab[[#This Row],[Jahr]]-1),(Parameter!$D$14*Konsum_Rente/12)*(1+Parameter!$D$15)^(Simulation_Tab[[#This Row],[Jahr]]-1)) -> 2233.492734 | G82: =Konsum_Kids!L81 -> 1072.076513 | H82: =IF(Renteneintritt-Alter>Simulation_Tab[[#This Row],[Jahr]],Parameter!$D$21/12*(1+Parameter!$D$22)^(Simulation_Tab[[#This Row],[Jahr]]-1),0) -> 3546.297781 | I82: =IF(Simulation_Tab[[#This Row],[Beruf/Rente]]="R",INDEX(Renten_Tab[Rentenwert],MATCH(Simulation_Tab[[#This Row],[Datum]],Renten_Tab[Suchjahr],0),1)*Rentenpunkte*Zugangsfaktor,0) -> 0 | J82: =SUM(ETF_blind!AB81:AF81) -> 0 | K82: =ETF_blind!U81 -> 0 | L82: =IFERROR(ETF_blind!AV81,0) -> 0 | M82: =IFERROR(INDEX(Table6[Kaufpreis inkl NK],MATCH(Simulation_Tab[[#This Row],[Suchjahr]],Table6[Jahr],0),1),0) -> 0 | N82: =IFERROR(INDEX(Table6[Wert_Bestand],MATCH(Simulation_Tab[[#This Row],[Suchjahr]],Table6[Jahr],0),1),0) -> 0 | O82: =IFERROR(INDEX(Table6[EK_sum],MATCH(Simulation_Tab[[#This Row],[Suchjahr]],Table6[Jahr],0),1)-INDEX(Table6[Kaufnebenkosten],MATCH(Simulation_Tab[[#This Row],[Suchjahr]],Table6[Jahr],0),1),0) -> 0 | P82: =IFERROR(INDEX(Table6[Kaufnebenkosten],MATCH(Simulation_Tab[[#This Row],[Suchjahr]],Table6[Jahr],0),1),0) -> 0 | Q82: =IFERROR(INDEX(Table6[FK_Bestand],MATCH(Simulation_Tab[[#This Row],[Suchjahr]],Table6[Jahr],0),1),0) -> 0 | R82: =IFERROR(INDEX(Table6[EK_Bestand],MATCH(Simulation_Tab[[#This Row],[Suchjahr]],Table6[Jahr],0),1),0) -> 0 | S82: =INDEX(Table68[Zinsen_Bestand],MATCH(Simulation_Tab[[#This Row],[Datum]],Table68[Jahr],0),1)/12 -> 0 | T82: =INDEX(Table68[Tilgung_Bestand],MATCH(Simulation_Tab[[#This Row],[Datum]],Table68[Jahr],0),1)/12 -> 0 | U82: =INDEX(Table6[Kosten_Bestand],MATCH(Simulation_Tab[[#This Row],[Datum]],Table6[Jahr],0),1)/12 -> 0 | V82: =INDEX(Table6[Miete_Bestand],MATCH(Simulation_Tab[[#This Row],[Datum]],Table6[Jahr],0),1)/12 -> 0 | W82: =Simulation_Tab[[#This Row],[Nettolohn]]+Simulation_Tab[[#This Row],[gesetzliche Rente]]+Simulation_Tab[[#This Row],[Miete]]+IF(Simulation_Tab[[#This Row],[ETF_VK_Gewinn]]>0,Simulation_Tab[[#This Row],[ETF_VK_Gewinn]],0) -> 3546.297781 | X82: =_xlfn.AGGREGATE(9,6,Simulation_Tab[[#This Row],[Konsumausgaben p.M.]]:Simulation_Tab[[#This Row],[Ausgaben Kinder]],Simulation_Tab[[#This Row],[Zinsen]:[n.u. Kosten]])+IF(Simulation_Tab[[#This Row],[ETF_VK_Gewinn]]<0,Simulation_Tab[[#This Row],[ETF_VK_Gewinn]],0)*-1 -> 3305.569247 | Y82: =Simulation_Tab[[#This Row],[Einnahmen Summe]]-Simulation_Tab[[#This Row],[Ausgaben Summe]] -> 240.7285338 | Z82: =_xlfn.AGGREGATE(9,6,Simulation_Tab[[#This Row],[Immo_EK_Kauf]],Simulation_Tab[[#This Row],[Kaufnebenkosten_EK]],Simulation_Tab[[#This Row],[ETF Investment]]) -> 0 | AA82: =Simulation_Tab[[#This Row],[freier Cashflow ]]-Simulation_Tab[[#This Row],[Investitionen inkl Nk]] -> 240.7285338 | AB82: =AB81+Simulation_Tab[[#This Row],[Cashflow]] -> 63029.94665 | AC82: =Simulation_Tab[[#This Row],[Cash]]+Simulation_Tab[[#This Row],[Immo_EK_Bestand]]+Simulation_Tab[[#This Row],[ETF-Wert]] -> 63029.94665
A83: =IF(Simulation_Tab[[#This Row],[Datum]]<>B84,Simulation_Tab[[#This Row],[Datum]],"") ->  | B83: =Parameter!$U$5+Simulation_Tab[[#This Row],[Jahr]]-1 -> 2026 | C83: 7 | D83: 81 | E83: =IF((Parameter!$D$10-Parameter!$D$9)>Simulation_Tab[[#This Row],[Jahr]],"B","R") -> B | F83: =IF(Simulation_Tab[[#This Row],[Beruf/Rente]]="B",(Parameter!$D$14/12)*(1+Parameter!$D$15)^(Simulation_Tab[[#This Row],[Jahr]]-1),(Parameter!$D$14*Konsum_Rente/12)*(1+Parameter!$D$15)^(Simulation_Tab[[#This Row],[Jahr]]-1)) -> 2233.492734 | G83: =Konsum_Kids!L82 -> 1072.076513 | H83: =IF(Renteneintritt-Alter>Simulation_Tab[[#This Row],[Jahr]],Parameter!$D$21/12*(1+Parameter!$D$22)^(Simulation_Tab[[#This Row],[Jahr]]-1),0) -> 3546.297781 | I83: =IF(Simulation_Tab[[#This Row],[Beruf/Rente]]="R",INDEX(Renten_Tab[Rentenwert],MATCH(Simulation_Tab[[#This Row],[Datum]],Renten_Tab[Suchjahr],0),1)*Rentenpunkte*Zugangsfaktor,0) -> 0 | J83: =SUM(ETF_blind!AB82:AF82) -> 0 | K83: =ETF_blind!U82 -> 0 | L83: =IFERROR(ETF_blind!AV82,0) -> 0 | M83: =IFERROR(INDEX(Table6[Kaufpreis inkl NK],MATCH(Simulation_Tab[[#This Row],[Suchjahr]],Table6[Jahr],0),1),0) -> 0 | N83: =IFERROR(INDEX(Table6[Wert_Bestand],MATCH(Simulation_Tab[[#This Row],[Suchjahr]],Table6[Jahr],0),1),0) -> 0 | O83: =IFERROR(INDEX(Table6[EK_sum],MATCH(Simulation_Tab[[#This Row],[Suchjahr]],Table6[Jahr],0),1)-INDEX(Table6[Kaufnebenkosten],MATCH(Simulation_Tab[[#This Row],[Suchjahr]],Table6[Jahr],0),1),0) -> 0 | P83: =IFERROR(INDEX(Table6[Kaufnebenkosten],MATCH(Simulation_Tab[[#This Row],[Suchjahr]],Table6[Jahr],0),1),0) -> 0 | Q83: =IFERROR(INDEX(Table6[FK_Bestand],MATCH(Simulation_Tab[[#This Row],[Suchjahr]],Table6[Jahr],0),1),0) -> 0 | R83: =IFERROR(INDEX(Table6[EK_Bestand],MATCH(Simulation_Tab[[#This Row],[Suchjahr]],Table6[Jahr],0),1),0) -> 0 | S83: =INDEX(Table68[Zinsen_Bestand],MATCH(Simulation_Tab[[#This Row],[Datum]],Table68[Jahr],0),1)/12 -> 0 | T83: =INDEX(Table68[Tilgung_Bestand],MATCH(Simulation_Tab[[#This Row],[Datum]],Table68[Jahr],0),1)/12 -> 0 | U83: =INDEX(Table6[Kosten_Bestand],MATCH(Simulation_Tab[[#This Row],[Datum]],Table6[Jahr],0),1)/12 -> 0 | V83: =INDEX(Table6[Miete_Bestand],MATCH(Simulation_Tab[[#This Row],[Datum]],Table6[Jahr],0),1)/12 -> 0 | W83: =Simulation_Tab[[#This Row],[Nettolohn]]+Simulation_Tab[[#This Row],[gesetzliche Rente]]+Simulation_Tab[[#This Row],[Miete]]+IF(Simulation_Tab[[#This Row],[ETF_VK_Gewinn]]>0,Simulation_Tab[[#This Row],[ETF_VK_Gewinn]],0) -> 3546.297781 | X83: =_xlfn.AGGREGATE(9,6,Simulation_Tab[[#This Row],[Konsumausgaben p.M.]]:Simulation_Tab[[#This Row],[Ausgaben Kinder]],Simulation_Tab[[#This Row],[Zinsen]:[n.u. Kosten]])+IF(Simulation_Tab[[#This Row],[ETF_VK_Gewinn]]<0,Simulation_Tab[[#This Row],[ETF_VK_Gewinn]],0)*-1 -> 3305.569247 | Y83: =Simulation_Tab[[#This Row],[Einnahmen Summe]]-Simulation_Tab[[#This Row],[Ausgaben Summe]] -> 240.7285338 | Z83: =_xlfn.AGGREGATE(9,6,Simulation_Tab[[#This Row],[Immo_EK_Kauf]],Simulation_Tab[[#This Row],[Kaufnebenkosten_EK]],Simulation_Tab[[#This Row],[ETF Investment]]) -> 0 | AA83: =Simulation_Tab[[#This Row],[freier Cashflow ]]-Simulation_Tab[[#This Row],[Investitionen inkl Nk]] -> 240.7285338 | AB83: =AB82+Simulation_Tab[[#This Row],[Cashflow]] -> 63270.67518 | AC83: =Simulation_Tab[[#This Row],[Cash]]+Simulation_Tab[[#This Row],[Immo_EK_Bestand]]+Simulation_Tab[[#This Row],[ETF-Wert]] -> 63270.67518
